Workbook

Sheet リスト
B1: メルカリ | J1: amazonデータ | Q1: 宣伝tweet | T1: その他 | V1: 売上情報
A2: ﾁｪｯｸ | B2: メルカリID | C2: ｽﾃｰﾀｽ | D2: 商品名 | E2: 40 | F2: 商品の説明 | G2: 1000 | H2: 販売価格 | I2: 判定 | J2: amazon URL | L2: メイン価格 | M2: マケプレ 最安値 | O2: 配送料 | P2: 計 | Q2: タグ | R2: Twitter | S2: 297 | T2: 発送予定日 | U2: 編集前 販売価格 | V2: 購入日 | W2: 商品代金 | X2: 販売手数料 | Y2: 配送料 | Z2: 販売利益 | AA2: 送料 | AB2: 購入者 | AC2: 取引終了日 | AD2: お届け先 | AE2: 仕入値 | AF2: 区分 | AG2: 入力補助
B3: m71401649072 | C3: 取引終了 | D3: [Blu-ray]冨田ラボ/Tomita Lab Concert | E3: =LEN(D3) -> 32 | F3: 2007/11/6に購入 中古品のため商品は多少のキズ・使用感がございます。記載ない限り帯・特典などは付属致しません。プロダクト、ダウンロードコードは使用できません。写真以外の付属品はありません。 「冨田ラボ/Tomita Lab Concert」 畠山美由紀 / Ryohei 定価: ￥ 6300 amazonマーケットプレイス最安値(送料込):4,960円(21/11/27) #畠山美由紀 #Ryohei #CD・DVD #冨田ラボ #CHEMISTRY #武田カオリ #tica #高橋幸宏 #大貫妙子 #SOULHEAD #キリンジ #KIRINJI #ハナレグミ #冨田恵一 #堀込高樹 #堀込泰行 #Saigenji #田中拡邦 冨田恵一のセルフ・プロジェクト、冨田ラボの一夜限りのスーパー・ライヴの模様を完全収録。豪華ゲスト・ヴォーカリストを迎えた超プレミア・コンサートに加え、ビデオ・クリップも楽しめる豪華盤だ。 第1部] 01.Waltz [5'18"] 02.罌(け)栗(し) / 畠山美由紀 [5'27"] 03.耐え難くも甘い季節 / 畠山美由紀 [6'43"] 04.ずっと読みかけの夏 / CHEMISTRY [6'50"] 05.しあわせのBlue / 武田カオリ(Tica) [6'16"] 06.道 / 武田カオリ(Tica) [7'00"] 07.Shiplaunching [4'06"] 08.プラシーボ・セシボン / 高橋幸宏＋大貫妙子 [5'17"] [第2部] 09.Blue Ⅱ [9'56"] 10.Like A Queen / SOULHEAD [6'14"] 11.アタタカイ雨 / 田中拡邦(MAMALAID RAG) [6'37"] 12.香りと影 / キリンジ [4'14"] 13.乳房の勾配 / キリンジ [5'15"] 14.Shipyard(edition1) / Saigenji [3'31"] 15.太陽の顔 / Saigenji [6'53"] 16.恋は傘の中で愛に / Ryohei [6'49"] [ENCORE] 17.眠りの森 / ハナレグミ [7'04"] 18.Prayer On The Air [5'11"] 19.Waltz ～Reprise～ [4'25"] | G3: =LEN(F3) -> 988 | H3: 3589 | I3: =IF(AND(L3<>"",H3>L3),"新品より高い",IF(AND(L3<>"",P3>L3),(IF(AND(L3>0,H3<=L3,H3>=L3-50),"最安値",IF(AND(L3>0,H3<L3-50),"安すぎ",""))),IF(AND(P3>0,H3<=P3,H3>=P3-50),"最安値",IF(AND(P3>0,H3<P3-50),"安すぎ","")))) -> 安すぎ | J3: https://www.amazon.co.jp/Tomita-Lab-Concert-Blu-ray-%E5%86%A8%E7%94%B0%E3%83%A9%E3%83%9C/dp/B000K7KKBM/ref=sr_1_1?__mk_ja_JP=%E3%82%AB%E3%82%BF%E3%82%AB%E3%83%8A&keywords=%5BBlu-ray%5D%E5%86%A8%E7%94%B0%E3%83%A9%E3%83%9C%2FTomita+Lab+Concert&qid=1638311824&sr=8-1 | K3: ="https://www.amazon.co.jp/dp/"&MID(J3,FIND("/dp/",J3)+4,10)&"/ref=olp-opf-redir?aod=1&ie=UTF8&condition=ALL" -> https://www.amazon.co.jp/dp/B000K7KKBM/ref=olp-opf-redir?aod=1&ie=UTF8&condition=ALL | L3: 5355 | M3: 3689 | N3: 無料配送 3月7日 月曜日 。 詳細を見る | O3: =MID(N3,FIND("配送料 ¥",N3)+5,FIND(" ",MID(N3,FIND("¥",N3),10))-2)*1 ->  | P3: =IF(ISERROR(O3),M3,M3+O3) -> 3689 | Q3: =MID(F3,FIND("#",F3),FIND(CHAR(10),MID(F3,FIND("#",F3),300))) -> #畠山美由紀 #Ryohei #CD・DVD #冨田ラボ #CHEMISTRY #武田カオリ #tica #高橋幸宏 #大貫妙子 #SOULHEAD #キリンジ #KIRINJI #ハナレグミ #冨田恵一 #堀込高樹 #堀込泰行 #Saigenji #田中拡邦 | R3: ="#メルカリ"&CHAR(10)&D3&CHAR(10)&" フリマアプリ「メルカリ」で販売中 https://jp.mercari.com/item/"&B3&"/ "&Q3 -> #メルカリ [Blu-ray]冨田ラボ/Tomita Lab Concert フリマアプリ「メルカリ」で販売中 https://jp.mercari.com/item/m71401649072/ #畠山美由紀 #Ryohei #CD・DVD #冨田ラボ #CHEMISTRY #武田カオリ #tica #高橋幸宏 #大貫妙子 #SOULHEAD #キリンジ #KIRINJI #ハナレグミ #冨田恵一 #堀込高樹 #堀込泰行 #Saigenji #田中拡邦 | S3: =LENB(R3) -> 304 | T3: 2022-03-13 | U3: 3589 | V3: 2022-03-06 | W3: 3589 | X3: 358 | Y3: 175 | Z3: 3056 | AA3: 送料込み(出品者負担) | AC3: 2022-03-13 | AF3: 個人 | AG3: 1
B4: m13792160012 | C4: 取引終了 | D4: [CD]「朧村正」音楽集 | E4: =LEN(D4) -> 12 | F4: 2011/5/28に購入 中古品のため商品は多少のキズ・使用感がございます。記載ない限り帯・特典などは付属致しません。プロダクト、ダウンロードコードは使用できません。写真以外の付属品はありません。 「「朧村正」音楽集」 定価: ￥ 3500 amazonマーケットプレイス最安値(送料込):2,155円(21/11/23) #CD #崎元仁 #ベイシスケイプ #Basiscape #ゲーム #朧村正 #ヴァニラウェア #神谷盛治 ヴァニラウェアが放つ和風アクションRPGのオリジナル・サウンドトラック。崎元仁がサウンド・プロデューサーを、ベイシスケイプがサウンドを担当、オーケストラ・サウンドに和テイストを盛り込んだ独特世界を展開する。 | G4: =LEN(F4) -> 322 | H4: 1800 | I4: =IF(AND(L4<>"",H4>L4),"新品より高い",IF(AND(L4<>"",P4>L4),(IF(AND(L4>0,H4<=L4,H4>=L4-50),"最安値",IF(AND(L4>0,H4<L4-50),"安すぎ",""))),IF(AND(P4>0,H4<=P4,H4>=P4-50),"最安値",IF(AND(P4>0,H4<P4-50),"安すぎ","")))) -> 安すぎ | J4: https://www.amazon.co.jp/%E6%9C%A7%E6%9D%91%E6%AD%A3-%E9%9F%B3%E6%A5%BD%E9%9B%86-%E3%82%B2%E3%83%BC%E3%83%A0%E3%83%BB%E3%83%9F%E3%83%A5%E3%83%BC%E3%82%B8%E3%83%83%E3%82%AF/dp/B002V4O2D4/ref=sr_1_1?__mk_ja_JP=%E3%82%AB%E3%82%BF%E3%82%AB%E3%83%8A&keywords=%5BCD%5D%E3%80%8C%E6%9C%A7%E6%9D%91%E6%AD%A3%E3%80%8D%E9%9F%B3%E6%A5%BD%E9%9B%86&qid=1638311839&sr=8-1 | K4: ="https://www.amazon.co.jp/dp/"&MID(J4,FIND("/dp/",J4)+4,10)&"/ref=olp-opf-redir?aod=1&ie=UTF8&condition=ALL" -> https://www.amazon.co.jp/dp/B002V4O2D4/ref=olp-opf-redir?aod=1&ie=UTF8&condition=ALL | L4: 2987 | M4: 1831 | N4: 配送料 ¥350 3月 24-26日。 詳細を見る | O4: 350 | P4: =IF(ISERROR(O4),M4,M4+O4) -> 2181 | Q4: =MID(F4,FIND("#",F4),FIND(CHAR(10),MID(F4,FIND("#",F4),300))) -> #CD #崎元仁 #ベイシスケイプ #Basiscape #ゲーム #朧村正 #ヴァニラウェア #神谷盛治 | R4: #メルカリ [CD]「朧村正」音楽集 フリマアプリ「メルカリ」で販売中 https://jp.mercari.com/item/m13792160012/ #CD #崎元仁 #ベイシスケイプ #Basiscape #ゲーム #朧村正 #ヴァニラウェア #神谷盛治 | S4: =LENB(R4) -> 190 | T4: 2022-03-25 | U4: 1800 | V4: 2022-03-18 | W4: 1800 | X4: 180 | Y4: 175 | Z4: 1445 | AA4: 送料込み(出品者負担) | AC4: 2022-03-24 | AF4: 個人 | AG4: 1
B5: m11905056778 | C5: 取引終了 | D5: [Blu-ray]桑田佳祐/LIVE TOUR&DOCUMENT FILM | E5: 37 | F5: 2014/1/2購入 中古品のため商品は多少のキズ・使用感がございます。記載ない限り帯・特典などは付属致しません。プロダクト、ダウンロードコードは使用できません。写真以外の付属品はありません。 [Blu-ray]「桑田佳祐/LIVE TOUR&DOCUMENT FILM「I LOVE YOU-now&forever-」完全盤〈2枚組〉」 桑田佳祐 定価: ￥ 7905 amazonマーケットプレイス最安値(送料込):6,474円(21/11/23) #桑田佳祐 #CD・DVD #サザン #サザンオールスターズ #SAS #原由子 #松田弘 #関口和之 #野沢秀行 #大森隆志 #斎藤誠 #片山敦夫 桑田佳祐にとって約5年ぶりの全国ツアーの模様を収めた映像作品。エンタテイナーっぷりを発揮したライヴの模様はもちろん、リハーサルから追いかけたドキュメンタリーもたっぷりと凝縮。ファン必見の内容となっている。 200Pに及ぶスペシャルBOOKやステッカーが付いた限定版。 | G5: 439 | H5: 5290 | I5: 安すぎ | J5: https://www.amazon.co.jp/DOCUMENT-FILM%E3%80%8CI-forever-%E3%80%8D%E5%AE%8C%E5%85%A8%E7%9B%A4-%E5%AE%8C%E5%85%A8%E7%94%9F%E7%94%A3%E9%99%90%E5%AE%9A%E7%9B%A4-Blu-ray/dp/B00AQMB6TQ/ref=sr_1_1?__mk_ja_JP=%E3%82%AB%E3%82%BF%E3%82%AB%E3%83%8A&keywords=%5BBlu-ray%5D%E6%A1%91%E7%94%B0%E4%BD%B3%E7%A5%90%2FLIVE+TOUR%26DOCUMENT+FILM&qid=1638311869&sr=8-1 | K5: https://www.amazon.co.jp/dp/B00AQMB6TQ/ref=olp-opf-redir?aod=1&ie=UTF8&condition=ALL | L5: 9898 | M5: 4980 | N5: お届け日 (配送料: ￥410 ): 1月26日 - 28日 詳細を見る | O5: =MID(N5,FIND("配送料: ￥",N5)+6,FIND(" ",MID(N5,FIND("￥",N5),10))-2)*1 -> 410 | P5: 5390 | Q5: #桑田佳祐 #CD・DVD #サザン #サザンオールスターズ #SAS #原由子 #松田弘 #関口和之 #野沢秀行 #大森隆志 #斎藤誠 #片山敦夫 | R5: #メルカリ [Blu-ray]桑田佳祐/LIVE TOUR&DOCUMENT FILM フリマアプリ「メルカリ」で販売中 https://jp.mercari.com/item/m11905056778/ #桑田佳祐 #CD・DVD #サザン #サザンオールスターズ #SAS #原由子 #松田弘 #関口和之 #野沢秀行 #大森隆志 #斎藤誠 #片山敦夫 | S5: 248 | T5: 2022-01-27 | U5: 5290 | V5: 2022-01-20 | W5: 5290 | X5: 529 | Y5: 730 | Z5: 4031 | AA5: 送料込み(出品者負担) | AC5: 2022-01-23 | AF5: 個人 | AG5: 1
B6: m53862038919 | C6: 出品中 | D6: [Blu-ray]牙狼外伝 桃幻の笛 | E6: 18 | F6: 2014/2/28購入 中古品のため商品は多少のキズ・使用感がございます。記載ない限り帯・特典などは付属致しません。写真以外の付属品はありません。 「牙狼外伝 桃幻の笛('13東北新社)」 松山メアリ / 倉貫匡弘 / 大橋明 定価: ￥ 5800 amazonマーケットプレイス最安値(送料込):2,898円(21/11/20) #松山メアリ #倉貫匡弘 #大橋明 #CD・DVD #雨宮慶太 #牙狼 #GARO 雨宮慶太が生み出したヒット・シリーズ『牙狼』のスピンオフ劇場版。“MAKAISENKI”の後のエピソードとなる物語で、二人の魔戒法師の出会いと活躍を描く。出演は佐藤康恵、松山メアリら。 | G6: 303 | H6: 2930 | I6: 最安値 | J6: https://www.amazon.co.jp/%E7%89%99%E7%8B%BC%E5%A4%96%E4%BC%9D-%E6%A1%83%E5%B9%BB%E3%81%AE%E7%AC%9B-Blu-ray-%E4%BD%90%E8%97%A4%E5%BA%B7%E6%81%B5/dp/B00DJQ24XS/ref=sr_1_1?__mk_ja_JP=%E3%82%AB%E3%82%BF%E3%82%AB%E3%83%8A&keywords=%5BBlu-ray%5D%E7%89%99%E7%8B%BC%E5%A4%96%E4%BC%9D+%E6%A1%83%E5%B9%BB%E3%81%AE%E7%AC%9B&qid=1638311883&sr=8-1 | K6: https://www.amazon.co.jp/dp/B00DJQ24XS/ref=olp-opf-redir?aod=1&ie=UTF8&condition=ALL | M6: 2530 | N6: 配送料 ¥410 11月3日-6日にお届け 詳細を見る | O6: =MID(N6,FIND("配送料 ¥",N6)+5,FIND(" ",MID(N6,FIND("¥",N6),10))-2)*1 -> 410 | P6: 2940 | Q6: #松山メアリ #倉貫匡弘 #大橋明 #CD・DVD #雨宮慶太 #牙狼 #GARO | R6: ="#メルカリ"&CHAR(10)&D6&CHAR(10)&" フリマアプリ「メルカリ」で販売中 https://jp.mercari.com/item/"&B6&"?utm_source=android&utm_medium=share "&Q6 -> #メルカリ [Blu-ray]牙狼外伝 桃幻の笛 フリマアプリ「メルカリ」で販売中 https://jp.mercari.com/item/m53862038919?utm_source=android&utm_medium=share #松山メアリ #倉貫匡弘 #大橋明 #CD・DVD #雨宮慶太 #牙狼 #GARO | S6: 211 | U6: 2930 | AF6: 個人 | AG6: 1
B7: m29341732052 | C7: 取引終了 | D7: [Blu-ray]劇場版 魔法少女まどか☆マギカ[新編]叛逆の物語 | E7: 33 | F7: 2014年4月1日購入 中古品のため商品は多少のキズ・使用感がございます。記載ない限り帯・特典などは付属致しません。プロダクト、ダウンロードコードは使用できません。写真以外の付属品はありません。 「劇場版 魔法少女まどか☆マギカ[新編]叛逆の物語('13Madoka Movie Project Rebellion)」 悠木碧 / 斎藤千和 / 宮本幸裕 定価: ￥ 5500 amazonマーケットプレイス最安値(送料込):3,178円(21/11/20) #悠木碧 #斎藤千和 #宮本幸裕 #CD・DVD #魔法少女まどか☆マギカ #新房昭之 #虚淵玄 #蒼樹うめ #ニトロプラス #まどマギ TBS系で放送され、高い人気を集めたアニメ“まどマギ”の劇場版第3弾。TVシリーズを基にした“前編／後編”を経て放たれる“新編”で、“円環の理”に導かれた少女たちの新たな戦いを描く。声の出演は悠木碧、斎藤千和ら。 | G7: 408 | H7: 2100 | J7: https://www.amazon.co.jp/%E5%8A%87%E5%A0%B4%E7%89%88-%E9%AD%94%E6%B3%95%E5%B0%91%E5%A5%B3%E3%81%BE%E3%81%A9%E3%81%8B%E2%98%86%E3%83%9E%E3%82%AE%E3%82%AB-%E5%8F%9B%E9%80%86%E3%81%AE%E7%89%A9%E8%AA%9E-%E9%80%9A%E5%B8%B8%E7%89%88-Blu-ray/dp/B00HRRXUUQ/ref=sr_1_4?__mk_ja_JP=%E3%82%AB%E3%82%BF%E3%82%AB%E3%83%8A&crid=1DUNLDLNHZ9LG&keywords=%E9%AD%94%E6%B3%95%E5%B0%91%E5%A5%B3%E3%81%BE%E3%81%A9%E3%81%8B+%E3%83%9E%E3%82%AE%E3%82%AB+blu-ray&qid=1638314193&sprefix=%E9%AD%94%E6%B3%95%E5%B0%91%E5%A5%B3%E3%81%BE%E3%81%A9%E3%81%8B%2Caps%2C282&sr=8-4 | K7: https://www.amazon.co.jp/dp/B00HRRXUUQ/ref=olp-opf-redir?aod=1&ie=UTF8&condition=ALL | L7: 4480 | M7: 1680 | N7: 配送料 ¥350 3月 17-18日。 詳細を見る | O7: =MID(N7,FIND("配送料 ¥",N7)+5,FIND(" ",MID(N7,FIND("¥",N7),10))-2)*1 -> 350 | P7: 2030 | Q7: #悠木碧 #斎藤千和 #宮本幸裕 #CD・DVD #魔法少女まどか☆マギカ #新房昭之 #虚淵玄 #蒼樹うめ #ニトロプラス #まどマギ | R7: #メルカリ [Blu-ray]劇場版 魔法少女まどか☆マギカ[新編]叛逆の物語 フリマアプリ「メルカリ」で販売中 https://jp.mercari.com/item/m29341732052/ #悠木碧 #斎藤千和 #宮本幸裕 #CD・DVD #魔法少女まどか☆マギカ #新房昭之 #虚淵玄 #蒼樹うめ #ニトロプラス #まどマギ | S7: 256 | T7: 2022-03-21 | U7: 2100 | V7: 2022-03-14 | W7: 2100 | X7: 210 | Y7: 175 | Z7: 1715 | AA7: 送料込み(出品者負担) | AC7: 2022-03-18 | AF7: 個人 | AG7: 1
B8: m83659889317 | C8: 取引終了 | D8: [CD]「戦場のヴァルキュリア」オリジナル・サウンドトラック | E8: 30 | F8: 2011/5/28購入 中古品のため商品は多少のキズ・使用感がございます。記載ない限り帯・特典などは付属致しません。プロダクト、ダウンロードコードは使用できません。写真以外の付属品はありません。 「「戦場のヴァルキュリア」オリジナル・サウンドトラック」 JUJU 定価: ￥ 3,190 #崎元仁 #ベイシスケイプ #Basiscape #JUJU #CD #ゲーム #戦場のヴァルキュリア RPGゲーム・ソフト『戦場のヴァルキュリア』のオリジナル・サウンドトラック。崎元仁の壮大なオーケストラ・サウンドを余す所なく収録したアルバム。 | G8: 272 | H8: 1800 | J8: https://www.amazon.co.jp/%E3%80%8C%E6%88%A6%E5%A0%B4%E3%81%AE%E3%83%B4%E3%82%A1%E3%83%AB%E3%82%AD%E3%83%A5%E3%83%AA%E3%82%A2%E3%80%8D%E3%82%AA%E3%83%AA%E3%82%B8%E3%83%8A%E3%83%AB%E3%83%BB%E3%82%B5%E3%82%A6%E3%83%B3%E3%83%89%E3%83%88%E3%83%A9%E3%83%83%E3%82%AF-%E3%82%B2%E3%83%BC%E3%83%A0%E3%83%BB%E3%83%9F%E3%83%A5%E3%83%BC%E3%82%B8%E3%83%83%E3%82%AF/dp/B00172RN4G/ref=sr_1_4?__mk_ja_JP=%E3%82%AB%E3%82%BF%E3%82%AB%E3%83%8A&keywords=%E6%88%A6%E5%A0%B4%E3%81%AE%E3%83%B4%E3%82%A1%E3%83%AB%E3%82%AD%E3%83%A5%E3%83%AA%E3%82%A2+%E3%82%AA%E3%83%AA%E3%82%B8%E3%83%8A%E3%83%AB%E3%83%BB%E3%82%B5%E3%82%A6%E3%83%B3%E3%83%89%E3%83%88%E3%83%A9%E3%83%83%E3%82%AF&qid=1638311963&sr=8-4 | K8: https://www.amazon.co.jp/dp/B00172RN4G/ref=olp-opf-redir?aod=1&ie=UTF8&condition=ALL | M8: 1200 | N8: お届け日 (配送料: ￥390 ): 12月9日 - 10日 詳細を見る | O8: 390 | P8: 1590 | Q8: #崎元仁 #ベイシスケイプ #Basiscape #JUJU #CD #ゲーム #戦場のヴァルキュリア | R8: #メルカリ [CD]「戦場のヴァルキュリア」オリジナル・サウンドトラック フリマアプリ「メルカリ」で販売中 https://jp.mercari.com/item/m83659889317/ #崎元仁 #ベイシスケイプ #Basiscape #JUJU #CD #ゲーム #戦場のヴァルキュリア | S8: 220 | T8: 2021-12-10 | U8: 1800 | V8: 2021-12-03 | W8: 1800 | X8: 180 | Y8: 175 | Z8: 1445 | AA8: 送料込み(出品者負担) | AC8: =V8 -> 2021-12-03 | AF8: 個人 | AG8: 1
B9: m20522510244 | C9: 取引終了 | D9: [Blu-ray]楽園追放 Expelled from Paradise | E9: 36 | F9: 2016/8/15購入 中古品のため商品は多少のキズ・使用感がございます。記載ない限り帯・特典などは付属致しません。写真以外の付属品はありません。 「楽園追放 Expelled from Paradise('14東映アニメーション)」 釘宮理恵 / 三木眞一郎 / 水島精二 定価: ￥ 5800 amazonマーケットプレイス最安値(送料込):3,384円(21/11/13) #釘宮理恵 #三木眞一郎 #水島精二 #虚淵玄 #ニトロプラス #CD・DVD #楽園追放 虚淵玄×水島精二による初の劇場用オリジナル・アニメ。人類の多くが電脳世界で暮らすようになった西暦2400年の地球。地上世界からのハッキングを受け、アンジェラとディンゴの旅が幕を開ける。壮大な映像とアクションが融合したエンタテインメント作。 | G9: 358 | H9: 2280 | I9: 最安値 | J9: https://www.amazon.co.jp/%E6%A5%BD%E5%9C%92%E8%BF%BD%E6%94%BE-Expelled-Paradise-Blu-ray-%E9%87%98%E5%AE%AE%E7%90%86%E6%81%B5/dp/B00NHU4UIS/ref=tmm_blu_title_0?_encoding=UTF8&qid=1638311978&sr=8-1 | K9: https://www.amazon.co.jp/dp/B00NHU4UIS/ref=olp-opf-redir?aod=1&ie=UTF8&condition=ALL | L9: 5109 | M9: 1980 | N9: 配送料 ¥350 2月 4-6日にお届け 詳細を見る | O9: =MID(N9,FIND("配送料 ¥",N9)+5,FIND(" ",MID(N9,FIND("¥",N9),10))-2)*1 -> 350 | P9: 2330 | Q9: #釘宮理恵 #三木眞一郎 #水島精二 #虚淵玄 #ニトロプラス #CD・DVD #楽園追放 | R9: ="#メルカリ"&CHAR(10)&D9&CHAR(10)&" フリマアプリ「メルカリ」で販売中 https://jp.mercari.com/item/"&B9&"?utm_source=android&utm_medium=share "&Q9 -> #メルカリ [Blu-ray]楽園追放 Expelled from Paradise フリマアプリ「メルカリ」で販売中 https://jp.mercari.com/item/m20522510244?utm_source=android&utm_medium=share #釘宮理恵 #三木眞一郎 #水島精二 #虚淵玄 #ニトロプラス #CD・DVD #楽園追放 | S9: 237 | T9: 2023-02-19 | U9: 2280 | V9: 2023-02-12 | W9: 2280 | X9: 228 | Y9: 210 | Z9: 1842 | AA9: 送料込み(出品者負担) | AB9: Hoppy5 | AC9: 2023-02-19 | AF9: 個人 | AG9: 1
B10: m38991357709 | C10: 出品中 | D10: [Blu-ray]リアル～完全なる首長竜の日～ スタンダード・エディション | E10: 37 | F10: 2013/12/21購入 中古品のため商品は多少のキズ・使用感がございます。記載ない限り帯・特典などは付属致しません。写真以外の付属品はありません。 「リアル～完全なる首長竜の日～ スタンダード・エディション('13「リアル～完全なる首長竜の日～」製作委員会)」 佐藤健 / 綾瀬はるか / 黒沢清 定価: ￥ 3800 #佐藤健 #綾瀬はるか #黒沢清 #CD・DVD 黒沢清監督が乾緑郎のミステリー小説を豪華キャストで映画化。自殺未遂によって昏睡状態となってしまった恋人を目覚めさせるため、“センシング”によって彼女の脳内に入っていく浩市だったが……。謎と仕掛けに満ちた極上のエンタテインメント作品だ。 | G10: 306 | H10: 1999 | J10: https://www.amazon.co.jp/%E3%83%AA%E3%82%A2%E3%83%AB-%E5%AE%8C%E5%85%A8%E3%81%AA%E3%82%8B%E9%A6%96%E9%95%B7%E7%AB%9C%E3%81%AE%E6%97%A5-%E3%82%B9%E3%82%BF%E3%83%B3%E3%83%80%E3%83%BC%E3%83%89%E3%83%BB%E3%82%A8%E3%83%87%E3%82%A3%E3%82%B7%E3%83%A7%E3%83%B3-Blu-ray-%E4%BD%90%E8%97%A4%E5%81%A5/dp/B00EEPTVDO/ref=sr_1_1?__mk_ja_JP=%E3%82%AB%E3%82%BF%E3%82%AB%E3%83%8A&keywords=%5BBlu-ray%5D%E3%83%AA%E3%82%A2%E3%83%AB%EF%BD%9E%E5%AE%8C%E5%85%A8%E3%81%AA%E3%82%8B%E9%A6%96%E9%95%B7%E7%AB%9C%E3%81%AE%E6%97%A5%EF%BD%9E+%E3%82%B9%E3%82%BF%E3%83%B3%E3%83%80%E3%83%BC%E3%83%89%E3%83%BB%E3%82%A8%E3%83%87%E3%82%A3%E3%82%B7%E3%83%A7%E3%83%B3&qid=1638311999&sr=8-1 | K10: https://www.amazon.co.jp/dp/B00EEPTVDO/ref=olp-opf-redir?aod=1&ie=UTF8&condition=ALL | L10: 3560 | M10: 1489 | N10: 無料配送 10月31日 火曜日にお届け（初回注文特典） 詳細を見る | P10: 1489 | Q10: #佐藤健 #綾瀬はるか #黒沢清 #CD・DVD | R10: #メルカリ [Blu-ray]リアル～完全なる首長竜の日～ スタンダード・エディション フリマアプリ「メルカリ」で販売中 https://jp.mercari.com/item/m38991357709?utm_source=android&utm_medium=share #佐藤健 #綾瀬はるか #黒沢清 #CD・DVD | S10: 225 | U10: 1999 | AF10: 個人 | AG10: 1
B11: m38419327181 | C11: 取引終了 | D11: [Blu-ray]ゲーム・オブ・スローンズ 第一章:七王国戦記コンプリートBOX | E11: 40 | F11: 2014/3/2に購入 中古品のため商品は多少のキズ・使用感がございます。記載ない限り帯・特典などは付属致しません。プロダクト、ダウンロードコードは使用できません。写真以外の付属品はありません。 「ゲーム・オブ・スローンズ 第一章:七王国戦記 コンプリート・ボックス〈5枚組〉」 ショーン・ビーン / エミリア・クラーク / ジョージ・R.R.マーティン 定価: ￥ 11238 #ショーン・ビーン #エミリア・クラーク #ジョージ・RRマーティン #ジョージ・R_R_マーティン #CD・DVD #ゲーム・オブ・スローンズ ジョージ・R.R.マーティンのベストセラー『氷と炎の歌』シリーズを原作としたTVシリーズ。七つの国が統一され、ひとつになった大陸“ウェスタロス”。夏と冬が不規則に巡る世界を舞台に、覇権をめぐり陰謀と策略が渦巻く人間ドラマを描く。 | G11: 381 | H11: 2800 | I11: 新品より高い | J11: https://www.amazon.co.jp/%E3%82%B2%E3%83%BC%E3%83%A0%E3%83%BB%E3%82%AA%E3%83%96%E3%83%BB%E3%82%B9%E3%83%AD%E3%83%BC%E3%83%B3%E3%82%BA-%E7%AC%AC%E4%B8%80%E7%AB%A0-%E4%B8%83%E7%8E%8B%E5%9B%BD%E6%88%A6%E8%A8%98-%E5%85%A8%E8%A9%B1%E3%82%BB%E3%83%83%E3%83%88%EF%BC%88%E5%85%A810%E8%A9%B1%E5%8F%8E%E9%8C%B2%EF%BC%89-Blu-ray/dp/B00MMWHZ34/ref=tmm_blu_swatch_0?_encoding=UTF8&qid=&sr= | K11: https://www.amazon.co.jp/dp/B00MMWHZ34/ref=olp-opf-redir?aod=1&ie=UTF8&condition=ALL | L11: 1853 | M11: 1273 | N11: 無料配送: 1月27日 - 28日 詳細を見る | P11: 1273 | Q11: #ショーン・ビーン #エミリア・クラーク #ジョージ・RRマーティン #ジョージ・R_R_マーティン #CD・DVD #ゲーム・オブ・スローンズ | R11: #メルカリ [Blu-ray]ゲーム・オブ・スローンズ 第一章:七王国戦記コンプリートBOX フリマアプリ「メルカリ」で販売中 https://jp.mercari.com/item/m38419327181/ #ショーン・ビーン #エミリア・クラーク #ジョージ・RRマーティン #ジョージ・R_R_マーティン #CD・DVD #ゲーム・オブ・スローンズ | S11: 278 | T11: 2022-01-31 | U11: 2800 | V11: 2022-01-24 | W11: 2800 | X11: 280 | Y11: 175 | Z11: 2345 | AA11: 送料込み(出品者負担) | AC11: 2022-02-01 | AF11: 個人 | AG11: 1
B12: m20345492626 | C12: 取引終了 | D12: [Blu-ray]羅生門 デジタル完全版 | E12: 20 | F12: 2014/2/2に購入 中古品のため商品は多少のキズ・使用感がございます。記載ない限り帯・特典などは付属致しません。プロダクト、ダウンロードコードは使用できません。写真以外の付属品はありません。 「羅生門 デジタル完全版('50大映)」 三船敏郎 / 京マチ子 / 黒澤明 定価: ￥ 4700 amazonマーケットプレイス最安値(送料込/目立った傷なし):3,680円(21/10/30) #三船敏郎 #京マチ子 #黒澤明 #CD・DVD #羅生門 #邦画 #映画 映画史上にその名を刻む黒澤明監督の『羅生門』。1962年の上映用プリントと角川映画が保存していたマスターポジから状態の良い部分を集め、最新技術でデジタル修復。最良の画質でこれまで以上の迫力を体感できる。 | G12: 340 | H12: 3248 | I12: 安すぎ | J12: https://www.amazon.co.jp/%E7%BE%85%E7%94%9F%E9%96%80-%E3%83%87%E3%82%B8%E3%82%BF%E3%83%AB%E5%AE%8C%E5%85%A8%E7%89%88-Blu-ray-%E9%BB%92%E6%BE%A4%E6%98%8E/dp/B001MFIBKS/ref=sr_1_1?__mk_ja_JP=%E3%82%AB%E3%82%BF%E3%82%AB%E3%83%8A&keywords=%5BBlu-ray%5D%E7%BE%85%E7%94%9F%E9%96%80+%E3%83%87%E3%82%B8%E3%82%BF%E3%83%AB%E5%AE%8C%E5%85%A8%E7%89%88&qid=1638312086&sr=8-1 | K12: https://www.amazon.co.jp/dp/B001MFIBKS/ref=olp-opf-redir?aod=1&ie=UTF8&condition=ALL | L12: 4136 | M12: 3348 | N12: 無料配送: 2月10日 - 13日 詳細を見る | O12: =MID(N12,FIND("配送料 ¥",N12)+5,FIND(" ",MID(N12,FIND("¥",N12),10))-2)*1 ->  | P12: 3348 | Q12: #三船敏郎 #京マチ子 #黒澤明 #CD・DVD #羅生門 #邦画 #映画 | R12: #メルカリ [Blu-ray]羅生門 デジタル完全版 フリマアプリ「メルカリ」で販売中 https://jp.mercari.com/item/m20345492626/ #三船敏郎 #京マチ子 #黒澤明 #CD・DVD #羅生門 #邦画 #映画 | S12: 176 | T12: 2022-02-14 | U12: 3248 | V12: 2022-02-07 | W12: 3248 | X12: 324 | Y12: 175 | Z12: 2749 | AA12: 送料込み(出品者負担) | AC12: 2022-02-12 | AF12: 個人 | AG12: 1
B13: m64591503038 | C13: 取引終了 | D13: [Blu-ray]天使のたまご | E13: 15 | F13: 2014/4/10に購入 中古品のため商品は多少のキズ・使用感がございます。記載ない限り帯・特典などは付属致しません。プロダクト、ダウンロードコードは使用できません。写真以外の付属品はありません。 「天使のたまご('85徳間書店/徳間ジャパン)」 根津甚八 / 兵藤まこ / 押井守 定価: ￥ 5700 amazon最安値(送料込):5016円(21/10/24) #根津甚八 #兵藤まこ #押井守 #CD・DVD #天野喜孝 鬼才・押井守監督が、世界的イラストレーター・天野喜孝の世界を幻想的に映し出したファンタジー・アニメ。廃墟に暮らす少女は、いつか天使が生まれてくると信じて“たまご”を抱えていた。そこへ銃を持った少年が現われ……。 | G13: 323 | H13: 5023 | I13: 安すぎ | J13: https://www.amazon.co.jp/%E5%A4%A9%E4%BD%BF%E3%81%AE%E3%81%9F%E3%81%BE%E3%81%94-Blu-ray-%E6%A0%B9%E6%B4%A5%E7%94%9A%E5%85%AB/dp/B00DHD9J68/ref=sr_1_1?__mk_ja_JP=%E3%82%AB%E3%82%BF%E3%82%AB%E3%83%8A&keywords=%5BBlu-ray%5D%E5%A4%A9%E4%BD%BF%E3%81%AE%E3%81%9F%E3%81%BE%E3%81%94&qid=1638312114&sr=8-1 | K13: https://www.amazon.co.jp/dp/B00DHD9J68/ref=olp-opf-redir?aod=1&ie=UTF8&condition=ALL | L13: 5123 | M13: 5925 | N13: 配送料 ¥357 6月 3-5日。 詳細を見る | O13: =MID(N13,FIND("配送料 ¥",N13)+5,FIND(" ",MID(N13,FIND("¥",N13),10))-2)*1 -> 357 | P13: 6282 | Q13: #根津甚八 #兵藤まこ #押井守 #CD・DVD #天野喜孝 | R13: #メルカリ [Blu-ray]天使のたまご フリマアプリ「メルカリ」で販売中 https://jp.mercari.com/item/m64591503038/ #根津甚八 #兵藤まこ #押井守 #CD・DVD #天野喜孝 | S13: 157 | T13: 2022-06-08 | U13: 5023 | V13: 2022-06-01 | W13: 5023 | X13: 502 | Y13: 175 | Z13: 4346 | AA13: 送料込み(出品者負担) | AB13: b 即購入大歓迎です！ | AC13: 2022-06-04 | AF13: 個人 | AG13: 1
B14: m42695266024 | C14: 取引終了 | D14: [Blu-ray]イノセンス アブソリュート・エディション | E14: 29 | F14: 2008/12/31に購入 中古品のため商品は多少のキズ・使用感がございます。記載ない限り帯・特典などは付属致しません。プロダクト、ダウンロードコードは使用できません。写真以外の付属品はありません。 「イノセンス アブソリュート・エディション('04プロダクションI.G/徳間書店/日本テレビ/電通/ディズニー/東宝/三菱商事)」 大塚明夫 / 田中敦子 / 押井守 定価: ￥ 5800 amazonマーケットプレイス最安値(送料込):2,990円(21/10/24) #大塚明夫 #田中敦子 #押井守 #CD・DVD #士郎正宗 #攻殻機動隊 #バトー #草薙素子 #川井憲次 押井守監督による『GHOST IN THE SHELL／攻殻機動隊』の続編的作品。少女型アンドロイドが暴走し、所有者を惨殺する事件が発生。公安9課の刑事でありサイボーグのバトーは、妨害と闘いながら事件の真相を追う。 | G14: 402 | H14: 2630 | I14: 安すぎ | J14: https://www.amazon.co.jp/%E3%82%A4%E3%83%8E%E3%82%BB%E3%83%B3%E3%82%B9-%E3%82%A2%E3%83%96%E3%82%BD%E3%83%AA%E3%83%A5%E3%83%BC%E3%83%88%E3%83%BB%E3%82%A8%E3%83%87%E3%82%A3%E3%82%B7%E3%83%A7%E3%83%B3-Blu-ray-%E5%A4%A7%E5%A1%9A%E6%98%8E%E5%A4%AB/dp/B0018BL6SU/ref=sr_1_1?__mk_ja_JP=%E3%82%AB%E3%82%BF%E3%82%AB%E3%83%8A&keywords=%5BBlu-ray%5D%E3%82%A4%E3%83%8E%E3%82%BB%E3%83%B3%E3%82%B9+%E3%82%A2%E3%83%96%E3%82%BD%E3%83%AA%E3%83%A5%E3%83%BC%E3%83%88%E3%83%BB%E3%82%A8%E3%83%87%E3%82%A3%E3%82%B7%E3%83%A7%E3%83%B3&qid=1638312127&sr=8-1 | K14: https://www.amazon.co.jp/dp/B0018BL6SU/ref=olp-opf-redir?aod=1&ie=UTF8&condition=ALL | L14: 5001 | M14: 2380 | N14: お届け日 (配送料: ￥350 ): 12月16日 - 17日 詳細を見る | O14: 350 | P14: 2730 | Q14: #大塚明夫 #田中敦子 #押井守 #CD・DVD #士郎正宗 #攻殻機動隊 #バトー #草薙素子 #川井憲次 | R14: #メルカリ [Blu-ray]イノセンス アブソリュート・エディション フリマアプリ「メルカリ」で販売中 https://jp.mercari.com/item/m42695266024/ #大塚明夫 #田中敦子 #押井守 #CD・DVD #士郎正宗 #攻殻機動隊 #バトー #草薙素子 #川井憲次 | S14: 224 | T14: 2021-12-19 | U14: 2630 | V14: 2021-12-12 | W14: 2630 | X14: 263 | Y14: 175 | Z14: 2192 | AA14: 送料込み(出品者負担) | AC14: =V14 -> 2021-12-12 | AF14: 個人 | AG14: 1
B15: m27592648136 | C15: 取引終了 | D15: [Blu-ray]ルパン三世 カリオストロの城 | E15: 23 | F15: 2008/12/15に購入. 中古品のため商品は多少のキズ・使用感がございます。記載ない限り帯・特典などは付属致しません。プロダクト、ダウンロードコードは使用できません。写真以外の付属品はありません。 「ルパン三世 カリオストロの城('79東京ムービー新社)」 山田康雄 / 増山江威子 / 宮崎駿 定価: ￥ 4800 amazonマーケットプレイス最安値(送料込):3,480円(21/10/22) #山田康雄 #増山江威子 #宮崎駿 #CD・DVD #ルパン三世 #カリオストロの城 巨匠・宮崎駿の初の監督映画『ルパン三世』シリーズの長編第2作。カリオストロ公国へやって来たルパン一行が大公家の姫・クラリスと出会い、彼女の救出と偽札の謎を明かすべく、大活躍を繰り広げる。 | G15: 342 | H15: 2345 | I15: 安すぎ | J15: https://www.amazon.co.jp/%E3%83%AB%E3%83%91%E3%83%B3%E4%B8%89%E4%B8%96%E3%80%8C%E3%82%AB%E3%83%AA%E3%82%AA%E3%82%B9%E3%83%88%E3%83%AD%E3%81%AE%E5%9F%8E%E3%80%8D-Blu-ray-%E5%B1%B1%E7%94%B0%E5%BA%B7%E9%9B%84/dp/B001GC15EG/ref=sr_1_3?__mk_ja_JP=%E3%82%AB%E3%82%BF%E3%82%AB%E3%83%8A&keywords=%5BBlu-ray%5D%E3%83%AB%E3%83%91%E3%83%B3%E4%B8%89%E4%B8%96+%E3%82%AB%E3%83%AA%E3%82%AA%E3%82%B9%E3%83%88%E3%83%AD%E3%81%AE%E5%9F%8E&qid=1638312141&sr=8-3 | K15: https://www.amazon.co.jp/dp/B001GC15EG/ref=olp-opf-redir?aod=1&ie=UTF8&condition=ALL | M15: 2445 | N15: 配送料 ¥400 4月 7-9日。 詳細を見る | O15: =MID(N15,FIND("配送料 ¥",N15)+5,FIND(" ",MID(N15,FIND("¥",N15),10))-2)*1 -> 400 | P15: 2845 | Q15: #山田康雄 #増山江威子 #宮崎駿 #CD・DVD #ルパン三世 #カリオストロの城 | R15: #メルカリ [Blu-ray]ルパン三世 カリオストロの城 フリマアプリ「メルカリ」で販売中 https://jp.mercari.com/item/m27592648136/ #山田康雄 #増山江威子 #宮崎駿 #CD・DVD #ルパン三世 #カリオストロの城 | S15: 194 | T15: 2022-04-09 | U15: 2345 | V15: 2022-04-02 | W15: 2345 | X15: 234 | Y15: 175 | Z15: 1936 | AA15: 送料込み(出品者負担) | AC15: 2022-04-10 | AF15: 個人 | AG15: 1
B16: m14745818581 | C16: 取引終了 | D16: [Blu-ray]王立宇宙軍 オネアミスの翼 | E16: 22 | F16: 2014/2/3に購入 中古品のため商品は多少のキズ・使用感がございます。記載ない限り帯・特典などは付属致しません。写真以外の付属品はありません。 「王立宇宙軍 オネアミスの翼('87バンダイ)」 森本レオ / 弥生みつき / 山賀博之 定価: ￥ 7800 amazonマーケットプレイス最安値(送料込):5,005円(21/10/22) #森本レオ #弥生みつき #山賀博之 #CD・DVD #庵野秀明 #ガイナックス #王立宇宙軍 #GAINAX アニメ界の雄GAINAXによる記念すべきデビュー作。音声はドルビーデジタル5.1chにリマスターされたものと、劇場公開版、英語吹替版の3種類が収録された。マニア感涙のアイテムだ。 | G16: 319 | H16: 4539 | I16: 最安値 | J16: https://www.amazon.co.jp/%E7%8E%8B%E7%AB%8B%E5%AE%87%E5%AE%99%E8%BB%8D-%E3%82%AA%E3%83%8D%E3%82%A2%E3%83%9F%E3%82%B9%E3%81%AE%E7%BF%BC-Force%EF%BC%8D-Honneamise-Blu-ray/dp/B0018KKQAK/ref=sr_1_1?__mk_ja_JP=%E3%82%AB%E3%82%BF%E3%82%AB%E3%83%8A&keywords=%5BBlu-ray%5D%E7%8E%8B%E7%AB%8B%E5%AE%87%E5%AE%99%E8%BB%8D+%E3%82%AA%E3%83%8D%E3%82%A2%E3%83%9F%E3%82%B9%E3%81%AE%E7%BF%BC&qid=1638312157&sr=8-1 | K16: https://www.amazon.co.jp/dp/B0018KKQAK/ref=olp-opf-redir?aod=1&ie=UTF8&condition=ALL | L16: 6356 | M16: 4196 | N16: 配送料 ¥393 8月21日-22日にお届け 詳細を見る | O16: =MID(N16,FIND("配送料 ¥",N16)+5,FIND(" ",MID(N16,FIND("¥",N16),10))-2)*1 -> 393 | P16: 4589 | Q16: #森本レオ #弥生みつき #山賀博之 #CD・DVD #庵野秀明 #ガイナックス #王立宇宙軍 #GAINAX | R16: ="#メルカリ"&CHAR(10)&D16&CHAR(10)&" フリマアプリ「メルカリ」で販売中 https://jp.mercari.com/item/"&B16&"?utm_source=android&utm_medium=share "&Q16 -> #メルカリ [Blu-ray]王立宇宙軍 オネアミスの翼 フリマアプリ「メルカリ」で販売中 https://jp.mercari.com/item/m14745818581?utm_source=android&utm_medium=share #森本レオ #弥生みつき #山賀博之 #CD・DVD #庵野秀明 #ガイナックス #王立宇宙軍 #GAINAX | S16: 243 | T16: 2023-09-05 | U16: 4539 | V16: 2023-08-29 | W16: 4539 | X16: 453 | Y16: 210 | Z16: 3876 | AA16: 送料込み(出品者負担) | AB16: Hiro | AC16: 2023-09-01 | AF16: 個人 | AG16: 1
B17: m99524773618 | C17: 取引終了 | D17: [Blu-ray] AKIRA | E17: 15 | F17: 2014/2/3に購入 中古品のため商品は多少のキズ・使用感がございます。記載ない限り帯・特典などは付属致しません。プロダクト、ダウンロードコードは使用できません。写真以外の付属品はありません。 「AKIRA('88アキラ製作委員会)」 岩田光央 / 佐々木望 / 大友克洋 定価: ￥ 3800 #岩田光央 #佐々木望 #大友克洋 #CD・DVD #AKIRA 第3次世界大戦から30年後。荒廃した東京をバイクで疾走する不良グループのリーダー・金田は、仲間の鉄雄が人体実験の末に驚異の力に目覚めたことを知る。大友克洋が自身のコミックを映像化、日本アニメの金字塔となった一作。 | G17: 292 | H17: 2087 | I17: 安すぎ | J17: https://www.amazon.co.jp/AKIRA-%E3%80%88Blu-ray%E3%80%89-%E5%A4%A7%E5%8F%8B%E5%85%8B%E6%B4%8B/dp/B004UID0NW/ref=sr_1_3?__mk_ja_JP=%E3%82%AB%E3%82%BF%E3%82%AB%E3%83%8A&keywords=%5BBlu-ray%5D+AKIRA&qid=1638312170&sr=8-3 | K17: https://www.amazon.co.jp/dp/B004UID0NW/ref=olp-opf-redir?aod=1&ie=UTF8&condition=ALL | L17: 3100 | M17: 2187 | N17: 配送料 ¥397 4月 15-16日。 詳細を見る | O17: =MID(N17,FIND("配送料 ¥",N17)+5,FIND(" ",MID(N17,FIND("¥",N17),10))-2)*1 -> 397 | P17: 2584 | Q17: #岩田光央 #佐々木望 #大友克洋 #CD・DVD #AKIRA | R17: #メルカリ [Blu-ray] AKIRA フリマアプリ「メルカリ」で販売中 https://jp.mercari.com/item/m99524773618/ #岩田光央 #佐々木望 #大友克洋 #CD・DVD #AKIRA | S17: 150 | T17: 2022-04-16 | U17: 2087 | V17: 2022-04-09 | W17: 2087 | X17: 208 | Y17: 175 | Z17: 1704 | AA17: 送料込み(出品者負担) | AC17: 2022-04-17 | AF17: 個人 | AG17: 1
B18: m18559517460 | C18: 取引終了 | D18: [Blu-ray]劇場版「空の境界」Blu-ray Disc Box〈完全生産限 | E18: 40 | F18: 2011/12/23に購入. 中古品のため商品は多少のキズ・使用感がございます。記載ない限り帯・特典などは付属致しません。プロダクト、ダウンロードコードは使用できません。写真以外の付属品はありません(輸送箱は付属していません)。 「劇場版「空の境界」 Blu-ray Disc Box〈完全生産限定・8枚組〉」 武内崇 / 梶浦由記 / 近藤光 定価: ￥ 50000 #武内崇 #梶浦由記 #近藤光 #CD・DVD #奈須きのこ #坂本真綾 #鈴村健一 #空の境界 #両儀式 #TYPE-MOON “新伝綺ムーヴメント”巻き起こした奈須きのこ原作のアニメ映画シリーズ7作に加え、原作の最後に描かれた「空の境界・終章」を映像化して収めたコンプリート・ボックス。“死”を見る能力を身に付けた少女・両儀式が、幾多の怪異と闘う姿を描く。 | G18: 371 | H18: 32024 | J18: https://www.amazon.co.jp/%E5%8A%87%E5%A0%B4%E7%89%88%E3%80%8C%E7%A9%BA%E3%81%AE%E5%A2%83%E7%95%8C%E3%80%8DBlu-ray-Disc-BOX-%E5%9D%82%E6%9C%AC%E7%9C%9F%E7%B6%BE/dp/B0040QE5NI/ref=tmm_blu_title_0?_encoding=UTF8&qid=1638312201&sr=8-2 | K18: https://www.amazon.co.jp/dp/B0040QE5NI/ref=olp-opf-redir?aod=1&ie=UTF8&condition=ALL | L18: 64800 | M18: 28980 | N18: 無料配送: 12月12日 日曜日 詳細を見る | P18: 28980 | Q18: #武内崇 #梶浦由記 #近藤光 #CD・DVD #奈須きのこ #坂本真綾 #鈴村健一 #空の境界 #両儀式 #TYPE-MOON | R18: #メルカリ [Blu-ray]劇場版「空の境界」Blu-ray Disc Box〈完全生産限 フリマアプリ「メルカリ」で販売中 https://jp.mercari.com/item/m18559517460/ #武内崇 #梶浦由記 #近藤光 #CD・DVD #奈須きのこ #坂本真綾 #鈴村健一 #空の境界 #両儀式 #TYPE-MOON | S18: 241 | T18: 2021-12-19 | U18: 32024 | V18: 2021-12-12 | W18: 32024 | X18: 3202 | Y18: 1030 | Z18: 27792 | AA18: 送料込み(出品者負担) | AC18: =V18 -> 2021-12-12 | AF18: 個人 | AG18: 1
B19: m50224281535 | C19: 取引終了 | D19: [Blu-ray]スカイ・クロラ | E19: 16 | F19: 2009/2/28に購入 中古品のため商品は多少のキズ・使用感がございます。記載ない限り帯・特典などは付属致しません。写真以外の付属品はありません。 「スカイ・クロラ('08「スカイ・クロラ」製作委員会)」 菊地凛子 / 加瀬亮 / 押井守 定価: ￥ 7800 #菊地凛子 #加瀬亮 #押井守 #CD・DVD #スカイ・クロラ #森博嗣 森博嗣の原作を、奇才クリエイター・押井守が映像化したハイクオリティ・アニメーション映画。ショーとしての戦争が繰り広げられる世界。年を取らない“キルドレ”の少年・ユーイチが、悲壮感漂う戦いに身を投じていく。 | G19: 276 | H19: 2319 | I19: 最安値 | J19: https://www.amazon.co.jp/%E3%82%B9%E3%82%AB%E3%82%A4%E3%83%BB%E3%82%AF%E3%83%AD%E3%83%A9-%E9%80%9A%E5%B8%B8%E7%89%88-Blu-ray-%E8%8F%8A%E5%9C%B0%E5%87%9B%E5%AD%90/dp/B001NAW2N4/ref=sr_1_2?__mk_ja_JP=%E3%82%AB%E3%82%BF%E3%82%AB%E3%83%8A&keywords=%5BBlu-ray%5D%E3%82%B9%E3%82%AB%E3%82%A4%E3%83%BB%E3%82%AF%E3%83%AD%E3%83%A9&qid=1638312218&sr=8-2 | K19: https://www.amazon.co.jp/dp/B001NAW2N4/ref=olp-opf-redir?aod=1&ie=UTF8&condition=ALL | L19: 5455 | M19: 2019 | N19: 配送料 ¥350 6月 29日-7月 1日。 詳細を見る | O19: =MID(N19,FIND("配送料 ¥",N19)+5,FIND(" ",MID(N19,FIND("¥",N19),10))-2)*1 -> 350 | P19: 2369 | Q19: #菊地凛子 #加瀬亮 #押井守 #CD・DVD #スカイ・クロラ #森博嗣 | R19: #メルカリ [Blu-ray]スカイ・クロラ フリマアプリ「メルカリ」で販売中 https://jp.mercari.com/item/m50224281535/ #菊地凛子 #加瀬亮 #押井守 #CD・DVD #スカイ・クロラ #森博嗣 | S19: 172 | T19: 2022-07-06 | U19: 2319 | V19: 2022-06-29 | W19: 2319 | X19: 231 | Y19: 210 | Z19: 1878 | AA19: 送料込み(出品者負担) | AB19: てんちむ | AC19: 2022-07-05 | AF19: 個人 | AG19: 1
B20: m86031555084 | C20: 取引終了 | D20: [Blu-ray]人狼 JIN-ROH | E20: 19 | F20: 2009/5/1に購入 中古品のため商品は多少のキズ・使用感がございます。記載ない限り帯・特典などは付属致しません。写真以外の付属品はありません。 「人狼 JIN-ROH('99バンダイビジュアル/ING)」 藤木義勝 / 武藤寿美 / 沖浦啓之 定価: ￥ 7800 amazonマーケットプレイス最安値(送料込):5,495円(21/9/30) #藤木義勝 #武藤寿美 #沖浦啓之 #CD・DVD #押井守 特機部隊に所属し、獣としての運命を背負った伏一貴は、敵対関係にある都市ゲリラの女性・雨宮圭と出会い、惹かれ合うが……。押井守の原作・脚本によるコップ・アクション。ハイクオリティのヴィジュアルが圧巻。 | G20: 308 | H20: 6391 | I20: 最安値 | J20: https://www.amazon.co.jp/%E4%BA%BA%E7%8B%BC-JIN-ROH-Blu-ray-%E8%97%A4%E6%9C%A8%E7%BE%A9%E5%8B%9D/dp/B0018KKQBY/ref=sr_1_2?__mk_ja_JP=%E3%82%AB%E3%82%BF%E3%82%AB%E3%83%8A&keywords=%5BBlu-ray%5D%E4%BA%BA%E7%8B%BC+JIN-ROH&qid=1638312229&sr=8-2 | K20: https://www.amazon.co.jp/dp/B0018KKQBY/ref=olp-opf-redir?aod=1&ie=UTF8&condition=ALL | L20: 6441 | M20: 6750 | N20: 無料配送 5月31日-6月2日にお届け 詳細を見る | O20: =MID(N20,FIND("配送料 ¥",N20)+5,FIND(" ",MID(N20,FIND("¥",N20),10))-2)*1 ->  | P20: 6750 | Q20: #藤木義勝 #武藤寿美 #沖浦啓之 #CD・DVD #押井守 | R20: ="#メルカリ"&CHAR(10)&D20&CHAR(10)&" フリマアプリ「メルカリ」で販売中 https://jp.mercari.com/item/"&B20&"?utm_source=android&utm_medium=share "&Q20 -> #メルカリ [Blu-ray]人狼 JIN-ROH フリマアプリ「メルカリ」で販売中 https://jp.mercari.com/item/m86031555084?utm_source=android&utm_medium=share #藤木義勝 #武藤寿美 #沖浦啓之 #CD・DVD #押井守 | S20: 192 | T20: 2023-06-09 | U20: 6391 | V20: 2023-06-02 | W20: 6391 | X20: 639 | Y20: 210 | Z20: 5542 | AA20: 送料込み(出品者負担) | AB20: ぬっこ | AC20: 2023-06-10 | AF20: 個人 | AG20: 1
B21: m15817842317 | C21: 取引終了 | D21: [Blu-ray]機動警察パトレイバー2 the Movie | E21: 30 | F21: 2009/5/1に購入 中古品のため商品は多少のキズ・使用感がございます。記載ない限り帯・特典などは付属致しません。プロダクト、ダウンロードコードは使用できません。写真以外の付属品はありません。 「機動警察パトレイバー2 the Movie('93バンダイビジュアル/東北新社/イング)」 冨永みーな / 古川登志夫 / 押井守 定価: ￥ 7800 #冨永みーな #古川登志夫 #押井守 #CD・DVD #機動警察パトレイバー #パトレイバー #ゆうきまさみ 近未来の危機管理を鋭く描いた劇場版アニメの第2作。2002年の横浜に謎のミサイルが投下されるが、情報操作によって自衛隊と警視庁は対立を深めてしまう。そんな中、事態収拾のために特車2課が再び結集されて……。 | G21: 337 | H21: 4004 | I21: 安すぎ | J21: https://www.amazon.co.jp/%E6%A9%9F%E5%8B%95%E8%AD%A6%E5%AF%9F%E3%83%91%E3%83%88%E3%83%AC%E3%82%A4%E3%83%90%E3%83%BC2-Movie-Blu-ray-%E5%86%A8%E6%B0%B8%E3%81%BF%E3%83%BC%E3%81%AA/dp/B0018KKQB4/ref=sr_1_1?__mk_ja_JP=%E3%82%AB%E3%82%BF%E3%82%AB%E3%83%8A&keywords=%5BBlu-ray%5D%E6%A9%9F%E5%8B%95%E8%AD%A6%E5%AF%9F%E3%83%91%E3%83%88%E3%83%AC%E3%82%A4%E3%83%90%E3%83%BC2+the+Movie&qid=1638312243&sr=8-1 | K21: https://www.amazon.co.jp/dp/B0018KKQB4/ref=olp-opf-redir?aod=1&ie=UTF8&condition=ALL | L21: 5891 | M21: 4104 | N21: 無料配送: 1月7日 金曜日 詳細を見る | P21: 4104 | Q21: #冨永みーな #古川登志夫 #押井守 #CD・DVD #機動警察パトレイバー #パトレイバー #ゆうきまさみ | R21: #メルカリ [Blu-ray]機動警察パトレイバー2 the Movie フリマアプリ「メルカリ」で販売中 https://jp.mercari.com/item/m15817842317/ #冨永みーな #古川登志夫 #押井守 #CD・DVD #機動警察パトレイバー #パトレイバー #ゆうきまさみ | S21: 220 | T21: 2022-01-11 | U21: 4004 | V21: 2022-01-04 | W21: 4004 | X21: 400 | Y21: 175 | Z21: 3429 | AA21: 送料込み(出品者負担) | AC21: 2022-01-09 | AF21: 個人 | AG21: 1
B22: m36995344631 | C22: 取引終了 | D22: [DVD]鉄甲機ミカヅキ DVD-BOX〈3枚組〉 | E22: 25 | F22: 2012/9/2に購入 中古品のため商品は多少のキズ・使用感がございます。記載ない限り帯・特典などは付属致しません。写真以外の付属品はありません。 「鉄甲機ミカヅキ DVD-BOX〈3枚組〉」 雨宮慶太 / 竹中直人 / 雨宮慶太 定価: ￥ 12000 amazonマーケットプレイス最安値(送料込):16,300円(21/10/7) #雨宮慶太 #竹中直人 #雨宮慶太 #CD・DVD ★「鉄甲機ミカヅキ」とは? 総制作費10億円超!20世紀最後、そして21世紀最初に世に贈り出された新感覚SFスペクタル作品!2000年~2001年フジテレビおよび系列各局にて 全6回放送され、好評を博した超大型特撮・SFX。2001年に初回生産限定としてDVD-BOXとビデオが発売され、異例のヒットを記録した作品が、廉価版 DVD-BOXとして再登場!! ★雨宮慶太ワールド全開! 監督は「仮面ライダーZO」「人造人間ハカイダー」「ゼイラム」「タオの月」など、数々の特撮アクション作品を手がけたことで知られる雨宮慶太。 キャラクターデザイナー、イラストレイターとしても多くのファンを持つ彼の、渾身の力作!! ★最新のCGや特撮技術が、ふんだんに盛り込まれた作品!! 爆破シーンや着ぐるみ同士の肉弾戦など、当時の最新のCGや特撮技術がふんだんに盛り込まれ、特撮ファンにはたまらないシーンが満載! 古き良き時代の特撮アクションヒーローものを彷彿とさせる!! ★ストーリーも充実! 謎に包まれた巨大ロボット「ミカヅキ」といじめられっ子の風雄少年との出会い。敵と対峙し、自らと立ち向かうことで成長していく風雄と、それに呼応 するかのように進化していくミカヅキ。単なる特撮ヒロイックファンタジーにとどまらず、「人の成長」という大きな軸をテーマとした壮大なストーリーが展開! ★全6話・300分以上の映像を余すところなく再収録! 特製デジパック仕様のBOXに、特製ブックレットを封入した特典付き!約300分以上にも及ぶ本編をDVD3枚組に再収録!! | G22: 872 | H22: 17400 | I22: 安すぎ | J22: https://www.amazon.co.jp/%E9%89%84%E7%94%B2%E6%A9%9F%E3%83%9F%E3%82%AB%E3%83%85%E3%82%AD-DVD-BOX-%E9%AB%98%E6%9F%B3%E5%8B%87%E5%A4%AA/dp/B002USF8DE/ref=sr_1_18?__mk_ja_JP=%E3%82%AB%E3%82%BF%E3%82%AB%E3%83%8A&keywords=%5BDVD%5D%E9%89%84%E7%94%B2%E6%A9%9F%E3%83%9F%E3%82%AB%E3%83%85%E3%82%AD+DVD-BOX&qid=1638312255&sr=8-18 | K22: https://www.amazon.co.jp/dp/B002USF8DE/ref=olp-opf-redir?aod=1&ie=UTF8&condition=ALL | M22: 36979 | N22: 無料配送 2月21日 火曜日にお届け 詳細を見る | O22: =MID(N22,FIND("配送料 ¥",N22)+5,FIND(" ",MID(N22,FIND("¥",N22),10))-2)*1 ->  | P22: 36979 | Q22: #雨宮慶太 #竹中直人 #雨宮慶太 #CD・DVD | R22: ="#メルカリ"&CHAR(10)&D22&CHAR(10)&" フリマアプリ「メルカリ」で販売中 https://jp.mercari.com/item/"&B22&"?utm_source=android&utm_medium=share "&Q22 -> #メルカリ [DVD]鉄甲機ミカヅキ DVD-BOX〈3枚組〉 フリマアプリ「メルカリ」で販売中 https://jp.mercari.com/item/m36995344631?utm_source=android&utm_medium=share #雨宮慶太 #竹中直人 #雨宮慶太 #CD・DVD | S22: 199 | T22: 2023-03-02 | U22: 17400 | V22: 2023-02-23 | W22: 17400 | X22: 1740 | Y22: 210 | Z22: 15450 | AA22: 送料込み(出品者負担) | AB22: armor | AC22: 2023-03-05 | AF22: 個人 | AG22: 1
B23: m74398795577 | C23: 取引終了 | D23: [DVD]人造人間ハカイダー コンプリートDVD〈2枚組〉 | E23: 29 | F23: 2012/8/26に購入 中古品のため商品は多少のキズ・使用感がございます。記載ない限り帯・特典などは付属致しません。プロダクト、ダウンロードコードは使用できません。写真以外の付属品はありません。 「人造人間ハカイダー コンプリートDVD〈2枚組〉」 岸本祐二 / 宝生舞 / 雨宮慶太 定価: ￥ 8000 amazonマーケットプレイス最安値(送料込):6,970円(21/10/7) #岸本祐二 #宝生舞 #雨宮慶太 #CD・DVD 盗賊によって永き眠りより覚めた人造人間ハカイダーは、彼を生み、そして葬った支配者グルジェフへの復讐に燃えていた……。『人造人間キカイダー』でその宿敵として登場した人造人間ハカイダーを、和製SFXの雄・雨宮慶太監督がリニューアルしたヒーロー物語。 | G23: 346 | H23: 5130 | I23: 安すぎ | J23: https://www.amazon.co.jp/%E4%BA%BA%E9%80%A0%E4%BA%BA%E9%96%93%E3%83%8F%E3%82%AB%E3%82%A4%E3%83%80%E3%83%BC-%E3%82%B3%E3%83%B3%E3%83%97%E3%83%AA%E3%83%BC%E3%83%88DVD-%E5%B2%B8%E6%9C%AC%E7%A5%90%E4%BA%8C/dp/B0008JF67U/ref=sr_1_1?__mk_ja_JP=%E3%82%AB%E3%82%BF%E3%82%AB%E3%83%8A&keywords=%5BDVD%5D%E4%BA%BA%E9%80%A0%E4%BA%BA%E9%96%93%E3%83%8F%E3%82%AB%E3%82%A4%E3%83%80%E3%83%BC+%E3%82%B3%E3%83%B3%E3%83%97%E3%83%AA%E3%83%BC%E3%83%88DVD&qid=1638312286&sr=8-1 | K23: https://www.amazon.co.jp/dp/B0008JF67U/ref=olp-opf-redir?aod=1&ie=UTF8&condition=ALL | L23: 7040 | M23: 4880 | N23: お届け日 (配送料: ￥350 ): 12月9日 - 10日 詳細を見る | O23: 350 | P23: 5230 | Q23: #岸本祐二 #宝生舞 #雨宮慶太 #CD・DVD | R23: #メルカリ [DVD]人造人間ハカイダー コンプリートDVD〈2枚組〉 フリマアプリ「メルカリ」で販売中 https://jp.mercari.com/item/m74398795577/ #岸本祐二 #宝生舞 #雨宮慶太 #CD・DVD | S23: 174 | T23: 2021-12-10 | U23: 5130 | V23: 2021-12-05 | W23: 5130 | X23: 513 | Y23: 175 | Z23: 4442 | AA23: 送料込み(出品者負担) | AC23: =V23 -> 2021-12-05 | AF23: 個人 | AG23: 1
B24: m73548268917 | C24: 取引終了 | D24: [Blu-ray]ハウルの動く城 | E24: 16 | F24: 2011/11/29に購入. 中古品のため商品は多少のキズ・使用感がございます。記載ない限り帯・特典などは付属致しません。プロダクト、ダウンロードコードは使用できません。写真以外の付属品はありません。 写真５の通り、ケースとブックレットに折れ曲がりの汚れあり。 「ハウルの動く城('04「ハウルの動く城」製作委員会)」 倍賞千恵子 / 木村拓哉 / 宮崎駿 定価: ￥ 6800 amazonマーケットプレイス最安値(送料込):5,383円(21/9/30) #倍賞千恵子 #木村拓哉 #宮崎駿 #CD・DVD #ハウルの動く城 #ジブリ #ジブリがいっぱい #Bluray #スタジオジブリ イギリスの児童文学作家ダイアナ・ウィン・ジョーンズの『魔法使いハウルと火の悪魔』を、宮崎駿監督が映画化したファンタジー・アドベンチャー。少女と青年がしだいに心を通わせていくさまを、ユーモアと躍動感いっぱいに描く。 | G24: 409 | H24: 4750 | I24: 安すぎ | J24: https://www.amazon.co.jp/%E3%83%8F%E3%82%A6%E3%83%AB%E3%81%AE%E5%8B%95%E3%81%8F%E5%9F%8E-Blu-ray-%E5%AE%AE%E5%B4%8E%E9%A7%BF/dp/B005GIQVXG/ref=sr_1_1?__mk_ja_JP=%E3%82%AB%E3%82%BF%E3%82%AB%E3%83%8A&keywords=%5BBlu-ray%5D%E3%83%8F%E3%82%A6%E3%83%AB%E3%81%AE%E5%8B%95%E3%81%8F%E5%9F%8E&qid=1638312301&sr=8-1 | K24: https://www.amazon.co.jp/dp/B005GIQVXG/ref=olp-opf-redir?aod=1&ie=UTF8&condition=ALL | L24: 5218 | M24: 4500 | N24: お届け日 (配送料: ￥350 ): 2月15日 - 17日 詳細を見る | O24: 350 | P24: 4850 | Q24: #倍賞千恵子 #木村拓哉 #宮崎駿 #CD・DVD #ハウルの動く城 #ジブリ #ジブリがいっぱい #Bluray #スタジオジブリ | R24: #メルカリ [Blu-ray]ハウルの動く城 フリマアプリ「メルカリ」で販売中 https://jp.mercari.com/item/m73548268917/ #倍賞千恵子 #木村拓哉 #宮崎駿 #CD・DVD #ハウルの動く城 #ジブリ #ジブリがいっぱい #Bluray #スタジオジブリ | S24: 219 | T24: 2022-02-21 | U24: 4750 | V24: 2022-02-14 | W24: 4750 | X24: 475 | Y24: 175 | Z24: 4100 | AA24: 送料込み(出品者負担) | AC24: 2022-02-19 | AF24: 個人 | AG24: 1
B25: m11073181762 | C25: 取引終了 | D25: [Blu-ray]崖の上のポニョ | E25: 16 | F25: 中古品のため商品は多少のキズ・使用感がございます。記載ない限り帯・特典などは付属致しません。プロダクト、ダウンロードコードは使用できません。写真以外の付属品はありません。 「崖の上のポニョ('08スタジオジブリ/日本テレビ/電通/博報堂DYMP/ディズニー/三菱商事/東宝)」 山口智子 / 長嶋一茂 / 宮崎駿 定価: ￥ 6800 #山口智子 #長嶋一茂 #宮崎駿 #CD・DVD #ジブリ #Bluray #スタジオジブリ 宮崎駿監督、スタジオジブリ制作によるアニメ映画。海辺の崖の一軒家に住む少年・宗介と家出したさかなの子・ポニョは互いに惹かれあうも、父によって海へ戻されてしまう。父の魔法を盗み出したポニョは、再び宗介のいる人間の世界を目指すが……。 | G25: 333 | H25: 3107 | I25: 最安値 | J25: https://www.amazon.co.jp/%E5%B4%96%E3%81%AE%E4%B8%8A%E3%81%AE%E3%83%9D%E3%83%8B%E3%83%A7-Blu-ray-%E5%AE%AE%E5%B4%8E%E9%A7%BF/dp/B0024NJY2G/ref=sr_1_2?__mk_ja_JP=%E3%82%AB%E3%82%BF%E3%82%AB%E3%83%8A&keywords=%5BBlu-ray%5D%E5%B4%96%E3%81%AE%E4%B8%8A%E3%81%AE%E3%83%9D%E3%83%8B%E3%83%A7&qid=1638312315&sr=8-2 | K25: https://www.amazon.co.jp/dp/B0024NJY2G/ref=olp-opf-redir?aod=1&ie=UTF8&condition=ALL | M25: 3108 | N25: 無料配送: 1月2日 - 3日 詳細を見る | P25: 3108 | Q25: #山口智子 #長嶋一茂 #宮崎駿 #CD・DVD #ジブリ #Bluray #スタジオジブリ | R25: #メルカリ [Blu-ray]崖の上のポニョ フリマアプリ「メルカリ」で販売中 https://jp.mercari.com/item/m11073181762/ #山口智子 #長嶋一茂 #宮崎駿 #CD・DVD #ジブリ #Bluray #スタジオジブリ | S25: 181 | T25: 2021-01-05 | U25: 3107 | V25: 2021-12-29 | W25: 3107 | X25: 310 | Y25: 175 | Z25: 2622 | AA25: 送料込み(出品者負担) | AC25: =V25 -> 2021-12-29 | AF25: 個人 | AG25: 1
B26: m74551929689 | C26: 取引終了 | D26: [Blu-ray]もののけ姫 | E26: 14 | F26: 2014/1/12に購入. 中古品のため商品は多少のキズ・使用感がございます。記載ない限り帯・特典などは付属致しません。プロダクト、ダウンロードコードは使用できません。写真以外の付属品はありません。 「もののけ姫('97徳間書店/日本テレビ放送網/電通/スタジオジブリ)」 松田洋治 / 石田ゆり子 / 宮崎駿 定価: ￥ 7400 amazonマーケットプレイス最安値(送料込):5,823円(21/9/29) #松田洋治 #石田ゆり子 #宮崎駿 #CD・DVD #もののけ姫 #ジブリ #ジブリがいっぱい #Bluray #スタジオジブリ ブルーレイディスク化にあたり、通常の“2K"(約207万画素)の4倍の“4K"(829万画素)でフィルムをスキャンする“4Kデジタル・リマスター"によりマスターを作成。質感豊かな高画質映像の収録を可能にしたマスターグレードビデオコーディング技術と合わせ、劇場公開時のクオリティを再現した色彩、映像がお楽しみいただけます。音声は日本語だけではなく、英語、フランス語、ドイツ語、広東語、北京語など、多くの国々の言語を収録。また、ファン必見の映像特典として、北米公開に合わせてトロント、ロサンゼルス、ニューヨークの3都市をキャンペーンで回った宮崎駿監督に密着したドキュメント映像「もののけ姫 in USA」が収録されます。本編とのピクチャー・イン・ピクチャーで楽しむことの出来る絵コンテ映像やアフレコ台本、予告編集など、スタジオジブリ作品のブルーレイディスクではおなじみとなった数々の映像特典と共にお楽しみください。 <ストーリー> 中世・室町期の日本。いまだ人を寄せ付けぬ太古の深い森の中には、人語を解する巨大な山犬や猪などの神獣たちが潜み、聖域を侵す人間たちを襲って、荒ぶる神々として恐れられていた。エミシの末裔のアシタカは、人間への怒りと憎しみによってタタリ神と化した猪神に呪いをかけられ、それを解くために訪れた西の国で、数奇な運命に巻き込まれていく。森を切り開こうとするタタラ製鉄集団とその長エボシ御前、森を守る山犬一族、そして山犬に育てられた人間の少女サン。アシタカはその狭間で、自分が呪われた理由を知り……。 | G26: 936 | H26: 4999 | I26: 安すぎ | J26: https://www.amazon.co.jp/%E3%82%82%E3%81%AE%E3%81%AE%E3%81%91%E5%A7%AB-Blu-ray-%E5%AE%AE%E5%B4%8E-%E9%A7%BF/dp/B00EODU3H4/ref=sr_1_1?__mk_ja_JP=%E3%82%AB%E3%82%BF%E3%82%AB%E3%83%8A&keywords=%5BBlu-ray%5D%E3%82%82%E3%81%AE%E3%81%AE%E3%81%91%E5%A7%AB&qid=1638313073&sr=8-1 | K26: https://www.amazon.co.jp/dp/B00EODU3H4/ref=olp-opf-redir?aod=1&ie=UTF8&condition=ALL | L26: 5760 | M26: 4881 | N26: 配送料 ¥298 5月 12-13日。 詳細を見る | O26: =MID(N26,FIND("配送料 ¥",N26)+5,FIND(" ",MID(N26,FIND("¥",N26),10))-2)*1 -> 298 | P26: 5179 | Q26: #松田洋治 #石田ゆり子 #宮崎駿 #CD・DVD #もののけ姫 #ジブリ #ジブリがいっぱい #Bluray #スタジオジブリ | R26: #メルカリ [Blu-ray]もののけ姫 フリマアプリ「メルカリ」で販売中 https://jp.mercari.com/item/m74551929689/ #松田洋治 #石田ゆり子 #宮崎駿 #CD・DVD #もののけ姫 #ジブリ #ジブリがいっぱい #Bluray #スタジオジブリ | S26: 212 | U26: 4999 | AF26: 個人 | AG26: 1
B27: m59415909592 | C27: 取引終了 | D27: [Blu-ray]魔女の宅急便 | E27: 15 | F27: 2014/1/12に購入 中古品のため商品は多少のキズ・使用感がございます。記載ない限り帯・特典などは付属致しません。プロダクト、ダウンロードコードは使用できません。写真以外の付属品はありません。 [Blu-ray]魔女の宅急便 定価: ￥ 7400 amazonマーケットプレイス最安値(送料込):5,239円(21/9/26) #ジブリ #ジブリがいっぱい #宮崎駿 #Bluray #スタジオジブリ #魔女の宅急便 ジブリ映画をDVDよりも美しい映像で見る。 ジブリがいっぱいCOLLECTION 宮崎 駿 監督作品 『魔女の宅急便』 ブルーレイディスク 今回ブルーレイディスク化するにあたり、音声・字幕には日本語以外にも、英語、フランス語、中国語など、映画が紹介された多くの国々の言語を収録しています。また、本編とのピクチャー・イン・ピクチャーで楽しむことの出来る「絵コンテ」のほか「アフレコ台本」や、キキに大きな影響を与えることになる画学生ウルスラの描いた絵をモチーフにしたビデオクリップ「ウルスラの絵」など、ブルーレイディスクならではの大容量を生かした高画質・高音質の本編映像と共に数々の映像特典もお楽しみいただけます。 <ストーリー> 魔女の子は、13歳になると一人前の魔女になるために1年間の修行に出なければなりません。黒猫ジジを連れて父母のもとを旅立ち、海辺の町コリコを修行の場に選んだキキは、親切なパン屋のおかみ・おソノさんのすすめで、唯一使える魔法である、ホウキで空を飛ぶ能力を活かして“お届け屋さん"の仕事を始めます。日々の仕事に励む中で、女子画学生のウルスラや、空を飛ぶことを夢見る少年トンボと友達になり、少しずつ町での生活に慣れていくキキ。しかし、熱を出して仕事を休んだ翌日、キキは自分の空を飛ぶ能力が弱まっていることに気づきます。はたしてキキは“お届け屋さん"の仕事を続け、この町で暮らしていくことが出来るのでしょうか。 | G27: 831 | H27: 4847 | J27: https://www.amazon.co.jp/%E9%AD%94%E5%A5%B3%E3%81%AE%E5%AE%85%E6%80%A5%E4%BE%BF-Blu-ray-%E5%AE%AE%E5%B4%8E%E9%A7%BF/dp/B008TNCYSQ/ref=sr_1_1?__mk_ja_JP=%E3%82%AB%E3%82%BF%E3%82%AB%E3%83%8A&keywords=%5BBlu-ray%5D%E9%AD%94%E5%A5%B3%E3%81%AE%E5%AE%85%E6%80%A5%E4%BE%BF&qid=1638312385&sr=8-1 | K27: https://www.amazon.co.jp/dp/B008TNCYSQ/ref=olp-opf-redir?aod=1&ie=UTF8&condition=ALL | L27: 5218 | M27: 3500 | N27: 配送料 ¥350 5月 10-12日。 詳細を見る | O27: 350 | P27: 3850 | Q27: #ジブリ #ジブリがいっぱい #宮崎駿 #Bluray #スタジオジブリ #魔女の宅急便 | R27: #メルカリ [Blu-ray]魔女の宅急便 フリマアプリ「メルカリ」で販売中 https://jp.mercari.com/item/m59415909592/ #ジブリ #ジブリがいっぱい #宮崎駿 #Bluray #スタジオジブリ #魔女の宅急便 | S27: 182 | T27: 2022-05-15 | U27: 4847 | V27: 2022-05-08 | W27: 9500 | X27: 950 | Y27: 175 | Z27: 8375 | AA27: 送料込み(出品者負担) | AB27: AYKA | AC27: 2022-05-14 | AF27: 個人 | AG27: 1
B28: m67509112820 | C28: 取引終了 | D28: [Blu-ray]千と千尋の神隠し | E28: 17 | F28: 2014/10/3に購入 中古品のため商品は多少のキズ・使用感がございます。記載ない限り帯・特典などは付属致しません。プロダクト、ダウンロードコードは使用できません。写真以外の付属品はありません。 [Blu-ray]千と千尋の神隠し 柊瑠美 / 入野自由 / 宮崎駿 定価: ￥ 7400 amazonマーケットプレイス最安値(送料込/目立った傷や汚れなし):5,277円(21/9/26) #柊瑠美 #入野自由 #宮崎駿 #ジブリ #ジブリがいっぱい #Bluray #スタジオジブリ #千と千尋の神隠し 宮崎駿率いるスタジオジブリが放った超大ヒット作品。わがままな少女・千尋が迷い込んだ不思議な街で、子供からちょっとだけ成長したティーンに成長していく様を描くファンタジー・アドベンチャー。 | G28: 351 | H28: 4999 | J28: https://www.amazon.co.jp/%E5%8D%83%E3%81%A8%E5%8D%83%E5%B0%8B%E3%81%AE%E7%A5%9E%E9%9A%A0%E3%81%97-Blu-ray-%E5%AE%AE%E5%B4%8E%E9%A7%BF/dp/B00J2O3CU0/ref=sr_1_1?__mk_ja_JP=%E3%82%AB%E3%82%BF%E3%82%AB%E3%83%8A&keywords=%5BBlu-ray%5D%E5%8D%83%E3%81%A8%E5%8D%83%E5%B0%8B%E3%81%AE%E7%A5%9E%E9%9A%A0%E3%81%97&qid=1638312398&sr=8-1 | K28: https://www.amazon.co.jp/dp/B00J2O3CU0/ref=olp-opf-redir?aod=1&ie=UTF8&condition=ALL | L28: 5436 | M28: 4555 | N28: 無料配送: 1月7日 - 9日 詳細を見る | P28: 4555 | Q28: #柊瑠美 #入野自由 #宮崎駿 #ジブリ #ジブリがいっぱい #Bluray #スタジオジブリ #千と千尋の神隠し | R28: #メルカリ [Blu-ray]千と千尋の神隠し フリマアプリ「メルカリ」で販売中 https://jp.mercari.com/item/m67509112820/ #柊瑠美 #入野自由 #宮崎駿 #ジブリ #ジブリがいっぱい #Bluray #スタジオジブリ #千と千尋の神隠し | S28: 208 | T28: 2022-01-13 | U28: 4999 | V28: 2022-01-06 | W28: 4999 | X28: 499 | Y28: 175 | Z28: 4325 | AA28: 送料込み(出品者負担) | AC28: 2022-01-10 | AF28: 個人 | AG28: 1
B29: m24938093404 | C29: 取引終了 | D29: [Blu-ray]奥田民生/okuda tamio FANTASTIC TOUR | E29: 40 | F29: 2010/10/10に購入 中古品のため商品は多少のキズ・使用感がございます。記載ない限り帯・特典などは付属致しません。プロダクト、ダウンロードコードは使用できません。写真以外の付属品はありません。 [Blu-ray]奥田民生/okuda tamio FANTASTIC TOUR 08 定価: ￥ 6,380 #Bluray #Blu_ray #ブルーレイ #ミュージック #奥田民生 2008年2月より行われた全国ツアーから、東京JCBホールでの最終公演を収めたライヴ映像をブルーレイ化。斎藤有太、小原礼、湊雅史、ゲストに松浦善博らを迎え、パワフルかつグルーヴィなサウンドを展開している。 01． イナビカリ 02． スルドクサイナラ 03． フロンティアのパイオニア 04． アドレナリン 05． いつもそう 06． 3人はもりあがる(Jとgとa) 07． カイモクブギー 08． マシマロ 09． ちばしって 10． 鈴の雨 11． 愛のボート 12． 家 13． なんでもっと 14． 無限の風 15． トロフィー 16． ギブミークッキー 17． プライマル 18． 明日はどうだ 19． 快楽ギター 20． イージュー☆ライダー 21． さすらい | G29: 535 | H29: 6990 | I29: 安すぎ | J29: https://www.amazon.co.jp/okuda-tamio-FANTASTIC-TOUR-Blu-ray/dp/B001F6QICM/ref=sr_1_1?__mk_ja_JP=%E3%82%AB%E3%82%BF%E3%82%AB%E3%83%8A&keywords=%5BBlu-ray%5D%E5%A5%A5%E7%94%B0%E6%B0%91%E7%94%9F%2Fokuda+tamio+FANTASTIC+TOUR&qid=1638312413&sr=8-1 | K29: https://www.amazon.co.jp/dp/B001F6QICM/ref=olp-opf-redir?aod=1&ie=UTF8&condition=ALL | M29: 6990 | N29: 配送料 ¥356 3月 18-28日。 詳細を見る | O29: =MID(N29,FIND("配送料 ¥",N29)+5,FIND(" ",MID(N29,FIND("¥",N29),10))-2)*1 -> 356 | P29: 7346 | Q29: #Bluray #Blu_ray #ブルーレイ #ミュージック #奥田民生 | R29: #メルカリ [Blu-ray]奥田民生/okuda tamio FANTASTIC TOUR フリマアプリ「メルカリ」で販売中 https://jp.mercari.com/item/m24938093404/ #Bluray #Blu_ray #ブルーレイ #ミュージック #奥田民生 | S29: 186 | T29: 2022-03-19 | U29: 6990 | V29: 2022-03-12 | W29: 6990 | X29: 699 | Y29: 175 | Z29: 6116 | AA29: 送料込み(出品者負担) | AC29: 2022-03-17 | AF29: 個人 | AG29: 1
B30: m65042264926 | C30: 取引終了 | D30: [Blu-ray]奥田民生/OKUDA TAMIO JAPAN TOUR … | E30: 38 | F30: 2016/3/6に購入 中古品のため商品は多少のキズ・使用感がございます。記載ない限り帯・特典などは付属致しません。写真以外の付属品はありません。 [Blu-ray]奥田民生/OKUDA TAMIO JAPAN TOUR MTR&Y 2010 2010/12/24 C.C.Lemon Hall 定価: ￥ 5,940 amazonマーケットプレイス最安値(送料込):3,391円(21/9/11) #Bluray #Blu_ray #ブルーレイ #ミュージック #奥田民生 奥田民生が2010年に行なったツアーから、ファイナルとなる12月24日C.C.Lemon Hallでの公演を完全収録。バンド・メンバーに小原礼、斉藤有太、湊雅史を迎えての、重厚でインプロヴィゼーションを織り交ぜたライヴ・アレンジは圧巻だ。 01． 人間2 02． 彼が泣く 03． 恋のかけら 04． 音のない音 05． ひとりカンタビレのテーマ 06． E 07． いつもそう 08． ハネムーン 09． 海の中へ 10． サウンド・オブ・ミュージック 11． イオン 12． 最強のこれから 13． 花になる 14． イナビカリ 15． まんをじして 16． 月を超えろ 17． SUNのSON 18． 解体ショー 19． あくまでドライブ 20． イージュー★ライダー | G30: 580 | H30: 3572 | I30: 最安値 | J30: https://www.amazon.co.jp/OKUDA-TAMIO-JAPAN-C-C-Lemon-Blu-ray/dp/B004GJ33XC/ref=sr_1_1?__mk_ja_JP=%E3%82%AB%E3%82%BF%E3%82%AB%E3%83%8A&keywords=%5BBlu-ray%5D%E5%A5%A5%E7%94%B0%E6%B0%91%E7%94%9F%2FOKUDA+TAMIO+JAPAN+TOUR&qid=1638312433&sr=8-1 | K30: https://www.amazon.co.jp/dp/B004GJ33XC/ref=olp-opf-redir?aod=1&ie=UTF8&condition=ALL | M30: 3212 | N30: 配送料 ¥410 8月 15-17日。 詳細を見る | O30: =MID(N30,FIND("配送料 ¥",N30)+5,FIND(" ",MID(N30,FIND("¥",N30),10))-2)*1 -> 410 | P30: 3622 | Q30: #Bluray #Blu_ray #ブルーレイ #ミュージック #奥田民生 | R30: #メルカリ [Blu-ray]奥田民生/OKUDA TAMIO JAPAN TOUR … フリマアプリ「メルカリ」で販売中 https://jp.mercari.com/item/m65042264926/ #Bluray #Blu_ray #ブルーレイ #ミュージック #奥田民生 | S30: 185 | T30: 2022-08-27 | U30: 3572 | V30: 2022-08-20 | W30: 3572 | X30: 357 | Y30: 210 | Z30: 3005 | AA30: 送料込み(出品者負担) | AB30: amayadori | AC30: 2022-08-28 | AF30: 個人 | AG30: 1
B31: m53726218215 | C31: 出品中 | D31: [Blu-ray]奥田民生/奥田民生2013ツアー SPICE BOYS | E31: 36 | F31: 2016/3/6に購入 中古品のため商品は多少のキズ・使用感がございます。記載ない限り帯・特典などは付属致しません。写真以外の付属品はありません。 [Blu-ray]奥田民生2013ツアー SPICE BOYS at 中野サンプラザ (通常版) 奥田民生 定価: ￥ 6,930 amazonマーケットプレイス最安値(送料込):3,400円(21/9/11) #奥田民生 #Bluray #Blu_ray #ブルーレイ #ミュージック 2013年に行なわれた“SPICE BOYS”ツアー・ファイナル、中野サンプラザ公演の模様を収録。奥田民生をはじめ斎藤有太、小原礼、湊雅史からなる“MTR＆Y”が「イージュー★ライダー」「風は西から」などで円熟の演奏を披露する。 01． マイカントリーロード 02． 青春 03． ツアーメン 04． カイモクブギー 05． スカイウォーカー 06． 荒野を行く 07． ちばしって 08． チューイチューイトレイン 09． 3人はもりあがる(JとGとA) 10． いつもそう 11． あくまでドライブ 12． スルドクサイナラ 13． 悩んで学んで 14． 風は西から 15． MILLEN BOX 16． イナビカリ 17． まんをじして 18． 御免ライダー 19． 拳を天につき上げろ 20． なんでもっと (ENCORE1) 21． マシマロ (ENCORE1) 22． イージュー★ライダー (ENCORE2) | G31: 633 | H31: 4942 | I31: 最安値 | J31: https://www.amazon.co.jp/%E5%A5%A5%E7%94%B0%E6%B0%91%E7%94%9F2013%E3%83%84%E3%82%A2%E3%83%BC-SPICE-BOYS-%E4%B8%AD%E9%87%8E%E3%82%B5%E3%83%B3%E3%83%97%E3%83%A9%E3%82%B6-Blu-ray/dp/B00HFXZ992/ref=sr_1_4?__mk_ja_JP=%E3%82%AB%E3%82%BF%E3%82%AB%E3%83%8A&keywords=%E5%A5%A5%E7%94%B0%E6%B0%91%E7%94%9F+2013%E3%83%84%E3%82%A2%E3%83%BC+SPICE+BOYS&qid=1638312458&sr=8-4 | K31: https://www.amazon.co.jp/dp/B00HFXZ992/ref=olp-opf-redir?aod=1&ie=UTF8&condition=ALL | L31: 6930 | M31: 4452 | N31: 配送料 ¥500 11月7日-8日にお届け 詳細を見る | O31: =MID(N31,FIND("配送料 ¥",N31)+5,FIND(" ",MID(N31,FIND("¥",N31),10))-2)*1 -> 500 | P31: 4952 | Q31: #奥田民生 #Bluray #Blu_ray #ブルーレイ #ミュージック | R31: ="#メルカリ"&CHAR(10)&D31&CHAR(10)&" フリマアプリ「メルカリ」で販売中 https://jp.mercari.com/item/"&B31&"?utm_source=android&utm_medium=share "&Q31 -> #メルカリ [Blu-ray]奥田民生/奥田民生2013ツアー SPICE BOYS フリマアプリ「メルカリ」で販売中 https://jp.mercari.com/item/m53726218215?utm_source=android&utm_medium=share #奥田民生 #Bluray #Blu_ray #ブルーレイ #ミュージック | S31: 224 | U31: 4942 | AF31: 個人 | AG31: 1
B32: m81832326564 | C32: 取引終了 | D32: [Blu-ray]サザンオールスターズ/真夏の大感謝祭 LIVE | E32: 32 | F32: 2009/2/28に購入 中古品のため商品は多少のキズ・使用感がございます。記載ない限り帯・特典などは付属致しません。プロダクト、ダウンロードコードは使用できません。写真以外の付属品はありません。 [Blu-ray]サザンオールスターズ/真夏の大感謝祭 LIVE サザンオールスターズ 定価: ￥ 8,800 amazonマーケットプレイス最安値(送料込):5,930円(21/11/20) #サザンオールスターズ #サザン #桑田佳祐 #Bluray #Blu_ray #ブルーレイ #ミュージック 2008年8月、史上初となる日産スタジアム4DAYSライヴにして、活動休止前のラスト・コンサートとなった“真夏の大感謝祭”を収録。初日に演奏された「せつない胸に風が吹いてた」など感動の楽曲を満載する。 | G32: 355 | H32: 5030 | I32: 安すぎ | J32: https://www.amazon.co.jp/%E7%9C%9F%E5%A4%8F%E3%81%AE%E5%A4%A7%E6%84%9F%E8%AC%9D%E7%A5%AD-LIVE-Blu-ray-%E3%82%B5%E3%82%B6%E3%83%B3%E3%82%AA%E3%83%BC%E3%83%AB%E3%82%B9%E3%82%BF%E3%83%BC%E3%82%BA/dp/B001KUP8UQ/ref=sr_1_1?__mk_ja_JP=%E3%82%AB%E3%82%BF%E3%82%AB%E3%83%8A&keywords=%5BBlu-ray%5D%E3%82%B5%E3%82%B6%E3%83%B3%E3%82%AA%E3%83%BC%E3%83%AB%E3%82%B9%E3%82%BF%E3%83%BC%E3%82%BA%2F%E7%9C%9F%E5%A4%8F%E3%81%AE%E5%A4%A7%E6%84%9F%E8%AC%9D%E7%A5%AD+LIVE&qid=1638312479&sr=8-1 | K32: https://www.amazon.co.jp/dp/B001KUP8UQ/ref=olp-opf-redir?aod=1&ie=UTF8&condition=ALL | L32: 7190 | M32: 4780 | N32: お届け日 (配送料: ￥350 ): 12月16日 - 17日 詳細を見る | O32: 350 | P32: 5130 | Q32: #サザンオールスターズ #サザン #桑田佳祐 #Bluray #Blu_ray #ブルーレイ #ミュージック | R32: #メルカリ [Blu-ray]サザンオールスターズ/真夏の大感謝祭 LIVE フリマアプリ「メルカリ」で販売中 https://jp.mercari.com/item/m81832326564/ #サザンオールスターズ #サザン #桑田佳祐 #Bluray #Blu_ray #ブルーレイ #ミュージック | S32: 221 | T32: 2021-12-18 | U32: 5030 | V32: 2021-12-11 | W32: 5030 | X32: 503 | Y32: 175 | Z32: 4352 | AA32: 送料込み(出品者負担) | AC32: =V32 -> 2021-12-11 | AF32: 個人 | AG32: 1
B33: m46401276296 | C33: 取引終了 | D33: [CD]きくお/きくおミク５ | E33: 14 | F33: 2019/9/17に購入 中古品のため商品は多少のキズ・使用感がございます。記載ない限り帯・特典などは付属致しません。プロダクト、ダウンロードコードは使用できません。写真以外の付属品はありません。 [CD]きくお/きくおミク５ #きくお #きくおミク #VOCALOID #ボーカロイド #初音ミク 『きくおミク4』から三年、きくおボーカロイドアルバム待望の第五弾リリース！書き下ろし楽曲多数、各楽曲のフワっとエピソードつき16pブックレット入り、収録時間55分のフルサイズ。さらなる進化を経てオリジナリティを増した強力無比・唯一無二のサウンド、満を持して降臨！！ amazonマーケットプレイス最安値(送料込):9,800円(2021/9/10) | G33: 328 | H33: 6222 | I33: 安すぎ | J33: https://www.amazon.co.jp/%E3%81%8D%E3%81%8F%E3%81%8A%E3%83%9F%E3%82%AF5-%E3%81%8D%E3%81%8F%E3%81%8A/dp/B078H6LBZH/ref=sr_1_1?__mk_ja_JP=%E3%82%AB%E3%82%BF%E3%82%AB%E3%83%8A&keywords=%E3%81%8D%E3%81%8F%E3%81%8A%2F%E3%81%8D%E3%81%8F%E3%81%8A%E3%83%9F%E3%82%AF%EF%BC%95&qid=1638302046&sr=8-1 | K33: https://www.amazon.co.jp/dp/B078H6LBZH/ref=olp-opf-redir?aod=1&ie=UTF8&condition=ALL | M33: 5622 | N33: お届け日 (配送料: ￥700 ): 1月1日 - 3日 詳細を見る | O33: 700 | P33: 6322 | Q33: #きくお #きくおミク #VOCALOID #ボーカロイド #初音ミク | R33: #メルカリ [CD]きくお/きくおミク５ フリマアプリ「メルカリ」で販売中 https://jp.mercari.com/item/m46401276296/ #きくお #きくおミク #VOCALOID #ボーカロイド #初音ミク | S33: 167 | T33: 2022-01-02 | U33: 6222 | V33: 2021-12-26 | W33: 6222 | X33: 622 | Y33: 175 | Z33: 5425 | AA33: 送料込み(出品者負担) | AC33: =V33 -> 2021-12-26 | AF33: 個人 | AG33: 1
B34: m51950463116 | C34: 取引終了 | D34: [Blu-ray]桑田佳祐/宮城ライブ～明日へのマーチ!!～ | E34: 30 | F34: 2011/11/23に購入 中古品のため商品は多少のキズ・使用感がございます。記載ない限り帯・特典などは付属致しません。プロダクト、ダウンロードコードは使用できません。写真以外の付属品はありません。 「桑田佳祐/宮城ライブ～明日へのマーチ!!～」 定価: ￥ 8,171 amazonマーケットプレイス最安値(送料込):4,390円(2021/9/10) #桑田佳祐 #Bluray #Blu_ray #ブルーレイ #ミュージック #サザン #サザンオールスターズ 桑田佳祐が2011年9月10、11日に宮城県のセキスイハイムスーパーアリーナで行なわれたライヴを収録した映像作品。力強い歌声で「希望の轍」などを披露した感動のステージに加え、復興に向けた桑田の想いが詰まったドキュメントを収める。 1.青葉城恋唄 2.現代人諸君!! 3.いいひと ～Do you wanna be loved?～ 4.SO WHAT? 5.古の風吹く杜 6.MIYAGI LADY BLUES ～宮城レディ・ブルース～ 7.MERRY X'MAS IN SUMMER 8.スキップ・ビート (SKIPPED BEAT) 9.BAN BAN BAN 10.風の詩を聴かせて 11.月 12.明日晴れるかな 13.栞のテーマ 14.My Foreplay Music 15.LOVE AFFAIR ～秘密のデート～ 16.NUMBER WONDA GIRL ～恋するワンダ～ 17.EARLY IN THE MORNING ～旅立ちの朝～ 18.明日へのマーチ 19.ハダカ DE 音頭 ～祭りだ!! Naked～ 20.銀河の星屑 21.悲しい気持ち (JUST A MAN IN LOVE) 22.本当は怖い愛とロマンス 23.Let's try again ～kuwata keisuke ver.～ 24.それ行けベイビー!! (ENCORE) 25.月光の聖者達 (ENCORE) 26.祭りのあと (ENCORE) 27.希望の轍 (ENCORE) 28.Documentary of "宮城ライブ～明日へのマーチ!!～" | G34: 911 | H34: 3880 | I34: 安すぎ | J34: https://www.amazon.co.jp/%E5%AE%AE%E5%9F%8E%E3%83%A9%E3%82%A4%E3%83%96%EF%BD%9E%E6%98%8E%E6%97%A5%E3%81%B8%E3%81%AE%E3%83%9E%E3%83%BC%E3%83%81-%EF%BD%9E%E3%80%90Blu-ray%E3%80%91-%E6%A1%91%E7%94%B0%E4%BD%B3%E7%A5%90/dp/B005UUBNCO/ref=sr_1_1?__mk_ja_JP=%E3%82%AB%E3%82%BF%E3%82%AB%E3%83%8A&keywords=%5BBlu-ray%5D%E6%A1%91%E7%94%B0%E4%BD%B3%E7%A5%90%2F%E5%AE%AE%E5%9F%8E%E3%83%A9%E3%82%A4%E3%83%96%EF%BD%9E%E6%98%8E%E6%97%A5%E3%81%B8%E3%81%AE%E3%83%9E%E3%83%BC%E3%83%81%21%21%EF%BD%9E&qid=1638312494&sr=8-1 | K34: https://www.amazon.co.jp/dp/B005UUBNCO/ref=olp-opf-redir?aod=1&ie=UTF8&condition=ALL | L34: 6129 | M34: 3980 | N34: 配送料 ¥410 3月 24-26日。 詳細を見る | O34: =MID(N34,FIND("配送料 ¥",N34)+5,FIND(" ",MID(N34,FIND("¥",N34),10))-2)*1 -> 410 | P34: 4390 | Q34: #桑田佳祐 #Bluray #Blu_ray #ブルーレイ #ミュージック #サザン #サザンオールスターズ | R34: #メルカリ [Blu-ray]桑田佳祐/宮城ライブ～明日へのマーチ!!～ フリマアプリ「メルカリ」で販売中 https://jp.mercari.com/item/m51950463116/ #桑田佳祐 #Bluray #Blu_ray #ブルーレイ #ミュージック #サザン #サザンオールスターズ | S34: 220 | T34: 2022-03-26 | U34: 3880 | V34: 2022-03-19 | W34: 3880 | X34: 388 | Y34: 175 | Z34: 3317 | AA34: 送料込み(出品者負担) | AC34: 2022-04-01 | AF34: 個人 | AG34: 1
B35: m13097401486 | C35: 取引終了 | D35: [Blu-ray]GRAPEVINE/IN A LIFETIME | E35: 32 | F35: 2016/3/6に購入. 中古品のため商品は多少のキズ・使用感がございます。記載ない限り帯・特典などは付属致しません。プロダクト、ダウンロードコードは使用できません。写真以外の付属品はありません。 「GRAPEVINE/IN A LIFETIME」 GRAPEVINE 定価: ￥ 6,600 amazonマーケットプレイス最安値4,690円(21/11/9) #GRAPEVINE #田中和将 #西川弘剛 #亀井亨 #西原誠 #金戸覚 #高野勲 #Permanents GRAPEVINE代表作アルバム「Lifetime」(1999年発売)を完全再現したプレミアムLIVE(2014.5.19@渋谷AX)映像作品! LIVE映像フル尺収録(*当日行われた「LIFETIME」再演と2部、アンコール含めて収録)に加え、スペシャルインタビュー、 ツアー「IN A LIFETIME」I部「Lifetime」のLIVE音源CDが付属 【映像】 01. いけすかない 02. スロウ 03. SUN 04. 光について 05. RUBBERGIRL 06. Lifework 07. 25 08. 青い魚 09. RUGGERGIRL No.8 10. 白日 11. 大人 (NOBODY NOBODY) 12. 望みの彼方 13. HOPE (軽め) - 第二部 - 14. This town 15. JIVE 16. 空の向こうから 17. 熱の花 18. 豚の皿 19. Reverb 20. ミスフライハイ 21. 超える - アンコール - 22. アナザーワールド 「IN A LIFETIME」 SPECIAL INTERVIEW 【LIVE CD】*Blu-ray、DVD付属で共通 01. いけすかない 02. スロウ 03. SUN 04. 光について 05. RUBBERGIRL 06. Lifework 07. 25 08. 青い魚 09. RUGGERGIRL No.8 10. 白日 11. 大人 (NOBODY NOBODY) 12. 望みの彼方 13. HOPE (軽め) | G35: 909 | H35: 4590 | I35: 安すぎ | J35: https://www.amazon.co.jp/LIFETIME-Blu-ray%E7%9B%A4-GRAPEVINE/dp/B00Q2SQSQE/ref=sr_1_1?__mk_ja_JP=%E3%82%AB%E3%82%BF%E3%82%AB%E3%83%8A&keywords=%5BBlu-ray%5DGRAPEVINE%2FIN+A+LIFETIME&qid=1638302555&sr=8-1 | K35: https://www.amazon.co.jp/dp/B00Q2SQSQE/ref=olp-opf-redir?aod=1&ie=UTF8&condition=ALL | L35: 5610 | M35: 4280 | N35: お届け日 (配送料: ￥410 ): 1月29日 - 31日 詳細を見る | O35: 410 | P35: 4690 | Q35: #GRAPEVINE #田中和将 #西川弘剛 #亀井亨 #西原誠 #金戸覚 #高野勲 #Permanents | R35: #メルカリ [Blu-ray]GRAPEVINE/IN A LIFETIME フリマアプリ「メルカリ」で販売中 https://jp.mercari.com/item/m13097401486/ #GRAPEVINE #田中和将 #西川弘剛 #亀井亨 #西原誠 #金戸覚 #高野勲 #Permanents | S35: 196 | T35: 2022-01-31 | U35: 4590 | V35: 2022-01-24 | W35: 4590 | X35: 459 | Y35: 175 | Z35: 3956 | AA35: 送料込み(出品者負担) | AC35: 2022-01-31 | AF35: 個人 | AG35: 1
B36: m38839733209 | C36: 出品中 | D36: [CD] XTC / Coat of Many Cupboards | E36: 33 | F36: 中古品のため商品は多少のキズ・使用感がございます。記載ない限り帯・特典などは付属致しません。写真以外の付属品はありません。 amazonマーケットプレイス最安値 23,218円（2021/8/21） #XTC #ミュージック #洋楽 --商品紹介--- アンディ・パートリッジとコリン・ムールディングの協力のもと実現したファン待望のXTCのボックスセット。ヴァージンからリリースされた作品の中から選りすぐった全60曲。ほとんどのシングルのデモ・ヴァージョンやレア・トラック、未発表曲、世界各国で録音されたライヴ・ヴァージョンなど貴重なテイクが盛りだくさん！付属のブックレットも豪華に60ページのヴォリュームで大満足な内容でマチガイナイです！ | G36: 323 | H36: 19140 | I36: 最安値 | J36: https://www.amazon.co.jp/Coat-Many-Cupboards-XTC/dp/B00005V94X/ref=sr_1_2?__mk_ja_JP=%E3%82%AB%E3%82%BF%E3%82%AB%E3%83%8A&keywords=%5D+XTC+%2F+Coat+of+Many+Cupboards&qid=1638312511&sr=8-2 | K36: https://www.amazon.co.jp/dp/B00005V94X/ref=olp-opf-redir?aod=1&ie=UTF8&condition=ALL | M36: 18800 | N36: 配送料 ¥350 11月1日-3日にお届け 詳細を見る | O36: =MID(N36,FIND("配送料 ¥",N36)+5,FIND(" ",MID(N36,FIND("¥",N36),10))-2)*1 -> 350 | P36: 19150 | Q36: #XTC #ミュージック #洋楽 | R36: ="#メルカリ"&CHAR(10)&D36&CHAR(10)&" フリマアプリ「メルカリ」で販売中 https://jp.mercari.com/item/"&B36&"?utm_source=android&utm_medium=share "&Q36 -> #メルカリ [CD] XTC / Coat of Many Cupboards フリマアプリ「メルカリ」で販売中 https://jp.mercari.com/item/m38839733209?utm_source=android&utm_medium=share #XTC #ミュージック #洋楽 | S36: 182 | U36: 19140 | AF36: 個人 | AG36: 1
B37: m56366622969 | C37: 取引終了 | D37: [DVD]エレファントカシマシ/桜の花舞い上がる武道館〈初回盤・2枚組〉 | E37: 36 | F37: 2009/10/17に購入。 中古品のため商品は多少のキズ・使用感がございます。記載ない限り帯・特典などは付属致しません。付属品は写真のものが全てです。 「エレファントカシマシ/桜の花舞い上がる武道館〈初回盤・2枚組〉」 エレファントカシマシ 定価: 6,600円 amazonマーケットプレイス最安値（スリープケース、ケース、ジャケット、ブックレット、リーフレットあり）6,980円 #エレファントカシマシ #エレカシ #DVD #ミュージック #宮本浩次 2009年に行なわれたコンサートの模様を収録したライヴ映像作品。「新しい季節へキミと」など同年発売のアルバムからのナンバーほか、「今宵の月のように」などの名曲も披露。圧倒的なパワーに満ちあふれたパフォーマンスが楽しめる。 | G37: 344 | H37: 4578 | I37: 最安値 | J37: https://www.amazon.co.jp/%E6%A1%9C%E3%81%AE%E8%8A%B1%E8%88%9E%E3%81%84%E4%B8%8A%E3%81%8C%E3%82%8B%E6%AD%A6%E9%81%93%E9%A4%A8-%E5%88%9D%E5%9B%9E%E9%99%90%E5%AE%9A%E7%9B%A4-DVD-%E3%82%A8%E3%83%AC%E3%83%95%E3%82%A1%E3%83%B3%E3%83%88%E3%82%AB%E3%82%B7%E3%83%9E%E3%82%B7/dp/B002GI20VQ/ref=sr_1_1?__mk_ja_JP=%E3%82%AB%E3%82%BF%E3%82%AB%E3%83%8A&keywords=%E3%82%A8%E3%83%AC%E3%83%95%E3%82%A1%E3%83%B3%E3%83%88%E3%82%AB%E3%82%B7%E3%83%9E%E3%82%B7%2F%E6%A1%9C%E3%81%AE%E8%8A%B1%E8%88%9E%E3%81%84%E4%B8%8A%E3%81%8C%E3%82%8B%E6%AD%A6%E9%81%93%E9%A4%A8%E3%80%88%E5%88%9D%E5%9B%9E%E7%9B%A4%E3%83%BB&qid=1638312532&sr=8-1 | K37: https://www.amazon.co.jp/dp/B002GI20VQ/ref=olp-opf-redir?aod=1&ie=UTF8&condition=ALL | M37: 4579 | N37: 無料配送: 12月18日 - 19日 詳細を見る | P37: 4579 | Q37: #エレファントカシマシ #エレカシ #DVD #ミュージック #宮本浩次 | R37: #メルカリ [DVD]エレファントカシマシ/桜の花舞い上がる武道館〈初回盤・2枚組〉 フリマアプリ「メルカリ」で販売中 https://jp.mercari.com/item/m56366622969/ #エレファントカシマシ #エレカシ #DVD #ミュージック #宮本浩次 | S37: 215 | T37: 2021-12-23 | U37: 4578 | V37: 2021-12-15 | W37: 4578 | X37: 457 | Y37: 175 | Z37: 3946 | AA37: 送料込み(出品者負担) | AC37: =V37 -> 2021-12-15 | AF37: 個人 | AG37: 1
B38: m57179883893 | C38: 取引終了 | D38: [CD]ブレス・オブ・ファイアV ドラゴンクォーター オリジナルサウンドトラック | E38: 40 | F38: 中古品のため商品は多少のキズ・使用感がございます。記載ない限り帯・特典などは付属致しません。付属品は写真のものが全てです。 「ブレス・オブ・ファイアV ドラゴンクォーター オリジナル・サウンドトラック」 定価: 3,520円 amazonマーケットプレイス最安値（解説シート4枚付き。三方背ケース&デジパック仕様。2枚組。デジパックスレ、三方背ケースややイタミ、帯なし）6,980円 #CD #サントラ #ゲーム #崎元仁 #光田康典 #鬼束ちひろ #ブレス・オブ・ファイアV #ドラゴンクォーター #ドラクォ RPG人気シリーズの最新作『ブレス オブ ファイア5』のサントラ。崎元仁、光田康典らを迎え珠玉の名曲が揃った劇中音楽はもちろんのこと、鬼束ちひろの書き下ろしによるテーマ曲も必聴ものだ。 | G38: 351 | H38: 3875 | I38: 最安値 | J38: https://www.amazon.co.jp/%E3%83%96%E3%83%AC%E3%82%B9%E3%83%BB%E3%82%AA%E3%83%96%E3%83%BB%E3%83%95%E3%82%A1%E3%82%A4%E3%82%A2V-%E3%83%89%E3%83%A9%E3%82%B4%E3%83%B3%E3%82%AF%E3%82%A9%E3%83%BC%E3%82%BF%E3%83%BC-%E3%82%AA%E3%83%AA%E3%82%B8%E3%83%8A%E3%83%AB%E3%83%BB%E3%82%B5%E3%82%A6%E3%83%B3%E3%83%89%E3%83%88%E3%83%A9%E3%83%83%E3%82%AF-%E3%82%B2%E3%83%BC%E3%83%A0%E3%83%BB%E3%83%9F%E3%83%A5%E3%83%BC%E3%82%B8%E3%83%83%E3%82%AF/dp/B00007DXRD/ref=sr_1_1?__mk_ja_JP=%E3%82%AB%E3%82%BF%E3%82%AB%E3%83%8A&keywords=%E3%83%96%E3%83%AC%E3%82%B9%E3%83%BB%E3%82%AA%E3%83%96%E3%83%BB%E3%83%95%E3%82%A1%E3%82%A4%E3%82%A2V+%E3%83%89%E3%83%A9%E3%82%B4%E3%83%B3%E3%82%AF%E3%82%A9%E3%83%BC%E3%82%BF%E3%83%BC+%E3%82%AA%E3%83%AA%E3%82%B8%E3%83%8A%E3%83%AB&qid=1638312545&sr=8-1 | K38: https://www.amazon.co.jp/dp/B00007DXRD/ref=olp-opf-redir?aod=1&ie=UTF8&condition=ALL | M38: 3425 | N38: 配送料 ¥500 8月 23-28日。 詳細を見る | O38: =MID(N38,FIND("配送料 ¥",N38)+5,FIND(" ",MID(N38,FIND("¥",N38),10))-2)*1 -> 500 | P38: 3925 | Q38: #CD #サントラ #ゲーム #崎元仁 #光田康典 #鬼束ちひろ #ブレス・オブ・ファイアV #ドラゴンクォーター #ドラクォ | R38: #メルカリ [CD]ブレス・オブ・ファイアV ドラゴンクォーター オリジナルサウンドトラック フリマアプリ「メルカリ」で販売中 https://jp.mercari.com/item/m57179883893/ #CD #サントラ #ゲーム #崎元仁 #光田康典 #鬼束ちひろ #ブレス・オブ・ファイアV #ドラゴンクォーター #ドラクォ | S38: 269 | T38: 2022-08-24 | U38: 3875 | V38: 2022-08-17 | W38: 3875 | X38: 387 | Y38: 210 | Z38: 3278 | AA38: 送料込み(出品者負担) | AB38: 断 | AC38: 2022-08-21 | AF38: 個人 | AG38: 1
B39: m99576480142 | C39: 取引終了 | D39: [Blu-ray]桑田佳祐/昭和八十八年度! 第二回ひとり紅白歌合戦 | E39: 34 | F39: 2014/3/29に購入。 中古品のため商品は多少のキズ・使用感がございます。記載ない限り帯・特典などは付属致しません。付属品は写真1~3のものが全てです。（スリーブケースなし・ミニポスターあり） 定価:7,700円 amazonマーケットプレイス最安値(送料込):3,869円(2021/9/26) 「桑田佳祐/昭和八十八年度! 第二回ひとり紅白歌合戦[Blu-ray]」 桑田佳祐 #桑田佳祐 #Bluray #Blu_ray #ブルーレイ #ミュージック #サザン #サザンオールスターズ --商品紹介--- 桑田佳祐が2013年にパシフィコ横浜で開催した「昭和八十八年度! 第二回ひとり紅白歌合戦」の模様をBD化。「東京ラプソディ」「わかれうた」「傷だらけのローラ」「シクラメンのかほり」「六本木心中」「どうにもとまらない」ほか、全55曲を収録・約4時間に及んだLIVEを完全収録! #桑田佳祐 #サザン #サザンオールスターズ #Bluray #Blu_ray #ブルーレイ #ミュージック #ひとり紅白歌合戦 #第二回ひとり紅白歌合戦 | G39: 480 | H39: 2932 | I39: 安すぎ | J39: https://www.amazon.co.jp/%E6%98%AD%E5%92%8C%E5%85%AB%E5%8D%81%E5%85%AB%E5%B9%B4%E5%BA%A6-%E7%AC%AC%E4%BA%8C%E5%9B%9E%E3%81%B2%E3%81%A8%E3%82%8A%E7%B4%85%E7%99%BD%E6%AD%8C%E5%90%88%E6%88%A6%E3%80%90%E5%88%9D%E5%9B%9E%E3%83%97%E3%83%AC%E3%82%B9%E4%BB%95%E6%A7%98%E3%80%91-Blu-ray-%E6%A1%91%E7%94%B0%E4%BD%B3%E7%A5%90/dp/B00IJII1I8/ref=sr_1_3?__mk_ja_JP=%E3%82%AB%E3%82%BF%E3%82%AB%E3%83%8A&keywords=%5D%E6%A1%91%E7%94%B0%E4%BD%B3%E7%A5%90%2F%E6%98%AD%E5%92%8C%E5%85%AB%E5%8D%81%E5%85%AB%E5%B9%B4%E5%BA%A6%21+%E7%AC%AC%E4%BA%8C%E5%9B%9E%E3%81%B2%E3%81%A8%E3%82%8A%E7%B4%85%E7%99%BD%E6%AD%8C%E5%90%88%E6%88%A6&qid=1638312596&sr=8-3 | K39: https://www.amazon.co.jp/dp/B00IJII1I8/ref=olp-opf-redir?aod=1&ie=UTF8&condition=ALL | L39: 5733 | M39: 2680 | N39: お届け日 (配送料: ￥350 ): 3月7日 - 8日 詳細を見る | O39: 350 | P39: 3030 | Q39: #桑田佳祐 #Bluray #Blu_ray #ブルーレイ #ミュージック #サザン #サザンオールスターズ | R39: #メルカリ [Blu-ray]桑田佳祐/昭和八十八年度! 第二回ひとり紅白歌合戦 フリマアプリ「メルカリ」で販売中 https://jp.mercari.com/item/m99576480142/ #桑田佳祐 #Bluray #Blu_ray #ブルーレイ #ミュージック #サザン #サザンオールスターズ | S39: 228 | T39: 2022-03-11 | U39: 2932 | V39: 2022-03-04 | W39: 2932 | X39: 293 | Y39: 175 | Z39: 2464 | AA39: 送料込み(出品者負担) | AC39: 2022-03-11 | AF39: 個人 | AG39: 1
B40: m96720053819 | C40: 取引終了 | D40: [Blu-ray]アヴァロン | E40: 14 | G40: 0 | P40: 0 | V40: 2021-11-19 | W40: 4876 | X40: 487 | Y40: 175 | Z40: 4214 | AA40: 送料込み(出品者負担) | AC40: =V40 -> 2021-11-19 | AF40: 個人 | AG40: 1
B41: m89444427249 | C41: 取引終了 | D41: [DVD]GRAPEVINE/sweet home adabana 2005 | E41: 38 | F41: 2006/3/18に購入 中古品のため商品は多少のキズ・使用感がございます。記載ない限り帯・特典などは付属致しません。プロダクト、ダウンロードコードは使用できません。写真以外の付属品はありません。 「GRAPEVINE/sweet home adabana 2005」 GRAPEVINE 定価: ￥ 3800 amazonマーケットプレイス最安値(送料込):2,872円(21/11/27) #GRAPEVINE #田中和将 #西川弘剛 #亀井亨 #西原誠 #金戸覚 #高野勲 #Permanents 2005年に行なわれたツアー「GRAPEVINE TOUR 2005 SWEET HOME ADABANA」の最終日となった11月25日のZepp Tokyoでのライヴの模様を収録したDVDが、ファンの熱狂的なリクエストにより登場。 01． 13/0.9 02． Reverb 03． シスター 04． いけすかない 05． 少年 06． それを魔法と呼ぶのなら 07． 放浪フリーク 08． Metamorphose 09． Rew 10． 豚の皿 11． Virus 12． Kingdom Come 13． ポリゴンのクライスト 14． アダバナ 15． アンチ・ハレルヤ 16． Lamb 17． その未来 18． Graveyard 19． スカイライン 20． 光について 21． "Everyman,Everywhere" | G41: 625 | H41: 2350 | I41: 安すぎ | J41: https://www.amazon.co.jp/sweet-home-adabana-2005-DVD/dp/B000EAV91K/ref=sr_1_1?__mk_ja_JP=%E3%82%AB%E3%82%BF%E3%82%AB%E3%83%8A&keywords=%5BDVD%5DGRAPEVINE%2Fsweet+home+adabana+2005&qid=1638312612&sr=8-1 | K41: https://www.amazon.co.jp/dp/B000EAV91K/ref=olp-opf-redir?aod=1&ie=UTF8&condition=ALL | M41: 2000 | N41: お届け日 (配送料: ￥450 ): 2月26日 - 28日 詳細を見る | O41: 450 | P41: 2450 | Q41: #GRAPEVINE #田中和将 #西川弘剛 #亀井亨 #西原誠 #金戸覚 #高野勲 #Permanents | R41: #メルカリ [DVD]GRAPEVINE/sweet home adabana 2005 フリマアプリ「メルカリ」で販売中 https://jp.mercari.com/item/m89444427249/ #GRAPEVINE #田中和将 #西川弘剛 #亀井亨 #西原誠 #金戸覚 #高野勲 #Permanents | S41: 202 | T41: 2022-03-01 | U41: 2350 | V41: 2022-02-22 | W41: 2350 | X41: 235 | Y41: 175 | Z41: 1940 | AA41: 送料込み(出品者負担) | AC41: 2022-02-26 | AF41: 個人 | AG41: 1
B42: m63169876561 | C42: 取引終了 | D42: [Blu-ray]サザンオールスターズ/LIVE TOUR 2019\"キミは見てくれが悪いんだから,アホ丸出しでマイクを握ってろ!!\"だと!?ふざけるな!!〈完全生産限定盤・2枚組〉 | E42: 93 | G42: 0 | P42: 0 | Q42: =MID(F42,FIND("#",F42),FIND(CHAR(10),MID(F42,FIND("#",F42),300))) ->  | V42: 2021-11-23 | W42: 6750 | X42: 675 | Y42: 410 | Z42: 5665 | AA42: 送料込み(出品者負担) | AC42: =V42 -> 2021-11-23 | AF42: 個人 | AG42: 1
B43: m93171287634 | C43: 取引終了 | D43: [Blu-ray]「伝説巨神イデオン」劇場版 Blu-ray(接触篇、発動篇)(初回限定版) | E43: 46 | F43: 2011/6/15購入 中古品のため商品は多少のキズ・使用感がございます。記載ない限り帯・特典などは付属致しません。写真以外の付属品はありません。 外箱欠落。 [Blu-ray]「伝説巨神イデオン」劇場版 Blu-ray(接触篇、発動篇)(初回限定版) #富野由悠季 #イデオン #伝説巨神イデオン #日本サンライズ #アニメ #塩屋翼 #戸田恵子 #バッフ・クラン 劇場版がBlu-rayで登場!互いの誤解から戦争へと発展した人類と異星人との壮絶な戦いを描いた、富野由悠季が贈るロボットアニメ作品。今作品ではTVシリーズ前半部分の総集編「接触篇」と、後半部分の総集編と放送の打ち切りで未公開となっていた最終回部分までを描いた「発動篇」を収録。特典DVDが付いた初回限定版。 | G43: 339 | H43: 17000 | I43: 安すぎ | J43: https://www.amazon.co.jp/%E3%80%8C%E4%BC%9D%E8%AA%AC%E5%B7%A8%E7%A5%9E%E3%82%A4%E3%83%87%E3%82%AA%E3%83%B3%E3%80%8D%E5%8A%87%E5%A0%B4%E7%89%88-Blu-ray-%E6%8E%A5%E8%A7%A6%E7%AF%87%E3%80%81%E7%99%BA%E5%8B%95%E7%AF%87-%E5%88%9D%E5%9B%9E%E9%99%90%E5%AE%9A%E7%89%88-%E5%A1%A9%E5%B1%8B%E7%BF%BC/dp/B004HJI5GQ/ref=tmm_blu_title_0?_encoding=UTF8&qid=&sr= | K43: https://www.amazon.co.jp/dp/B004HJI5GQ/ref=olp-opf-redir?aod=1&ie=UTF8&condition=ALL | M43: 44999 | N43: 無料配送 6月28日 火曜日。 詳細を見る | O43: =MID(N43,FIND("配送料 ¥",N43)+5,FIND(" ",MID(N43,FIND("¥",N43),10))-2)*1 ->  | P43: 44999 | Q43: #富野由悠季 #イデオン #伝説巨神イデオン #日本サンライズ #アニメ #塩屋翼 #戸田恵子 #バッフ・クラン | R43: #メルカリ [Blu-ray]「伝説巨神イデオン」劇場版 Blu-ray(接触篇、発動篇)(初回限定版) フリマアプリ「メルカリ」で販売中 https://jp.mercari.com/item/m93171287634/ #富野由悠季 #イデオン #伝説巨神イデオン #日本サンライズ #アニメ #塩屋翼 #戸田恵子 #バッフ・クラン | S43: 258 | T43: 2022-07-08 | U43: 17000 | V43: 2022-07-01 | W43: 17000 | X43: 1700 | Y43: 210 | Z43: 15090 | AA43: 送料込み(出品者負担) | AB43: rough laugh | AC43: 2022-07-06 | AF43: 個人 | AG43: 1
B44: m24877507730 | C44: 取引終了 | D44: [Blu-ray]下妻物語 | E44: 13 | F44: 2017/8/26購入 中古品のため商品は多少のキズ・使用感がございます。記載ない限り帯・特典などは付属致しません。写真以外の付属品はありません。 「下妻物語('04「下妻物語」製作委員会)」 深田恭子 / 土屋アンナ / 中島哲也 定価: ￥ 4700 #深田恭子 #土屋アンナ #中島哲也 #下妻物語 深田恭子、土屋アンナが共演した茨城ハイパー青春ムービー。ロリータ・ファッションをこよなく愛する桃子と特攻服姿のレディースのイチゴ。正反対の二人が出会い、行動をともにするうちに友情を深めていく様子をコミカルに描く。 | G44: 262 | H44: 2411 | I44: 最安値 | J44: https://www.amazon.co.jp/%E4%B8%8B%E5%A6%BB%E7%89%A9%E8%AA%9E%E3%80%90Blu-ray%E3%80%91-%E6%B7%B1%E7%94%B0%E6%81%AD%E5%AD%90/dp/B003E4N3TO/ref=sr_1_2?__mk_ja_JP=%E3%82%AB%E3%82%BF%E3%82%AB%E3%83%8A&keywords=%E4%B8%8B%E5%A6%BB%E7%89%A9%E8%AA%9E&qid=1638339023&sr=8-2 | K44: https://www.amazon.co.jp/dp/B003E4N3TO/ref=olp-opf-redir?aod=1&ie=UTF8&condition=ALL | L44: 4219 | M44: 2461 | N44: 無料配送 7月 5-6日。 詳細を見る | P44: 2461 | Q44: #深田恭子 #土屋アンナ #中島哲也 #下妻物語 | R44: #メルカリ [Blu-ray]下妻物語 フリマアプリ「メルカリ」で販売中 https://jp.mercari.com/item/m24877507730/ #深田恭子 #土屋アンナ #中島哲也 #下妻物語 | S44: 148 | T44: 2022-07-15 | U44: 2411 | V44: 2022-07-08 | W44: 2411 | X44: 241 | Y44: 210 | Z44: 1960 | AA44: 送料込み(出品者負担) | AB44: moon | AC44: 2022-07-13 | AF44: 個人 | AG44: 1
B45: m96147903177 | C45: 取引終了 | D45: [Blu-ray]GRAPEVINE/LIVE AT HIBIYA PARK | E45: 38 | G45: 0 | P45: =IF(ISERROR(O45),M45,M45+O45) -> 0 | Q45: =MID(F45,FIND("#",F45),FIND(CHAR(10),MID(F45,FIND("#",F45),300))) ->  | R45: ="#メルカリ"&CHAR(10)&D45&CHAR(10)&" フリマアプリ「メルカリ」で販売中 https://jp.mercari.com/item/"&B45&"/ "&Q45 ->  | T45: 2021-12-03 | V45: 2021-11-26 | W45: 5580 | X45: 558 | Y45: 175 | Z45: 4847 | AA45: 送料込み(出品者負担) | AC45: =V45 -> 2021-11-26 | AF45: 個人 | AG45: 1
B46: m13580080800 | C46: 取引終了 | D46: [DVD]未来忍者 慶雲機忍外伝 | E46: 16 | G46: 0 | P46: 0 | T46: 2021-12-03 | V46: 2021-11-25 | W46: 4124 | X46: 412 | Y46: 175 | Z46: 3537 | AA46: 送料込み(出品者負担) | AC46: =V46 -> 2021-11-25 | AF46: 個人 | AG46: 1
B47: m54774904683 | C47: 取引終了 | D47: [Blu-ray]容疑者Xの献身 | E47: 16 | F47: 2009/5/17購入 中古品のため商品は多少のキズ・使用感がございます。記載ない限り帯・特典などは付属致しません。プロダクト、ダウンロードコードは使用できません。写真以外の付属品はありません。 「容疑者Xの献身('08フジテレビジョン/アミューズ/S・D・P/FNS27社)〈2枚組〉」 福山雅治 / 柴咲コウ / 西谷弘 定価: ￥ 6700 #福山雅治 #柴咲コウ #西谷弘 #東野圭吾 #ガリレオ #容疑者Xの献身 #北村一輝 #松雪泰子 #堤真一 #亀山千広 東野圭吾の原作を福山雅治主演で映像化したTVドラマの映画版。暴力的な元夫を殺してしまった女性のために策を巡らす天才数学者と、ガリレオこと物理学者・湯川が頭脳合戦を繰り広げる。共演に松雪泰子、堤真一ら。 | G47: 338 | H47: 2848 | I47: 安すぎ | J47: https://www.amazon.co.jp/%E5%AE%B9%E7%96%91%E8%80%85X%E3%81%AE%E7%8C%AE%E8%BA%AB-%E3%83%96%E3%83%AB%E3%83%BC%E3%83%AC%E3%82%A4%E3%83%87%E3%82%A3%E3%82%B9%E3%82%AF-Blu-ray-%E7%A6%8F%E5%B1%B1%E9%9B%85%E6%B2%BB/dp/B001OF63WO/ref=tmm_blu_swatch_0?_encoding=UTF8&qid=1638347046&sr=8-4 | K47: https://www.amazon.co.jp/dp/B001OF63WO/ref=olp-opf-redir?aod=1&ie=UTF8&condition=ALL | L47: 6352 | M47: 2948 | N47: 無料配送: 1月12日 - 13日 詳細を見る | P47: 2948 | Q47: #福山雅治 #柴咲コウ #西谷弘 #東野圭吾 #ガリレオ #容疑者Xの献身 #北村一輝 #松雪泰子 #堤真一 #亀山千広 | R47: #メルカリ [Blu-ray]容疑者Xの献身 フリマアプリ「メルカリ」で販売中 https://jp.mercari.com/item/m54774904683/ #福山雅治 #柴咲コウ #西谷弘 #東野圭吾 #ガリレオ #容疑者Xの献身 #北村一輝 #松雪泰子 #堤真一 #亀山千広 | S47: 212 | T47: 2022-01-16 | U47: 2848 | V47: 2022-01-09 | W47: 2848 | X47: 284 | Y47: 175 | Z47: 2389 | AA47: 送料込み(出品者負担) | AC47: 2022-01-16 | AF47: 個人 | AG47: 1
B48: m43738766760 | C48: 取引終了 | D48: [Blu-ray]牙狼<GARO>～蒼哭ノ魔竜～ | E48: 24 | F48: 2014/2/28購入 中古品のため商品は多少のキズ・使用感がございます。記載ない限り帯・特典などは付属致しません。写真以外の付属品はありません。 「牙狼 ‹ GARO › ～蒼哭ノ魔竜～('12東北新社)」 小西遼生 / 藤田玲 / 雨宮慶太 定価: ￥ 4700 #小西遼生 #藤田玲 #雨宮慶太 #牙狼 #GARO #蒼哭ノ魔竜 #蒼あんな #影山ヒロノブ #螢雪次朗 #大橋明 雨宮慶太が原作・監督・脚本を手がけたロングヒット・ドラマ・シリーズの劇場版第2作。『牙狼』シリーズの魅力のひとつであるファンタジー要素を前面に押し出し、約7年にわたり紡がれてきた“最強の魔戒騎士”冴島鋼牙の最後の物語を描く。 | G48: 309 | H48: 1999 | J48: https://www.amazon.co.jp/%E7%89%99%E7%8B%BC-GARO-%E8%92%BC%E5%93%AD%E3%83%8E%E9%AD%94%E7%AB%9C-Blu-ray-%E5%B0%8F%E8%A5%BF%E9%81%BC%E7%94%9F/dp/B00DJPPZ7G/ref=sr_1_8?__mk_ja_JP=%E3%82%AB%E3%82%BF%E3%82%AB%E3%83%8A&keywords=%E7%89%99%E7%8B%BC%3CGARO%3E%EF%BD%9E%E8%92%BC%E5%93%AD%E3%83%8E%E9%AD%94%E7%AB%9C%EF%BD%9E&qid=1638360529&sr=8-8 | K48: https://www.amazon.co.jp/dp/B00DJPPZ7G/ref=olp-opf-redir?aod=1&ie=UTF8&condition=ALL | M48: 1870 | N48: 無料配送 9月 6-8日。 詳細を見る | O48: =MID(N48,FIND("配送料 ¥",N48)+5,FIND(" ",MID(N48,FIND("¥",N48),10))-2)*1 ->  | P48: 1870 | Q48: #小西遼生 #藤田玲 #雨宮慶太 #牙狼 #GARO #蒼哭ノ魔竜 #蒼あんな #影山ヒロノブ #螢雪次朗 #大橋明 | R48: #メルカリ [Blu-ray]牙狼<GARO>～蒼哭ノ魔竜～ フリマアプリ「メルカリ」で販売中 https://jp.mercari.com/item/m43738766760/ #小西遼生 #藤田玲 #雨宮慶太 #牙狼 #GARO #蒼哭ノ魔竜 #蒼あんな #影山ヒロノブ #螢雪次朗 #大橋明 | S48: 217 | T48: 2022-09-10 | U48: 1999 | V48: 2022-09-03 | W48: 1999 | X48: 199 | Y48: 210 | Z48: 1590 | AA48: 送料込み(出品者負担) | AB48: ゆきゆき | AC48: 2022-09-10 | AF48: 個人 | AG48: 1
B49: m85645542682 | C49: 出品中 | D49: [Blu-ray]涼宮ハルヒの消失 | E49: 17 | F49: 2011/1/2購入 中古品のため商品は多少のキズ・使用感がございます。記載ない限り帯・特典などは付属致しません。写真以外の付属品はありません。 「涼宮ハルヒの消失('10SOS団)」 平野綾 / 杉田智和 / 武本康弘 定価: ￥ 8000 #平野綾 #杉田智和 #武本康弘 #涼宮ハルヒの消失 #武本康弘 #京都アニメーション #涼宮ハルヒ #涼宮ハルヒの消失 #長門有希 #朝比奈みくる #いとうのいぢ #谷川流 #京アニ 2006年の放送で大人気となったアニメ『涼宮ハルヒ』シリーズの2010年公開の劇場版。傍若無人な女子高生・涼宮ハルヒたちが繰り広げる日常を描いた学園コメディ。クリスマスが間近に迫った冬の日、キョンが学校に行くと、いつもと様子が違う……。 | G49: 337 | H49: 1999 | J49: https://www.amazon.co.jp/%E6%B6%BC%E5%AE%AE%E3%83%8F%E3%83%AB%E3%83%92%E3%81%AE%E6%B6%88%E5%A4%B1-%E9%80%9A%E5%B8%B8%E7%89%88-Blu-ray-%E5%B9%B3%E9%87%8E%E7%B6%BE/dp/B0040GJTD4/ref=tmm_blu_swatch_0?_encoding=UTF8&qid=&sr= | K49: https://www.amazon.co.jp/dp/B0040GJTD4/ref=olp-opf-redir?aod=1&ie=UTF8&condition=ALL | L49: 4341 | M49: 1400 | N49: 無料配送 10月31日 火曜日にお届け（初回注文特典） 詳細を見る | O49: =MID(N49,FIND("配送料 ¥",N49)+5,FIND(" ",MID(N49,FIND("¥",N49),10))-2)*1 ->  | P49: 1400 | Q49: #平野綾 #杉田智和 #武本康弘 #涼宮ハルヒの消失 #武本康弘 #京都アニメーション #涼宮ハルヒ #涼宮ハルヒの消失 #長門有希 #朝比奈みくる #いとうのいぢ #谷川流 #京アニ | R49: ="#メルカリ"&CHAR(10)&D49&CHAR(10)&" フリマアプリ「メルカリ」で販売中 https://jp.mercari.com/item/"&B49&"?utm_source=android&utm_medium=share "&Q49 -> #メルカリ [Blu-ray]涼宮ハルヒの消失 フリマアプリ「メルカリ」で販売中 https://jp.mercari.com/item/m85645542682?utm_source=android&utm_medium=share #平野綾 #杉田智和 #武本康弘 #涼宮ハルヒの消失 #武本康弘 #京都アニメーション #涼宮ハルヒ #涼宮ハルヒの消失 #長門有希 #朝比奈みくる #いとうのいぢ #谷川流 #京アニ | S49: 310 | U49: 1999 | AF49: 個人 | AG49: 1
B50: m92503573890 | C50: 取引終了 | D50: [Blu-ray]牙狼 [GARO]~RED REQUIEM~ 3D Blu-ray+2D Blu-ray | E50: 53 | F50: 2012/8/26購入 中古品のため商品は多少のキズ・使用感がございます。記載ない限り帯・特典などは付属致しません。写真以外の付属品はありません。 「牙狼 GARO～RED REQUIEM～3D Blu-ray+2D Blu-ray('10東北新社)〈2枚組〉」 小西遼生 / 松山メアリ / 雨宮慶太 定価: ￥ 6800 #小西遼生 #松山メアリ #雨宮慶太 #藤田玲 #牙狼 #GARO #蒼あんな #影山ヒロノブ #螢雪次朗 #大橋明 雨宮慶太が監督を手がけ、自身の代表作『牙狼』を映画化したホラー・アクション。人間を食らう魔獣と戦う宿命を背負った黄金騎士・冴島鋼牙の活躍を描く。日本初の全編フル・デジタル3D映画としても話題を呼んだ渾身の作品。 | G50: 330 | H50: 2955 | I50: 最安値 | J50: https://www.amazon.co.jp/%E7%89%99%E7%8B%BC-GARO-RED-REQUIEM-Blu-ray/dp/B004RCNIYC/ref=sr_1_3?__mk_ja_JP=%E3%82%AB%E3%82%BF%E3%82%AB%E3%83%8A&keywords=%E7%89%99%E7%8B%BC+GARO%EF%BD%9ERED+REQUIEM&qid=1638362422&sr=8-3 | K50: https://www.amazon.co.jp/dp/B004RCNIYC/ref=olp-opf-redir?aod=1&ie=UTF8&condition=ALL | M50: 2655 | N50: 配送料 ¥350 7月 5-7日。 詳細を見る | O50: 350 | P50: 3005 | Q50: #小西遼生 #松山メアリ #雨宮慶太 #藤田玲 #牙狼 #GARO #蒼あんな #影山ヒロノブ #螢雪次朗 #大橋明 | R50: #メルカリ [Blu-ray]牙狼 [GARO]~RED REQUIEM~ 3D Blu-ray+2D Blu-ray フリマアプリ「メルカリ」で販売中 https://jp.mercari.com/item/m92503573890/ #小西遼生 #松山メアリ #雨宮慶太 #藤田玲 #牙狼 #GARO #蒼あんな #影山ヒロノブ #螢雪次朗 #大橋明 | S50: 238 | T50: 2022-07-12 | U50: 2955 | V50: 2022-07-05 | W50: 2955 | X50: 295 | Y50: 210 | Z50: 2450 | AA50: 送料込み(出品者負担) | AB50: pon | AC50: 2022-07-08 | AF50: 個人 | AG50: 1
B51: m69218838794 | C51: 取引終了 | D51: [DVD]大いなる幻影 | E51: 11 | F51: 2011/7/10購入 中古品のため商品は多少のキズ・使用感がございます。記載ない限り帯・特典などは付属致しません。プロダクト、ダウンロードコードは使用できません。写真以外の付属品はありません。 「大いなる幻影('99ユーロスペース/映画美学校/日本スカイウェイ)」 相馬大 / 武田真治 / 黒沢清 定価: ￥ 3800 #相馬大 #武田真治 #黒沢清 #CD・DVD 落ち着いた関係を築きながらも、どこか心に空いた穴を抱えている恋人たち。彼らはある新薬のモニターになることを決めるのだが……。国内外で高い評価を得る黒沢清監督による新しい愛の物語。 | G51: 278 | H51: 2347 | I51: 最安値 | J51: https://www.amazon.co.jp/%E5%A4%A7%E3%81%84%E3%81%AA%E3%82%8B%E5%B9%BB%E5%BD%B1-DVD-%E6%AD%A6%E7%94%B0%E7%9C%9F%E6%B2%BB/dp/B00009WL0Y/ref=sr_1_4?__mk_ja_JP=%E3%82%AB%E3%82%BF%E3%82%AB%E3%83%8A&keywords=%E5%A4%A7%E3%81%84%E3%81%AA%E3%82%8B%E5%B9%BB%E5%BD%B1&qid=1638363279&sr=8-4 | K51: https://www.amazon.co.jp/dp/B00009WL0Y/ref=olp-opf-redir?aod=1&ie=UTF8&condition=ALL | L51: 3691 | M51: 2015 | N51: お届け日 (配送料: ￥342 ): 1月13日 - 15日 詳細を見る | O51: 342 | P51: 2357 | Q51: #相馬大 #武田真治 #黒沢清 #CD・DVD | R51: #メルカリ [DVD]大いなる幻影 フリマアプリ「メルカリ」で販売中 https://jp.mercari.com/item/m69218838794/ #相馬大 #武田真治 #黒沢清 #CD・DVD | S51: 141 | T51: 2022-01-13 | U51: 2347 | V51: 2022-01-06 | W51: 2347 | X51: 234 | Y51: 175 | Z51: 1938 | AA51: 送料込み(出品者負担) | AC51: 2022-01-10 | AF51: 個人 | AG51: 1
B52: m70965596166 | C52: 取引終了 | D52: [DVD]ドレミファ娘の血は騒ぐ | E52: 16 | F52: 2014/4/18購入 中古品のため商品は多少のキズ・使用感がございます。記載ない限り帯・特典などは付属致しません。プロダクト、ダウンロードコードは使用できません。写真以外の付属品はありません。 「ドレミファ娘の血は騒ぐ('85EPIC・ソニー/ディレクターズ・カンパニー)」 洞口依子 / 伊丹十三 / 黒沢清 定価: ￥ 4700 #洞口依子 #伊丹十三 #黒沢清 #CD・DVD 高校時代の先輩を慕って上京した秋子は、心理学ゼミの教授に実験材料にされてしまい……。今やJホラーの鬼才と称される『CURE』の黒沢清監督作。 | G52: 266 | H52: 3155 | I52: 安すぎ | J52: https://www.amazon.co.jp/%E3%83%89%E3%83%AC%E3%83%9F%E3%83%95%E3%82%A1%E5%A8%98%E3%81%AE%E8%A1%80%E3%81%AF%E9%A8%92%E3%81%90-DVD-%E6%B4%9E%E5%8F%A3%E4%BE%9D%E5%AD%90/dp/B00005MIH9/ref=tmm_dvd_title_0?_encoding=UTF8&qid=1638363567&sr=8-2 | K52: https://www.amazon.co.jp/dp/B00005MIH9/ref=olp-opf-redir?aod=1&ie=UTF8&condition=ALL | M52: 3000 | N52: お届け日 (配送料: ￥255 ): 1月6日 - 8日 詳細を見る | O52: 255 | P52: 3255 | Q52: #洞口依子 #伊丹十三 #黒沢清 #CD・DVD | R52: #メルカリ [DVD]ドレミファ娘の血は騒ぐ フリマアプリ「メルカリ」で販売中 https://jp.mercari.com/item/m70965596166/ #洞口依子 #伊丹十三 #黒沢清 #CD・DVD | S52: 153 | T52: 2022-01-14 | U52: 3155 | V52: 2022-01-07 | W52: 3155 | X52: 315 | Y52: 175 | Z52: 2665 | AA52: 送料込み(出品者負担) | AC52: 2022-01-16 | AF52: 個人 | AG52: 1
B53: m49258802966 | C53: 出品中 | D53: [DVD]回路 デラックス版 | E53: 14 | F53: 2007/2/11購入 中古品のため商品は多少のキズ・使用感がございます。記載ない限り帯・特典などは付属致しません。写真以外の付属品はありません。 「回路 デラックス版('00「回路」製作委員会)」 加藤晴彦 / 役所広司 / 黒沢清 定価: ￥ 4700 #加藤晴彦 #役所広司 #黒沢清 #CD・DVD 『地獄の警備員』や『CURE』など、身近に潜んだ恐怖を描くことにかけては右に出る者なしのホラー監督・黒沢清の長編オリジナル。主演はこの作品が映画初主演となる加藤晴彦。 | G53: 240 | H53: 1999 | J53: https://www.amazon.co.jp/%E5%9B%9E%E8%B7%AF-%E3%83%87%E3%83%A9%E3%83%83%E3%82%AF%E3%82%B9%E7%89%88-DVD-%E5%8A%A0%E8%97%A4%E6%99%B4%E5%BD%A6/dp/B00005MIG7/ref=tmm_dvd_title_0?_encoding=UTF8&qid=1638364202&sr=8-3 | K53: https://www.amazon.co.jp/dp/B00005MIG7/ref=olp-opf-redir?aod=1&ie=UTF8&condition=ALL | M53: 800 | N53: 配送料 ¥450 11月1日-3日にお届け 詳細を見る | O53: =MID(N53,FIND("配送料 ¥",N53)+5,FIND(" ",MID(N53,FIND("¥",N53),10))-2)*1 -> 450 | P53: 1250 | Q53: #加藤晴彦 #役所広司 #黒沢清 #CD・DVD | R53: ="#メルカリ"&CHAR(10)&D53&CHAR(10)&" フリマアプリ「メルカリ」で販売中 https://jp.mercari.com/item/"&B53&"?utm_source=android&utm_medium=share "&Q53 -> #メルカリ [DVD]回路 デラックス版 フリマアプリ「メルカリ」で販売中 https://jp.mercari.com/item/m49258802966?utm_source=android&utm_medium=share #加藤晴彦 #役所広司 #黒沢清 #CD・DVD | S53: 183 | U53: 1999 | AF53: 個人 | AG53: 1
B54: m79640535756 | C54: 取引終了 | D54: [DVD]松本人志/松本人志自選集～スーパー一人ごっつ Vol.1~5セット | E54: =LEN(D54) -> 38 | F54: 中古品のため商品は多少のキズ・使用感がございます。記載ない限り帯・特典などは付属致しません。プロダクト、ダウンロードコードは使用できません。写真以外の付属品はありません。 「松本人志/松本人志自選集～スーパー一人ごっつ Vol.1～Vol.5 全５巻セット」 松本人志 #松本人志 #一人ごっつ #ごっつええ感じ #高須光聖 #木村祐一 #板尾創路 #倉本美津留 フジテレビ系『新一人ごっつ』『松ごっつ』の初映像化に加え、『一人ごっつ』からも、松本人志本人によるベスト・セレクションを収録。副音声で松本本人と“大仏”による解説が加えられている。 | G54: =LEN(F54) -> 275 | H54: 4292 | I54: 安すぎ | K54: ="https://www.amazon.co.jp/dp/"&MID(J54,FIND("/dp/",J54)+4,10)&"/ref=olp-opf-redir?aod=1&ie=UTF8&condition=ALL" ->  | L54: =SUM(L55:L59) -> 19193 | M54: =SUM(M55:M59) -> 2585 | P54: =SUM(P55:P59) -> 4392 | Q54: #松本人志 #一人ごっつ #ごっつええ感じ #高須光聖 #木村祐一 #板尾創路 #倉本美津留 | R54: ="#メルカリ"&CHAR(10)&D54&CHAR(10)&" フリマアプリ「メルカリ」で販売中 https://jp.mercari.com/item/"&B54&"/ "&Q54 -> #メルカリ [DVD]松本人志/松本人志自選集～スーパー一人ごっつ Vol.1~5セット フリマアプリ「メルカリ」で販売中 https://jp.mercari.com/item/m79640535756/ #松本人志 #一人ごっつ #ごっつええ感じ #高須光聖 #木村祐一 #板尾創路 #倉本美津留 | S54: =LENB(R54) -> 231 | T54: 2022-01-11 | U54: 4292 | V54: 2022-01-04 | W54: 4292 | X54: 429 | Y54: 730 | Z54: 3133 | AA54: 送料込み(出品者負担) | AC54: 2022-01-09 | AF54: 個人 | AG54: 1
C55: 取引終了 | D55: [DVD]松本人志/松本人志自選集～スーパー一人ごっつ Vol.1 | E55: 33 | G55: 0 | J55: https://www.amazon.co.jp/%E6%9D%BE%E6%9C%AC%E4%BA%BA%E5%BF%97%E8%87%AA%E9%81%B8%E9%9B%86-%E3%80%8C%E3%82%B9%E3%83%BC%E3%83%91%E3%83%BC%E4%B8%80%E4%BA%BA%E3%81%94%E3%81%A3%E3%81%A4%E3%80%8D-Vol-1-DVD-%E6%9D%BE%E6%9C%AC%E4%BA%BA%E5%BF%97/dp/B00006F23P/ref=sr_1_1?__mk_ja_JP=%E3%82%AB%E3%82%BF%E3%82%AB%E3%83%8A&keywords=%E6%9D%BE%E6%9C%AC%E4%BA%BA%E5%BF%97%E8%87%AA%E9%81%B8%E9%9B%86%EF%BD%9E%E3%82%B9%E3%83%BC%E3%83%91%E3%83%BC%E4%B8%80%E4%BA%BA%E3%81%94%E3%81%A3%E3%81%A4+Vol.1&qid=1638365036&sr=8-1 | K55: https://www.amazon.co.jp/dp/B00006F23P/ref=olp-opf-redir?aod=1&ie=UTF8&condition=ALL | L55: 3697 | M55: 1 | N55: お届け日 (配送料: ￥400 ): 1月14日 - 16日 詳細を見る | O55: =MID(N55,FIND("配送料: ￥",N55)+6,FIND(" ",MID(N55,FIND("￥",N55),10))-2)*1 -> 400 | P55: =IF(ISERROR(O55),M55,M55+O55) -> 401 | AF55: 個人 | AG55: 1
C56: 取引終了 | D56: [DVD]松本人志/松本人志自選集～スーパー一人ごっつ Vol.2 | J56: https://www.amazon.co.jp/%E6%9D%BE%E6%9C%AC%E4%BA%BA%E5%BF%97%E8%87%AA%E9%81%B8%E9%9B%86-%E3%80%8C%E3%82%B9%E3%83%BC%E3%83%91%E3%83%BC%E4%B8%80%E4%BA%BA%E3%81%94%E3%81%A3%E3%81%A4%E3%80%8D-Vol-2-DVD-%E6%9D%BE%E6%9C%AC%E4%BA%BA%E5%BF%97/dp/B00006JJ9R/ref=sr_1_2?__mk_ja_JP=%E3%82%AB%E3%82%BF%E3%82%AB%E3%83%8A&keywords=%E6%9D%BE%E6%9C%AC%E4%BA%BA%E5%BF%97%E8%87%AA%E9%81%B8%E9%9B%86%EF%BD%9E%E3%82%B9%E3%83%BC%E3%83%91%E3%83%BC%E4%B8%80%E4%BA%BA%E3%81%94%E3%81%A3%E3%81%A4&qid=1639599995&sr=8-2 | K56: https://www.amazon.co.jp/dp/B00006JJ9R/ref=olp-opf-redir?aod=1&ie=UTF8&condition=ALL | L56: 3948 | M56: 658 | N56: お届け日 (配送料: ￥250 ): 1月7日 - 11日 詳細を見る | O56: =MID(N56,FIND("配送料: ￥",N56)+6,FIND(" ",MID(N56,FIND("￥",N56),10))-2)*1 -> 250 | P56: =IF(ISERROR(O56),M56,M56+O56) -> 908 | AF56: 個人 | AG56: 1
C57: 取引終了 | D57: [DVD]松本人志/松本人志自選集～スーパー一人ごっつ Vol.3 | J57: https://www.amazon.co.jp/%E6%9D%BE%E6%9C%AC%E4%BA%BA%E5%BF%97%E8%87%AA%E9%81%B8%E9%9B%86-%E3%80%8C%E3%82%B9%E3%83%BC%E3%83%91%E3%83%BC%E4%B8%80%E4%BA%BA%E3%81%94%E3%81%A3%E3%81%A4%E3%80%8D-Vol-3-DVD-%E6%9D%BE%E6%9C%AC%E4%BA%BA%E5%BF%97/dp/B00006LY29/ref=sr_1_3?__mk_ja_JP=%E3%82%AB%E3%82%BF%E3%82%AB%E3%83%8A&keywords=%E6%9D%BE%E6%9C%AC%E4%BA%BA%E5%BF%97%E8%87%AA%E9%81%B8%E9%9B%86%EF%BD%9E%E3%82%B9%E3%83%BC%E3%83%91%E3%83%BC%E4%B8%80%E4%BA%BA%E3%81%94%E3%81%A3%E3%81%A4&qid=1639599995&sr=8-3 | K57: https://www.amazon.co.jp/dp/B00006LY29/ref=olp-opf-redir?aod=1&ie=UTF8&condition=ALL | L57: 3782 | M57: 500 | N57: お届け日 (配送料: ￥410 ): 1月9日 - 12日 詳細を見る | O57: =MID(N57,FIND("配送料: ￥",N57)+6,FIND(" ",MID(N57,FIND("￥",N57),10))-2)*1 -> 410 | P57: =IF(ISERROR(O57),M57,M57+O57) -> 910 | AF57: 個人 | AG57: 1
C58: 取引終了 | D58: [DVD]松本人志/松本人志自選集～スーパー一人ごっつ Vol.4 | J58: https://www.amazon.co.jp/%E6%9D%BE%E6%9C%AC%E4%BA%BA%E5%BF%97%E8%87%AA%E9%81%B8%E9%9B%86-%E3%80%8C%E3%82%B9%E3%83%BC%E3%83%91%E3%83%BC%E4%B8%80%E4%BA%BA%E3%81%94%E3%81%A3%E3%81%A4%E3%80%8D-visual-collaborator-SAKAKIBARA/dp/B00007AJMY/ref=sr_1_4?__mk_ja_JP=%E3%82%AB%E3%82%BF%E3%82%AB%E3%83%8A&keywords=%E6%9D%BE%E6%9C%AC%E4%BA%BA%E5%BF%97%E8%87%AA%E9%81%B8%E9%9B%86%EF%BD%9E%E3%82%B9%E3%83%BC%E3%83%91%E3%83%BC%E4%B8%80%E4%BA%BA%E3%81%94%E3%81%A3%E3%81%A4&qid=1639599995&sr=8-4 | K58: https://www.amazon.co.jp/dp/B00007AJMY/ref=olp-opf-redir?aod=1&ie=UTF8&condition=ALL | L58: 4114 | M58: 700 | N58: お届け日 (配送料: ￥350 ): 1月8日 - 11日 詳細を見る | O58: =MID(N58,FIND("配送料: ￥",N58)+6,FIND(" ",MID(N58,FIND("￥",N58),10))-2)*1 -> 350 | P58: =IF(ISERROR(O58),M58,M58+O58) -> 1050 | AF58: 個人 | AG58: 1
C59: 取引終了 | D59: [DVD]松本人志/松本人志自選集～スーパー一人ごっつ Vol.5 | J59: https://www.amazon.co.jp/%E6%9D%BE%E6%9C%AC%E4%BA%BA%E5%BF%97%E8%87%AA%E9%81%B8%E9%9B%86-%E3%80%8C%E3%82%B9%E3%83%BC%E3%83%91%E3%83%BC%E4%B8%80%E4%BA%BA%E3%81%94%E3%81%A3%E3%81%A4%E3%80%8D-visual-collaborator-NAMAIKI/dp/B00007JMIV/ref=sr_1_1?__mk_ja_JP=%E3%82%AB%E3%82%BF%E3%82%AB%E3%83%8A&keywords=%E6%9D%BE%E6%9C%AC%E4%BA%BA%E5%BF%97%E8%87%AA%E9%81%B8%E9%9B%86%EF%BD%9E%E3%82%B9%E3%83%BC%E3%83%91%E3%83%BC%E4%B8%80%E4%BA%BA%E3%81%94%E3%81%A3%E3%81%A4&qid=1639599995&sr=8-1 | K59: https://www.amazon.co.jp/dp/B00007JMIV/ref=olp-opf-redir?aod=1&ie=UTF8&condition=ALL | L59: 3652 | M59: 726 | N59: お届け日 (配送料: ￥397 ): 1月6日 - 8日 詳細を見る | O59: =MID(N59,FIND("配送料: ￥",N59)+6,FIND(" ",MID(N59,FIND("￥",N59),10))-2)*1 -> 397 | P59: =IF(ISERROR(O59),M59,M59+O59) -> 1123 | AF59: 個人 | AG59: 1
B60: m16955910877 | C60: 取引終了 | D60: [Blu-ray]イレイザーヘッド デイヴィッド・リンチ リストア版 | E60: 34 | F60: 2014/2/2購入 中古品のため商品は多少のキズ・使用感がございます。記載ない限り帯・特典などは付属致しません。写真以外の付属品はありません。 「イレイザーヘッド デイヴィッド・リンチ リストア版('77米)」 ジョン・ナンス / シャーロット・スチュワート / デヴィッド・リンチ 定価: ￥ 2381 #ジョン・ナンス #シャーロット・スチュワート #デヴィッド・リンチ #CD・DVD 長きにわたりカルト映画界の頂点と称されるデヴィッド・リンチの長編デビュー作。奇怪な姿の赤ん坊におののく男の心理をノイズ音を乗せたモノクロ映像で描く傑作だ。出演はジャック・ナンス、シャーロット・スチュワートら。 | G60: 304 | H60: 2150 | I60: =IF(AND(L60<>"",H60>L60),"新品より高い",IF(AND(P60>0,H60<=P60,H60>=P60-100),"最安値",IF(AND(P60>0,H60<P60-100),"安すぎ",""))) -> 最安値 | J60: https://www.amazon.co.jp/%E3%82%A4%E3%83%AC%E3%82%A4%E3%82%B6%E3%83%BC%E3%83%98%E3%83%83%E3%83%89-%E3%83%87%E3%82%A4%E3%83%B4%E3%82%A3%E3%83%83%E3%83%89%E3%83%BB%E3%83%AA%E3%83%B3%E3%83%81-%E3%83%AA%E3%82%B9%E3%83%88%E3%82%A2%E7%89%88-Blu-ray-%E3%82%B8%E3%83%A3%E3%83%83%E3%82%AF%E3%83%BB%E3%83%8A%E3%83%B3%E3%82%B9/dp/B00DACM3J6/ref=sr_1_4?__mk_ja_JP=%E3%82%AB%E3%82%BF%E3%82%AB%E3%83%8A&crid=2TA9XCND9LLVP&keywords=%E3%82%A4%E3%83%AC%E3%82%A4%E3%82%B6%E3%83%BC%E3%83%98%E3%83%83%E3%83%89&qid=1654374085&sprefix=%2Caps%2C171&sr=8-4 | K60: https://www.amazon.co.jp/dp/B00DACM3J6/ref=olp-opf-redir?aod=1&ie=UTF8&condition=ALL | M60: 1850 | N60: 配送料 ¥350 2月 24-26日にお届け 詳細を見る | O60: =MID(N60,FIND("配送料 ¥",N60)+5,FIND(" ",MID(N60,FIND("¥",N60),10))-2)*1 -> 350 | P60: 2200 | Q60: #ジョン・ナンス #シャーロット・スチュワート #デヴィッド・リンチ #CD・DVD | R60: ="#メルカリ"&CHAR(10)&D60&CHAR(10)&" フリマアプリ「メルカリ」で販売中 https://jp.mercari.com/item/"&B60&"?utm_source=android&utm_medium=share "&Q60 -> #メルカリ [Blu-ray]イレイザーヘッド デイヴィッド・リンチ リストア版 フリマアプリ「メルカリ」で販売中 https://jp.mercari.com/item/m16955910877?utm_source=android&utm_medium=share #ジョン・ナンス #シャーロット・スチュワート #デヴィッド・リンチ #CD・DVD | S60: 254 | T60: 2023-02-26 | U60: 2150 | V60: 2023-02-19 | W60: 2150 | X60: 215 | Y60: 210 | Z60: 1725 | AA60: 送料込み(出品者負担) | AB60: しもきん | AC60: 2023-02-26 | AF60: 個人 | AG60: 1
B61: m93401840894 | C61: 出品中 | D61: [DVD]牙狼(GARO)スペシャル～白夜の魔獣～長編版 | E61: 28 | F61: 2012/8/26購入 中古品のため商品は多少のキズ・使用感がございます。記載ない限り帯・特典などは付属致しません。写真以外の付属品はありません。 「牙狼(GARO)スペシャル～白夜の魔獣～長編版」 小西大樹 / 肘井美佳 / 雨宮慶太 定価: ￥ 1900 #小西大樹 #肘井美佳 #雨宮慶太 #牙狼 #GARO #蒼あんな #影山ヒロノブ #螢雪次朗 #大橋明 最高位の証“ガロ”の称号を持つ魔戒騎士・鋼牙のもとに魔戒法師の少女・鈴が現れる。時を同じくして、1千年前に封印されたはずの魔獣が覚醒し……。SFクリエイター・雨宮慶太の原作・監督による特撮ドラマ・シリーズのスペシャル版。 | G61: 297 | H61: 1999 | I61: =IF(AND(L61<>"",H61>L61),"新品より高い",IF(AND(P61>0,H61<=P61,H61>=P61-100),"最安値",IF(AND(P61>0,H61<P61-100),"安すぎ",""))) -> 新品より高い | J61: https://www.amazon.co.jp/EMOTION-Best-GARO-%E3%82%B9%E3%83%9A%E3%82%B7%E3%83%A3%E3%83%AB-%E7%99%BD%E5%A4%9C%E3%81%AE%E9%AD%94%E7%8D%A3/dp/B003TRSHDI/ref=sr_1_1?__mk_ja_JP=%E3%82%AB%E3%82%BF%E3%82%AB%E3%83%8A&keywords=%E7%89%99%E7%8B%BC%28GARO%29%E3%82%B9%E3%83%9A%E3%82%B7%E3%83%A3%E3%83%AB%EF%BD%9E%E7%99%BD%E5%A4%9C%E3%81%AE%E9%AD%94%E7%8D%A3&qid=1638391103&sr=8-1 | K61: https://www.amazon.co.jp/dp/B003TRSHDI/ref=olp-opf-redir?aod=1&ie=UTF8&condition=ALL | L61: 1609 | M61: 965 | N61: 無料配送 10月31日 火曜日にお届け（初回注文特典） 詳細を見る | P61: 965 | Q61: #小西大樹 #肘井美佳 #雨宮慶太 #牙狼 #GARO #蒼あんな #影山ヒロノブ #螢雪次朗 #大橋明 | R61: #メルカリ [DVD]牙狼(GARO)スペシャル～白夜の魔獣～長編版 フリマアプリ「メルカリ」で販売中 https://jp.mercari.com/item/m93401840894?utm_source=android&utm_medium=share #小西大樹 #肘井美佳 #雨宮慶太 #牙狼 #GARO #蒼あんな #影山ヒロノブ #螢雪次朗 #大橋明 | S61: 254 | U61: 1999 | AF61: 個人 | AG61: 1
B62: m62746657937 | C62: 取引終了 | D62: [Blu-ray]攻殻機動隊 STAND ALONE COMPLEX Solid State Society | E62: 54 | F62: 2011/1/2購入 中古品のため商品は多少のキズ・使用感がございます。記載ない限り帯・特典などは付属致しません。プロダクト、ダウンロードコードは使用できません。写真以外の付属品はありません。 「攻殻機動隊 STAND ALONE COMPLEX Solid State Society」 田中敦子 / 阪脩 / 神山健治 定価: ￥ 6800 #田中敦子 #阪脩 #神山健治 #攻殻機動隊 #士郎正宗 #菅野よう子 #大塚明夫 #山寺宏一 #草薙素子 #バトー #トグサ 95年の劇場版から始まった、士郎正宗原作のSFアクション・アニメ・シリーズ。本作は、『2nd GIG』から約2年ぶりに登場となる長編だ。新生・公安9課に難事件が襲いかかるなか、バトーが素子に再会。新たな敵が浮き彫りになる。 | G62: 351 | H62: 4200 | I62: 最安値 | J62: https://www.amazon.co.jp/%E6%94%BB%E6%AE%BB%E6%A9%9F%E5%8B%95%E9%9A%8A-STAND-COMPLEX-Society-Blu-ray/dp/B0041FITIA/ref=sr_1_8?__mk_ja_JP=%E3%82%AB%E3%82%BF%E3%82%AB%E3%83%8A&keywords=%E6%94%BB%E6%AE%BB%E6%A9%9F%E5%8B%95%E9%9A%8A+stand+alone+complex+solid+state&qid=1638391117&sr=8-8 | K62: https://www.amazon.co.jp/dp/B0041FITIA/ref=olp-opf-redir?aod=1&ie=UTF8&condition=ALL | M62: 4250 | N62: 無料配送 6月 9-10日。 詳細を見る | O62: =MID(N62,FIND("配送料 ¥",N62)+5,FIND(" ",MID(N62,FIND("¥",N62),10))-2)*1 ->  | P62: 4250 | Q62: #田中敦子 #阪脩 #神山健治 #攻殻機動隊 #士郎正宗 #菅野よう子 #大塚明夫 #山寺宏一 #草薙素子 #バトー #トグサ | R62: #メルカリ [Blu-ray]攻殻機動隊 STAND ALONE COMPLEX Solid State Society フリマアプリ「メルカリ」で販売中 https://jp.mercari.com/item/m62746657937/ #田中敦子 #阪脩 #神山健治 #攻殻機動隊 #士郎正宗 #菅野よう子 #大塚明夫 #山寺宏一 #草薙素子 #バトー #トグサ | S62: 254 | T62: 2022-06-11 | U62: 4150 | V62: 2022-06-04 | W62: 4150 | X62: 415 | Y62: 175 | Z62: 3560 | AA62: 送料込み(出品者負担) | AB62: ネコハチ | AC62: 2022-06-09 | AF62: 個人 | AG62: 1
B63: m84067404133 | C63: 出品中 | D63: [DVD]インランド・エンパイア 通常版 | E63: 20 | F63: 2008/10/11購入 中古品のため商品は多少のキズ・使用感がございます。記載ない限り帯・特典などは付属致しません。写真以外の付属品はありません。 「インランド・エンパイア('06米/ポーランド/仏)」 ローラ・ダーン / ジェレミー・アイアンズ / デヴィッド・リンチ 定価: ￥ 1800 #ローラ・ダーン #ジェレミー・アイアンズ #デヴィッド・リンチ #CD・DVD いわくつきの映画に出演することになった女優のニッキーは、次第に映画と私生活の区別がつかなくなっていく。さらに奇妙な出来事が起こり始めて……。ローラ・ダーンら豪華なキャストが共演した陶酔のサスペンス。 | G63: 291 | H63: 1999 | J63: https://www.amazon.co.jp/%E3%82%A4%E3%83%B3%E3%83%A9%E3%83%B3%E3%83%89%E3%83%BB%E3%82%A8%E3%83%B3%E3%83%91%E3%82%A4%E3%82%A2-%E9%80%9A%E5%B8%B8%E7%89%88-DVD-%E3%83%AD%E3%83%BC%E3%83%A9%E3%83%BB%E3%83%80%E3%83%BC%E3%83%B3/dp/B00104Y8W6/ref=sr_1_1?__mk_ja_JP=%E3%82%AB%E3%82%BF%E3%82%AB%E3%83%8A&keywords=%5BDVD%5D%E3%82%A4%E3%83%B3%E3%83%A9%E3%83%B3%E3%83%89%E3%83%BB%E3%82%A8%E3%83%B3%E3%83%91%E3%82%A4%E3%82%A2&qid=1638446389&sr=8-1 | K63: https://www.amazon.co.jp/dp/B00104Y8W6/ref=olp-opf-redir?aod=1&ie=UTF8&condition=ALL | M63: 990 | N63: 配送料 ¥340 11月2日 木曜日にお届け 詳細を見る | O63: =MID(N63,FIND("配送料 ¥",N63)+5,FIND(" ",MID(N63,FIND("¥",N63),10))-2)*1 -> 340 | P63: 1330 | Q63: #ローラ・ダーン #ジェレミー・アイアンズ #デヴィッド・リンチ #CD・DVD | R63: ="#メルカリ"&CHAR(10)&D63&CHAR(10)&" フリマアプリ「メルカリ」で販売中 https://jp.mercari.com/item/"&B63&"?utm_source=android&utm_medium=share "&Q63 -> #メルカリ [DVD]インランド・エンパイア 通常版 フリマアプリ「メルカリ」で販売中 https://jp.mercari.com/item/m84067404133?utm_source=android&utm_medium=share #ローラ・ダーン #ジェレミー・アイアンズ #デヴィッド・リンチ #CD・DVD | S63: 227 | U63: 1999 | AF63: 個人 | AG63: 1
B64: m78491098307 | C64: 出品中 | D64: [Blu-ray]世界中がアイ・ラヴ・ユー-デジタル・レストア・バージョン | E64: 37 | F64: 2014/2/3購入 中古品のため商品は多少のキズ・使用感がございます。記載ない限り帯・特典などは付属致しません。写真以外の付属品はありません。 「世界中がアイ・ラヴ・ユー-デジタル・レストア・バージョン-('96米)」 ウディ・アレン / ジュリア・ロバーツ / ウディ・アレン 定価: ￥ 2500 #ウディ・アレン #ジュリア・ロバーツ #ウディ・アレン #CD・DVD ウディ・アレン監督初のミュージカル。ベニス、パリ、ニューヨークと世界を巡りながら綴る弁護士一家の恋愛模様。見どころはなんといっても豪華スターの歌声を堪能できるところでしょう。 | G64: 279 | H64: 2777 | I64: 最安値 | J64: https://www.amazon.co.jp/%E4%B8%96%E7%95%8C%E4%B8%AD%E3%81%8C%E3%82%A2%E3%82%A4%E3%83%BB%E3%83%A9%E3%83%B4%E3%83%BB%E3%83%A6%E3%83%BC-%E2%80%95%E3%83%87%E3%82%B8%E3%82%BF%E3%83%AB%E3%83%BB%E3%83%AC%E3%82%B9%E3%83%88%E3%82%A2%E3%83%BB%E3%83%90%E3%83%BC%E3%82%B8%E3%83%A7%E3%83%B3%E2%80%95-Blu-ray-%E3%82%B8%E3%83%A5%E3%83%AA%E3%82%A2%E3%83%BB%E3%83%AD%E3%83%90%E3%83%BC%E3%83%84/dp/B0076S5KTK/ref=sr_1_1?__mk_ja_JP=%E3%82%AB%E3%82%BF%E3%82%AB%E3%83%8A&keywords=%5BBlu-ray%5D%E4%B8%96%E7%95%8C%E4%B8%AD%E3%81%8C%E3%82%A2%E3%82%A4%E3%83%BB%E3%83%A9%E3%83%B4%E3%83%BB%E3%83%A6%E3%83%BC-%E3%83%87%E3%82%B8%E3%82%BF%E3%83%AB%E3%83%BB%E3%83%AC%E3%82%B9%E3%83%88%E3%82%A2&qid=1638446442&sr=8-1 | K64: https://www.amazon.co.jp/dp/B0076S5KTK/ref=olp-opf-redir?aod=1&ie=UTF8&condition=ALL | L64: 3770 | M64: 2516 | N64: 配送料 ¥330 11月10日-12日にお届け 詳細を見る | O64: 330 | P64: 2846 | Q64: #ウディ・アレン #ジュリア・ロバーツ #ウディ・アレン #CD・DVD | R64: #メルカリ [Blu-ray]世界中がアイ・ラヴ・ユー-デジタル・レストア・バージョン フリマアプリ「メルカリ」で販売中 https://jp.mercari.com/item/m78491098307?utm_source=android&utm_medium=share #ウディ・アレン #ジュリア・ロバーツ #ウディ・アレン #CD・DVD | S64: 249 | U64: 2777 | AF64: 個人 | AG64: 1
B65: m26586329025 | C65: 取引終了 | D65: [Blu-ray]バック・トゥ・ザ・フューチャー 25thアニバーサリー Blu-ray BOX | E65: 48 | F65: 中古品のため商品は多少のキズ・使用感がございます。記載ない限り帯・特典などは付属致しません。プロダクト、ダウンロードコードは使用できません。写真以外の付属品はありません。 「バック・トゥ・ザ・フューチャー 25thアニバーサリー Blu-ray BOX〈3枚組〉」 マイケル・J.フォックス / クリストファー・ロイド / ロバート・ゼメキス 定価: ￥ 8095 #マイケル・Jフォックス #マイケル・J_フォックス #クリストファー・ロイド #ロバート・ゼメキス #バック・トゥ・ザ・フューチャー ロバート・ゼメキス監督・脚本、スティーブン・スピルバーグ製作総指揮によるSFアドベンチャーシリーズの25周年記念BOX。『バック・トゥ・ザ・フューチャー』『~PART2』『~PART3』の全3作を収録した3枚組。 | G65: 360 | H65: 2193 | I65: 安すぎ | J65: https://www.amazon.co.jp/%E3%83%90%E3%83%83%E3%82%AF%E3%83%BB%E3%83%88%E3%82%A5%E3%83%BB%E3%82%B6%E3%83%BB%E3%83%95%E3%83%A5%E3%83%BC%E3%83%81%E3%83%A3%E3%83%BC-25th%E3%82%A2%E3%83%8B%E3%83%90%E3%83%BC%E3%82%B5%E3%83%AA%E3%83%BC-Blu-ray-BOX/dp/B003WJDWC4/ref=tmm_blu_swatch_0?_encoding=UTF8&qid=&sr= | K65: https://www.amazon.co.jp/dp/B003WJDWC4/ref=olp-opf-redir?aod=1&ie=UTF8&condition=ALL | L65: 5343 | M65: 2293 | N65: 配送料 ¥435 3月 7-9日 。 詳細を見る | O65: 435 | P65: 2728 | Q65: #マイケル・Jフォックス #マイケル・J_フォックス #クリストファー・ロイド #ロバート・ゼメキス #バック・トゥ・ザ・フューチャー | R65: #メルカリ [Blu-ray]バック・トゥ・ザ・フューチャー 25thアニバーサリー Blu-ray BOX フリマアプリ「メルカリ」で販売中 https://jp.mercari.com/item/m26586329025/ #マイケル・Jフォックス #マイケル・J_フォックス #クリストファー・ロイド #ロバート・ゼメキス #バック・トゥ・ザ・フューチャー | S65: 282 | T65: 2022-03-12 | U65: 2193 | V65: 2022-03-05 | W65: 2193 | X65: 219 | Y65: 175 | Z65: 1799 | AA65: 送料込み(出品者負担) | AC65: 2022-03-11 | AF65: 個人 | AG65: 1
B66: m23679487098 | C66: 出品中 | D66: [Blu-ray]ホビット 思いがけない冒険 3D&2D (4枚組)(初回限定生産) | E66: 42 | F66: 中古品のため商品は多少のキズ・使用感がございます。記載ない限り帯・特典などは付属致しません。写真以外の付属品はありません。 「ホビット 思いがけない冒険 3D&2Dブルーレイセット('12米/ニュージーランド)〈4枚組〉」 イアン・マッケラン / マーティン・フリーマン / ピーター・ジャクソン 定価: ￥ 5695 #イアン・マッケラン #マーティン・フリーマン #ピーター・ジャクソン #ホビット #ロード・オブ・ザ・リング #指輪物語 #トールキン #J・R・R・トールキン ピーター・ジャクソン監督が『ロード・オブ・ザ・リング』で描かれた“中つ国”の60年前を舞台に贈る冒険ファンタジー大作。ドラゴンに奪われた王国を取り戻すべく、ホビット族のビルボ・バギンズと魔法使いのガンダルフ、13人のドワーフたちが旅に出る。 | G66: 365 | H66: 1999 | I66: 新品より高い | J66: https://www.amazon.co.jp/%E3%83%9B%E3%83%93%E3%83%83%E3%83%88-%E6%80%9D%E3%81%84%E3%81%8C%E3%81%91%E3%81%AA%E3%81%84%E5%86%92%E9%99%BA-4%E6%9E%9A%E7%B5%84-%E5%88%9D%E5%9B%9E%E9%99%90%E5%AE%9A%E7%94%9F%E7%94%A3-Blu-ray/dp/B00BFNXO7M/ref=tmm_trd_swatch_0?_encoding=UTF8&qid=&sr= | K66: https://www.amazon.co.jp/dp/B00BFNXO7M/ref=olp-opf-redir?aod=1&ie=UTF8&condition=ALL | L66: 1980 | M66: 251 | N66: 配送料 ¥350 11月2日-4日にお届け 詳細を見る | O66: =MID(N66,FIND("配送料 ¥",N66)+5,FIND(" ",MID(N66,FIND("¥",N66),10))-2)*1 -> 350 | P66: 601 | Q66: #イアン・マッケラン #マーティン・フリーマン #ピーター・ジャクソン #ホビット #ロード・オブ・ザ・リング #指輪物語 #トールキン #J・R・R・トールキン | R66: ="#メルカリ"&CHAR(10)&D66&CHAR(10)&" フリマアプリ「メルカリ」で販売中 https://jp.mercari.com/item/"&B66&"?utm_source=android&utm_medium=share "&Q66 -> #メルカリ [Blu-ray]ホビット 思いがけない冒険 3D&2D (4枚組)(初回限定生産) フリマアプリ「メルカリ」で販売中 https://jp.mercari.com/item/m23679487098?utm_source=android&utm_medium=share #イアン・マッケラン #マーティン・フリーマン #ピーター・ジャクソン #ホビット #ロード・オブ・ザ・リング #指輪物語 #トールキン #J・R・R・トールキン | S66: 331 | U66: 1999 | AF66: 個人 | AG66: 1
B67: m72119817484 | C67: 取引終了 | D67: [DVD]トウキョウソナタ | E67: 13 | F67: 2010/4/18購入 中古品のため商品は多少のキズ・使用感がございます。記載ない限り帯・特典などは付属致しません。プロダクト、ダウンロードコードは使用できません。写真以外の付属品はありません。 外箱に黄ばみ・変色あり 「トウキョウソナタ('08ENTERTAINMENT FARM/FORTISSIMO FILMS/博報堂DYメディアパートナーズ/ピックス)〈2枚組〉」 香川照之 / 小泉今日子 / 黒沢清 定価: ￥ 4700 #香川照之 #小泉今日子 #黒沢清 #トウキョウソナタ 香川照之、小泉今日子、役所広司ら豪華キャストがそろった家族映画。トウキョウの線路沿いに建つ小さな家を舞台に、それぞれに秘密を抱えている家族4人の、崩壊した関係が再生するまでを細やかに描く。 | G67: 342 | H67: 2080 | I67: 最安値 | J67: https://www.amazon.co.jp/%E3%83%88%E3%82%A6%E3%82%AD%E3%83%A7%E3%82%A6%E3%82%BD%E3%83%8A%E3%82%BF-DVD-%E9%A6%99%E5%B7%9D%E7%85%A7%E4%B9%8B/dp/B001RABG8C/ref=sr_1_1?__mk_ja_JP=%E3%82%AB%E3%82%BF%E3%82%AB%E3%83%8A&keywords=%5BDVD%5D%E3%83%88%E3%82%A6%E3%82%AD%E3%83%A7%E3%82%A6%E3%82%BD%E3%83%8A%E3%82%BF&qid=1638479709&sr=8-1 | K67: https://www.amazon.co.jp/dp/B001RABG8C/ref=olp-opf-redir?aod=1&ie=UTF8&condition=ALL | L67: 4442 | M67: 1773 | N67: お届け日 (配送料: ￥400 ): 1月4日 - 6日 詳細を見る | O67: 400 | P67: 2173 | Q67: #香川照之 #小泉今日子 #黒沢清 #トウキョウソナタ | R67: #メルカリ [DVD]トウキョウソナタ フリマアプリ「メルカリ」で販売中 https://jp.mercari.com/item/m72119817484/ #香川照之 #小泉今日子 #黒沢清 #トウキョウソナタ | S67: 158 | T67: 2022-01-09 | U67: 2080 | V67: 2022-01-02 | W67: 2080 | X67: 208 | Y67: 175 | Z67: 1697 | AA67: 送料込み(出品者負担) | AC67: 2022-01-10 | AF67: 個人 | AG67: 1
B68: m41848561793 | C68: 取引終了 | D68: [Blu-ray]機動戦士ガンダム 逆襲のシャア | E68: 24 | F68: 2008/11/3購入 中古品のため商品は多少のキズ・使用感がございます。記載ない限り帯・特典などは付属致しません。プロダクト、ダウンロードコードは使用できません。写真以外の付属品はありません。 「機動戦士ガンダム 逆襲のシャア('88サンライズ)」 古谷徹 / 池田秀一 / 富野由悠季 定価: ￥ 7800 #古谷徹 #池田秀一 #富野由悠季 #ガンダム #アムロ・レイ #シャア #機動戦士ガンダム #逆襲のシャア ガンダムシリーズ初となった完全新作劇場用映画にしてアムロ・レイとシャア・アズナブルの最期の戦いを描いた傑作。富野由悠季監督の下、『エルガイム』以降のスタッフが結集して制作された。 | G68: 304 | H68: 2614 | I68: 最安値 | J68: https://www.amazon.co.jp/%E6%A9%9F%E5%8B%95%E6%88%A6%E5%A3%AB%E3%82%AC%E3%83%B3%E3%83%80%E3%83%A0-%E9%80%86%E8%A5%B2%E3%81%AE%E3%82%B7%E3%83%A3%E3%82%A2-Blu-ray-%E5%8F%A4%E8%B0%B7%E5%BE%B9-%E6%B1%A0%E7%94%B0%E7%A7%80%E4%B8%80-%E9%88%B4%E7%BD%AE%E6%B4%8B%E5%AD%9D-%E6%A6%8A%E5%8E%9F%E8%89%AF%E5%AD%90-%E7%99%BD%E7%9F%B3%E5%86%AC%E7%BE%8E-%E5%B7%9D%E6%9D%91%E4%B8%87%E6%A2%A8%E9%98%BF-%E5%BC%A5%E7%94%9F%E3%81%BF%E3%81%A4%E3%81%8D-%E4%BD%90%E3%80%85%E6%9C%A8%E6%9C%9B-%E5%B1%B1%E5%AF%BA%E5%AE%8F%E4%B8%80/dp/B000XSKZWW/ref=sr_1_4?__mk_ja_JP=%E3%82%AB%E3%82%BF%E3%82%AB%E3%83%8A&keywords=%5BBlu-ray%5D%E6%A9%9F%E5%8B%95%E6%88%A6%E5%A3%AB%E3%82%AC%E3%83%B3%E3%83%80%E3%83%A0+%E9%80%86%E8%A5%B2%E3%81%AE%E3%82%B7%E3%83%A3%E3%82%A2&qid=1638479747&sr=8-4 | K68: https://www.amazon.co.jp/dp/B000XSKZWW/ref=olp-opf-redir?aod=1&ie=UTF8&condition=ALL | M68: 2357 | N68: お届け日 (配送料: ￥357 ): 2月26日 - 3月2日 詳細を見る | O68: 357 | P68: 2714 | Q68: #古谷徹 #池田秀一 #富野由悠季 #ガンダム #アムロ・レイ #シャア #機動戦士ガンダム #逆襲のシャア | R68: #メルカリ [Blu-ray]機動戦士ガンダム 逆襲のシャア フリマアプリ「メルカリ」で販売中 https://jp.mercari.com/item/m41848561793/ #古谷徹 #池田秀一 #富野由悠季 #ガンダム #アムロ・レイ #シャア #機動戦士ガンダム #逆襲のシャア | S68: 222 | T68: 2022-03-02 | U68: 2614 | V68: 2022-02-23 | W68: 2614 | X68: 261 | Y68: 175 | Z68: 2178 | AA68: 送料込み(出品者負担) | AC68: 2022-02-25 | AF68: 個人 | AG68: 1
B69: m83278093926 | C69: 取引終了 | D69: [DVD]機動戦士ガンダム 劇場版メモリアルボックス | E69: 26 | F69: 2008/1/5購入 中古品のため商品は多少のキズ・使用感がございます。記載ない限り帯・特典などは付属致しません。プロダクト、ダウンロードコードは使用できません。写真以外の付属品はありません。 「機動戦士ガンダム 劇場版メモリアルボックス〈2008年6月30日までの期間限定生産・3枚組〉」 古谷徹 / 鈴置洋孝 / 星山博之 定価: ￥ 18000 #古谷徹 #鈴置洋孝 #富野喜幸 #富野由悠季 #ガンダム #アムロ・レイ #シャア #機動戦士ガンダム #安彦良和 #大河原邦男 宇宙世紀0079年。ジオン公国と連邦軍の戦いに巻き込まれた少年アムロがMSパイロットとなり、ニュータイプとして覚醒する。日本のアニメ界に燦然と輝く『機動戦士ガンダム』の劇場3部作を、公開時の音声でDVD化したBOXセット。 | G69: 358 | H69: 4872 | I69: 最安値 | J69: https://www.amazon.co.jp/%E6%A9%9F%E5%8B%95%E6%88%A6%E5%A3%AB%E3%82%AC%E3%83%B3%E3%83%80%E3%83%A0-%E5%8A%87%E5%A0%B4%E7%89%88%E3%83%A1%E3%83%A2%E3%83%AA%E3%82%A2%E3%83%AB%E3%83%9C%E3%83%83%E3%82%AF%E3%82%B9-DVD-%E5%8F%A4%E8%B0%B7%E5%BE%B9/dp/B000UABW5C/ref=tmm_dvd_title_0?_encoding=UTF8&qid=&sr= | K69: https://www.amazon.co.jp/dp/B000UABW5C/ref=olp-opf-redir?aod=1&ie=UTF8&condition=ALL | L69: 14480 | M69: 4972 | N69: 無料配送: 12月18日 - 19日 詳細を見る | P69: 4972 | Q69: #古谷徹 #鈴置洋孝 #富野喜幸 #富野由悠季 #ガンダム #アムロ・レイ #シャア #機動戦士ガンダム #安彦良和 #大河原邦男 | R69: #メルカリ [DVD]機動戦士ガンダム 劇場版メモリアルボックス フリマアプリ「メルカリ」で販売中 https://jp.mercari.com/item/m83278093926/ #古谷徹 #鈴置洋孝 #富野喜幸 #富野由悠季 #ガンダム #アムロ・レイ #シャア #機動戦士ガンダム #安彦良和 #大河原邦男 | S69: 249 | T69: 2021-12-24 | U69: 4872 | V69: 2021-12-17 | W69: 4872 | X69: 487 | Y69: 730 | Z69: 3655 | AA69: 送料込み(出品者負担) | AC69: =V69 -> 2021-12-17 | AF69: 個人 | AG69: 1
B70: m64715639159 | C70: 取引終了 | D70: [DVD]サザンオールスターズ/「SUMMER LIVE 2003」 流石だスペシャルボックス (通常版) | E70: =LEN(D70) -> 54 | F70: 2004/7/4購入 中古品のため商品は多少のキズ・使用感がございます。記載ない限り帯・特典などは付属致しません。プロダクト、ダウンロードコードは使用できません。写真以外の付属品はありません。 「サザンオールスターズ/SUMMER LIVE 2003「流石だスペシャルボックス」胸いっぱいの\"LIVE in 沖縄\"&愛と情熱の\"真夏ツアー完全版\"〈4枚組〉」 サザンオールスターズ 定価: ￥ 10000 #桑田佳祐 #CD・DVD #サザン #サザンオールスターズ #SAS #原由子 #松田弘 #関口和之 #野沢秀行 #大森隆志 #斎藤誠 #片山敦夫 サザンオールスターズSUMMER LIVE 2003 流石(SASが)だ真夏ツアー！あっっ！生。だが、SAS！～カーニバル出るバニーか?!」が、永久保存版としてDVD化。 【収録内容】 《Disc: 1＆2》 ○ "LIVE in 沖縄" 全35曲収録。 ○沖縄公演のみで演奏された「花 - すべての人の心に花を - 」を含む、感動のツアー最終日を全曲ノーカット収録。 ○5.1ch サラウンド 《Disc: 3＆4》 ○愛と情熱の "真夏ツアー完全版" 全35曲収録。 ○ライブハウスツアーのみで演奏された「TSUNAMI」を含む、この夏のツアーで演奏された楽曲を全曲収録。さらに貴重なオフショット映像も満載。 | G70: =LEN(F70) -> 593 | H70: 3977 | I70: 最安値 | J70: https://www.amazon.co.jp/%E3%80%8CSUMMER-LIVE-2003%E3%80%8D-%E6%B5%81%E7%9F%B3%E3%81%A0%E3%82%B9%E3%83%9A%E3%82%B7%E3%83%A3%E3%83%AB%E3%83%9C%E3%83%83%E3%82%AF%E3%82%B9-%E9%80%9A%E5%B8%B8%E7%89%88/dp/B0000UI2XM/ref=sr_1_2?__mk_ja_JP=%E3%82%AB%E3%82%BF%E3%82%AB%E3%83%8A&keywords=%E3%82%B5%E3%82%B6%E3%83%B3%E3%82%AA%E3%83%BC%E3%83%AB%E3%82%B9%E3%82%BF%E3%83%BC%E3%82%BA+SUMMER+LIVE+2003&qid=1638609462&sr=8-2 | K70: ="https://www.amazon.co.jp/dp/"&MID(J70,FIND("/dp/",J70)+4,10)&"/ref=olp-opf-redir?aod=1&ie=UTF8&condition=ALL" -> https://www.amazon.co.jp/dp/B0000UI2XM/ref=olp-opf-redir?aod=1&ie=UTF8&condition=ALL | L70: 9130 | M70: 3714 | N70: お届け日 (配送料: ￥350 ): 2月5日 - 6日 詳細を見る | O70: =MID(N70,FIND("配送料: ￥",N70)+6,FIND(" ",MID(N70,FIND("￥",N70),10))-2)*1 -> 350 | P70: 4064 | Q70: #桑田佳祐 #CD・DVD #サザン #サザンオールスターズ #SAS #原由子 #松田弘 #関口和之 #野沢秀行 #大森隆志 #斎藤誠 #片山敦夫 | R70: #メルカリ [DVD]サザンオールスターズ/「SUMMER LIVE 2003」 流石だスペシャルボックス (通常版) フリマアプリ「メルカリ」で販売中 https://jp.mercari.com/item/m64715639159/ #桑田佳祐 #CD・DVD #サザン #サザンオールスターズ #SAS #原由子 #松田弘 #関口和之 #野沢秀行 #大森隆志 #斎藤誠 #片山敦夫 | S70: =LENB(R70) -> 288 | T70: 2022-02-10 | U70: 3977 | V70: 2022-02-03 | W70: 3977 | X70: 397 | Y70: 410 | Z70: 3170 | AA70: 送料込み(出品者負担) | AC70: 2022-02-06 | AF70: 個人 | AG70: 1
B71: m93743063615 | C71: 取引終了 | D71: [CD]「クロノ・クロス」オリジナル・サウンドトラック | E71: 27 | F71: 2020/4/26中古品を購入 中古品のため商品は多少のキズ・使用感がございます。記載ない限り帯・特典などは付属致しません。プロダクト、ダウンロードコードは使用できません。写真以外の付属品はありません。 「「クロノ・クロス」オリジナル・サウンドトラック」 光田康典 定価: ￥ 3204 #光田康典 #CD・DVD #クロノ・クロス #クロノ・トリガー #加藤正人 『ドラゴンクエスト』や『ファイナル・ファンタジー』を手がけた黄金のスタッフが結集した名作RPG『クロノ・クロス』。名作ゲームのオリジナル・サウンドが楽しめるサウンドトラック。 | G71: 273 | H71: 1799 | I71: 安すぎ | J71: https://www.amazon.co.jp/%E3%82%AF%E3%83%AD%E3%83%8E%E3%83%BB%E3%82%AF%E3%83%AD%E3%82%B9-%E3%82%AA%E3%83%AA%E3%82%B8%E3%83%8A%E3%83%AB%E3%83%BB%E3%82%B5%E3%82%A6%E3%83%B3%E3%83%89%E3%83%88%E3%83%A9%E3%83%83%E3%82%AF-%E3%82%B2%E3%83%BC%E3%83%A0%E3%83%BB%E3%83%9F%E3%83%A5%E3%83%BC%E3%82%B8%E3%83%83%E3%82%AF/dp/B0009J8HB6/ref=sr_1_1?__mk_ja_JP=%E3%82%AB%E3%82%BF%E3%82%AB%E3%83%8A&keywords=%E3%80%8C%E3%82%AF%E3%83%AD%E3%83%8E%E3%83%BB%E3%82%AF%E3%83%AD%E3%82%B9%E3%80%8D%E3%82%AA%E3%83%AA%E3%82%B8%E3%83%8A%E3%83%AB%E3%83%BB%E3%82%B5%E3%82%A6%E3%83%B3%E3%83%89%E3%83%88%E3%83%A9%E3%83%83%E3%82%AF&qid=1638620588&sr=8-1 | K71: https://www.amazon.co.jp/dp/B0009J8HB6/ref=olp-opf-redir?aod=1&ie=UTF8&condition=ALL | L71: 3126 | M71: 1870 | N71: 配送料 ¥257 4月 6-8日。 詳細を見る | O71: =MID(N71,FIND("配送料 ¥",N71)+5,FIND(" ",MID(N71,FIND("¥",N71),10))-2)*1 -> 257 | P71: 2127 | Q71: #光田康典 #CD・DVD #クロノ・クロス #クロノ・トリガー #加藤正人 | R71: #メルカリ [CD]「クロノ・クロス」オリジナル・サウンドトラック フリマアプリ「メルカリ」で販売中 https://jp.mercari.com/item/m93743063615/ #光田康典 #CD・DVD #クロノ・クロス #クロノ・トリガー #加藤正人 | S71: 202 | T71: 2022-04-11 | U71: 1800 | V71: 2022-04-04 | W71: 1800 | X71: 180 | Y71: 175 | Z71: 1445 | AA71: 送料込み(出品者負担) | AC71: 2022-04-10 | AF71: 個人 | AG71: 1
B72: m72094666779 | C72: 取引終了 | D72: [DVD]叫(さけび) プレミアム・エディション | E72: 24 | F72: 2007/8/3購入 中古品のため商品は多少のキズ・使用感がございます。記載ない限り帯・特典などは付属致しません。写真以外の付属品はありません。 「叫(さけび) プレミアム・エディション('06TBS/Entertainment FARM/エイベックス・エンタテインメント/オズ/日活)〈2枚組〉」 役所広司 / 小西真奈美 / 黒沢清 定価: ￥ 4700 #役所広司 #小西真奈美 #黒沢清 #CD・DVD 埋め立て地で女の死体が発見された。刑事の吉岡は現場に自分の痕跡を発見し、困惑する。さらに女の叫び声が聞こえるようになった彼は混乱をきわめて……。黒沢清監督が役所広司との黄金コンビで放つミステリー・ホラー。 | G72: 311 | H72: 3096 | I72: 最安値 | J72: https://www.amazon.co.jp/%E5%8F%AB-%E3%83%97%E3%83%AC%E3%83%9F%E3%82%A2%E3%83%A0%E3%83%BB%E3%82%A8%E3%83%87%E3%82%A3%E3%82%B7%E3%83%A7%E3%83%B3-DVD-%E5%BD%B9%E6%89%80%E5%BA%83%E5%8F%B8/dp/B000QUU4KK/ref=sr_1_2?__mk_ja_JP=%E3%82%AB%E3%82%BF%E3%82%AB%E3%83%8A&keywords=%5BDVD%5D%E5%8F%AB%28%E3%81%95%E3%81%91%E3%81%B3%29+%E3%83%97%E3%83%AC%E3%83%9F%E3%82%A2%E3%83%A0%E3%83%BB%E3%82%A8%E3%83%87%E3%82%A3%E3%82%B7%E3%83%A7%E3%83%B3&qid=1638623788&sr=8-2 | K72: https://www.amazon.co.jp/dp/B000QUU4KK/ref=olp-opf-redir?aod=1&ie=UTF8&condition=ALL | M72: 2793 | N72: 配送料 ¥340 6月 30日-7月 1日。 詳細を見る | O72: =MID(N72,FIND("配送料 ¥",N72)+5,FIND(" ",MID(N72,FIND("¥",N72),10))-2)*1 -> 340 | P72: 3133 | Q72: #役所広司 #小西真奈美 #黒沢清 #CD・DVD | R72: #メルカリ [DVD]叫(さけび) プレミアム・エディション フリマアプリ「メルカリ」で販売中 https://jp.mercari.com/item/m72094666779/ #役所広司 #小西真奈美 #黒沢清 #CD・DVD | S72: 168 | T72: 2022-07-08 | U72: 3096 | V72: 2022-07-01 | W72: 3096 | X72: 309 | Y72: 210 | Z72: 2577 | AA72: 送料込み(出品者負担) | AB72: NukaCola〔即購入可・取置不可〕 | AC72: 2022-07-06 | AF72: 個人 | AG72: 1
B73: m31629720697 | C73: 取引終了 | D73: [Blu-ray]スター・ウォーズ コンプリート・サーガ ブルーレイBOX （初回生産限定） | E73: 46 | F73: 2011/9/16購入 中古品のため商品は多少のキズ・使用感がございます。記載ない限り帯・特典などは付属致しません。プロダクト、ダウンロードコードは使用できません。写真以外の付属品はありません。 #スター・ウォーズ #ジョージ・ルーカス #マーク・ハミル # ユアン・マクレガー #ナタリー・ポートマン #ダース・ベイダー ルーカスフィルムの秘蔵アーカイブから蔵出しされた未公開シーンを含む、40時間以上＊に及ぶかつてない特典映像を収録！ ＊音声解説を含む ＜収録作品＞ 【9枚組】「スター・ウォーズ エピソードI-VI」（各Disc1枚）＋特典Disc3枚 ・「スター・ウォーズ エピソードI／ファントム・メナス」 ・「スター・ウォーズ エピソードＩＩ／クローンの攻撃」 ・「スター・ウォーズ エピソードＩＩＩ／シスの復讐」 ・「スター・ウォーズ 新たなる希望（エピソードIV）」 ・「スター・ウォーズ 帝国の逆襲（エピソードV）」 ・「スター・ウォーズ ジェダイの帰還（エピソードVI）」 ・「スター・ウォーズ コンプリート・サーガ ブルーレイBOX アーカイブ集1」 ・「スター・ウォーズ コンプリート・サーガ ブルーレイBOX アーカイブ集2」 ・「スター・ウォーズ コンプリート・サーガ ブルーレイBOX ドキュメンタリー集」 ＜ポイント＞ ●シリーズ全6作のコンプリート・サーガがブルーレイBOXセットで初登場！ ●迫力の高画質・高音質＝ブルーレイでシリーズ全作が甦る！ ●未公開シーンや別テイクシーン、ファン垂涎の『スター・ウォーズ』アーカイブなどを多数収録のボーナス・ディスク3枚付！ | G73: 706 | H73: 5800 | J73: https://www.amazon.co.jp/%E3%82%B9%E3%82%BF%E3%83%BC%E3%83%BB%E3%82%A6%E3%82%A9%E3%83%BC%E3%82%BA-%E3%82%B3%E3%83%B3%E3%83%97%E3%83%AA%E3%83%BC%E3%83%88%E3%83%BB%E3%82%B5%E3%83%BC%E3%82%AC-%E3%83%96%E3%83%AB%E3%83%BC%E3%83%AC%E3%82%A4BOX-%EF%BC%88%E5%88%9D%E5%9B%9E%E7%94%9F%E7%94%A3%E9%99%90%E5%AE%9A%EF%BC%89-Blu-ray-%E3%83%AA%E3%83%BC%E3%82%A2%E3%83%A0%E3%83%BB%E3%83%8B%E3%83%BC%E3%82%BD%E3%83%B3/dp/B004HB2KF6/ref=tmm_blu_title_0?_encoding=UTF8&qid=&sr= | K73: https://www.amazon.co.jp/dp/B004HB2KF6/ref=olp-opf-redir?aod=1&ie=UTF8&condition=ALL | L73: 19697 | M73: 4697 | N73: お届け日 (配送料: ￥400 ): 2月10日 - 13日 詳細を見る | O73: 400 | P73: 5097 | Q73: #スター・ウォーズ #ジョージ・ルーカス #マーク・ハミル # ユアン・マクレガー #ナタリー・ポートマン #ダース・ベイダー | R73: #メルカリ [Blu-ray]スター・ウォーズ コンプリート・サーガ ブルーレイBOX （初回生産限定） フリマアプリ「メルカリ」で販売中 https://jp.mercari.com/item/m31629720697/ #スター・ウォーズ #ジョージ・ルーカス #マーク・ハミル # ユアン・マクレガー #ナタリー・ポートマン #ダース・ベイダー | S73: 285 | T73: 2022-02-13 | U73: 5800 | V73: 2022-02-06 | W73: 5800 | X73: 580 | Y73: 730 | Z73: 4490 | AA73: 送料込み(出品者負担) | AC73: 2022-02-13 | AF73: 個人 | AG73: 1
B74: m78084759251 | C74: 取引終了 | D74: [Blu-ray&DVD]おおかみこどもの雨と雪 Blu-ray+DVD ファミリーパッケージ版(本編BD1枚+本編DVD1枚) | E74: 64 | F74: 2013/3/2 中古品のため商品は多少のキズ・使用感がございます。記載ない限り帯・特典などは付属致しません。プロダクト、ダウンロードコードは使用できません。写真以外の付属品はありません。 [Blu-ray&DVD]おおかみこどもの雨と雪 Blu-ray+DVD ファミリーパッケージ版(本編BD1枚+本編DVD1枚) #細田守 #宮﨑あおい #大沢たかお #菅原文太 #黒木華 #おおかみこどもの雨と雪 #貞本義行 ▽ストーリー▽ ある日、大学生の花は、人間の姿で暮らす“おおかみおとこ"に恋をした。 ほどなく、ふたりは愛しあい、ふたつの新しい命を授かった。雪の日に生まれた姉は≪雪≫、雨の日に生まれた弟は≪雨≫と名づけられた。 そんな小さなふたりには、大きな秘密があった。 人間とおおかみのふたつの顔を持つ《おおかみこども》として生を受けたのだ。 雪と雨が《おおかみこども》であることを隠しながら、家族4人は都会の片隅でひっそりと暮らしていた。 つつましくも幸せな毎日。永遠に続くと思われた日々は、しかし突然に奪われる。 父である“おおかみおとこ"の死によって。 取り残された、花と雪と雨の3人。幼いふたりの子供と幸せに生きるため、母は決断する。 都会の人の目を離れて、厳しくも豊かな自然に囲まれた田舎町に移り住むことを―― | G74: 567 | H74: 1800 | J74: https://www.amazon.co.jp/%E3%81%8A%E3%81%8A%E3%81%8B%E3%81%BF%E3%81%93%E3%81%A9%E3%82%82%E3%81%AE%E9%9B%A8%E3%81%A8%E9%9B%AA-Blu-ray-%E3%83%95%E3%82%A1%E3%83%9F%E3%83%AA%E3%83%BC%E3%83%91%E3%83%83%E3%82%B1%E3%83%BC%E3%82%B8%E7%89%88-%E6%9C%AC%E7%B7%A8BD1%E6%9E%9A-%E6%9C%AC%E7%B7%A8DVD1%E6%9E%9A/dp/B00AJEL71S/ref=sr_1_3?__mk_ja_JP=%E3%82%AB%E3%82%BF%E3%82%AB%E3%83%8A&crid=3079OM4709M0&keywords=%E3%81%8A%E3%81%8A%E3%81%8B%E3%81%BF%E3%81%93%E3%81%A9%E3%82%82%E3%81%AE%E9%9B%A8%E3%81%A8%E9%9B%AA+dvd&qid=1638692014&sprefix=%E3%81%8A%E3%81%8A%E3%81%8B%E3%81%BF%E3%81%93%E3%81%A9%E3%82%82%E3%81%AE%E3%80%80%2Caps%2C311&sr=8-3 | K74: https://www.amazon.co.jp/dp/B00AJEL71S/ref=olp-opf-redir?aod=1&ie=UTF8&condition=ALL | L74: 4704 | M74: 1180 | N74: お届け日 (配送料: ￥410 ): 3月8日 - 10日 詳細を見る | O74: 410 | P74: 1590 | Q74: #細田守 #宮﨑あおい #大沢たかお #菅原文太 #黒木華 #おおかみこどもの雨と雪 #貞本義行 | R74: #メルカリ [Blu-ray&DVD]おおかみこどもの雨と雪 Blu-ray+DVD ファミリーパッケージ版(本編BD1枚+本編DVD1枚) フリマアプリ「メルカリ」で販売中 https://jp.mercari.com/item/m78084759251/ #細田守 #宮﨑あおい #大沢たかお #菅原文太 #黒木華 #おおかみこどもの雨と雪 #貞本義行 | S74: 265 | T74: 2022-03-10 | U74: 1800 | V74: 2022-03-03 | W74: 1800 | X74: 180 | Y74: 175 | Z74: 1445 | AA74: 送料込み(出品者負担) | AC74: 2022-03-12 | AF74: 個人 | AG74: 1
B75: m27107370776 | C75: 取引終了 | D75: [DVD]キリンジ/KIRINJI TOUR 2003/LIVE at BUDOKAN | E75: 43 | F75: 中古品のため商品は多少のキズ・使用感がございます。記載ない限り帯・特典などは付属致しません。プロダクト、ダウンロードコードは使用できません。写真以外の付属品はありません。 「キリンジ/KIRINJI TOUR 2003/LIVE at BUDOKAN」 KIRINJI 定価: ￥ 5524 #キリンジ #KIRINJI #冨田恵一 #堀込高樹 #堀込泰行 レコーディング・アーティストとしての評価を絶対的なものにしているキリンジの、ライヴ・パフォーマーとしての側面にスポットを当てた初のライヴ映像作品。日本武道館ライヴを収録。 風を撃て グッデイ・グッバイ カメレオンガール 雨を見くびるな 愛の Coda 繁華街 嫉妬 地を這う者に翼はいらぬ ハピネス エイリアンズ 来たるべき旅立ちを前に ニュータウン 僕の心のありったけ スウィートソウル アルカディア ブルーゾンビ 奴のシャツ ムラサキ☆サンセット the echo 耳をうずめて カウガール | G75: 430 | H75: 2505 | I75: 最安値 | J75: https://www.amazon.co.jp/KIRINJI-TOUR-2003-%E6%97%A5%E6%9C%AC%E6%AD%A6%E9%81%93%E9%A4%A8-DVD/dp/B00016ZQHK/ref=tmm_dvd_title_0?_encoding=UTF8&qid=&sr= | K75: https://www.amazon.co.jp/dp/B00016ZQHK/ref=olp-opf-redir?aod=1&ie=UTF8&condition=ALL | M75: 2255 | N75: お届け日 (配送料: ￥350 ): 12月14日 - 16日 詳細を見る | O75: 350 | P75: 2605 | Q75: #キリンジ #KIRINJI #冨田恵一 #堀込高樹 #堀込泰行 | R75: #メルカリ [DVD]キリンジ/KIRINJI TOUR 2003/LIVE at BUDOKAN フリマアプリ「メルカリ」で販売中 https://jp.mercari.com/item/m27107370776/ #キリンジ #KIRINJI #冨田恵一 #堀込高樹 #堀込泰行 | S75: 185 | T75: 2021-12-19 | U75: 2505 | V75: 2021-12-12 | W75: 2505 | X75: 250 | Y75: 175 | Z75: 2080 | AA75: 送料込み(出品者負担) | AC75: =V75 -> 2021-12-12 | AF75: 個人 | AG75: 1
B76: m69963508305 | C76: 出品中 | D76: [Blu-ray]トップをねらえ2! Blu-ray Box Complete Edition(初回限定生産) | E76: 55 | F76: 2012/7/20 中古品のため商品は多少のキズ・使用感がございます。記載ない限り帯・特典などは付属致しません。写真以外の付属品はありません。 外箱欠損 「トップをねらえ2! Blu-ray Box〈2枚組〉」 福井裕佳梨 / 坂本真綾 / 鶴巻和哉 定価: ￥ 12800 #福井裕佳梨 #坂本真綾 #鶴巻和哉 #トップをねらえ2! #トップをねらえ! #沢城みゆき #庵野秀明 #貞本義行 #ガイナックス ガイナックスによるSF青春ロボット・アニメの第2期。太陽系に侵攻を続ける宇宙怪獣軍団。人類防衛の要である人型兵器バスターマシーンのパイロット“トップレス”に憧れる少女・ノノは……。 | G76: 298 | H76: 8555 | I76: 安すぎ | J76: https://www.amazon.co.jp/%E3%83%88%E3%83%83%E3%83%97%E3%82%92%E3%81%AD%E3%82%89%E3%81%882-Blu-ray-Box-Complete-%E5%88%9D%E5%9B%9E%E9%99%90%E5%AE%9A%E7%94%9F%E7%94%A3/dp/B006OXRFPA/ref=tmm_blu_title_0?_encoding=UTF8&qid=&sr= | K76: https://www.amazon.co.jp/dp/B006OXRFPA/ref=olp-opf-redir?aod=1&ie=UTF8&condition=ALL | M76: 9230 | N76: 無料配送 10月31日 火曜日にお届け 詳細を見る | O76: =MID(N76,FIND("配送料 ¥",N76)+5,FIND(" ",MID(N76,FIND("¥",N76),10))-2)*1 ->  | P76: 9230 | Q76: #福井裕佳梨 #坂本真綾 #鶴巻和哉 #トップをねらえ2! #トップをねらえ! #沢城みゆき #庵野秀明 #貞本義行 #ガイナックス | R76: ="#メルカリ"&CHAR(10)&D76&CHAR(10)&" フリマアプリ「メルカリ」で販売中 https://jp.mercari.com/item/"&B76&"?utm_source=android&utm_medium=share "&Q76 -> #メルカリ [Blu-ray]トップをねらえ2! Blu-ray Box Complete Edition(初回限定生産) フリマアプリ「メルカリ」で販売中 https://jp.mercari.com/item/m69963508305?utm_source=android&utm_medium=share #福井裕佳梨 #坂本真綾 #鶴巻和哉 #トップをねらえ2! #トップをねらえ! #沢城みゆき #庵野秀明 #貞本義行 #ガイナックス | S76: 305 | U76: 8555 | AF76: 個人 | AG76: 1
B77: m61925248189 | C77: 出品中 | D77: [Blu-ray]トップをねらえ！ Blu-ray Box Complete Edition (初回限定生産) | E77: 55 | F77: 2012/3/8購入 中古品のため商品は多少のキズ・使用感がございます。記載ない限り帯・特典などは付属致しません。写真以外の付属品はありません。 外箱欠損 「トップをねらえ! Blu-ray Box Complete Edition〈初回限定生産・3枚組〉」 佐久間レイ / 若本規夫 / 庵野秀明 定価: ￥ 14800 #佐久間レイ #若本規夫 #庵野秀明 #田中公平 #美樹本晴彦 #日髙のり子 #タカヤ・ノリコ #トップをねらえ! #ガイナックス 88年に発表されたGAINAX制作によるSFロボットアニメ。“宇宙怪獣”によって激しい攻撃を受けるようになった地球を舞台に、パイロット養成学校で学ぶ少女たちの姿と激しい戦いを描く。庵野秀明の初監督作品。 | G77: 333 | H77: 19300 | I77: 安すぎ | J77: https://www.amazon.co.jp/%E3%83%88%E3%83%83%E3%83%97%E3%82%92%E3%81%AD%E3%82%89%E3%81%88%EF%BC%81-Blu-ray-Box-Complete-%E5%88%9D%E5%9B%9E%E9%99%90%E5%AE%9A%E7%94%9F%E7%94%A3/dp/B005FO0BO6/ref=tmm_blu_title_0?_encoding=UTF8&qid=1638704415&sr=8-1 | K77: https://www.amazon.co.jp/dp/B005FO0BO6/ref=olp-opf-redir?aod=1&ie=UTF8&condition=ALL | M77: 19027 | N77: 配送料 ¥440 11月2日-4日にお届け 詳細を見る | O77: 440 | P77: 19467 | Q77: #佐久間レイ #若本規夫 #庵野秀明 #田中公平 #美樹本晴彦 #日髙のり子 #タカヤ・ノリコ #トップをねらえ! #ガイナックス | R77: #メルカリ [Blu-ray]トップをねらえ！ Blu-ray Box Complete Edition (初回限定生産) フリマアプリ「メルカリ」で販売中 https://jp.mercari.com/item/m61925248189?utm_source=android&utm_medium=share #佐久間レイ #若本規夫 #庵野秀明 #田中公平 #美樹本晴彦 #日髙のり子 #タカヤ・ノリコ #トップをねらえ! #ガイナックス | S77: 307 | U77: 19300 | AF77: 個人 | AG77: 1
B78: m86401336370 | C78: 取引終了 | D78: [Blu-ray]未来少年コナン Blu-rayメモリアルボックス〈8枚組〉 | E78: 38 | F78: 2011/12/11購入 中古品のため商品は多少のキズ・使用感がございます。記載ない限り帯・特典などは付属致しません。プロダクト、ダウンロードコードは使用できません。写真以外の付属品はありません。 「未来少年コナン Blu-rayメモリアルボックス〈8枚組〉」 小原乃梨子 / 信沢三恵子 / 中野顕彰 定価: ￥ 32000 #小原乃梨子 #信沢三恵子 #中野顕彰 #宮崎駿 #未来少年コナン #ジブリ #スタジオジブリ 巨匠・宮崎駿監督が演出を手掛けた1978年放送のNHKアニメ。大戦争で多くの大陸が海に沈んでしまった未来の地球。心優しき野生児のコナンが地球の未来のカギを握る少女・ラナと出会い、大冒険を繰り広げる。 | G78: 315 | H78: 20768 | J78: https://www.amazon.co.jp/%E6%9C%AA%E6%9D%A5%E5%B0%91%E5%B9%B4%E3%82%B3%E3%83%8A%E3%83%B3-Blu-ray%E3%83%A1%E3%83%A2%E3%83%AA%E3%82%A2%E3%83%AB%E3%83%9C%E3%83%83%E3%82%AF%E3%82%B9-%E5%B0%8F%E5%8E%9F%E4%B9%83%E6%A2%A8%E5%AD%90/dp/B005B2B9OI/ref=sr_1_1?__mk_ja_JP=%E3%82%AB%E3%82%BF%E3%82%AB%E3%83%8A&keywords=%5BBlu-ray%5D%E6%9C%AA%E6%9D%A5%E5%B0%91%E5%B9%B4%E3%82%B3%E3%83%8A%E3%83%B3+Blu-ray%E3%83%A1%E3%83%A2%E3%83%AA%E3%82%A2%E3%83%AB%E3%83%9C%E3%83%83%E3%82%AF%E3%82%B9&qid=1638877112&sr=8-1 | K78: https://www.amazon.co.jp/dp/B005B2B9OI/ref=olp-opf-redir?aod=1&ie=UTF8&condition=ALL | L78: 28161 | M78: 17452 | N78: お届け日 (配送料: ￥400 ): 2月22日 - 25日 詳細を見る | O78: 400 | P78: 17852 | Q78: #小原乃梨子 #信沢三恵子 #中野顕彰 #宮崎駿 #未来少年コナン #ジブリ #スタジオジブリ | R78: #メルカリ [Blu-ray]未来少年コナン Blu-rayメモリアルボックス〈8枚組〉 フリマアプリ「メルカリ」で販売中 https://jp.mercari.com/item/m86401336370/ #小原乃梨子 #信沢三恵子 #中野顕彰 #宮崎駿 #未来少年コナン #ジブリ #スタジオジブリ | S78: 230 | T78: 2022-02-27 | U78: 20768 | V78: 2022-02-20 | W78: 20768 | X78: 2076 | Y78: 730 | Z78: 17962 | AA78: 送料込み(出品者負担) | AC78: 2022-02-24 | AF78: 個人 | AG78: 1
B79: m25880188110 | C79: 取引終了 | D79: [Blu-ray]ふしぎの海のナディア Blu-ray BOX〈完全生産限定版・7枚組〉 | E79: 44 | F79: 2011/11/29購入 中古品のため商品は多少のキズ・使用感がございます。記載ない限り帯・特典などは付属致しません。プロダクト、ダウンロードコードは使用できません。写真以外の付属品はありません。 「ふしぎの海のナディア Blu-ray BOX〈完全生産限定版・7枚組〉」 鷹森淑乃 / 日髙のり子 / 樋口真嗣 定価: ￥ 48000 #鷹森淑乃 #日髙のり子 #樋口真嗣 #庵野秀明 #貞本義行 #ガイナックス #ふしぎの海のナディア #ナディア #ネモ船長 #海底二万マイル 『海底二万マイル』を原案に、ガイナックスの気鋭クリエイターたちが映像化した90年放映の冒険アニメ。発明好きの少年ジャンと自分の出生を探る少女ナディアが、謎の潜水艦ノーチラス号をめぐる戦いに巻き込まれていく。 | G79: 347 | H79: 29814 | I79: 安すぎ | J79: https://www.amazon.co.jp/%E3%81%B5%E3%81%97%E3%81%8E%E3%81%AE%E6%B5%B7%E3%81%AE%E3%83%8A%E3%83%87%E3%82%A3%E3%82%A2-Blu-ray-BOX%E3%80%90%E5%AE%8C%E5%85%A8%E7%94%9F%E7%94%A3%E9%99%90%E5%AE%9A%E7%89%88%E3%80%91-%E9%B7%B9%E6%A3%AE%E6%B7%91%E4%B9%83/dp/B005FYEJ1C/ref=tmm_blu_swatch_0?_encoding=UTF8&qid=&sr= | K79: https://www.amazon.co.jp/dp/B005FYEJ1C/ref=olp-opf-redir?aod=1&ie=UTF8&condition=ALL | L79: 59800 | M79: 29914 | N79: 配送料 ¥450 3月 12-14日。 詳細を見る | O79: =MID(N79,FIND("配送料 ¥",N79)+5,FIND(" ",MID(N79,FIND("¥",N79),10))-2)*1 -> 450 | P79: 30364 | Q79: #鷹森淑乃 #日髙のり子 #樋口真嗣 #庵野秀明 #貞本義行 #ガイナックス #ふしぎの海のナディア #ナディア #ネモ船長 #海底二万マイル | R79: #メルカリ [Blu-ray]ふしぎの海のナディア Blu-ray BOX〈完全生産限定版・7枚組〉 フリマアプリ「メルカリ」で販売中 https://jp.mercari.com/item/m25880188110/ #鷹森淑乃 #日髙のり子 #樋口真嗣 #庵野秀明 #貞本義行 #ガイナックス #ふしぎの海のナディア #ナディア #ネモ船長 #海底二万マイル | S79: 279 | T79: 2022-03-16 | U79: 29814 | V79: 2022-03-09 | W79: 29814 | X79: 2981 | Y79: 730 | Z79: 26103 | AA79: 送料込み(出品者負担) | AC79: 2022-03-13 | AF79: 個人 | AG79: 1
B80: m46551549641 | C80: 取引終了 | D80: [DVD]新スター･トレック シーズン1 Vol.1 | E80: 26 | F80: 2011/6/19 中古品のため商品は多少のキズ・使用感がございます。記載ない限り帯・特典などは付属致しません。プロダクト、ダウンロードコードは使用できません。写真以外の付属品はありません。 「新スター・トレックⓇ シーズン1 Vol.1〈3枚組〉」 パトリック・スチュワート / ジョナサン・フレイクス / ジェイムズ・L.コンウェイ 定価: ￥ 6000 #パトリック・スチュワート #ジョナサン・フレイクス #ジェイムズ・Lコンウェイ #ジェイムズ・L_コンウェイ #新スター・トレック #スター・トレック #エンタープライズ 大ヒット作『新スタートレック』の第1シーズンを収録。アクシデントやトラブルを乗り越えながら任務を遂行していく、エンタープライズ号の活躍が楽しめる。ハラハラドキドキの展開から目が離せない。 | G80: 363 | H80: 1800 | J80: https://www.amazon.co.jp/%E6%96%B0%E3%82%B9%E3%82%BF%E3%83%BC%EF%BD%A5%E3%83%88%E3%83%AC%E3%83%83%E3%82%AF-%E3%82%B7%E3%83%BC%E3%82%BA%E3%83%B31-Vol-1-DVD-%E3%83%91%E3%83%88%E3%83%AA%E3%83%83%E3%82%AF%E3%83%BB%E3%82%B9%E3%83%81%E3%83%A5%E3%83%AF%E3%83%BC%E3%83%88/dp/B000GOFHJE/ref=sr_1_2?__mk_ja_JP=%E3%82%AB%E3%82%BF%E3%82%AB%E3%83%8A&keywords=%E6%96%B0%E3%82%B9%E3%82%BF%E3%83%BC%EF%BD%A5%E3%83%88%E3%83%AC%E3%83%83%E3%82%AF+%E3%82%B7%E3%83%BC%E3%82%BA%E3%83%B31+Vol.1+%5BDVD%5D&qid=1638965897&s=dvd&sr=1-2 | K80: https://www.amazon.co.jp/dp/B000GOFHJE/ref=olp-opf-redir?aod=1&ie=UTF8&condition=ALL | M80: 1 | N80: お届け日 (配送料: ￥400 ): 1月4日 - 6日 詳細を見る | O80: 400 | P80: 401 | Q80: #パトリック・スチュワート #ジョナサン・フレイクス #ジェイムズ・Lコンウェイ #ジェイムズ・L_コンウェイ #新スター・トレック #スター・トレック #エンタープライズ | R80: #メルカリ [DVD]新スター･トレック シーズン1 Vol.1 フリマアプリ「メルカリ」で販売中 https://jp.mercari.com/item/m46551549641/ #パトリック・スチュワート #ジョナサン・フレイクス #ジェイムズ・Lコンウェイ #ジェイムズ・L_コンウェイ #新スター・トレック #スター・トレック #エンタープライズ | S80: 284 | T80: 2022-01-08 | U80: 1800 | V80: 2022-01-01 | W80: 1800 | X80: 180 | Y80: 175 | Z80: 1445 | AA80: 送料込み(出品者負担) | AC80: 2022-01-09 | AF80: 個人 | AG80: 1
B81: m58498642530 | C81: 取引終了 | D81: [Blu-ray]HITOSI MATUMOTO VISUALBUM “完成【豪華5枚組『寸止め海峡(仮題)』よりコント3本を追加収録】 | E81: 68 | F81: 2014/1/26購入 中古品のため商品は多少のキズ・使用感がございます。記載ない限り帯・特典などは付属致しません。プロダクト、ダウンロードコードは使用できません。写真以外の付属品はありません。 「松本人志/HITOSI MATUMOTO VISUALBUM\"完成\"〈5枚組〉」 松本人志 / 浜田雅功 定価: ￥ 9400 #松本人志 #浜田雅功 #今田耕司 #東野幸治 #板尾創路 #蔵野孝洋 #木村祐一 #ココリコ #遠藤章造 #田中直樹 #ダウンタウン ダウンタウン・松本人志のコント集『VISUALBUM』シリーズ4作品“約束”“親切”“安心”“めろん”をBD-BOX化。相方である浜田雅功はもちろん今田耕司、東野幸治、板尾創路らとともに、天才の脳内を具現化していく。 | G81: 344 | H81: 5933 | I81: 最安値 | J81: https://www.amazon.co.jp/MATUMOTO-VISUALBUM-%E3%80%90%E8%B1%AA%E8%8F%AF5%E6%9E%9A%E7%B5%84%E3%80%8E%E5%AF%B8%E6%AD%A2%E3%82%81%E6%B5%B7%E5%B3%A1-%E3%80%8F%E3%82%88%E3%82%8A%E3%82%B3%E3%83%B3%E3%83%883%E6%9C%AC%E3%82%92%E8%BF%BD%E5%8A%A0%E5%8F%8E%E9%8C%B2%E3%80%91-Blu-ray/dp/B00DW1J9MY/ref=tmm_blu_swatch_0?_encoding=UTF8&qid=1639054906&sr=8-1 | K81: https://www.amazon.co.jp/dp/B00DW1J9MY/ref=olp-opf-redir?aod=1&ie=UTF8&condition=ALL | L81: 9002 | M81: 5676 | N81: お届け日 (配送料: ￥357 ): 12月31日 - 1月2日 詳細を見る | O81: 357 | P81: 6033 | Q81: #松本人志 #浜田雅功 #今田耕司 #東野幸治 #板尾創路 #蔵野孝洋 #木村祐一 #ココリコ #遠藤章造 #田中直樹 #ダウンタウン | R81: #メルカリ [Blu-ray]HITOSI MATUMOTO VISUALBUM “完成【豪華5枚組『寸止め海峡(仮題)』よりコント3本を追加収録】 フリマアプリ「メルカリ」で販売中 https://jp.mercari.com/item/m58498642530/ #松本人志 #浜田雅功 #今田耕司 #東野幸治 #板尾創路 #蔵野孝洋 #木村祐一 #ココリコ #遠藤章造 #田中直樹 #ダウンタウン | S81: 300 | T81: 2021-01-03 | U81: 5933 | V81: 2021-12-27 | W81: 5933 | X81: 593 | Y81: 380 | Z81: 4960 | AA81: 送料込み(出品者負担) | AC81: =V81 -> 2021-12-27 | AF81: 個人 | AG81: 1
B82: m78215694533 | C82: 取引終了 | D82: [Blu-ray]東のエデン 劇場版I The King of Eden Blu-ray スタンダード・エディション | E82: 58 | F82: 2010/3/23購入 中古品のため商品は多少のキズ・使用感がございます。記載ない限り帯・特典などは付属致しません。写真以外の付属品はありません。 「東のエデン 劇場版Ⅰ The King of Eden スタンダード・エディション('09東のエデン製作委員会)」 木村良平 / 早見沙織 / 神山健治 定価: ￥ 6800 #木村良平 #早見沙織 #神山健治 #東のエデン #羽海野チカ #川井憲次 #プロダクション I.G <ストーリー> 再び記憶を消し、咲の前から去った滝沢はどこへ向かったのか? 「俺はずっと、君と一緒に旅した場所にいます」 60 発のミサイル事件から半年後――。 滝沢のノブレス携帯に残されたメッセージと新たな履歴を手掛かりに、咲はニューヨークへと出発した。 『一緒に旅した場所』という言葉の意味が彼女だけに分かるメッセージだと信じて・・・。 咲はもう一度滝沢に会うことが出来るのか? 滝沢がジュイスに依頼した「この国の王様になる」とはどういう意味なのか? 日本を救う新たな戦いが今、始まる。 | G82: 462 | H82: 1999 | J82: https://www.amazon.co.jp/%E6%9D%B1%E3%81%AE%E3%82%A8%E3%83%87%E3%83%B3-%E5%8A%87%E5%A0%B4%E7%89%88I-King-Blu-ray-%E3%82%B9%E3%82%BF%E3%83%B3%E3%83%80%E3%83%BC%E3%83%89%E3%83%BB%E3%82%A8%E3%83%87%E3%82%A3%E3%82%B7%E3%83%A7%E3%83%B3/dp/B0035GV3JS/ref=tmm_blu_title_0?_encoding=UTF8&amp&qid=&amp&sr= | K82: https://www.amazon.co.jp/dp/B0035GV3JS/ref=olp-opf-redir?aod=1&ie=UTF8&condition=ALL | M82: 488 | N82: 配送料 ¥350 12月 15-17日にお届け 詳細を見る | O82: =MID(N82,FIND("配送料 ¥",N82)+5,FIND(" ",MID(N82,FIND("¥",N82),10))-2)*1 -> 350 | P82: 838 | Q82: #木村良平 #早見沙織 #神山健治 #東のエデン #羽海野チカ #川井憲次 #プロダクション I.G | R82: #メルカリ [Blu-ray]東のエデン 劇場版I The King of Eden Blu-ray スタンダード・エディション フリマアプリ「メルカリ」で販売中 https://jp.mercari.com/item/m78215694533/ #木村良平 #早見沙織 #神山健治 #東のエデン #羽海野チカ #川井憲次 #プロダクション I.G | S82: 252 | T82: 2022-12-17 | U82: 1999 | V82: 2022-12-10 | W82: 3998 | X82: 399 | Y82: 210 | Z82: 3389 | AA82: 送料込み(出品者負担) | AB82: ケイス | AC82: 2022-12-19 | AF82: 個人 | AG82: 1
B83: m71179658626 | C83: 取引終了 | D83: [Blu-ray]東のエデン 劇場版II Paradise Lost Blu-rayスタンダード・エディション 【初回限定生産】 | E83: 64 | F83: 2010/8/8購入 中古品のため商品は多少のキズ・使用感がございます。記載ない限り帯・特典などは付属致しません。写真以外の付属品はありません。 「東のエデン 劇場版Ⅱ Paradise Lost スタンダード・エディション('10東のエデン製作委員会)」 木村良平 / 早見沙織 / 神山健治 定価: ￥ 6800 #木村良平 #早見沙織 #神山健治 #東のエデン #羽海野チカ #川井憲次 #プロダクション I.G 2009年4～6月放送のTV版、同年11月公開の劇場版第1弾に続く、人気アニメ『東のエデン』劇場版第2弾。NYから帰国した滝沢朗は、“東のエデン”メンバーと合流し、ゲーム決着のため首相官邸へと向かうが……。壮大な物語がついに完結。 | G83: 328 | H83: 1999 | J83: https://www.amazon.co.jp/%E6%9D%B1%E3%81%AE%E3%82%A8%E3%83%87%E3%83%B3-%E5%8A%87%E5%A0%B4%E7%89%88II-Paradise-Blu-ray%E3%82%B9%E3%82%BF%E3%83%B3%E3%83%80%E3%83%BC%E3%83%89%E3%83%BB%E3%82%A8%E3%83%87%E3%82%A3%E3%82%B7%E3%83%A7%E3%83%B3-%E3%80%90%E5%88%9D%E5%9B%9E%E9%99%90%E5%AE%9A%E7%94%9F%E7%94%A3%E3%80%91/dp/B003ISLY6A/ref=tmm_blu_swatch_0?_encoding=UTF8&qid=&sr= | K83: https://www.amazon.co.jp/dp/B003ISLY6A/ref=olp-opf-redir?aod=1&ie=UTF8&condition=ALL | M83: 980 | N83: 配送料 ¥340 12月 13-15日にお届け 詳細を見る | O83: 340 | P83: 1320 | Q83: #木村良平 #早見沙織 #神山健治 #東のエデン #羽海野チカ #川井憲次 #プロダクション I.G | R83: #メルカリ [Blu-ray]東のエデン 劇場版II Paradise Lost Blu-rayスタンダード・エディション 【初回限定生産】 フリマアプリ「メルカリ」で販売中 https://jp.mercari.com/item/m71179658626/ #木村良平 #早見沙織 #神山健治 #東のエデン #羽海野チカ #川井憲次 #プロダクション I.G | S83: 266 | U83: 1999 | AF83: 個人 | AG83: 1
B84: m65141396805 | C84: 出品中 | D84: [Blu-ray]東のエデン 全5巻セット (初回限定生産版) | E84: 31 | F84: 中古品のため商品は多少のキズ・使用感がございます。記載ない限り帯・特典などは付属致しません。写真以外の付属品はありません。 盤面に細かい擦り傷あり。 東のエデン 全5巻セット (初回限定生産版) 木村良平 / 早見沙織 / 神山健治 定価: ￥ 5000 #木村良平 #早見沙織 #神山健治 #東のエデン #羽海野チカ #川井憲次 #プロダクション I.G 2010年のアメリカで、卒業旅行中の大学生、森美咲と記憶喪失の青年、滝沢朗が出会い意気投合。ともに帰国の途へ着くが……。スリリングな展開を見せる、フジテレビ系『ノイタミナ』枠内で放送のオリジナル・アニメ。神山健治監督・原作・脚本作。 | G84: 298 | H84: 6492 | I84: 最安値 | L84: =SUM(L85:L89) -> 20090 | M84: 10 | N84: お届け日 (配送料: ￥350 ): 12月23日 - 24日 詳細を見る | P84: =SUM(P85:P89) -> 6502 | Q84: #木村良平 #早見沙織 #神山健治 #東のエデン #羽海野チカ #川井憲次 #プロダクション I.G | R84: ="#メルカリ"&CHAR(10)&D84&CHAR(10)&" フリマアプリ「メルカリ」で販売中 https://jp.mercari.com/item/"&B84&"?utm_source=android&utm_medium=share "&Q84 -> #メルカリ [Blu-ray]東のエデン 全5巻セット (初回限定生産版) フリマアプリ「メルカリ」で販売中 https://jp.mercari.com/item/m65141396805?utm_source=android&utm_medium=share #木村良平 #早見沙織 #神山健治 #東のエデン #羽海野チカ #川井憲次 #プロダクション I.G | S84: 256 | U84: 6492 | AF84: 個人 | AG84: 1
D85: [Blu-ray]東のエデン 第1巻 (初回限定生産版) | E85: =LEN(D85) -> 28 | G85: =LEN(F85) -> 0 | J85: https://www.amazon.co.jp/%E6%9D%B1%E3%81%AE%E3%82%A8%E3%83%87%E3%83%B3-%E7%AC%AC2%E5%B7%BB-%E5%88%9D%E5%9B%9E%E9%99%90%E5%AE%9A%E7%94%9F%E7%94%A3%E7%89%88-Blu-ray-%E6%9C%A8%E6%9D%91%E8%89%AF%E5%B9%B3/dp/B0027BT1DM/ref=tmm_blu_swatch_0?_encoding=UTF8&qid=&sr= | K85: ="https://www.amazon.co.jp/dp/"&MID(J85,FIND("/dp/",J85)+4,10)&"/ref=olp-opf-redir?aod=1&ie=UTF8&condition=ALL" -> https://www.amazon.co.jp/dp/B0027BT1DM/ref=olp-opf-redir?aod=1&ie=UTF8&condition=ALL | L85: 2980 | M85: 160 | N85: 配送料 ¥350 11月1日-3日にお届け 詳細を見る | O85: 350 | P85: =IF(ISERROR(O85),M85,M85+O85) -> 510 | Q85: =MID(F85,FIND("#",F85),FIND(CHAR(10),MID(F85,FIND("#",F85),300))) ->  | S85: =LENB(R85) ->  | AF85: 個人 | AG85: 1
D86: [Blu-ray]東のエデン 第2巻 (初回限定生産版) | E86: =LEN(D86) -> 28 | G86: =LEN(F86) -> 0 | J86: https://www.amazon.co.jp/%E6%9D%B1%E3%81%AE%E3%82%A8%E3%83%87%E3%83%B3-%E7%AC%AC2%E5%B7%BB-%E5%88%9D%E5%9B%9E%E9%99%90%E5%AE%9A%E7%94%9F%E7%94%A3%E7%89%88-Blu-ray-%E6%9C%A8%E6%9D%91%E8%89%AF%E5%B9%B3/dp/B0027BT1DM/ref=tmm_blu_swatch_0?_encoding=UTF8&qid=&sr= | K86: https://www.amazon.co.jp/dp/B0027BT1DM/ref=olp-opf-redir?aod=1&ie=UTF8&condition=ALL | L86: 2980 | M86: 160 | N86: 配送料 ¥350 11月1日-3日にお届け 詳細を見る | O86: 350 | P86: =IF(ISERROR(O86),M86,M86+O86) -> 510 | Q86: =MID(F86,FIND("#",F86),FIND(CHAR(10),MID(F86,FIND("#",F86),300))) ->  | S86: =LENB(R86) ->  | AF86: 個人 | AG86: 1
D87: [Blu-ray]東のエデン 第3巻 (初回限定生産版) | E87: =LEN(D87) -> 28 | G87: =LEN(F87) -> 0 | J87: https://www.amazon.co.jp/%E6%9D%B1%E3%81%AE%E3%82%A8%E3%83%87%E3%83%B3-%E7%AC%AC3%E5%B7%BB-%E5%88%9D%E5%9B%9E%E9%99%90%E5%AE%9A%E7%94%9F%E7%94%A3%E7%89%88-Blu-ray-%E6%9C%A8%E6%9D%91%E8%89%AF%E5%B9%B3/dp/B0027BT1DW/ref=sr_1_1?__mk_ja_JP=%E3%82%AB%E3%82%BF%E3%82%AB%E3%83%8A&crid=4I8NH864IRXF&keywords=%5BBlu-ray%5D%E6%9D%B1%E3%81%AE%E3%82%A8%E3%83%87%E3%83%B3+%E7%AC%AC3%E5%B7%BB&qid=1640033026&sprefix=blu-ray+%E6%9D%B1%E3%81%AE%E3%82%A8%E3%83%87%E3%83%B3+%E7%AC%AC3%E5%B7%BB%2Caps%2C209&sr=8-1 | K87: https://www.amazon.co.jp/dp/B0027BT1DW/ref=olp-opf-redir?aod=1&ie=UTF8&condition=ALL | L87: 3450 | M87: 1000 | N87: 無料配送 11月1日-3日にお届け 詳細を見る | P87: =IF(ISERROR(O87),M87,M87+O87) -> 1000 | Q87: =MID(F87,FIND("#",F87),FIND(CHAR(10),MID(F87,FIND("#",F87),300))) ->  | S87: =LENB(R87) ->  | AF87: 個人 | AG87: 1
D88: [Blu-ray]東のエデン 第4巻 (初回限定生産版) | E88: =LEN(D88) -> 28 | G88: =LEN(F88) -> 0 | J88: https://www.amazon.co.jp/%E6%9D%B1%E3%81%AE%E3%82%A8%E3%83%87%E3%83%B3-%E7%AC%AC4%E5%B7%BB-%E5%88%9D%E5%9B%9E%E9%99%90%E5%AE%9A%E7%94%9F%E7%94%A3%E7%89%88-Blu-ray-%E6%9C%A8%E6%9D%91%E8%89%AF%E5%B9%B3/dp/B0027BT1E6/ref=pd_sim_3/355-1264080-9251405?pd_rd_w=c1jVl&pf_rd_p=12a22022-3aca-40a7-ac33-c24e56b308ab&pf_rd_r=35CW4AV6RZQDATVQARN7&pd_rd_r=afb81f2e-a2c6-4de4-af91-8d8921cb8df7&pd_rd_wg=K4R3M&pd_rd_i=B0027BT1E6&psc=1 | K88: https://www.amazon.co.jp/dp/B0027BT1E6/ref=olp-opf-redir?aod=1&ie=UTF8&condition=ALL | L88: 3700 | M88: 2552 | N88: 配送料 ¥500 11月8日-9日にお届け 詳細を見る | O88: 500 | P88: =IF(ISERROR(O88),M88,M88+O88) -> 3052 | Q88: =MID(F88,FIND("#",F88),FIND(CHAR(10),MID(F88,FIND("#",F88),300))) ->  | S88: =LENB(R88) ->  | AF88: 個人 | AG88: 1
D89: [Blu-ray]東のエデン 第5巻 (初回限定生産版) | E89: =LEN(D89) -> 28 | G89: =LEN(F89) -> 0 | J89: https://www.amazon.co.jp/%E6%9D%B1%E3%81%AE%E3%82%A8%E3%83%87%E3%83%B3-%E7%AC%AC5%E5%B7%BB-Blu-ray-%E6%9C%A8%E6%9D%91%E8%89%AF%E5%B9%B3/dp/B0027BT1EG/ref=sr_1_1?__mk_ja_JP=%E3%82%AB%E3%82%BF%E3%82%AB%E3%83%8A&crid=1TH4D7ETA6NH7&keywords=%E6%9D%B1%E3%81%AE%E3%82%A8%E3%83%87%E3%83%B3+%E7%AC%AC%EF%BC%95%E5%B7%BB&qid=1640033060&s=dvd&sprefix=%E6%9D%B1%E3%81%AE%E3%82%A8%E3%83%87%E3%83%B3+%E7%AC%AC5%E5%B7%BB%2Cdvd%2C154&sr=1-1 | K89: https://www.amazon.co.jp/dp/B0027BT1EG/ref=olp-opf-redir?aod=1&ie=UTF8&condition=ALL | L89: 6980 | M89: 1020 | N89: 配送料 ¥410 11月1日-2日にお届け 詳細を見る | O89: 410 | P89: =IF(ISERROR(O89),M89,M89+O89) -> 1430 | Q89: =MID(F89,FIND("#",F89),FIND(CHAR(10),MID(F89,FIND("#",F89),300))) ->  | S89: =LENB(R89) ->  | AF89: 個人 | AG89: 1
B90: m58905977503 | C90: 出品中 | D90: [Blu-ray]スター・トレックⓇⅠ-Ⅹ 劇場版BOX〈12枚組〉 | E90: 34 | F90: 2011/7/10購入 中古品のため商品は多少のキズ・使用感がございます。記載ない限り帯・特典などは付属致しません。写真以外の付属品はありません。 「スター・トレックⓇⅠ-Ⅹ 劇場版BOX〈12枚組〉」 ハーヴ・ベネット / ジーン・ロッデンベリー / ハーヴ・ベネット 定価: ￥ 28381 #ハーヴ・ベネット #ジーン・ロッデンベリー #ハーヴ・ベネット #スター・トレック #パトリック・スチュワート ルーレイ BOXが、豪華な内容はそのままで、省スペースのスリムなパッケージ(デジパック2本組）で、お手頃価格にリプライス！！ ★劇場版第1～10作を豪華ケースに収納!ファン待望の12枚組(本編ディスク10枚+特典ディスク2枚)の究極BOX! 【収録作品】●印は「オリジナル・クルー劇場版」、◆印は「新スター・トレック劇場版 ●スター・トレックI ●スター・トレックII カーンの逆襲 ●スター・トレックIII ミスター・スポックを探せ! ●スター・トレックIV 故郷への長い道 ●スター・トレックV 新たなる未知へ ●スター・トレックVI 未知の世界 ◆スター・トレックVII ジェネレーションズ br> ◆スター・トレックVIII ファースト・コンタクト ◆スター・トレックIX 叛乱 ◆スター・トレックX ネメシス ※上記全作「リマスター版スペシャル・コレクターズ・エディション」です ※各本編ディスクにも異なる映像特典を収録 | G90: 625 | H90: 14790 | I90: 最安値 | J90: https://www.amazon.co.jp/%E3%82%B9%E3%82%BF%E3%83%BC%E3%83%BB%E3%83%88%E3%83%AC%E3%83%83%E3%82%AF%E2%85%A0-%E2%85%A9-%E5%8A%87%E5%A0%B4%E7%89%88BOX-Blu-ray-%E3%82%A6%E3%82%A3%E3%83%AA%E3%82%A2%E3%83%A0%E3%83%BB%E3%82%B7%E3%83%A3%E3%83%88%E3%83%8A%E3%83%BC/dp/B004FPH806/ref=tmm_blu_title_0?_encoding=UTF8&qid=&sr= | K90: https://www.amazon.co.jp/dp/B004FPH806/ref=olp-opf-redir?aod=1&ie=UTF8&condition=ALL | L90: 20292 | M90: 14800 | N90: 無料配送 10月31日 火曜日にお届け 詳細を見る | P90: 14800 | Q90: #ハーヴ・ベネット #ジーン・ロッデンベリー #ハーヴ・ベネット #スター・トレック #パトリック・スチュワート | R90: #メルカリ [Blu-ray]スター・トレックⓇⅠ-Ⅹ 劇場版BOX〈12枚組〉 フリマアプリ「メルカリ」で販売中 https://jp.mercari.com/item/m58905977503?utm_source=android&utm_medium=share #ハーヴ・ベネット #ジーン・ロッデンベリー #ハーヴ・ベネット #スター・トレック #パトリック・スチュワート | S90: 279 | U90: 14790 | AF90: 個人 | AG90: 1
B91: m17398365657 | C91: 出品中 | D91: [DVD]カリスマ | E91: 9 | F91: 2006/10/13購入 中古品のため商品は多少のキズ・使用感がございます。記載ない限り帯・特典などは付属致しません。写真以外の付属品はありません。 「カリスマ('99日活/キングレコード/東京テアトル)」 役所広司 / 池内博之 / 黒澤清 定価: ￥ 4700 #役所広司 #池内博之 #黒澤清 #CD・DVD 97年の傑作サイコ・サスペンス『CURE』の監督・黒沢清と主役・役所広司のコンビで再び世に送り出されたホラーサスペンス。2000年2月劇場公開作品。 | G91: 235 | H91: 1999 | J91: https://www.amazon.co.jp/%E3%82%AB%E3%83%AA%E3%82%B9%E3%83%9E-DVD-%E5%BD%B9%E6%89%80%E5%BA%83%E5%8F%B8/dp/B00005HKB6/ref=tmm_dvd_title_0?_encoding=UTF8&qid=1639484277&sr=8-2 | K91: https://www.amazon.co.jp/dp/B00005HKB6/ref=olp-opf-redir?aod=1&ie=UTF8&condition=ALL | M91: 138 | N91: 配送料 ¥350 10月31日-11月2日にお届け 詳細を見る | O91: 350 | P91: 488 | Q91: #役所広司 #池内博之 #黒澤清 #CD・DVD | R91: #メルカリ [DVD]カリスマ フリマアプリ「メルカリ」で販売中 https://jp.mercari.com/item/m17398365657?utm_source=android&utm_medium=share #役所広司 #池内博之 #黒澤清 #CD・DVD | S91: 174 | U91: 1999 | AF91: 個人 | AG91: 1
B92: m92345922357 | C92: 出品中 | D92: [DVD]ニンゲン合格 | E92: 11 | F92: 2011/7/10購入 中古品のため商品は多少のキズ・使用感がございます。記載ない限り帯・特典などは付属致しません。写真以外の付属品はありません。 「ニンゲン合格('98大映)」 西島秀俊 / 役所広司 / 黒沢清 定価: ￥ 3800 #西島秀俊 #役所広司 #黒沢清 #CD・DVD 黒澤清監督による異色ヒューマン・ドラマ。交通事故で昏睡状態に陥ったまま10年を過ごした男・吉井。24歳となり意識を取り戻し実家に戻るが、実家は釣堀に改造され父の友人だという藤森という男が住んでいて……。 | G92: 248 | H92: 1999 | J92: https://www.amazon.co.jp/%E3%83%8B%E3%83%B3%E3%82%B2%E3%83%B3%E5%90%88%E6%A0%BC-DVD-%E8%A5%BF%E5%B3%B6%E7%A7%80%E4%BF%8A/dp/B001MHS9JO/ref=tmm_dvd_title_0?_encoding=UTF8&qid=1639484308&sr=8-1 | K92: https://www.amazon.co.jp/dp/B001MHS9JO/ref=olp-opf-redir?aod=1&ie=UTF8&condition=ALL | M92: 1316 | N92: 配送料 ¥298 11月1日-2日にお届け 詳細を見る | O92: 298 | P92: 1614 | Q92: #西島秀俊 #役所広司 #黒沢清 #CD・DVD | R92: #メルカリ [DVD]ニンゲン合格 フリマアプリ「メルカリ」で販売中 https://jp.mercari.com/item/m92345922357?utm_source=android&utm_medium=share #西島秀俊 #役所広司 #黒沢清 #CD・DVD | S92: 178 | U92: 1999 | AF92: 個人 | AG92: 1
B93: m35500226785 | C93: 取引終了 | D93: [Blu-ray]天元突破グレンラガン COMPLETE Blu-ray BOX | E93: 40 | F93: 2013/9/16購入 中古品のため商品は多少のキズ・使用感がございます。記載ない限り帯・特典などは付属致しません。プロダクト、ダウンロードコードは使用できません。写真以外の付属品はありません。 「天元突破グレンラガン COMPLETE Blu-ray BOX〈完全生産限定版・全15枚組セット(Blu-ray Disc 10枚+CD 5枚)〉」 柿原徹也 / 小西克幸 / 今石洋之 定価: ￥ 60000 #柿原徹也 #小西克幸 #今石洋之 #グレンラガン #天元突破グレンラガン #ガイナックス #GAINAX #錦織敦史 人々が地中に穴を掘り、息を潜めて暮らしている未来の世界。穴掘りの最中に不思議なドリルを発見した少年シモンが地上に飛び出して、とんでもない冒険を繰り広げていく……。ガイナックス制作による迫力のロボット・アニメ。 2007年より放送を開始したTVアニメ『天元突破グレンラガン』シリーズ全てを収録したコンプリートBOXが発売決定! 【収録内容】 全15枚組(Blu-ray Disc 10枚+CD 5枚) <収録映像> ・TVシリーズ 第1話~最終話(英語音声、英語字幕) ノンクレジットOP、ノンクレジットED ・劇場版 天元突破グレンラガン 紅蓮篇(英語字幕) ノンクレジットED ・劇場版 天元突破グレンラガン 螺巌篇(英語字幕) ノンクレジットED ・グレンラガン パラレルワークス ・グレンラガン パラレルワークス2 ・天元突破グレンラガン キラメキ☆ヨーコBOX ~Pieces of sweet stars~ ・天元突破グレンラガン 劇場版 前夜祭(イベント本編映像、特典ピクチャードラマ『ヴィラルの甘い夢』) ・DS用ソフト「天元突破グレンラガン」同梱OVA第5.5話『俺のグレンはピッカピカ!!』 ・特典映像集(『ヨーコが行く! ~GAINAXでアニメのお勉強ッ~』、劇場版初日舞台あいさつドキュメント、グレン ラガンクイズ検定、スタッフインタビュー集、他) | G93: 855 | H93: 21289 | I93: 最安値 | J93: https://www.amazon.co.jp/%E5%A4%A9%E5%85%83%E7%AA%81%E7%A0%B4%E3%82%B0%E3%83%AC%E3%83%B3%E3%83%A9%E3%82%AC%E3%83%B3-COMPLETE-Blu-ray-BOX-%E5%AE%8C%E5%85%A8%E7%94%9F%E7%94%A3%E9%99%90%E5%AE%9A%E7%89%88/dp/B00ATYCF1Y/ref=sr_1_1?__mk_ja_JP=%E3%82%AB%E3%82%BF%E3%82%AB%E3%83%8A&crid=28BNYNJ4D7CV2&keywords=%E5%A4%A9%E5%85%83%E7%AA%81%E7%A0%B4%E3%82%B0%E3%83%AC%E3%83%B3%E3%83%A9%E3%82%AC%E3%83%B3+COMPLETE+Blu-ray+BOX%28%E5%AE%8C%E5%85%A8%E7%94%9F%E7%94%A3%E9%99%90%E5%AE%9A%E7%89%88%29&qid=1640393803&s=dvd&sprefix=%E5%A4%A9%E5%85%83%E7%AA%81%E7%A0%B4%E3%82%B0%E3%83%AC%E3%83%B3%E3%83%A9%E3%82%AC%E3%83%B3+complete+blu-ray+box+%E5%AE%8C%E5%85%A8%E7%94%9F%E7%94%A3%E9%99%90%E5%AE%9A%E7%89%88+%2Cdvd%2C147&sr=1-1 | K93: https://www.amazon.co.jp/dp/B00ATYCF1Y/ref=olp-opf-redir?aod=1&ie=UTF8&condition=ALL | L93: 47980 | M93: 21389 | N93: 無料配送: 1月23日 日曜日 詳細を見る | P93: 21389 | Q93: #柿原徹也 #小西克幸 #今石洋之 #グレンラガン #天元突破グレンラガン #ガイナックス #GAINAX #錦織敦史 | R93: #メルカリ [Blu-ray]天元突破グレンラガン COMPLETE Blu-ray BOX フリマアプリ「メルカリ」で販売中 https://jp.mercari.com/item/m35500226785/ #柿原徹也 #小西克幸 #今石洋之 #グレンラガン #天元突破グレンラガン #ガイナックス #GAINAX #錦織敦史 | S93: 237 | T93: 2022-01-30 | U93: 21289 | V93: 2022-01-23 | W93: 21289 | X93: 2128 | Y93: 830 | Z93: 18331 | AA93: 送料込み(出品者負担) | AC93: 2022-01-29 | AF93: 個人 | AG93: 1
C94: 取引終了 | D94: [DVD]∀ガンダム MEMORIAL BOXⅠ〈初回限定生産・6枚組〉 | E94: 36 | F94: 2008/11/6購入 中古品のため商品は多少のキズ・使用感がございます。記載ない限り帯・特典などは付属致しません。プロダクト、ダウンロードコードは使用できません。写真以外の付属品はありません。 「∀ガンダム MEMORIAL BOXⅠ〈初回限定生産・6枚組〉」 朴璐美 / 高橋理恵子 / 富野由悠季 定価: ￥ 30000 #朴璐美 #高橋理恵子 #富野由悠季 #ガンダム #機動戦士ガンダム #ターンエーガンダム #菅野よう子 #シド・ミード #あきまん #安田朗 #矢立肇 #大河原邦男 密かに月から地球に降り立ち、幸せに暮らしていた少年ロラン。月と地球の戦争に巻き込まれた彼は、旧時代のモビルスーツに乗り込んで……。シリーズでもっとも思慕や愛にあふれていると言われる、20世紀最後のガンダム作品。 | G94: 358 | H94: 3379 | I94: 最安値 | J94: https://www.amazon.co.jp/%E2%88%80%E3%82%AC%E3%83%B3%E3%83%80%E3%83%A0-MEMORIAL-BOX-1-DVD/dp/B000KRN5UK/ref=sr_1_1?__mk_ja_JP=%E3%82%AB%E3%82%BF%E3%82%AB%E3%83%8A&crid=QU56ELGJMKCR&keywords=%E2%88%80%E3%82%AC%E3%83%B3%E3%83%80%E3%83%A0+memorial+box&qid=1640393819&s=dvd&sprefix=%E3%82%AC%E3%83%B3%E3%83%80%E3%83%A0+memorial+boxi%2Cdvd%2C152&sr=1-1 | K94: https://www.amazon.co.jp/dp/B000KRN5UK/ref=olp-opf-redir?aod=1&ie=UTF8&condition=ALL | L94: 17957 | M94: 3479 | N94: 無料配送: 1月26日 水曜日 詳細を見る | P94: 3479 | Q94: #朴璐美 #高橋理恵子 #富野由悠季 #ガンダム #機動戦士ガンダム #ターンエーガンダム #菅野よう子 #シド・ミード #あきまん #安田朗 #矢立肇 #大河原邦男 | R94: #メルカリ [DVD]∀ガンダム MEMORIAL BOXⅠ〈初回限定生産・6枚組〉 フリマアプリ「メルカリ」で販売中 https://jp.mercari.com/item// #朴璐美 #高橋理恵子 #富野由悠季 #ガンダム #機動戦士ガンダム #ターンエーガンダム #菅野よう子 #シド・ミード #あきまん #安田朗 #矢立肇 #大河原邦男 | S94: 275 | U94: 3379 | AF94: 個人 | AG94: 1
B95: m12740137873 | C95: 取引終了 | D95: [Blu-ray]新世紀エヴァンゲリオン Blu-ray BOX〈期間限定生産・ | E95: 40 | F95: 2017/8/26購入 中古品のため商品は多少のキズ・使用感がございます。記載ない限り帯・特典などは付属致しません。プロダクト、ダウンロードコードは使用できません。写真以外の付属品はありません。 「新世紀エヴァンゲリオン Blu-ray BOX〈期間限定生産・10枚組〉」 緒方恵美 / 三石琴乃 / 庵野秀明 定価: ￥ 38000 #緒方恵美 #三石琴乃 #宮村優子 #林原めぐみ #立木文彦 #摩砂雪 #アニメ #葛城ミサト #ヱヴァンゲリヲン #EVANGELION #エヴァンゲリオン #庵野秀明 90年代に社会現象を巻き起こした庵野秀明監督によるロボット・アニメの、TVシリーズと劇場版をコンパイル。使徒と呼ばれる謎の巨大物体が出現。碇シンジら少年たちは、不安と怒りの戦いに巻き込まれていく。 | G95: 355 | H95: 15758 | I95: 安すぎ | J95: https://www.amazon.co.jp/%E6%96%B0%E4%B8%96%E7%B4%80%E3%82%A8%E3%83%B4%E3%82%A1%E3%83%B3%E3%82%B2%E3%83%AA%E3%82%AA%E3%83%B3-NEON-GENESIS-EVANGELION-Blu-ray/dp/B00SWDZWJQ/ref=sr_1_8?__mk_ja_JP=%E3%82%AB%E3%82%BF%E3%82%AB%E3%83%8A&crid=KS6DDOH1GLT4&keywords=%E6%96%B0%E4%B8%96%E7%B4%80%E3%82%A8%E3%83%B4%E3%82%A1%E3%83%B3%E3%82%B2%E3%83%AA%E3%82%AA%E3%83%B3+Blu-ray+BOX%E3%80%88%E6%9C%9F%E9%96%93%E9%99%90&qid=1640393753&sprefix=%2Caps%2C393&sr=8-8 | K95: https://www.amazon.co.jp/dp/B00SWDZWJQ/ref=olp-opf-redir?aod=1&ie=UTF8&condition=ALL | M95: 15781 | N95: 配送料 ¥435 3月 28-30日。 詳細を見る | O95: =MID(N95,FIND("配送料 ¥",N95)+5,FIND(" ",MID(N95,FIND("¥",N95),10))-2)*1 -> 435 | P95: 16216 | Q95: #緒方恵美 #三石琴乃 #宮村優子 #林原めぐみ #立木文彦 #摩砂雪 #アニメ #葛城ミサト #ヱヴァンゲリヲン #EVANGELION #エヴァンゲリオン #庵野秀明 | R95: #メルカリ [Blu-ray]新世紀エヴァンゲリオン Blu-ray BOX〈期間限定生産・ フリマアプリ「メルカリ」で販売中 https://jp.mercari.com/item/m12740137873/ #緒方恵美 #三石琴乃 #宮村優子 #林原めぐみ #立木文彦 #摩砂雪 #アニメ #葛城ミサト #ヱヴァンゲリヲン #EVANGELION #エヴァンゲリオン #庵野秀明 | S95: 286 | T95: 2022-04-05 | U95: 15758 | V95: 2022-03-29 | W95: 15758 | X95: 1575 | Y95: 830 | Z95: 13353 | AA95: 送料込み(出品者負担) | AC95: 2022-04-06 | AF95: 個人 | AG95: 1
B96: m71002165641 | C96: 取引終了 | D96: [Blu-ray]涼宮ハルヒの憂鬱 ブルーレイ コンプリートBOX〈初回限定生産・8枚組〉 | E96: 45 | F96: 2014/1/8 中古品のため商品は多少のキズ・使用感がございます。記載ない限り帯・特典などは付属致しません。写真以外の付属品はありません。 外箱欠損 「涼宮ハルヒの憂鬱 ブルーレイ コンプリートBOX〈初回限定生産・8枚組〉」 杉田智和 / 平野綾 / 石原立也 定価: ￥ 38000 #平野綾 #杉田智和 #武本康弘 #武本康弘 #京都アニメーション #涼宮ハルヒ #涼宮ハルヒの憂鬱 #長門有希 #朝比奈みくる #いとうのいぢ #谷川流 #京アニ ヒロイン・涼宮ハルヒが宇宙人や超能力者たちと一緒に遊ぶために設立したSOS団（世界を大いに盛り上げるための涼宮ハルヒの団）を中心に、非日常的なドタバタ学園ドラマが展開する。個性派キャラ炸裂の超萌えアニメだ。 | G96: 335 | H96: 3968 | I96: 最安値 | J96: https://www.amazon.co.jp/%E6%B6%BC%E5%AE%AE%E3%83%8F%E3%83%AB%E3%83%92%E3%81%AE%E6%86%82%E9%AC%B1-%E3%83%96%E3%83%AB%E3%83%BC%E3%83%AC%E3%82%A4-%E3%82%B3%E3%83%B3%E3%83%97%E3%83%AA%E3%83%BC%E3%83%88-%E5%88%9D%E5%9B%9E%E9%99%90%E5%AE%9A%E7%94%9F%E7%94%A3-Blu-ray/dp/B003UTS85C/ref=sr_1_2?crid=1UQ62EATO8HLZ&keywords=%E6%B6%BC%E5%AE%AE%E3%83%8F%E3%83%AB%E3%83%92%E3%81%AE%E6%86%82%E9%AC%B1+blu-ray&qid=1640476628&sprefix=%E6%B6%BC%E5%AE%AE%E3%83%8F%E3%83%AB%E3%83%92%E3%81%AE%E6%86%82%E9%AC%B1%2Caps%2C178&sr=8-2 | K96: https://www.amazon.co.jp/dp/B003UTS85C/ref=olp-opf-redir?aod=1&ie=UTF8&condition=ALL | L96: 12094 | M96: 3778 | N96: 配送料 ¥240 6月 30日-7月 2日。 詳細を見る | O96: =MID(N96,FIND("配送料 ¥",N96)+5,FIND(" ",MID(N96,FIND("¥",N96),10))-2)*1 -> 240 | P96: 4018 | Q96: #平野綾 #杉田智和 #武本康弘 #武本康弘 #京都アニメーション #涼宮ハルヒ #涼宮ハルヒの憂鬱 #長門有希 #朝比奈みくる #いとうのいぢ #谷川流 #京アニ | R96: #メルカリ [Blu-ray]涼宮ハルヒの憂鬱 ブルーレイ コンプリートBOX〈初回限定生産・8枚組〉 フリマアプリ「メルカリ」で販売中 https://jp.mercari.com/item/m71002165641/ #平野綾 #杉田智和 #武本康弘 #武本康弘 #京都アニメーション #涼宮ハルヒ #涼宮ハルヒの憂鬱 #長門有希 #朝比奈みくる #いとうのいぢ #谷川流 #京アニ | S96: 307 | T96: 2022-07-04 | U96: 3968 | V96: 2022-06-27 | W96: 3968 | X96: 396 | Y96: 550 | Z96: 3022 | AA96: 送料込み(出品者負担) | AB96: 怪盗1412号 | AC96: 2022-07-03 | AF96: 個人 | AG96: 1
B97: m53796893065 | C97: 取引終了 | D97: [DVD]∀ガンダム MEMORIAL BOXⅠ&Ⅱ | E97: 26 | F97: 2009/4/29購入 中古品のため商品は多少のキズ・使用感がございます。記載ない限り帯・特典などは付属致しません。プロダクト、ダウンロードコードは使用できません。写真以外の付属品はありません。 「∀ガンダム MEMORIAL BOXⅡ〈初回限定生産・7枚組〉」 朴璐美 / 高橋理恵子 / 富野由悠季 定価: ￥ 30000 #朴璐美 #高橋理恵子 #富野由悠季 #ガンダム #機動戦士ガンダム #ターンエーガンダム #菅野よう子 #シド・ミード #あきまん #安田朗 #矢立肇 #大河原邦男 密かに月から地球に降り立ち、幸せに暮らしていた少年ロラン。月と地球の戦争に巻き込まれた彼は、旧時代のモビルスーツに乗り込んで……。シリーズでもっとも思慕や愛にあふれていると言われる、20世紀最後のガンダム作品。 | G97: 358 | H97: 12428 | J97: https://www.amazon.co.jp/%E2%88%80%E3%82%AC%E3%83%B3%E3%83%80%E3%83%A0-MEMORIAL-BOX-II-DVD/dp/B000O77LHE/ref=sr_1_2?__mk_ja_JP=%E3%82%AB%E3%82%BF%E3%82%AB%E3%83%8A&crid=17TJ5K5VY32YL&keywords=%E2%88%80%E3%82%AC%E3%83%B3%E3%83%80%E3%83%A0+MEMORIAL+BOX&qid=1640477594&sprefix=%E3%82%AC%E3%83%B3%E3%83%80%E3%83%A0+memorial+box%2Caps%2C162&sr=8-2 | K97: https://www.amazon.co.jp/dp/B000O77LHE/ref=olp-opf-redir?aod=1&ie=UTF8&condition=ALL | L97: 32110 | M97: 9352 | N97: お届け日 (配送料: ￥497 ): 1月31日 - 2月5日 詳細を見る | O97: 497 | P97: 9849 | Q97: #朴璐美 #高橋理恵子 #富野由悠季 #ガンダム #機動戦士ガンダム #ターンエーガンダム #菅野よう子 #シド・ミード #あきまん #安田朗 #矢立肇 #大河原邦男 | R97: #メルカリ [DVD]∀ガンダム MEMORIAL BOXⅠ&Ⅱ フリマアプリ「メルカリ」で販売中 https://jp.mercari.com/item/m53796893065/ #朴璐美 #高橋理恵子 #富野由悠季 #ガンダム #機動戦士ガンダム #ターンエーガンダム #菅野よう子 #シド・ミード #あきまん #安田朗 #矢立肇 #大河原邦男 | S97: 267 | T97: 2022-01-31 | U97: 9849 | V97: 2022-01-24 | W97: 12428 | X97: 1242 | Y97: 830 | Z97: 10356 | AA97: 送料込み(出品者負担) | AC97: 2022-01-27 | AF97: 個人 | AG97: 1
B98: m92514449503 | C98: 取引終了 | D98: [Blu-ray]アニー・ホール | E98: 16 | F98: 2014/2/3購入 中古品のため商品は多少のキズ・使用感がございます。記載ない限り帯・特典などは付属致しません。プロダクト、ダウンロードコードは使用できません。写真以外の付属品はありません。 「アニー・ホール('77米)」 ウディ・アレン / ダイアン・キートン / ウディ・アレン 定価: ￥ 3980 #ウディ・アレン #ダイアン・キートン #シガニー・ウィーバー #アニー・ホール 77年度アカデミー賞の主要4部門を受賞した映画史に残る名作。『エイリアン』シリーズのシガニー・ウィーバーが出演。売れっ子コメディアンのアルビーは駆け出しの歌手と恋に落ちる……。 | G98: 286 | H98: 3553 | I98: 最安値 | J98: https://www.amazon.co.jp/%E3%82%A2%E3%83%8B%E3%83%BC%E3%83%BB%E3%83%9B%E3%83%BC%E3%83%AB-Blu-ray-%E3%82%A6%E3%83%87%E3%82%A3%E3%83%BB%E3%82%A2%E3%83%AC%E3%83%B3/dp/B0067XIHLI/ref=tmm_blu_title_0?_encoding=UTF8&qid=1640738878&sr=8-1 | K98: https://www.amazon.co.jp/dp/B0067XIHLI/ref=olp-opf-redir?aod=1&ie=UTF8&condition=ALL | M98: 3373 | N98: 配送料 ¥280 4月 30日-5月 1日。 詳細を見る | O98: =MID(N98,FIND("配送料 ¥",N98)+5,FIND(" ",MID(N98,FIND("¥",N98),10))-2)*1 -> 280 | P98: 3653 | Q98: #ウディ・アレン #ダイアン・キートン #シガニー・ウィーバー #アニー・ホール | R98: #メルカリ [Blu-ray]アニー・ホール フリマアプリ「メルカリ」で販売中 https://jp.mercari.com/item/m92514449503/ #ウディ・アレン #ダイアン・キートン #シガニー・ウィーバー #アニー・ホール | S98: 186 | T98: 2022-05-04 | U98: 3553 | V98: 2022-04-27 | W98: 3553 | X98: 355 | Y98: 175 | Z98: 3023 | AA98: 送料込み(出品者負担) | AC98: 2022-05-04 | AF98: 個人 | AG98: 1
B99: m79239810687 | C99: 取引終了 | D99: [Blu-ray]マンハッタン | E99: 15 | F99: 中古品のため商品は多少のキズ・使用感がございます。記載ない限り帯・特典などは付属致しません。写真以外の付属品はありません。 「マンハッタン('79米)」 ウディ・アレン / ダイアン・キートン / ウディ・アレン 定価: ￥ 4700 #ウディ・アレン #ダイアン・キートン #ウディ・アレン #メリル・ストリープ #ジョージ・ガーシュウィン #マンハッタン 中年男アイザックは過去2回の離婚暦を持ち、現在同棲している高校生の恋人からも逃げ腰。そんな彼がある日、友人の愛人に恋をして……。マンハッタンに住む男の孤独をモノクロ映像で描いた、ウディ・アレン的NY賛歌。 | G99: 285 | H99: 1999 | I99: 安すぎ | J99: https://www.amazon.co.jp/%E3%83%9E%E3%83%B3%E3%83%8F%E3%83%83%E3%82%BF%E3%83%B3-Blu-ray-%E3%82%A6%E3%83%87%E3%82%A3%E3%83%BB%E3%82%A2%E3%83%AC%E3%83%B3/dp/B0067XIHFY/ref=tmm_blu_title_0?_encoding=UTF8&qid=1640738857&sr=8-1 | K99: https://www.amazon.co.jp/dp/B0067XIHFY/ref=olp-opf-redir?aod=1&ie=UTF8&condition=ALL | M99: 2980 | N99: 無料配送 8月15日-17日にお届け 詳細を見る | O99: =MID(N99,FIND("配送料 ¥",N99)+5,FIND(" ",MID(N99,FIND("¥",N99),10))-2)*1 ->  | P99: 2980 | Q99: #ウディ・アレン #ダイアン・キートン #ウディ・アレン #メリル・ストリープ #ジョージ・ガーシュウィン #マンハッタン | R99: ="#メルカリ"&CHAR(10)&D99&CHAR(10)&" フリマアプリ「メルカリ」で販売中 https://jp.mercari.com/item/"&B99&"?utm_source=android&utm_medium=share "&Q99 -> #メルカリ [Blu-ray]マンハッタン フリマアプリ「メルカリ」で販売中 https://jp.mercari.com/item/m79239810687?utm_source=android&utm_medium=share #ウディ・アレン #ダイアン・キートン #ウディ・アレン #メリル・ストリープ #ジョージ・ガーシュウィン #マンハッタン | S99: 257 | T99: 2023-08-18 | U99: 1999 | V99: 2023-08-11 | W99: 1999 | X99: 199 | Y99: 210 | Z99: 1590 | AA99: 送料込み(出品者負担) | AB99: 十六夜 | AC99: 2023-08-14 | AF99: 個人 | AG99: 1
B100: m11214470364 | C100: 取引終了 | D100: [Blu-ray]ブルーベルベット オリジナル無修正版 | E100: 27 | F100: 2012/6/3購入 中古品のため商品は多少のキズ・使用感がございます。記載ない限り帯・特典などは付属致しません。写真以外の付属品はありません。 「ブルーベルベット オリジナル無修正版('86米)」 カイル・マクラクラン / デニス・ホッパー / デヴィッド・リンチ 定価: ￥ 1905 #カイル・マクラクラン #デニス・ホッパー #デヴィッド・リンチ #ブルーベルベット 舞台はのどかな田舎町ランバートン。病院に父を見舞った大学生のジェフリーは、切り落とされた人間の耳を見つける。彼は真相を追究していくうちに、しだいにアブノーマルな世界にはまり込んでいき……。デヴィッド・リンチ監督の問題作。 | G100: 301 | H100: 2174 | I100: 最安値 | J100: https://www.amazon.co.jp/%E3%83%96%E3%83%AB%E3%83%BC%E3%83%99%E3%83%AB%E3%83%99%E3%83%83%E3%83%88%EF%BC%88%E3%82%AA%E3%83%AA%E3%82%B8%E3%83%8A%E3%83%AB%E7%84%A1%E4%BF%AE%E6%AD%A3%E7%89%88%EF%BC%89-Blu-ray-%E3%82%AB%E3%82%A4%E3%83%AB%E3%83%BB%E3%83%9E%E3%82%AF%E3%83%A9%E3%82%AF%E3%83%A9%E3%83%B3/dp/B0067XIHHC/ref=tmm_blu_title_0?_encoding=UTF8&qid=&sr= | K100: https://www.amazon.co.jp/dp/B0067XIHHC/ref=olp-opf-redir?aod=1&ie=UTF8&condition=ALL | M100: 1884 | N100: 配送料 ¥340 9月 22-26日。 詳細を見る | O100: 340 | P100: 2224 | Q100: #カイル・マクラクラン #デニス・ホッパー #デヴィッド・リンチ #ブルーベルベット | R100: #メルカリ [Blu-ray]ブルーベルベット オリジナル無修正版 フリマアプリ「メルカリ」で販売中 https://jp.mercari.com/item/m11214470364/ #カイル・マクラクラン #デニス・ホッパー #デヴィッド・リンチ #ブルーベルベット | S100: 211 | T100: 2022-09-25 | U100: 2174 | V100: 2022-09-18 | W100: 2174 | X100: 217 | Y100: 210 | Z100: 1747 | AA100: 送料込み(出品者負担) | AB100: maki | AC100: 2022-09-25 | AF100: 個人 | AG100: 1
B101: m74859950708 | C101: 取引終了 | D101: [Blu-ray]ストレイト・ストーリー リストア版 | E101: 26 | F101: 2014/2/2購入 中古品のため商品は多少のキズ・使用感がございます。記載ない限り帯・特典などは付属致しません。プロダクト、ダウンロードコードは使用できません。写真以外の付属品はありません。 「ストレイト・ストーリー リストア版('99米)」 リチャード・ファーンズワース / シシー・スペイセク / デヴィッド・リンチ 定価: ￥ 2381 #リチャード・ファーンズワース #シシー・スペイセク #デヴィッド・リンチ #ストレイト・ストーリー 73歳のストレイトのもとに、76歳の兄が倒れたと知らせが入る。周囲の反対を押し切り、彼は時速8キロのトラクターに乗って旅に出た……。巨匠デヴィッド・リンチが描く、実話にもとづくロード・ムーヴィー。 | G101: 325 | H101: 2450 | I101: 最安値 | J101: https://www.amazon.co.jp/%E3%82%B9%E3%83%88%E3%83%AC%E3%82%A4%E3%83%88%E3%83%BB%E3%82%B9%E3%83%88%E3%83%BC%E3%83%AA%E3%83%BC-%E3%83%AA%E3%82%B9%E3%83%88%E3%82%A2%E7%89%88-Blu-ray-%E3%83%AA%E3%83%81%E3%83%A3%E3%83%BC%E3%83%89%E3%83%BB%E3%83%95%E3%82%A1%E3%83%BC%E3%83%B3%E3%82%BA%E3%83%AF%E3%83%BC%E3%82%B9/dp/B00DACM3BO/ref=sr_1_1?__mk_ja_JP=%E3%82%AB%E3%82%BF%E3%82%AB%E3%83%8A&crid=3PKKSWEHEKUMI&keywords=%E3%82%B9%E3%83%88%E3%83%AC%E3%82%A4%E3%83%88%E3%83%BB%E3%82%B9%E3%83%88%E3%83%BC%E3%83%AA%E3%83%BC+%E3%83%AA%E3%82%B9%E3%83%88%E3%82%A2%E7%89%88&qid=1640927869&sprefix=%E3%82%B9%E3%83%88%E3%83%AC%E3%82%A4%E3%83%88+%E3%82%B9%E3%83%88%E3%83%BC%E3%83%AA%E3%83%BC+%E3%83%AA%E3%82%B9%E3%83%88%E3%82%A2%E7%89%88%2Caps%2C307&sr=8-1 | K101: https://www.amazon.co.jp/dp/B00DACM3BO/ref=olp-opf-redir?aod=1&ie=UTF8&condition=ALL | M101: 2550 | N101: 無料配送: 1月22日 - 24日 詳細を見る | P101: 2550 | Q101: #リチャード・ファーンズワース #シシー・スペイセク #デヴィッド・リンチ #ストレイト・ストーリー | R101: #メルカリ [Blu-ray]ストレイト・ストーリー リストア版 フリマアプリ「メルカリ」で販売中 https://jp.mercari.com/item/m74859950708/ #リチャード・ファーンズワース #シシー・スペイセク #デヴィッド・リンチ #ストレイト・ストーリー | S101: 225 | T101: 2022-01-26 | U101: 2450 | V101: 2022-01-19 | W101: 2450 | X101: 245 | Y101: 175 | Z101: 2030 | AA101: 送料込み(出品者負担) | AC101: 2022-01-21 | AF101: 個人 | AG101: 1
B102: m55904140773 | C102: 出品中 | D102: [Blu-ray]U・ボート ディレクターズ・カット | E102: 26 | F102: 2014/2/2購入 中古品のため商品は多少のキズ・使用感がございます。記載ない限り帯・特典などは付属致しません。写真以外の付属品はありません。 「U・ボート ディレクターズ・カット('81独)」 ユルゲン・プロホノフ / ヘルベルト・グレーネマイヤー / ウォルフガング・ペーターゼン 定価: ￥ 2500 #ユルゲン・プロホノフ #ヘルベルト・グレーネマイヤー #ウォルフガング・ペーターゼン #Uボート #U・ボート 第二次大戦中のドイツの潜水艦を舞台に繰り広げられる、乗務員たちの壮絶なドラマを描いた戦争映画の傑作。97年に監督が再び編集を施した1時間以上も長いヴァージョン。随所の緊張感あふれる名シーンが一段とリアルになった。 | G102: 321 | H102: 1999 | I102: 新品より高い | J102: https://www.amazon.co.jp/U%E3%83%BB%E3%83%9C%E3%83%BC%E3%83%88-%E3%83%87%E3%82%A3%E3%83%AC%E3%82%AF%E3%82%BF%E3%83%BC%E3%82%BA%E3%83%BB%E3%82%AB%E3%83%83%E3%83%88-Blu-ray-%E3%83%A6%E3%83%AB%E3%82%B2%E3%83%B3%E3%83%BB%E3%83%97%E3%83%AD%E3%83%9B%E3%83%8E%E3%83%95/dp/B005MM43WM/ref=sr_1_10?__mk_ja_JP=%E3%82%AB%E3%82%BF%E3%82%AB%E3%83%8A&crid=YTNTYTTJIBCV&keywords=U%E3%83%BB%E3%83%9C%E3%83%BC%E3%83%88+%E3%83%87%E3%82%A3%E3%83%AC%E3%82%AF%E3%82%BF%E3%83%BC%E3%82%BA%E3%83%BB%E3%82%AB%E3%83%83%E3%83%88&qid=1640999649&sprefix=%2Caps%2C155&sr=8-10 | K102: https://www.amazon.co.jp/dp/B005MM43WM/ref=olp-opf-redir?aod=1&ie=UTF8&condition=ALL | L102: 1478 | M102: 758 | N102: 配送料 ¥400 11月2日-3日にお届け 詳細を見る | O102: =MID(N102,FIND("配送料 ¥",N102)+5,FIND(" ",MID(N102,FIND("¥",N102),10))-2)*1 -> 400 | P102: 1158 | Q102: #ユルゲン・プロホノフ #ヘルベルト・グレーネマイヤー #ウォルフガング・ペーターゼン #Uボート #U・ボート | R102: ="#メルカリ"&CHAR(10)&D102&CHAR(10)&" フリマアプリ「メルカリ」で販売中 https://jp.mercari.com/item/"&B102&"?utm_source=android&utm_medium=share "&Q102 -> #メルカリ [Blu-ray]U・ボート ディレクターズ・カット フリマアプリ「メルカリ」で販売中 https://jp.mercari.com/item/m55904140773?utm_source=android&utm_medium=share #ユルゲン・プロホノフ #ヘルベルト・グレーネマイヤー #ウォルフガング・ペーターゼン #Uボート #U・ボート | S102: 267 | U102: 1999 | AF102: 個人 | AG102: 1
B103: m36922924724 | C103: 出品中 | D103: [Blu-ray]L.A.コンフィデンシャル ブルーレイ・エディション〈2枚組〉 | E103: 40 | F103: 2009/2/1購入 中古品のため商品は多少のキズ・使用感がございます。記載ない限り帯・特典などは付属致しません。写真以外の付属品はありません。 「L.A.コンフィデンシャル ブルーレイ・エディション('97米)〈2枚組〉」 ケヴィン・スペイシー / ラッセル・クロウ / カーティス・ハンソン 定価: ￥ 4700 #ケヴィン・スペイシー #ラッセル・クロウ #カーティス・ハンソン #キム・ベイシンガー #ジェイムズ・エルロイ #エルロイ 縄張り争いが激化する'50年代のロサンゼルス。街のコーヒーショップで元刑事を含む6人の男女が惨殺される事件が発生した。殺された刑事の相棒だったバド(ラッセル・クロウ)が捜査を開始。殺された女と一緒にいたブロンド美女リン(キム・ベイシンガー)に接近する。彼女はスターに似た女を集めた高級娼婦組織の一員だった。同じ頃、その組織をベテラン刑事のジャック(ケビン・スペイシー)が追っていた。野心家の若手刑事エドも事件を追い、容疑者を射殺。事件は解決したかに見えたが、彼ら3人は底なしの陰謀に巻き込まれていく。 【特典ディスク映像】 ○「撮影秘話」 ― 主要キャストのカメラテストなど、秘蔵映像を交えた、スタッフ・キャストによる作品解説 【約19分】 ○「写真で見るL.A.コンフィデンシャルの世界」 ― 1950年代当時の写真を用い、製作背景に迫る! 【約8分】 ○“L.A.”コンフィデンシャル ロケーションマップ ― ロケ地にまつわる数々のエピソードを紹介 【合計 約5分】 【New!特典映像】 新たに製作された監督・キャスト・スタッフによるインタビューを交えたメイキング映像 ●メイキング・オブ・L.A.コンフィデンシャル 【約30分】 ●スクリーンに蘇る1950年代L.A.の風景 【約21分】 ●映画を彩る豪華キャストたち 【約25分】 ●エルロイ文学・映像化への挑戦 【約21分】 | G103: 820 | H103: 1999 | J103: https://www.amazon.co.jp/L-CONFIDENTIAL-%E3%83%96%E3%83%AB%E3%83%BC%E3%83%AC%E3%82%A4%E3%83%BB%E3%82%A8%E3%83%87%E3%82%A3%E3%82%B7%E3%83%A7%E3%83%B3-Blu-ray-%E3%83%A9%E3%83%83%E3%82%BB%E3%83%AB%E3%83%BB%E3%82%AF%E3%83%AD%E3%82%A6/dp/B001FVB4BW/ref=tmm_blu_title_0?_encoding=UTF8&qid=1640999358&sr=8-5 | K103: https://www.amazon.co.jp/dp/B001FVB4BW/ref=olp-opf-redir?aod=1&ie=UTF8&condition=ALL | L103: 3000 | M103: 1080 | N103: 配送料 ¥410 11月1日-2日にお届け 詳細を見る | O103: 410 | P103: 1490 | Q103: #ケヴィン・スペイシー #ラッセル・クロウ #カーティス・ハンソン #キム・ベイシンガー #ジェイムズ・エルロイ #エルロイ | R103: #メルカリ [Blu-ray]L.A.コンフィデンシャル ブルーレイ・エディション〈2枚組〉 フリマアプリ「メルカリ」で販売中 https://jp.mercari.com/item/m36922924724?utm_source=android&utm_medium=share #ケヴィン・スペイシー #ラッセル・クロウ #カーティス・ハンソン #キム・ベイシンガー #ジェイムズ・エルロイ #エルロイ | S103: 303 | U103: 1999 | AF103: 個人 | AG103: 1
B104: m84144190097 | C104: 取引終了 | D104: [Blu-ray]ロード・オブ・ザ・リング エクステンデッド・エディション トリロジーBOX〈15枚組〉 | E104: 52 | F104: 2012/11/17購入 中古品のため商品は多少のキズ・使用感がございます。記載ない限り帯・特典などは付属致しません。写真以外の付属品はありません。 外箱欠品 「ロード・オブ・ザ・リング エクステンデッド・エディション トリロジーBOX〈15枚組〉」 定価: ￥ 27000 #ピーター・ジャクソン #指輪物語 #J・R・R・トールキン #ロード・オブ・ザ・リング #イライジャ・ウッド #ガンダルフ エクステンデッド・エディションがブルーレイで登場!! 3部作本編（BD6枚）と日本初登場の映像を含む特典映像（DVD9枚）を収録した豪華15枚組！ ロード・オブ・ザ・リング [DISC1：BD／DISC2：BD] 本編 オーディオコメンタリー （監督＆脚本／デザイン・チーム／製作＆ポスト・プロダクション・チーム／キャスト） [DISC3：DVD] 「FROM BOOK TO VISION」 [DISC4：DVD] 「FROM VISION TO REALITY」 [DISC5：DVD] ※日本初登場 THE FELLOWSHIP OF THE RING BEHIND THE SCENES ロード・オブ・ザ・リング／二つの塔 [DISC6：BD／DISC7：BD] 本編 オーディオコメンタリー [DISC8：DVD] 「The Journey Continues...」 [DISC9：DVD] 「The Battle for Middle-earth Begins」 [DISC10：DVD] ※日本初登場 THE TWO TOWERS BEHIND THE SCENES ロード・オブ・ザ・リング／王の帰還 [DISC11：BD／DISC12：BD] 本編 オーディオコメンタリー [DISC13：DVD] 「The War of the Ring」 [DISC14：DVD] 「The Passing of an Age」 [DISC15：DVD] ※日本初登場 THE RETURN OF THE KING BEHIND THE SCENES | G104: 886 | H104: 21000 | I104: 安すぎ | J104: https://www.amazon.co.jp/%E3%83%AD%E3%83%BC%E3%83%89%E3%83%BB%E3%82%AA%E3%83%96%E3%83%BB%E3%82%B6%E3%83%BB%E3%83%AA%E3%83%B3%E3%82%B0-%E3%82%A8%E3%82%AF%E3%82%B9%E3%83%86%E3%83%B3%E3%83%87%E3%83%83%E3%83%89%E3%83%BB%E3%82%A8%E3%83%87%E3%82%A3%E3%82%B7%E3%83%A7%E3%83%B3-%E3%83%88%E3%83%AA%E3%83%AD%E3%82%B8%E3%83%BCBOX%E3%80%90Blu-ray%E3%80%91-%E3%82%A4%E3%83%A9%E3%82%A4%E3%82%B8%E3%83%A3%E3%83%BB%E3%82%A6%E3%83%83%E3%83%89/dp/B005HMQSGG/ref=tmm_blu_title_0?_encoding=UTF8&qid=&sr= | K104: https://www.amazon.co.jp/dp/B005HMQSGG/ref=olp-opf-redir?aod=1&ie=UTF8&condition=ALL | M104: 22160 | N104: 配送料 ¥450 8月 25-27日。 詳細を見る | O104: =MID(N104,FIND("配送料 ¥",N104)+5,FIND(" ",MID(N104,FIND("¥",N104),10))-2)*1 -> 450 | P104: 22610 | Q104: #ピーター・ジャクソン #指輪物語 #J・R・R・トールキン #ロード・オブ・ザ・リング #イライジャ・ウッド #ガンダルフ | R104: #メルカリ [Blu-ray]ロード・オブ・ザ・リング エクステンデッド・エディション トリロジーBOX〈15枚組〉 フリマアプリ「メルカリ」で販売中 https://jp.mercari.com/item/m84144190097/ #ピーター・ジャクソン #指輪物語 #J・R・R・トールキン #ロード・オブ・ザ・リング #イライジャ・ウッド #ガンダルフ | S104: 288 | T104: 2022-09-01 | U104: 21000 | V104: 2022-08-25 | W104: 21000 | X104: 2100 | Y104: 850 | Z104: 18050 | AA104: 送料込み(出品者負担) | AB104: little-forest | AC104: 2022-08-30 | AF104: 個人 | AG104: 1
B105: m80820518229 | C105: 出品中 | D105: [CD]サガ フロンティア オリジナル・サウンドトラック〈3枚組〉 | E105: 33 | F105: 2016/7/9購入 中古品のため商品は多少のキズ・使用感がございます。記載ない限り帯・特典などは付属致しません。写真以外の付属品はありません。 「「サガ フロンティア」オリジナル・サウンドトラック〈3枚組〉(SaGa Frontier Original Soundtrack)」 定価: ￥ 3204 #伊藤賢治 #サガフロ #サガフロンティア #サガ・フロンティア #河津秋敏 ファン待望の『SaGa Frontier』のオリジナル・サウンドトラック。豪華CD3枚組仕様で、トータル収録時間が210分を越える、ゲーム・ミュージック・ファンにはこたえられないヴォリュームだ。音楽は、伊藤賢治が担当。 | G105: 303 | H105: 2140 | I105: 最安値 | J105: https://www.amazon.co.jp/SaGa-Frontier-Original-Soundtrack-%E3%82%B2%E3%83%BC%E3%83%A0%E3%83%BB%E3%83%9F%E3%83%A5%E3%83%BC%E3%82%B8%E3%83%83%E3%82%AF/dp/B000CPGWM8/ref=sr_1_4?__mk_ja_JP=%E3%82%AB%E3%82%BF%E3%82%AB%E3%83%8A&keywords=%E3%80%8C%E3%82%B5%E3%82%AC+%E3%83%95%E3%83%AD%E3%83%B3%E3%83%86%E3%82%A3%E3%82%A2%E3%80%8D%E3%82%AA%E3%83%AA%E3%82%B8%E3%83%8A%E3%83%AB%E3%83%BB%E3%82%B5%E3%82%A6%E3%83%B3%E3%83%89%E3%83%88%E3%83%A9%E3%83%83%E3%82%AF&qid=1641199015&sr=8-4 | K105: https://www.amazon.co.jp/dp/B000CPGWM8/ref=olp-opf-redir?aod=1&ie=UTF8&condition=ALL | L105: 2667 | M105: 1800 | N105: 配送料 ¥350 11月2日-4日にお届け 詳細を見る | O105: =MID(N105,FIND("配送料 ¥",N105)+5,FIND(" ",MID(N105,FIND("¥",N105),10))-2)*1 -> 350 | P105: 2150 | Q105: #伊藤賢治 #サガフロ #サガフロンティア #サガ・フロンティア #河津秋敏 | R105: ="#メルカリ"&CHAR(10)&D105&CHAR(10)&" フリマアプリ「メルカリ」で販売中 https://jp.mercari.com/item/"&B105&"?utm_source=android&utm_medium=share "&Q105 -> #メルカリ [CD]サガ フロンティア オリジナル・サウンドトラック〈3枚組〉 フリマアプリ「メルカリ」で販売中 https://jp.mercari.com/item/m80820518229?utm_source=android&utm_medium=share #伊藤賢治 #サガフロ #サガフロンティア #サガ・フロンティア #河津秋敏 | S105: 251 | U105: 2140 | AF105: 個人 | AG105: 1
B106: m84040622938 | C106: 取引終了 | D106: [CD]サガ フロンティア 2 オリジナル・サウンドトラック〈3枚組〉 | E106: 35 | F106: 2007/10/23購入 中古品のため商品は多少のキズ・使用感がございます。記載ない限り帯・特典などは付属致しません。プロダクト、ダウンロードコードは使用できません。写真以外の付属品はありません。 「サガ フロンティア 2 オリジナル・サウンドトラック〈3枚組〉(「SaGa Frontier 2」Original Soundtrack)」 定価: ￥ 3000 #浜渦正志 #サガフロ2 #サガフロンティア2 #サガ・フロンティア2 #河津秋敏 #サガフロ #サガフロンティア #サガ・フロンティア プレイステーション用RPGソフトのサウンドトラック。オリジナル音源をすべて収録。音楽を手がけるのは『チョコボの不思議なダンジョン』などで知られ、今もっとも注目を集めている浜渦正志。 | G106: 345 | H106: 2547 | I106: 最安値 | J106: https://www.amazon.co.jp/SaGa-Frontier2-Original-Soundtrack-%E3%82%B2%E3%83%BC%E3%83%A0%E3%83%BB%E3%83%9F%E3%83%A5%E3%83%BC%E3%82%B8%E3%83%83%E3%82%AF/dp/B000CPGWMI/ref=sr_1_2?__mk_ja_JP=%E3%82%AB%E3%82%BF%E3%82%AB%E3%83%8A&crid=1KONQEHJ1LHZY&keywords=%E3%80%8C%E3%82%B5%E3%82%AC+%E3%83%95%E3%83%AD%E3%83%B3%E3%83%86%E3%82%A3%E3%82%A2%EF%BC%92+%E3%82%AA%E3%83%AA%E3%82%B8%E3%83%8A%E3%83%AB%E3%83%BB%E3%82%B5%E3%82%A6%E3%83%B3%E3%83%89%E3%83%88%E3%83%A9%E3%83%83%E3%82%AF&qid=1641199213&sprefix=%E3%82%B5%E3%82%AC+%E3%83%95%E3%83%AD%E3%83%B3%E3%83%86%E3%82%A3%E3%82%A22+%E3%82%AA%E3%83%AA%E3%82%B8%E3%83%8A%E3%83%AB+%E3%82%B5%E3%82%A6%E3%83%B3%E3%83%89%E3%83%88%E3%83%A9%E3%83%83%E3%82%AF%2Caps%2C147&sr=8-2 | K106: https://www.amazon.co.jp/dp/B000CPGWMI/ref=olp-opf-redir?aod=1&ie=UTF8&condition=ALL | L106: 2768 | M106: 2146 | N106: お届け日 (配送料: ￥500 ): 2月25日 - 3月4日 詳細を見る | O106: 500 | P106: 2646 | Q106: #浜渦正志 #サガフロ2 #サガフロンティア2 #サガ・フロンティア2 #河津秋敏 #サガフロ #サガフロンティア #サガ・フロンティア | R106: #メルカリ [CD]サガ フロンティア 2 オリジナル・サウンドトラック〈3枚組〉 フリマアプリ「メルカリ」で販売中 https://jp.mercari.com/item/m84040622938/ #浜渦正志 #サガフロ2 #サガフロンティア2 #サガ・フロンティア2 #河津秋敏 #サガフロ #サガフロンティア #サガ・フロンティア | S106: 270 | T106: 2022-02-20 | U106: 2547 | V106: 2022-02-13 | W106: 2547 | X106: 254 | Y106: 175 | Z106: 2118 | AA106: 送料込み(出品者負担) | AC106: 2022-02-19 | AF106: 個人 | AG106: 1
B107: m66419964642 | C107: 出品中 | D107: [CD]タクティクスオウガ オリジナル・サウンドトラック | E107: 28 | F107: 2016/3/24購入 中古品のため商品は多少のキズ・使用感がございます。記載ない限り帯・特典などは付属致しません。写真以外の付属品はありません。 「タクティクスオウガ オリジナル・サウンドトラック/岩田匡治,崎元仁」 定価: ￥ 2381 #岩田匡治 #崎元仁 #タクティクスオウガ #松野泰己 #ベイシスケイプ #Basiscape #スクエニ #スクウェア・エニックス 『オウガバトル』シリーズ2作目のBGM集、低価格盤。3枚組、全92曲のヴォリュームで、オリジナルとMIDI音源が各45曲ずつ収録。同日には1作目の全曲集やアレンジ集なども発売される。 | G107: 282 | H107: 30420 | I107: 最安値 | J107: https://www.amazon.co.jp/%E3%82%BF%E3%82%AF%E3%83%86%E3%82%A3%E3%82%AF%E3%82%B9%E3%82%AA%E3%82%A6%E3%82%AC-%E3%82%B2%E3%83%BC%E3%83%A0%E3%83%BB%E3%83%9F%E3%83%A5%E3%83%BC%E3%82%B8%E3%83%83%E3%82%AF/dp/B00005FD7X/ref=tmm_acd_title_0?_encoding=UTF8&amp&qid=1641252214&amp&sr=8-2 | K107: https://www.amazon.co.jp/dp/B00005FD7X/ref=olp-opf-redir?aod=1&ie=UTF8&condition=ALL | M107: 30080 | N107: 配送料 ¥350 11月1日-2日にお届け 詳細を見る | O107: =MID(N107,FIND("配送料 ¥",N107)+5,FIND(" ",MID(N107,FIND("¥",N107),10))-2)*1 -> 350 | P107: 30430 | Q107: #岩田匡治 #崎元仁 #タクティクスオウガ #松野泰己 #ベイシスケイプ #Basiscape #スクエニ #スクウェア・エニックス | R107: ="#メルカリ"&CHAR(10)&D107&CHAR(10)&" フリマアプリ「メルカリ」で販売中 https://jp.mercari.com/item/"&B107&"?utm_source=android&utm_medium=share "&Q107 -> #メルカリ [CD]タクティクスオウガ オリジナル・サウンドトラック フリマアプリ「メルカリ」で販売中 https://jp.mercari.com/item/m66419964642?utm_source=android&utm_medium=share #岩田匡治 #崎元仁 #タクティクスオウガ #松野泰己 #ベイシスケイプ #Basiscape #スクエニ #スクウェア・エニックス | S107: 285 | U107: 30420 | AF107: 個人 | AG107: 1
B108: m45604187216 | C108: 取引終了 | D108: [CD]ファイナルファンタジー タクティクス アドバンス オリジナルサウンドトラック | E108: 42 | F108: 2016/3/24購入 中古品のため商品は多少のキズ・使用感がございます。記載ない限り帯・特典などは付属致しません。写真以外の付属品はありません。 「「FINAL FANTASY TACTICS ADVANCE」Original Soundtrack」 定価: ￥ 2667 #岩田匡治 #崎元仁 #ファイナルファンタジー #松野泰己 #ベイシスケイプ #Basiscape #スクエニ #スクウェア・エニックス #FFTA #FFT プラットフォームをゲーム・ボーイアドバンスに移した『FINAL FANTASY TACTICS ADVANCE』のサウンドトラック盤。作曲は崎元仁、テーマ曲は植松伸夫で、サントラと崎元仁自身のアレンジ版による2枚組。 | G108: 329 | H108: 2849 | I108: 最安値 | J108: https://www.amazon.co.jp/FANTASY-TACTICS-ADVANCE-Original-Soundtrack/dp/B000EGD06G/ref=sr_1_2?__mk_ja_JP=%E3%82%AB%E3%82%BF%E3%82%AB%E3%83%8A&crid=BL5Z3RTNNPMR&keywords=FINAL+FANTASY+TACTICS+ADVANCE%E3%80%8DOriginal&qid=1641252437&s=music&sprefix=final+fantasy+tactics+advance+original%2Cpopular%2C145&sr=1-2 | K108: https://www.amazon.co.jp/dp/B000EGD06G/ref=olp-opf-redir?aod=1&ie=UTF8&condition=ALL | M108: 2899 | N108: 無料配送 6月29日-30日にお届け 詳細を見る | P108: 2899 | Q108: #岩田匡治 #崎元仁 #ファイナルファンタジー #松野泰己 #ベイシスケイプ #Basiscape #スクエニ #スクウェア・エニックス #FFTA #FFT | R108: #メルカリ [CD]ファイナルファンタジー タクティクス アドバンス オリジナルサウンドトラック フリマアプリ「メルカリ」で販売中 https://jp.mercari.com/item/m45604187216?utm_source=android&utm_medium=share #岩田匡治 #崎元仁 #ファイナルファンタジー #松野泰己 #ベイシスケイプ #Basiscape #スクエニ #スクウェア・エニックス #FFTA #FFT | S108: 325 | T108: 2023-06-30 | U108: 2849 | V108: 2023-06-23 | W108: 2849 | X108: 284 | Y108: 210 | Z108: 2355 | AA108: 送料込み(出品者負担) | AB108: mity | AC108: 2023-06-28 | AF108: 個人 | AG108: 1
B109: m14622579532 | C109: 取引終了 | D109: [CD]「ゼノサーガ」エピソード1/光田康典 | E109: =LEN(D109) -> 22 | F109: 2016/7/9購入 中古品のため商品は多少のキズ・使用感がございます。記載ない限り帯・特典などは付属致しません。プロダクト、ダウンロードコードは使用できません。写真以外の付属品はありません。 「「ゼノサーガ」エピソード1/光田康典」 定価: ￥ 3000 #光田康典 #ゼノギアス #ゼノサーガ #ゼノブレイド #高橋哲哉 #田中久仁彦 #KOS-MOS ロンドン・フィルの演奏やジョアンヌ・ホッグによるヴォーカル曲が話題を呼んだサントラが、曲順・構成を変えて再登場。未発表オーケストラ曲など2曲をボーナス収録、3曲の新録もあり。 | G109: =LEN(F109) -> 269 | H109: 1800 | I109: =IF(AND(L109<>"",H109>L109),"新品より高い",IF(AND(P109>0,H109<=P109,H109>=P109-100),"最安値",IF(AND(P109>0,H109<P109-100),"安すぎ",""))) ->  | J109: https://www.amazon.co.jp/%E3%82%BC%E3%83%8E%E3%82%B5%E3%83%BC%E3%82%AC-%E3%82%A8%E3%83%94%E3%82%BD%E3%83%BC%E3%83%89I-%E5%85%89%E7%94%B0%E5%BA%B7%E5%85%B8/dp/B0001ZX69Q/ref=sr_1_1?__mk_ja_JP=%E3%82%AB%E3%82%BF%E3%82%AB%E3%83%8A&crid=19C4MHF59PTE7&keywords=%E3%82%BC%E3%83%8E%E3%82%B5%E3%83%BC%E3%82%AC+%E3%82%B5%E3%83%B3%E3%83%88%E3%83%A9&qid=1641554880&sprefix=%E3%82%BC%E3%83%8E%E3%82%B5%E3%83%BC%E3%82%AC+%E3%82%B5%E3%83%B3%E3%83%88%E3%83%A9%2Caps%2C161&sr=8-1 | K109: ="https://www.amazon.co.jp/dp/"&MID(J109,FIND("/dp/",J109)+4,10)&"/ref=olp-opf-redir?aod=1&ie=UTF8&condition=ALL" -> https://www.amazon.co.jp/dp/B0001ZX69Q/ref=olp-opf-redir?aod=1&ie=UTF8&condition=ALL | L109: 2767 | M109: 1249 | N109: お届け日 (配送料: ￥340 ): 2月17日 - 18日 詳細を見る | O109: =MID(N109,FIND("配送料: ￥",N109)+6,FIND(" ",MID(N109,FIND("￥",N109),10))-2)*1 -> 340 | P109: =IF(ISERROR(O109),M109,M109+O109) -> 1589 | Q109: =MID(F109,FIND("#",F109),FIND(CHAR(10),MID(F109,FIND("#",F109),300))) -> #光田康典 #ゼノギアス #ゼノサーガ #ゼノブレイド #高橋哲哉 #田中久仁彦 #KOS-MOS | R109: ="#メルカリ"&CHAR(10)&D109&CHAR(10)&" フリマアプリ「メルカリ」で販売中 https://jp.mercari.com/item/"&B109&"/ "&Q109 -> #メルカリ [CD]「ゼノサーガ」エピソード1/光田康典 フリマアプリ「メルカリ」で販売中 https://jp.mercari.com/item/m14622579532/ #光田康典 #ゼノギアス #ゼノサーガ #ゼノブレイド #高橋哲哉 #田中久仁彦 #KOS-MOS | S109: =LENB(R109) -> 206 | T109: 2022-02-24 | U109: 1800 | V109: 2022-02-17 | W109: 1800 | X109: 180 | Y109: 175 | Z109: 1445 | AA109: 送料込み(出品者負担) | AC109: 2022-02-25 | AF109: 個人 | AG109: 1
B110: m77600651430 | C110: 取引終了 | D110: [CD]阿久女イク調教日記/paraoka | E110: 21 | F110: 中古品のため商品は多少のキズ・使用感がございます。記載ない限り帯・特典などは付属致しません。写真以外の付属品はありません。 #1 nightmaid(mp3) #2 chaosmaid(mp3) #3 slashmaid(mp3) #4 akume heaven #5 おまけミニコント #6 nightmaid(inst) #7 chaosmaid(inst) #8 slashmaid(inst) [CD]阿久女イク調教日記/paraoka #paraoka #阿久女イク #VOCALOID #初音ミク #ボーカロイド #阿久女イク調教日記 | G110: 276 | H110: 9800 | O110: =MID(N110,FIND("配送料 ¥",N110)+5,FIND(" ",MID(N110,FIND("¥",N110),10))-2)*1 ->  | P110: 0 | Q110: #1 nightmaid(mp3) | R110: #メルカリ [CD]阿久女イク調教日記/paraoka フリマアプリ「メルカリ」で販売中 https://jp.mercari.com/item/m77600651430/ #1 nightmaid(mp3) | S110: 138 | T110: 2022-10-17 | U110: 9800 | V110: 2022-10-10 | W110: 9800 | X110: 980 | Y110: 210 | Z110: 8610 | AA110: 送料込み(出品者負担) | AB110: Serizawa | AC110: 2022-10-13 | AF110: 個人 | AG110: 1
B111: m11647136100 | C111: 取引終了 | D111: [CD]「ファイナルファンタジーXII」オリジナル・サウンドトラック | E111: 34 | F111: 2008/2/9購入 中古品のため商品は多少のキズ・使用感がございます。記載ない限り帯・特典などは付属致しません。プロダクト、ダウンロードコードは使用できません。写真以外の付属品はありません。 「「ファイナルファンタジーXII」オリジナル・サウンドトラック」 定価: ￥ 3800 #崎元仁 #ベイシスケイプ #Basiscape #ファイナルファンタジーXII #FF12 #植松伸夫 プレイステーション2用ソフト『ファイナルファンタジーXII』のオリジナル・サウンドトラック。イヴァリースを彩る崎元仁の作曲によるBGM＋ゲーム未収録曲を含む全100曲を完全収録した豪華な内容だ。 | G111: 294 | H111: 1800 | J111: https://www.amazon.co.jp/%E3%83%95%E3%82%A1%E3%82%A4%E3%83%8A%E3%83%AB%E3%83%95%E3%82%A1%E3%83%B3%E3%82%BF%E3%82%B8%E3%83%BCXII-%E3%82%AA%E3%83%AA%E3%82%B8%E3%83%8A%E3%83%AB%E3%83%BB%E3%82%B5%E3%82%A6%E3%83%B3%E3%83%89%E3%83%88%E3%83%A9%E3%83%83%E3%82%AF-%E3%82%B2%E3%83%BC%E3%83%A0%E3%83%BB%E3%83%9F%E3%83%A5%E3%83%BC%E3%82%B8%E3%83%83%E3%82%AF/dp/B000EWBCQ0/ref=tmm_acd_title_0?_encoding=UTF8&qid=1641816150&sr=8-1 | K111: https://www.amazon.co.jp/dp/B000EWBCQ0/ref=olp-opf-redir?aod=1&ie=UTF8&condition=ALL | L111: 4104 | M111: 540 | N111: お届け日 (配送料: ￥252 ): 2月24日 - 25日 詳細を見る | O111: 252 | P111: 792 | Q111: #崎元仁 #ベイシスケイプ #Basiscape #ファイナルファンタジーXII #FF12 #植松伸夫 | R111: #メルカリ [CD]「ファイナルファンタジーXII」オリジナル・サウンドトラック フリマアプリ「メルカリ」で販売中 https://jp.mercari.com/item/m11647136100/ #崎元仁 #ベイシスケイプ #Basiscape #ファイナルファンタジーXII #FF12 #植松伸夫 | S111: 228 | T111: 2022-03-01 | U111: 1800 | V111: 2022-02-22 | W111: 1800 | X111: 180 | Y111: 175 | Z111: 1445 | AA111: 送料込み(出品者負担) | AC111: 2022-02-25 | AF111: 個人 | AG111: 1
B112: m76151228106 | C112: 取引終了 | D112: [Blu-ray]桑田佳祐/THE ROOTS ~偉大なる歌謡曲に感謝~(通常盤) | E112: 41 | F112: 2016/11/23購入 中古品のため商品は多少のキズ・使用感がございます。記載ない限り帯・特典などは付属致しません。プロダクト、ダウンロードコードは使用できません。写真以外の付属品はありません。 「桑田佳祐/THE ROOTS～偉大なる歌謡曲に感謝～」 桑田佳祐 定価: ￥ 6000 #桑田佳祐 #サザン #サザンオールスターズ #SAS #原由子 #松田弘 #関口和之 #野沢秀行 #大森隆志 #斎藤誠 #片山敦夫 WOWOW開局25周年記念で放送された音楽番組に、新たな編集を加えてパッケージ。ルーツである日本歌謡から東京を題材にした曲をカヴァーするほか、自身のオリジナル曲「東京」をビッグバンド・アレンジするなど、貴重なスタジオ・セッションを披露。 | G112: 333 | H112: 1880 | I112: 安すぎ | J112: https://www.amazon.co.jp/ROOTS-%E5%81%89%E5%A4%A7%E3%81%AA%E3%82%8B%E6%AD%8C%E8%AC%A1%E6%9B%B2%E3%81%AB%E6%84%9F%E8%AC%9D-%E9%80%9A%E5%B8%B8%E7%9B%A4-Blu-ray/dp/B01L1M6TBO/ref=sr_1_6?__mk_ja_JP=%E3%82%AB%E3%82%BF%E3%82%AB%E3%83%8A&crid=NHMDSPFU2CM0&keywords=%E6%A1%91%E7%94%B0%E4%BD%B3%E7%A5%90%2FTHE+ROOTS%EF%BD%9E%E5%81%89%E5%A4%A7%E3%81%AA%E3%82%8B%E6%AD%8C%E8%AC%A1%E6%9B%B2%E3%81%AB%E6%84%9F%E8%AC%9D%EF%BD%9E&qid=1641816060&sprefix=%E6%A1%91%E7%94%B0%E4%BD%B3%E7%A5%90%2Fthe+roots+%E5%81%89%E5%A4%A7%E3%81%AA%E3%82%8B%E6%AD%8C%E8%AC%A1%E6%9B%B2%E3%81%AB%E6%84%9F%E8%AC%9D+%2Caps%2C241&sr=8-6 | K112: https://www.amazon.co.jp/dp/B01L1M6TBO/ref=olp-opf-redir?aod=1&ie=UTF8&condition=ALL | L112: 4454 | M112: 1980 | N112: 配送料 ¥410 3月 10-12日 。 詳細を見る | O112: =MID(N112,FIND("配送料 ¥",N112)+5,FIND(" ",MID(N112,FIND("¥",N112),10))-2)*1 -> 410 | P112: 2390 | Q112: #桑田佳祐 #サザン #サザンオールスターズ #SAS #原由子 #松田弘 #関口和之 #野沢秀行 #大森隆志 #斎藤誠 #片山敦夫 | R112: #メルカリ [Blu-ray]桑田佳祐/THE ROOTS ~偉大なる歌謡曲に感謝~(通常盤) フリマアプリ「メルカリ」で販売中 https://jp.mercari.com/item/m76151228106/ #桑田佳祐 #サザン #サザンオールスターズ #SAS #原由子 #松田弘 #関口和之 #野沢秀行 #大森隆志 #斎藤誠 #片山敦夫 | S112: 257 | T112: 2022-03-12 | U112: 1880 | V112: 2022-03-05 | W112: 1880 | X112: 188 | Y112: 175 | Z112: 1517 | AA112: 送料込み(出品者負担) | AC112: 2022-03-11 | AF112: 個人 | AG112: 1
B113: m81795421519 | C113: 取引終了 | D113: [CD]「伝説のオウガバトル」全曲集 | E113: 18 | F113: 2016/3/24購入 中古品のため商品は多少のキズ・使用感がございます。記載ない限り帯・特典などは付属致しません。プロダクト、ダウンロードコードは使用できません。写真以外の付属品はありません。 「「伝説のオウガバトル」全曲集」 定価: ￥ 2330 #岩田匡治 #崎元仁 #タクティクスオウガ #松野泰己 #ベイシスケイプ #Basiscape #スクエニ #スクウェア・エニックス #伝説のオウガバトル 「伝説のオウガバトル」全曲集 | G113: 221 | H113: 3700 | I113: 安すぎ | J113: https://www.amazon.co.jp/%E4%BC%9D%E8%AA%AC%E3%81%AE%E3%82%AA%E3%82%A6%E3%82%AC%E3%83%90%E3%83%88%E3%83%AB-%E5%85%A8%E6%9B%B2%E9%9B%86-%E3%82%B2%E3%83%BC%E3%83%A0%E3%83%BB%E3%83%9F%E3%83%A5%E3%83%BC%E3%82%B8%E3%83%83%E3%82%AF/dp/B00005FD5J/ref=tmm_acd_title_0?_encoding=UTF8&qid=1641903169&sr=8-2 | K113: https://www.amazon.co.jp/dp/B00005FD5J/ref=olp-opf-redir?aod=1&ie=UTF8&condition=ALL | M113: 3800 | N113: 配送料 ¥350 3月 12-14日。 詳細を見る | O113: 350 | P113: 4150 | Q113: #岩田匡治 #崎元仁 #タクティクスオウガ #松野泰己 #ベイシスケイプ #Basiscape #スクエニ #スクウェア・エニックス #伝説のオウガバトル | R113: #メルカリ [CD]「伝説のオウガバトル」全曲集 フリマアプリ「メルカリ」で販売中 https://jp.mercari.com/item/m81795421519/ #岩田匡治 #崎元仁 #タクティクスオウガ #松野泰己 #ベイシスケイプ #Basiscape #スクエニ #スクウェア・エニックス #伝説のオウガバトル | S113: 250 | T113: 2022-03-18 | U113: 3700 | V113: 2022-03-11 | W113: 3700 | X113: 370 | Y113: 175 | Z113: 3155 | AA113: 送料込み(出品者負担) | AC113: 2022-03-19 | AF113: 個人 | AG113: 1
B114: m52322270078 | C114: 取引終了 | D114: [CD]「ファイナルファンタジータクティクス A2 封穴のグリモア」オリジナル・サウンドトラック | E114: 48 | F114: 2015/7/11購入 中古品のため商品は多少のキズ・使用感がございます。記載ない限り帯・特典などは付属致しません。プロダクト、ダウンロードコードは使用できません。写真以外の付属品はありません。 「「FINAL FANTASY TACTICS A2 封穴のグリモア」オリジナル・サウンドトラック/崎元仁」 定価: ￥ 2667 #崎元仁 #ファイナルファンタジー #松野泰己 #ベイシスケイプ #Basiscape #スクエニ #スクウェア・エニックス #FFTA #FFT #FFTA2 『FINAL FANTASY TACTICS A2 封穴のグリモア』のオリジナル・サウンドトラック。音楽は前作『ファイナルファンタジー タクティクス アドバンス』なども手がけた崎元仁が担当している。 | G114: 347 | H114: 1799 | I114: 安すぎ | J114: https://www.amazon.co.jp/FINAL-FANTASY-TACTICS-%E5%B0%81%E7%A9%B4%E3%81%AE%E3%82%B0%E3%83%AA%E3%83%A2%E3%82%A2-%E3%82%AA%E3%83%AA%E3%82%B8%E3%83%8A%E3%83%AB%E3%83%BB%E3%82%B5%E3%82%A6%E3%83%B3%E3%83%89%E3%83%88%E3%83%A9%E3%83%83%E3%82%AF/dp/B000WPD3H0/ref=sr_1_1?__mk_ja_JP=%E3%82%AB%E3%82%BF%E3%82%AB%E3%83%8A&crid=25BLEIBUSQQBN&keywords=FINAL+FANTASY+TACTICS+A2+%E5%B0%81%E7%A9%B4%E3%81%AE%E3%82%B0%E3%83%AA%E3%83%A2%E3%82%A2%E3%80%8D%E3%82%AA%E3%83%AA%E3%82%B8%E3%83%8A%E3%83%AB&qid=1641903236&sprefix=final+fantasy+tactics+a2+%E5%B0%81%E7%A9%B4%E3%81%AE%E3%82%B0%E3%83%AA%E3%83%A2%E3%82%A2+%E3%82%AA%E3%83%AA%E3%82%B8%E3%83%8A%E3%83%AB%2Caps%2C164&sr=8-1 | K114: https://www.amazon.co.jp/dp/B000WPD3H0/ref=olp-opf-redir?aod=1&ie=UTF8&condition=ALL | L114: 2459 | M114: 1700 | N114: 配送料 ¥510 4月 14-16日。 詳細を見る | O114: =MID(N114,FIND("配送料 ¥",N114)+5,FIND(" ",MID(N114,FIND("¥",N114),10))-2)*1 -> 510 | P114: 2210 | Q114: #崎元仁 #ファイナルファンタジー #松野泰己 #ベイシスケイプ #Basiscape #スクエニ #スクウェア・エニックス #FFTA #FFT #FFTA2 | R114: #メルカリ [CD]「ファイナルファンタジータクティクス A2 封穴のグリモア」オリジナル・サウンドトラック フリマアプリ「メルカリ」で販売中 https://jp.mercari.com/item/m52322270078/ #崎元仁 #ファイナルファンタジー #松野泰己 #ベイシスケイプ #Basiscape #スクエニ #スクウェア・エニックス #FFTA #FFT #FFTA2 | S114: 298 | T114: 2022-04-17 | U114: 1799 | V114: 2022-04-10 | W114: 1799 | X114: 179 | Y114: 175 | Z114: 1445 | AA114: 送料込み(出品者負担) | AC114: 2022-04-17 | AF114: 個人 | AG114: 1
B115: m46733445507 | C115: 出品中 | D115: [CD]「クリムゾンシュラウド」オリジナル・サウンドトラック | E115: 30 | F115: 2012/8/25購入 中古品のため商品は多少のキズ・使用感がございます。記載ない限り帯・特典などは付属致しません。写真以外の付属品はありません。 「「クリムゾンシュラウド」オリジナル・サウンドトラック」 定価: ￥ 2900 #崎元仁 #ファイナルファンタジー #松野泰己 #ベイシスケイプ #Basiscape #クリムゾンシュラウド 全29曲中、約半数近いトラックでgaQdanによるオーケストラの生レコーディング音を使用した、RPG『クリムゾンシュラウド』のサウンドトラック。崎元仁率いるベイシスケイプによる音楽が、打ち込みでは出せない圧倒的音圧で迫り、臨場感と重厚感を与えてくれる。(ガ)(CDジャーナル データベースより) | G115: 320 | H115: 2550 | I115: 安すぎ | J115: https://www.amazon.co.jp/%E3%82%AF%E3%83%AA%E3%83%A0%E3%82%BE%E3%83%B3%E3%82%B7%E3%83%A5%E3%83%A9%E3%82%A6%E3%83%89-%E3%82%AA%E3%83%AA%E3%82%B8%E3%83%8A%E3%83%AB%E3%83%BB%E3%82%B5%E3%82%A6%E3%83%B3%E3%83%89%E3%83%88%E3%83%A9%E3%83%83%E3%82%AF-Various-Artists/dp/B007ZHX3DM/ref=sr_1_1?__mk_ja_JP=%E3%82%AB%E3%82%BF%E3%82%AB%E3%83%8A&keywords=%E3%82%AF%E3%83%AA%E3%83%A0%E3%82%BE%E3%83%B3%E3%82%B7%E3%83%A5%E3%83%A9%E3%82%A6%E3%83%89%E3%80%8D%E3%82%AA%E3%83%AA%E3%82%B8%E3%83%8A%E3%83%AB%E3%83%BB%E3%82%B5%E3%82%A6%E3%83%B3%E3%83%89%E3%83%88%E3%83%A9%E3%83%83%E3%82%AF&qid=1642070190&sr=8-1 | K115: https://www.amazon.co.jp/dp/B007ZHX3DM/ref=olp-opf-redir?aod=1&ie=UTF8&condition=ALL | L115: 2600 | M115: 2988 | N115: 配送料 ¥350 11月3日-5日にお届け 詳細を見る | O115: =MID(N115,FIND("配送料 ¥",N115)+5,FIND(" ",MID(N115,FIND("¥",N115),10))-2)*1 -> 350 | P115: 3338 | Q115: #崎元仁 #ファイナルファンタジー #松野泰己 #ベイシスケイプ #Basiscape #クリムゾンシュラウド | R115: ="#メルカリ"&CHAR(10)&D115&CHAR(10)&" フリマアプリ「メルカリ」で販売中 https://jp.mercari.com/item/"&B115&"?utm_source=android&utm_medium=share "&Q115 -> #メルカリ [CD]「クリムゾンシュラウド」オリジナル・サウンドトラック フリマアプリ「メルカリ」で販売中 https://jp.mercari.com/item/m46733445507?utm_source=android&utm_medium=share #崎元仁 #ファイナルファンタジー #松野泰己 #ベイシスケイプ #Basiscape #クリムゾンシュラウド | S115: 271 | U115: 2550 | AF115: 個人 | AG115: 1
B116: m11599345690 | C116: 取引終了 | D116: [CD]「ベイグラントストーリー」オリジナル・サウンドトラック | E116: 31 | F116: 2007/10/23購入 中古品のため商品は多少のキズ・使用感がございます。記載ない限り帯・特典などは付属致しません。プロダクト、ダウンロードコードは使用できません。写真以外の付属品はありません。 「「VAGRANTSTORY」Original Soundtrack」 定価: ￥ 2667 #崎元仁 #ファイナルファンタジー #松野泰己 #ベイシスケイプ #Basiscape #スクエニ #スクウェア・エニックス #ベイグラントストーリー 2000年に発売された、大人気ゲ-ムプレイステ-ション用ゲームソフト「ベイグラントストーリー」のオリジナルサウンドトラックがスクウェア・エニックスレーベルから再発売。作曲は、「伝説のオウガバトル」や「ファイナルファンタジータクティクス」で知られる埼元仁。 【作曲/崎元仁】代表作「伝説ノオウガバトル」「ファイナルファンタジータクティクス」等 | G116: 396 | H116: 1800 | J116: https://www.amazon.co.jp/VAGRANTSTORY-Original-Soundtrack-%E3%82%B2%E3%83%BC%E3%83%A0%E3%83%BB%E3%83%9F%E3%83%A5%E3%83%BC%E3%82%B8%E3%83%83%E3%82%AF/dp/B000EGD066/ref=sr_1_1?__mk_ja_JP=%E3%82%AB%E3%82%BF%E3%82%AB%E3%83%8A&crid=18UQRK4I1WW7B&keywords=%E3%83%99%E3%82%A4%E3%82%B0%E3%83%A9%E3%83%B3%E3%83%88+%E3%82%AA%E3%83%AA%E3%82%B8%E3%83%8A%E3%83%AB%E3%83%BB%E3%82%B5%E3%82%A6%E3%83%B3%E3%83%89%E3%83%88%E3%83%A9%E3%83%83%E3%82%AF&qid=1642070263&sprefix=%E3%83%99%E3%82%A4%E3%82%B0%E3%83%A9%E3%83%B3%E3%83%88+%E3%82%AA%E3%83%AA%E3%82%B8%E3%83%8A%E3%83%AB+%E3%82%B5%E3%82%A6%E3%83%B3%E3%83%89%E3%83%88%E3%83%A9%E3%83%83%E3%82%AF%2Caps%2C166&sr=8-1 | K116: https://www.amazon.co.jp/dp/B000EGD066/ref=olp-opf-redir?aod=1&ie=UTF8&condition=ALL | L116: 2535 | M116: 980 | N116: お届け日 (配送料: ￥510 ): 1月18日 - 20日 詳細を見る | O116: 510 | P116: 1490 | Q116: #崎元仁 #ファイナルファンタジー #松野泰己 #ベイシスケイプ #Basiscape #スクエニ #スクウェア・エニックス #ベイグラントストーリー | R116: #メルカリ [CD]「ベイグラントストーリー」オリジナル・サウンドトラック フリマアプリ「メルカリ」で販売中 https://jp.mercari.com/item/m11599345690/ #崎元仁 #ファイナルファンタジー #松野泰己 #ベイシスケイプ #Basiscape #スクエニ #スクウェア・エニックス #ベイグラントストーリー | S116: 274 | T116: 2022-01-21 | U116: 1800 | V116: 2022-01-13 | W116: 1800 | X116: 180 | Y116: 175 | Z116: 1445 | AA116: 送料込み(出品者負担) | AC116: 2022-01-21 | AF116: 個人 | AG116: 1
B117: m67126654570 | C117: 出品中 | D117: [CD]SHORE/フリート・フォクシーズ(Fleet Foxes)(輸入盤) | E117: 39 | F117: 2022/1/13購入 中古品のため商品は多少のキズ・使用感がございます。記載ない限り帯・特典などは付属致しません。写真以外の付属品はありません。 [CD]SHORE/フリート・フォクシーズ(Fleet Foxes)(輸入盤) #FleetFoxes #フリート・フォクシーズ #Fleet_Foxes #洋楽 #ロビン・ペックノールド #Robin_Pecknold #RobinPecknold Fleet Foxesは4枚目のスタジオアルバム「Shore」のリリースでファンを驚かせた。この明るく希望に満ちたアルバムはAnti-からデジタルリリースされ、2月5日のフィジカル発売日に向けてストリーミングと予約注文がスタート。アルバムに加えて、Kersti Jan Werdalによる同名の16mmロードムービーも公開されており、アルバムの音源に合わせて太平洋岸北西部の風景を紹介しています。 『Shore』は、2018年9月から2020年9月までの間、ハドソン（NY）、パリ、ロサンゼルス、ロングアイランドシティ、ニューヨークで隔離前と隔離中にレコーディングされ、レコーディングとプロダクション・エンジニアのBeatriz Artolaの助けをかりて行われた。15曲55分の『Shore』は、当初、フロントマンのRobin Pecknoldにとって音楽的英雄であるArthur Russell、Nina Simone、Sam Cooke、Emahoy Tsegué-Maryam Guebrouなど、彼の経験上、死に直面しても人生を謳歌した人たちにインスパイアされていたという。 | G117: 695 | H117: 1299 | I117: 新品より高い | J117: https://www.amazon.co.jp/Shore-Fleet-Foxes/dp/B08JLHQHQD/ref=tmm_acd_title_0?_encoding=UTF8&qid=&sr= | K117: https://www.amazon.co.jp/dp/B08JLHQHQD/ref=olp-opf-redir?aod=1&ie=UTF8&condition=ALL | L117: 790 | M117: 880 | N117: 配送料 ¥350 11月2日-4日にお届け 詳細を見る | O117: =MID(N117,FIND("配送料 ¥",N117)+5,FIND(" ",MID(N117,FIND("¥",N117),10))-2)*1 -> 350 | P117: 1230 | Q117: #FleetFoxes #フリート・フォクシーズ #Fleet_Foxes #洋楽 #ロビン・ペックノールド #Robin_Pecknold #RobinPecknold | R117: ="#メルカリ"&CHAR(10)&D117&CHAR(10)&" フリマアプリ「メルカリ」で販売中 https://jp.mercari.com/item/"&B117&"?utm_source=android&utm_medium=share "&Q117 -> #メルカリ [CD]SHORE/フリート・フォクシーズ(Fleet Foxes)(輸入盤) フリマアプリ「メルカリ」で販売中 https://jp.mercari.com/item/m67126654570?utm_source=android&utm_medium=share #FleetFoxes #フリート・フォクシーズ #Fleet_Foxes #洋楽 #ロビン・ペックノールド #Robin_Pecknold #RobinPecknold | S117: 287 | U117: 1299 | AF117: 個人 | AG117: 1
B118: m66780820201 | C118: 取引終了 | D118: [CD]「ファイナルファンタジー8」オリジナル・サウンドトラック/植松伸夫 | E118: 37 | F118: 2017/3/17購入 中古品のため商品は多少のキズ・使用感がございます。記載ない限り帯・特典などは付属致しません。プロダクト、ダウンロードコードは使用できません。写真以外の付属品はありません。 ケースにヒビあり（写真参照） ブックレットに錆びあり（写真参照） 「「ファイナルファンタジー8」オリジナル・サウンドトラック/植松伸夫（FINAL FANTASY VIII ORIGINAL SOUNDTRACK）」 定価: ￥ 3689 #植松伸夫 #ファイナルファンタジー #スクエニ #スクウェア・エニックス #FF8 #FF #フェイ・ウォン またまた日本中を不眠症に陥れるであろうモンスター・ゲームのサントラ。この作品には、オリジナル音源を使った楽曲をはじめ、フェイ・ウォンが唄う挿入歌も収録。全4枚組という豪華さも話題。 | G118: 367 | H118: 1799 | I118: 安すぎ | J118: https://www.amazon.co.jp/FINAL-FANTASY-VIII-ORIGINAL-SOUNDTRACK/dp/B00025E1TY/ref=sr_1_2?__mk_ja_JP=%E3%82%AB%E3%82%BF%E3%82%AB%E3%83%8A&keywords=%E3%83%95%E3%82%A1%E3%82%A4%E3%83%8A%E3%83%AB%E3%83%95%E3%82%A1%E3%83%B3%E3%82%BF%E3%82%B8%E3%83%BC8%E3%80%8D%E3%82%AA%E3%83%AA%E3%82%B8%E3%83%8A%E3%83%AB%E3%83%BB%E3%82%B5%E3%82%A6%E3%83%B3%E3%83%89%E3%83%88%E3%83%A9%E3%83%83%E3%82%AF&qid=1642201483&s=music&sr=1-2 | K118: https://www.amazon.co.jp/dp/B00025E1TY/ref=olp-opf-redir?aod=1&ie=UTF8&condition=ALL | L118: 3462 | M118: 1800 | N118: 配送料 ¥350 4月 12-13日。 詳細を見る | O118: =MID(N118,FIND("配送料 ¥",N118)+5,FIND(" ",MID(N118,FIND("¥",N118),10))-2)*1 -> 350 | P118: 2150 | Q118: #植松伸夫 #ファイナルファンタジー #スクエニ #スクウェア・エニックス #FF8 #FF #フェイ・ウォン | R118: #メルカリ [CD]「ファイナルファンタジー8」オリジナル・サウンドトラック/植松伸夫 フリマアプリ「メルカリ」で販売中 https://jp.mercari.com/item/m66780820201/ #植松伸夫 #ファイナルファンタジー #スクエニ #スクウェア・エニックス #FF8 #FF #フェイ・ウォン | S118: 250 | T118: 2022-04-21 | U118: 1799 | V118: 2022-04-14 | W118: 1799 | X118: 179 | Y118: 175 | Z118: 1445 | AA118: 送料込み(出品者負担) | AC118: 2022-04-22 | AF118: 個人 | AG118: 1
B119: m35760006012 | C119: 取引終了 | D119: [CD]「グラディウス5」サウンドトラックス/崎元仁 | E119: 26 | F119: 2009/10/12購入 中古品のため商品は多少のキズ・使用感がございます。記載ない限り帯・特典などは付属致しません。プロダクト、ダウンロードコードは使用できません。写真以外の付属品はありません。 「「グラディウス5」サウンドトラックス」 定価: ￥ 2136 #崎元仁 #グラディウス #グラディウス5 #ベイシスケイプ #Basiscape シューティング・ゲームの王者『GRADIUS 5』のサントラ。歴史の重みとユーザーの期待を裏切らない新生グラディウスにふさわしい音楽を奏でるのは、ゲーム・ファンに大人気の崎元仁。 | G119: 265 | H119: 1846 | I119: 最安値 | J119: https://www.amazon.co.jp/GRADIUS-V-%E3%82%AA%E3%83%AA%E3%82%B8%E3%83%8A%E3%83%AB%E3%82%B5%E3%82%A6%E3%83%B3%E3%83%89%E3%83%88%E3%83%A9%E3%83%83%E3%82%AF-%E3%82%B2%E3%83%BC%E3%83%A0%E3%83%BB%E3%83%9F%E3%83%A5%E3%83%BC%E3%82%B8%E3%83%83%E3%82%AF/dp/B0002J54DM/ref=sr_1_1?__mk_ja_JP=%E3%82%AB%E3%82%BF%E3%82%AB%E3%83%8A&crid=2YMHZ3AL8ONW5&keywords=%E3%80%8C%E3%82%B0%E3%83%A9%E3%83%87%E3%82%A3%E3%82%A6%E3%82%B95%E3%80%8D%E3%82%B5%E3%82%A6%E3%83%B3%E3%83%89%E3%83%88%E3%83%A9%E3%83%83%E3%82%AF%E3%82%B9&qid=1642201600&s=music&sprefix=%E3%82%B0%E3%83%A9%E3%83%87%E3%82%A3%E3%82%A6%E3%82%B95+%E3%82%B5%E3%82%A6%E3%83%B3%E3%83%89%E3%83%88%E3%83%A9%E3%83%83%E3%82%AF%E3%82%B9%2Cpopular%2C160&sr=1-1 | K119: https://www.amazon.co.jp/dp/B0002J54DM/ref=olp-opf-redir?aod=1&ie=UTF8&condition=ALL | L119: 1976 | M119: 1596 | N119: お届け日 (配送料: ￥350 ): 1月20日 - 22日 詳細を見る | O119: 350 | P119: 1946 | Q119: #崎元仁 #グラディウス #グラディウス5 #ベイシスケイプ #Basiscape | R119: #メルカリ [CD]「グラディウス5」サウンドトラックス/崎元仁 フリマアプリ「メルカリ」で販売中 https://jp.mercari.com/item/m35760006012/ #崎元仁 #グラディウス #グラディウス5 #ベイシスケイプ #Basiscape | S119: 199 | T119: 2022-01-23 | U119: 1846 | V119: 2022-01-16 | W119: 1846 | X119: 184 | Y119: 175 | Z119: 1487 | AA119: 送料込み(出品者負担) | AC119: 2022-01-22 | AF119: 個人 | AG119: 1
B120: m40097046926 | C120: 取引終了 | D120: [CD]「ゼノキアス」オリジナル・サウンドトラック | E120: 25 | F120: 中古品のため商品は多少のキズ・使用感がございます。記載ない限り帯・特典などは付属致しません。プロダクト、ダウンロードコードは使用できません。写真以外の付属品はありません。 ケースにヒビあり（写真参照） 盤面に細かい擦り傷あり 「「ゼノキアス」オリジナル・サウンドトラック」 定価: ￥ 2718 #プロキオン・スタジオ #ゼノギアス #ゼノサーガ #ゼノブレイド #光田康典 #スクエニ #スクウェア・エニックス PS用ゲ－ム『ゼノギアス』のオリジナルサウンドトラック。Joanne Hogg が歌うオ－プニングテ－マ、エンディングテ－マも収録した2枚組。 | G120: 281 | H120: 1800 | J120: https://www.amazon.co.jp/%E3%82%BC%E3%83%8E%E3%82%AE%E3%82%A2%E3%82%B9-%E3%82%AA%E3%83%AA%E3%82%B8%E3%83%8A%E3%83%AB%E3%83%BB%E3%82%B5%E3%82%A6%E3%83%B3%E3%83%89%E3%83%88%E3%83%A9%E3%83%83%E3%82%AF-%E3%82%B2%E3%83%BC%E3%83%A0%E3%83%BB%E3%83%9F%E3%83%A5%E3%83%BC%E3%82%B8%E3%83%83%E3%82%AF/dp/B000793EKC/ref=tmm_acd_title_0?_encoding=UTF8&qid=1642292801&sr=8-1 | K120: https://www.amazon.co.jp/dp/B000793EKC/ref=olp-opf-redir?aod=1&ie=UTF8&condition=ALL | L120: 2398 | M120: 1301 | N120: お届け日 (配送料: ￥350 ): 2月15日 - 18日 詳細を見る | O120: 350 | P120: 1651 | Q120: #プロキオン・スタジオ #ゼノギアス #ゼノサーガ #ゼノブレイド #光田康典 #スクエニ #スクウェア・エニックス | R120: #メルカリ [CD]「ゼノキアス」オリジナル・サウンドトラック フリマアプリ「メルカリ」で販売中 https://jp.mercari.com/item/m40097046926/ #プロキオン・スタジオ #ゼノギアス #ゼノサーガ #ゼノブレイド #光田康典 #スクエニ #スクウェア・エニックス | S120: 239 | T120: 2022-02-18 | U120: 1800 | V120: 2022-02-11 | W120: 1800 | X120: 180 | Y120: 175 | Z120: 1445 | AA120: 送料込み(出品者負担) | AC120: 2022-02-18 | AF120: 個人 | AG120: 1
B121: m76790299536 | C121: 取引終了 | D121: [CD]「武蔵伝2 ブレイドマスター」オリジナル・サウンドトラック | E121: 33 | F121: 2018/5/23購入 中古品のため商品は多少のキズ・使用感がございます。記載ない限り帯・特典などは付属致しません。プロダクト、ダウンロードコードは使用できません。写真以外の付属品はありません。 「「武蔵伝2 ブレイドマスター」オリジナル・サウンドトラック」 定価: ￥ 2762 #浜渦正志 #スクエニ #サガフロ2 #サントラ #武蔵伝 #武蔵伝2 #MONOMUSIK 98年に日本と北米で発売され大ヒットを記録したアクションRPG、PS2ソフト『武蔵伝』の続編新作タイトルのサントラ盤。『ファイナルファンタジー』などを手がけた浜渦正志によるBGMとサーフ・コースターズによるOPが収録。 | G121: 300 | H121: 1800 | I121: 最安値 | J121: https://www.amazon.co.jp/%E6%AD%A6%E8%94%B5%E4%BC%9DII-%E3%83%96%E3%83%AC%E3%82%A4%E3%83%89%E3%83%9E%E3%82%B9%E3%82%BF%E3%83%BC-%E3%82%AA%E3%83%AA%E3%82%B8%E3%83%8A%E3%83%AB%E3%83%BB%E3%82%B5%E3%82%A6%E3%83%B3%E3%83%89%E3%83%88%E3%83%A9%E3%83%83%E3%82%AF-%E3%82%B2%E3%83%BC%E3%83%A0%E3%83%BB%E3%83%9F%E3%83%A5%E3%83%BC%E3%82%B8%E3%83%83%E3%82%AF/dp/B0009RJFFK/ref=sr_1_1?__mk_ja_JP=%E3%82%AB%E3%82%BF%E3%82%AB%E3%83%8A&crid=2D2JSSQXIGXQY&keywords=%E3%80%8C%E6%AD%A6%E8%94%B5%E4%BC%9D2+%E3%83%96%E3%83%AC%E3%82%A4%E3%83%89%E3%83%9E%E3%82%B9%E3%82%BF%E3%83%BC%E3%80%8D%E3%82%AA%E3%83%AA%E3%82%B8%E3%83%8A%E3%83%AB%E3%83%BB%E3%82%B5%E3%82%A6%E3%83%B3%E3%83%89%E3%83%88%E3%83%A9%E3%83%83%E3%82%AF&qid=1642292887&sprefix=%E6%AD%A6%E8%94%B5%E4%BC%9D2+%E3%83%96%E3%83%AC%E3%82%A4%E3%83%89%E3%83%9E%E3%82%B9%E3%82%BF%E3%83%BC+%E3%82%AA%E3%83%AA%E3%82%B8%E3%83%8A%E3%83%AB+%E3%82%B5%E3%82%A6%E3%83%B3%E3%83%89%E3%83%88%E3%83%A9%E3%83%83%E3%82%AF%2Caps%2C165&sr=8-1 | K121: https://www.amazon.co.jp/dp/B0009RJFFK/ref=olp-opf-redir?aod=1&ie=UTF8&condition=ALL | L121: 2762 | M121: 1500 | N121: お届け日 (配送料: ￥356 ): 2月15日 - 19日 詳細を見る | O121: 356 | P121: 1856 | Q121: #浜渦正志 #スクエニ #サガフロ2 #サントラ #武蔵伝 #武蔵伝2 #MONOMUSIK | R121: #メルカリ [CD]「武蔵伝2 ブレイドマスター」オリジナル・サウンドトラック フリマアプリ「メルカリ」で販売中 https://jp.mercari.com/item/m76790299536/ #浜渦正志 #スクエニ #サガフロ2 #サントラ #武蔵伝 #武蔵伝2 #MONOMUSIK | S121: 218 | T121: 2022-02-18 | U121: 1800 | V121: 2022-02-11 | W121: 1800 | X121: 180 | Y121: 175 | Z121: 1445 | AA121: 送料込み(出品者負担) | AC121: 2022-02-19 | AF121: 個人 | AG121: 1
B122: m73005446104 | C122: 取引終了 | D122: [CD]十三機兵防衛圏 オリジナル・サウンドトラック | E122: 26 | F122: 中古品のため商品は多少のキズ・使用感がございます。記載ない限り帯・特典などは付属致しません。プロダクト、ダウンロードコードは使用できません。写真以外の付属品はありません。 [CD]十三機兵防衛圏 オリジナル・サウンドトラック #崎元仁 #十三機兵防衛圏 #ベイシスケイプ #Basiscape #サントラ #ヴァニラウェア 13人の少年少女たちが織り成す、時を超えた壮大な物語『十三機兵防衛圏』。 複雑に絡み合う本作の数々のシーンを彩った崎元仁（サウンドディレクター）率いるベイシスケイプによる全83曲を収録した豪華CD4枚組のオリジナル・サウンドトラック。 ジャケットイラストはヴァニラウェア平井有紀子氏による描き下ろしイラスト。 ゲーム中の「渚のバカンス」のフルバージョンが 「Seaside Vacation」として収録。 ブックレット内にはサウンドディレクター崎元仁のコメントと、サントラ購入者にしか見られない「おまけイラスト」も掲載。 仕様：CD４枚組 ◆収録曲数：全83曲 | G122: 446 | H122: 4784 | I122: 最安値 | J122: https://www.amazon.co.jp/%E5%8D%81%E4%B8%89%E6%A9%9F%E5%85%B5%E9%98%B2%E8%A1%9B%E5%9C%8F-%E3%82%AA%E3%83%AA%E3%82%B8%E3%83%8A%E3%83%AB%E3%83%BB%E3%82%B5%E3%82%A6%E3%83%B3%E3%83%89%E3%83%88%E3%83%A9%E3%83%83%E3%82%AF-CD/dp/B086VRHM4M/ref=sr_1_1?__mk_ja_JP=%E3%82%AB%E3%82%BF%E3%82%AB%E3%83%8A&crid=1FXR4Y0DI6DRK&keywords=%E5%8D%81%E4%B8%89%E6%A9%9F%E5%85%B5%E9%98%B2%E8%A1%9B%E5%9C%8F+%E3%82%AA%E3%83%AA%E3%82%B8%E3%83%8A%E3%83%AB%E3%83%BB%E3%82%B5%E3%82%A6%E3%83%B3%E3%83%89%E3%83%88%E3%83%A9%E3%83%83%E3%82%AF&qid=1642369655&s=music&sprefix=%E5%8D%81%E4%B8%89%E6%A9%9F%E5%85%B5%E9%98%B2%E8%A1%9B%E5%9C%8F+%E3%82%AA%E3%83%AA%E3%82%B8%E3%83%8A%E3%83%AB+%E3%82%B5%E3%82%A6%E3%83%B3%E3%83%89%E3%83%88%E3%83%A9%E3%83%83%E3%82%AF%2Cpopular%2C177&sr=1-1 | K122: ="https://www.amazon.co.jp/dp/"&MID(J122,FIND("/dp/",J122)+4,10)&"/ref=olp-opf-redir?aod=1&ie=UTF8&condition=ALL" -> https://www.amazon.co.jp/dp/B086VRHM4M/ref=olp-opf-redir?aod=1&ie=UTF8&condition=ALL | L122: 6900 | M122: 4884 | N122: 無料配送: 2月22日 火曜日 詳細を見る | O122: =MID(N122,FIND("配送料 ¥",N122)+5,FIND(" ",MID(N122,FIND("¥",N122),10))-2)*1 ->  | P122: 4884 | Q122: #崎元仁 #十三機兵防衛圏 #ベイシスケイプ #Basiscape #サントラ #ヴァニラウェア | R122: #メルカリ [CD]十三機兵防衛圏 オリジナル・サウンドトラック フリマアプリ「メルカリ」で販売中 https://jp.mercari.com/item/m73005446104/ #崎元仁 #十三機兵防衛圏 #ベイシスケイプ #Basiscape #サントラ #ヴァニラウェア | S122: 213 | T122: 2022-02-27 | U122: 4784 | V122: 2022-02-20 | W122: 4784 | X122: 478 | Y122: 175 | Z122: 4131 | AA122: 送料込み(出品者負担) | AC122: 2022-02-26 | AF122: 個人 | AG122: 1
B123: m49975657885 | C123: 取引終了 | D123: [CD]「ファイナルファンタジー10」オリジナル・サウンドトラック/植松伸夫 | E123: 38 | F123: 中古品のため商品は多少のキズ・使用感がございます。記載ない限り帯・特典などは付属致しません。プロダクト、ダウンロードコードは使用できません。写真以外の付属品はありません。 「「ファイナルファンタジー10」オリジナル・サウンドトラック/植松伸夫」 森田成一 / 青木麻由子 定価: ￥ 3689 #森田成一 #青木麻由子 #植松伸夫 #ファイナルファンタジー #スクエニ #スクウェア・エニックス #FF10 #FF #浜渦正志 ゲーム・ミュージックの金字塔、FFサントラ待望の最新作にして最高傑作『ファイナル・ファンタジーX』。植松伸夫がその歌声に惚れこんだ奄美の歌姫RIKKIによる主題歌「素敵だね」収録。 | G123: 307 | H123: 1799 | I123: 最安値 | J123: https://www.amazon.co.jp/FINAL-FANTASY-X-ORIGINAL-SOUNDTRACK/dp/B00025E1UI/ref=tmm_acd_title_0?_encoding=UTF8&qid=1642369280&sr=1-1 | K123: https://www.amazon.co.jp/dp/B00025E1UI/ref=olp-opf-redir?aod=1&ie=UTF8&condition=ALL | L123: 3293 | M123: 1500 | N123: 配送料 ¥350 5月 19-21日。 詳細を見る | O123: =MID(N123,FIND("配送料 ¥",N123)+5,FIND(" ",MID(N123,FIND("¥",N123),10))-2)*1 -> 350 | P123: 1850 | Q123: #森田成一 #青木麻由子 #植松伸夫 #ファイナルファンタジー #スクエニ #スクウェア・エニックス #FF10 #FF #浜渦正志 | R123: #メルカリ [CD]「ファイナルファンタジー10」オリジナル・サウンドトラック/植松伸夫 フリマアプリ「メルカリ」で販売中 https://jp.mercari.com/item/m49975657885/ #森田成一 #青木麻由子 #植松伸夫 #ファイナルファンタジー #スクエニ #スクウェア・エニックス #FF10 #FF #浜渦正志 | S123: 268 | T123: 2022-05-22 | U123: 1799 | V123: 2022-05-15 | W123: 1799 | X123: 179 | Y123: 175 | Z123: 1445 | AA123: 送料込み(出品者負担) | AB123: うっちー | AC123: 2022-05-22 | AF123: 個人 | AG123: 1
B124: m73408861269 | C124: 取引終了 | D124: [CD]風来のシレン 20th スペシャルコレクション | E124: 27 | F124: 2016/3/24購入 中古品のため商品は多少のキズ・使用感がございます。記載ない限り帯・特典などは付属致しません。プロダクト、ダウンロードコードは使用できません。写真以外の付属品はありません。 「～チュンソフト20周年記念作品～「風来のシレン」20thスペシャルコレクション/すぎやまこういち」 定価: ￥ 3800 #すぎやまこういち #松尾早人 #風来のシレン #アスカ見参! #シレン #不思議のダンジョン #チュンソフト #サントラ 95年にシリーズ1作目が発売された、人気ゲーム・ソフト『風来のシレン』のオリジナル・サウンドトラック。音楽を担当しているのは、『ドラゴン・クエスト』でおなじみのすぎやまこういち。オリジナル音源を完全収録。 収録曲はすぎやまこういちと松尾早人作曲によるもの。第一作『不思議のダンジョン2 風来のシレン』に関しては、サウンドトラック『不思議のダンジョン2 風来のシレン スペシャル・アレンジヴァージョン』が発売されていたため、その他当時発売済みかつ音源化されていなかった以下の4タイトルの楽曲を収録した3枚組CDとなっている。前回のCDとは異なりゲーム音源そのままの収録となっている。 『風来のシレン2 鬼襲来!シレン城!』 『風来のシレン外伝 女剣士アスカ見参!』 『風来のシレンGB 月影村の怪物』 『風来のシレンGB2 砂漠の魔城』 | G124: 594 | H124: 4429 | I124: 最安値 | J124: https://www.amazon.co.jp/%E9%A2%A8%E6%9D%A5%E3%81%AE%E3%82%B7%E3%83%AC%E3%83%B3-20th-%E3%82%B9%E3%83%9A%E3%82%B7%E3%83%A3%E3%83%AB%E3%82%B3%E3%83%AC%E3%82%AF%E3%82%B7%E3%83%A7%E3%83%B3-%E3%82%B2%E3%83%BC%E3%83%A0%E3%83%BB%E3%83%9F%E3%83%A5%E3%83%BC%E3%82%B8%E3%83%83%E3%82%AF/dp/B00067ST1O/ref=sr_1_1?__mk_ja_JP=%E3%82%AB%E3%82%BF%E3%82%AB%E3%83%8A&keywords=%E3%80%8C%E9%A2%A8%E6%9D%A5%E3%81%AE%E3%82%B7%E3%83%AC%E3%83%B3%E3%80%8D20th%E3%82%B9%E3%83%9A%E3%82%B7%E3%83%A3%E3%83%AB%E3%82%B3%E3%83%AC%E3%82%AF%E3%82%B7%E3%83%A7%E3%83%B3&qid=1642485421&sr=8-1 | K124: https://www.amazon.co.jp/dp/B00067ST1O/ref=olp-opf-redir?aod=1&ie=UTF8&condition=ALL | M124: 4529 | N124: 無料配送: 明日 詳細を見る | P124: 4529 | Q124: #すぎやまこういち #松尾早人 #風来のシレン #アスカ見参! #シレン #不思議のダンジョン #チュンソフト #サントラ | R124: #メルカリ [CD]風来のシレン 20th スペシャルコレクション フリマアプリ「メルカリ」で販売中 https://jp.mercari.com/item/m73408861269/ #すぎやまこういち #松尾早人 #風来のシレン #アスカ見参! #シレン #不思議のダンジョン #チュンソフト #サントラ | S124: 240 | T124: 2022-02-04 | U124: 4429 | V124: 2022-01-28 | W124: 4429 | X124: 442 | Y124: 175 | Z124: 3812 | AA124: 送料込み(出品者負担) | AC124: 2022-02-01 | AF124: 個人 | AG124: 1
B125: m87992965801 | C125: 取引終了 | D125: [CD]「ファイナルファンタジー 13」ピアノ・コレクションズ | E125: 31 | F125: 2016/3/24購入 中古品のため商品は多少のキズ・使用感がございます。記載ない限り帯・特典などは付属致しません。プロダクト、ダウンロードコードは使用できません。写真以外の付属品はありません。 「「ファイナルファンタジー 13」ピアノ・コレクションズ」 定価: ￥ 2667 #浜渦正志 #黒田亜樹 #FF13 #ファイナルファンタジー #スクエニ #スクウェア・エニックス #サントラ FF XIII の記憶をピアノの旋律にのせて 世界中のゲームファンが熱狂する「ファイナルファンタジー」シリーズ。ロールプレイングゲームの金字塔として君臨し、全世界で9,600万本の出荷超え、今尚記録を更新する。中でも最新作『FINAL FANTASY XIII』は発売初週で100万本の出荷を超え、PlayStation3市場では空前の大ヒット作品となり、現在は北米・欧州・アジアでも人気を博す。本ピアノアルバムの原点となるサウンドトラックCD(SQEX-10178/SQEX-10183)は、オリコン初週3位を記録した。今作は『FINAL FANTASY XIII』のゲーム内BGMを作曲家「浜渦正志」自身がピアノ・アレンジした新規音源のみを収録。レコーディングは全てミラノで行われ、ピアノ演奏は黒田亜樹が担当する。 【初回限定仕様】オリジナル・スリーブケース付き | G125: 583 | H125: 1929 | I125: 最安値 | J125: https://www.amazon.co.jp/%E3%83%94%E3%82%A2%E3%83%8E%E3%83%BB%E3%82%B3%E3%83%AC%E3%82%AF%E3%82%B7%E3%83%A7%E3%83%B3%E3%82%BA-%E3%83%95%E3%82%A1%E3%82%A4%E3%83%8A%E3%83%AB%E3%83%95%E3%82%A1%E3%83%B3%E3%82%BF%E3%82%B8%E3%83%BCXIII-%E3%82%B2%E3%83%BC%E3%83%A0%E3%83%BB%E3%83%9F%E3%83%A5%E3%83%BC%E3%82%B8%E3%83%83%E3%82%AF/dp/B003NUOTTC/ref=sr_1_1?__mk_ja_JP=%E3%82%AB%E3%82%BF%E3%82%AB%E3%83%8A&crid=32QZF5K1M6DF3&keywords=%E3%80%8C%E3%83%95%E3%82%A1%E3%82%A4%E3%83%8A%E3%83%AB%E3%83%95%E3%82%A1%E3%83%B3%E3%82%BF%E3%82%B8%E3%83%BC+13%E3%80%8D%E3%83%94%E3%82%A2%E3%83%8E%E3%83%BB%E3%82%B3%E3%83%AC%E3%82%AF%E3%82%B7%E3%83%A7%E3%83%B3%E3%82%BA&qid=1642485612&sprefix=%E3%83%95%E3%82%A1%E3%82%A4%E3%83%8A%E3%83%AB%E3%83%95%E3%82%A1%E3%83%B3%E3%82%BF%E3%82%B8%E3%83%BC+13+%E3%83%94%E3%82%A2%E3%83%8E+%E3%82%B3%E3%83%AC%E3%82%AF%E3%82%B7%E3%83%A7%E3%83%B3%E3%82%BA%2Caps%2C153&sr=8-1 | K125: https://www.amazon.co.jp/dp/B003NUOTTC/ref=olp-opf-redir?aod=1&ie=UTF8&condition=ALL | L125: 2355 | M125: 1651 | N125: お届け日 (配送料: ￥378 ): 2月19日 - 21日 詳細を見る | O125: 378 | P125: 2029 | Q125: #浜渦正志 #黒田亜樹 #FF13 #ファイナルファンタジー #スクエニ #スクウェア・エニックス #サントラ | R125: #メルカリ [CD]「ファイナルファンタジー 13」ピアノ・コレクションズ フリマアプリ「メルカリ」で販売中 https://jp.mercari.com/item/m87992965801/ #浜渦正志 #黒田亜樹 #FF13 #ファイナルファンタジー #スクエニ #スクウェア・エニックス #サントラ | S125: 238 | T125: 2022-02-26 | U125: 1929 | V125: 2022-02-19 | W125: 1929 | X125: 192 | Y125: 175 | Z125: 1562 | AA125: 送料込み(出品者負担) | AC125: 2022-02-25 | AF125: 個人 | AG125: 1
B126: m63334529376 | C126: 取引終了 | D126: [CD]「ファイナル・ファンタジー5」オリジナル・サウンド・ヴァージョン | E126: 36 | F126: 2007/10/23購入 中古品のため商品は多少のキズ・使用感がございます。記載ない限り帯・特典などは付属致しません。プロダクト、ダウンロードコードは使用できません。写真以外の付属品はありません。 「「ファイナル・ファンタジー5」オリジナル・サウンド・ヴァージョン(FINAL FANTASY V)」 定価: ￥ 2718 #植松伸夫 #ファイナルファンタジー #スクエニ #スクウェア・エニックス #FF5 #FF #サントラ #ゲーム 人気ゲーム『ファイナルファンタジーV』のサウンド・トラック。植松伸夫の手による渾身の2枚組CD。 | G126: 271 | H126: 1800 | J126: https://www.amazon.co.jp/%E3%83%95%E3%82%A1%E3%82%A4%E3%83%8A%E3%83%AB%E3%83%95%E3%82%A1%E3%83%B3%E3%82%BF%E3%82%B8%E3%83%BCV-%E3%82%AA%E3%83%AA%E3%82%B8%E3%83%8A%E3%83%AB%E3%83%BB%E3%82%B5%E3%82%A6%E3%83%B3%E3%83%89%E3%83%BB%E3%83%B4%E3%82%A1%E3%83%BC%E3%82%B8%E3%83%A7%E3%83%B3-%E3%82%B2%E3%83%BC%E3%83%A0%E3%83%BB%E3%83%9F%E3%83%A5%E3%83%BC%E3%82%B8%E3%83%83%E3%82%AF/dp/B00066W4HA/ref=sr_1_1?__mk_ja_JP=%E3%82%AB%E3%82%BF%E3%82%AB%E3%83%8A&crid=20Z2B3SCG7EA1&keywords=%E3%80%8C%E3%83%95%E3%82%A1%E3%82%A4%E3%83%8A%E3%83%AB%E3%83%BB%E3%83%95%E3%82%A1%E3%83%B3%E3%82%BF%E3%82%B8%E3%83%BC5%E3%80%8D%E3%82%AA%E3%83%AA%E3%82%B8%E3%83%8A%E3%83%AB%E3%83%BB%E3%82%B5%E3%82%A6%E3%83%B3%E3%83%89%E3%83%BB%E3%83%B4%E3%82%A1%E3%83%BC%E3%82%B8%E3%83%A7%E3%83%B3&qid=1642713653&sprefix=%E3%83%95%E3%82%A1%E3%82%A4%E3%83%8A%E3%83%AB+%E3%83%95%E3%82%A1%E3%83%B3%E3%82%BF%E3%82%B8%E3%83%BC5+%E3%82%AA%E3%83%AA%E3%82%B8%E3%83%8A%E3%83%AB+%E3%82%B5%E3%82%A6%E3%83%B3%E3%83%89+%E3%83%B4%E3%82%A1%E3%83%BC%E3%82%B8%E3%83%A7%E3%83%B3%2Caps%2C206&sr=8-1 | K126: https://www.amazon.co.jp/dp/B00066W4HA/ref=olp-opf-redir?aod=1&ie=UTF8&condition=ALL | M126: 1200 | N126: お届け日 (配送料: ￥350 ): 2月13日 - 14日 詳細を見る | O126: 350 | P126: 1550 | Q126: #植松伸夫 #ファイナルファンタジー #スクエニ #スクウェア・エニックス #FF5 #FF #サントラ #ゲーム | R126: #メルカリ [CD]「ファイナル・ファンタジー5」オリジナル・サウンド・ヴァージョン フリマアプリ「メルカリ」で販売中 https://jp.mercari.com/item/m63334529376/ #植松伸夫 #ファイナルファンタジー #スクエニ #スクウェア・エニックス #FF5 #FF #サントラ #ゲーム | S126: 251 | T126: 2022-02-16 | U126: 1800 | V126: 2022-02-09 | W126: 1800 | X126: 180 | Y126: 175 | Z126: 1445 | AA126: 送料込み(出品者負担) | AC126: 2022-02-12 | AF126: 個人 | AG126: 1
B127: m20364167615 | C127: 出品中 | D127: Swimava うきわ首リング(ピンクベリー) SW120PKB | E127: 32 | F127: 中古品のため商品は多少のキズ・使用感がございます。記載ない限り帯・特典などは付属致しません。写真以外の付属品はありません。 本体と空気入れのみ付属 「Swimava うきわ首リング(ピンクベリー) SW120PKB （レギュラーサイズ）」 #うきわ首リング #Swimava #スイマーバ #ベビー #赤ちゃん #お風呂 #プール #浮き輪 ベビーはハイハイやあんよをする以前から泳ぐことを感覚的に覚えています。それはまるで子宮の中にいた頃を思い出しているかのようです。0歳から始めるSwimavaのベビープレスイミングは水あそびを通して水に親しみ、ベビー自身の能力で運動感覚の発達を促すことにつながります。ベビーにとって安全な水遊びを通してプレスイミングを学ぶ第1ステップは水の中で足をばたばたさせてまるで歩くような行動することから始まります。うきわ首リングは自由に水の中で動くベビーの手足の動きを妨げることなく、水の中でどのように動けばどうなるのかを学ぶ手助けをします。また、普段から眠りが浅いベビーや寝付くのが遅いベビーには眠る15-30分前にSwimavaで水遊びをさせることでほどよく疲れ、ぐっすりと深い眠りにつながります。(個人差や使用頻度によります)。うきわを装着すると、ベビーの後頭部あたまとあごの下部分が支えられて浮かんでいる状態になります。リングの内側(首にあたる部分)は装着した状態で大人の指2本分のゆとりがある状態に空気の量を調整します。Swimavaの日本向け製品は環境PVCを使用し、お子様がなめたりしても安全な素材で生産しておりますのでご安心ください。 | G127: 694 | H127: 2176 | I127: 最安値 | J127: https://www.amazon.co.jp/dp/B00E9453D2?ref=myi_title_dp&th=1 | K127: https://www.amazon.co.jp/dp/B00E9453D2/ref=olp-opf-redir?aod=1&ie=UTF8&condition=ALL | M127: 1702 | N127: 配送料 ¥524 11月8日-17日にお届け 詳細を見る | O127: =MID(N127,FIND("配送料 ¥",N127)+5,FIND(" ",MID(N127,FIND("¥",N127),10))-2)*1 -> 524 | P127: 2226 | Q127: #うきわ首リング #Swimava #スイマーバ #ベビー #赤ちゃん #お風呂 #プール #浮き輪 | R127: ="#メルカリ"&CHAR(10)&D127&CHAR(10)&" フリマアプリ「メルカリ」で販売中 https://jp.mercari.com/item/"&B127&"?utm_source=android&utm_medium=share "&Q127 -> #メルカリ Swimava うきわ首リング(ピンクベリー) SW120PKB フリマアプリ「メルカリ」で販売中 https://jp.mercari.com/item/m20364167615?utm_source=android&utm_medium=share #うきわ首リング #Swimava #スイマーバ #ベビー #赤ちゃん #お風呂 #プール #浮き輪 | S127: 248 | U127: 2176 | AF127: 家庭 | AG127: 1
B128: m20369556109 | C128: 取引終了 | D128: [CD]ドラゴンズクラウン オリジナル・サウンドトラック | E128: 28 | F128: 中古品のため商品は多少のキズ・使用感がございます。記載ない限り帯・特典などは付属致しません。写真以外の付属品はありません。 [CD]ドラゴンズクラウン オリジナル・サウンドトラック #崎元仁 #ドラゴンズクラウン #ベイシスケイプ #Basiscape #サントラ #ヴァニラウェア #VANILLAWARE #神谷盛治 大人気2DアクションファンタジーRPG『ドラゴンズクラウン』のオリジナル・サウンドトラック。 崎元仁作曲によるゲーム中使用曲全56曲に加え、4sterオーケストラ2015ピアノレストランでも迫力の演奏を魅せたピアニスト、金井裕が奏でるピアノアレンジ版もボーナストラックとして収録いたしました。 ジャケットはヴァニラウェアの描き下ろし。 12ページに及ぶブックレットには、美麗なイラストの数々のほか、ヴァニラウェア神谷氏、崎元によるコメントも掲載しています。 ドラゴンズクラウンファン必見の豪華3枚組CDです。 収録曲：3枚組 全58曲 | G128: 433 | H128: 5745 | I128: 最安値 | J128: https://www.amazon.co.jp/%E3%83%89%E3%83%A9%E3%82%B4%E3%83%B3%E3%82%BA%E3%82%AF%E3%83%A9%E3%82%A6%E3%83%B3-%E3%82%AA%E3%83%AA%E3%82%B8%E3%83%8A%E3%83%AB%E3%83%BB%E3%82%B5%E3%82%A6%E3%83%B3%E3%83%89%E3%83%88%E3%83%A9%E3%83%83%E3%82%AF-%E3%82%B5%E3%82%A6%E3%83%B3%E3%83%89%E3%83%88%E3%83%A9%E3%83%83%E3%82%AF/dp/B0193HITVW/ref=sr_1_1?__mk_ja_JP=%E3%82%AB%E3%82%BF%E3%82%AB%E3%83%8A&crid=311JKPEFDMTV1&keywords=%E3%83%89%E3%83%A9%E3%82%B4%E3%83%B3%E3%82%BA%E3%82%AF%E3%83%A9%E3%82%A6%E3%83%B3+%E3%82%B5%E3%83%B3%E3%83%88%E3%83%A9&qid=1642811959&sprefix=%E3%83%89%E3%83%A9%E3%82%B4%E3%83%B3%E3%82%BA%E3%82%AF%E3%83%A9%E3%82%A6%E3%83%B3+%E3%82%B5%E3%83%B3%E3%83%88%E3%83%A9%2Caps%2C166&sr=8-1 | K128: https://www.amazon.co.jp/dp/B0193HITVW/ref=olp-opf-redir?aod=1&ie=UTF8&condition=ALL | L128: 7480 | M128: 5439 | N128: 配送料 ¥356 7月25日-29日にお届け 詳細を見る | O128: 356 | P128: 5795 | Q128: #崎元仁 #ドラゴンズクラウン #ベイシスケイプ #Basiscape #サントラ #ヴァニラウェア #VANILLAWARE #神谷盛治 | R128: #メルカリ [CD]ドラゴンズクラウン オリジナル・サウンドトラック フリマアプリ「メルカリ」で販売中 https://jp.mercari.com/item/m20369556109?utm_source=android&utm_medium=share #崎元仁 #ドラゴンズクラウン #ベイシスケイプ #Basiscape #サントラ #ヴァニラウェア #VANILLAWARE #神谷盛治 | S128: 279 | T128: 2023-08-07 | U128: 5745 | V128: 2023-07-31 | W128: 5745 | X128: 574 | Y128: 210 | Z128: 4961 | AA128: 送料込み(出品者負担) | AB128: マサドラ公式アカウント05 | AC128: 2023-08-03 | AF128: 個人 | AG128: 1
B129: m18499629886 | C129: 取引終了 | D129: [CD]「FINAL FANTASY 5」ORIGINAL SOUNDTRACK REMASTER VERSION | E129: 57 | F129: 2016/10/10購入 中古品のため商品は多少のキズ・使用感がございます。記載ない限り帯・特典などは付属致しません。写真以外の付属品はありません。 「「FINAL FANTASY 5」ORIGINAL SOUNDTRACK REMASTER VERSION(ファイナルファンタジー5)」 定価: ￥ 3048 #植松伸夫 #ファイナルファンタジー #スクエニ #スクウェア・エニックス #FF5 #FF #サントラ #ゲーム 1992年に発売されたスーパーファミコンのソフト『FINAL FANTASY 5』のオリジナル・サウンドトラックのリマスター盤。人気曲「ビッグブリッヂの死闘」をはじめ、シリーズを代表する「4つの心」「はるかなる故郷」などを収録。 | G129: 331 | H129: 2105 | I129: 最安値 | J129: https://www.amazon.co.jp/FINAL-FANTASY-Original-Remaster-Version/dp/B00D1B8X9K/ref=sr_1_2?__mk_ja_JP=%E3%82%AB%E3%82%BF%E3%82%AB%E3%83%8A&crid=LE9EQ6DZVEML&keywords=%E3%80%8CFINAL+FANTASY+5%E3%80%8DORIGINAL+SOUNDTRACK&qid=1642812245&sprefix=final+fantasy+5+original+soundtrack%2Caps%2C325&sr=8-2 | K129: https://www.amazon.co.jp/dp/B00D1B8X9K/ref=olp-opf-redir?aod=1&ie=UTF8&condition=ALL | L129: 3020 | M129: 2115 | N129: 無料配送 10月31日 火曜日にお届け 詳細を見る | P129: 2115 | Q129: #植松伸夫 #ファイナルファンタジー #スクエニ #スクウェア・エニックス #FF5 #FF #サントラ #ゲーム | R129: #メルカリ [CD]「FINAL FANTASY 5」ORIGINAL SOUNDTRACK REMASTER VERSION フリマアプリ「メルカリ」で販売中 https://jp.mercari.com/item/m18499629886?utm_source=android&utm_medium=share #植松伸夫 #ファイナルファンタジー #スクエニ #スクウェア・エニックス #FF5 #FF #サントラ #ゲーム | S129: 278 | T129: 2023-11-08 | U129: 2105 | V129: 2023-11-01 | W129: 2105 | X129: 210 | Y129: 210 | Z129: 1685 | AA129: 送料込み(出品者負担) | AB129: まえ | AC129: 2023-11-04 | AF129: 個人 | AG129: 1
B130: m77968127997 | C130: 取引終了 | D130: [CD]「FINAL FANTASY XIII」ORIGINAL SOUNDTRACK STANDARD EDITION | E130: 60 | F130: 2016/3/24購入 中古品のため商品は多少のキズ・使用感がございます。記載ない限り帯・特典などは付属致しません。写真以外の付属品はありません。 「「FINAL FANTASY XIII」ORIGINAL SOUNDTRACK STANDARD EDITION（ファイナルファンタジー13）」 菅原紗由理 定価: ￥ 3800 #菅原紗由理 #植松伸夫 #ファイナルファンタジー #スクエニ #スクウェア・エニックス #FF13 #FF #サントラ #ゲーム #浜渦正志 人気シリーズのPS3用ゲーム『FINAL FANTASY XIII』のオリジナル・サントラ。コンポーザー・浜渦正志が生み出した緻密なBGMの数々や、菅原紗由理の歌う主題歌「君がいるから」と挿入歌「Eternal Love」を収録。 | G130: 355 | H130: 1740 | J130: https://www.amazon.co.jp/%E3%83%95%E3%82%A1%E3%82%A4%E3%83%8A%E3%83%AB%E3%83%95%E3%82%A1%E3%83%B3%E3%82%BF%E3%82%B8%E3%83%BCXIII-%E3%82%AA%E3%83%AA%E3%82%B8%E3%83%8A%E3%83%AB%E3%83%BB%E3%82%B5%E3%82%A6%E3%83%B3%E3%83%89%E3%83%88%E3%83%A9%E3%83%83%E3%82%AF-%E3%82%B2%E3%83%BC%E3%83%A0%E3%83%BB%E3%83%9F%E3%83%A5%E3%83%BC%E3%82%B8%E3%83%83%E3%82%AF/dp/B002U4RQA6/ref=sr_1_2?__mk_ja_JP=%E3%82%AB%E3%82%BF%E3%82%AB%E3%83%8A&crid=20DUQOL2JJ7F8&keywords=%E3%80%8CFINAL+FANTASY+XIII%E3%80%8DORIGINAL+SOUNDTRACK&qid=1642895995&s=music&sprefix=final+fantasy+xiii+original+soundtrack%2Cpopular%2C1243&sr=1-2 | K130: https://www.amazon.co.jp/dp/B002U4RQA6/ref=olp-opf-redir?aod=1&ie=UTF8&condition=ALL | L130: 3448 | M130: 1549 | N130: 無料配送 5月 21-23日にお届け 詳細を見る | P130: 1549 | Q130: #菅原紗由理 #植松伸夫 #ファイナルファンタジー #スクエニ #スクウェア・エニックス #FF13 #FF #サントラ #ゲーム #浜渦正志 | R130: #メルカリ [CD]「FINAL FANTASY XIII」ORIGINAL SOUNDTRACK STANDARD EDITION フリマアプリ「メルカリ」で販売中 https://jp.mercari.com/item/m77968127997?utm_source=android&utm_medium=share #菅原紗由理 #植松伸夫 #ファイナルファンタジー #スクエニ #スクウェア・エニックス #FF13 #FF #サントラ #ゲーム #浜渦正志 | S130: 304 | T130: 2023-05-26 | U130: 1740 | V130: 2023-05-19 | W130: 1740 | X130: 174 | Y130: 210 | Z130: 1356 | AA130: 送料込み(出品者負担) | AB130: BUYEE公式アカウント31 | AC130: 2023-05-24 | AF130: 個人 | AG130: 1
B131: m72325296574 | C131: 取引終了 | D131: [CD]「ファイナルファンタジー9」オリジナル・サウンドトラック | E131: 32 | F131: 2016/10/10 中古品のため商品は多少のキズ・使用感がございます。記載ない限り帯・特典などは付属致しません。写真以外の付属品はありません。 外箱に黄ばみ・汚れあり（写真参照） 「「ファイナルファンタジー9」オリジナル・サウンドトラック(FINAL FANTASY IX ORIGINAL SOUNDTRACK)」 白鳥英美子 定価: ￥ 3689 #白鳥英美子 #植松伸夫 #ファイナルファンタジー #スクエニ #スクウェア・エニックス #FF9 #FF #サントラ #ゲーム PS版『ファイナルファンタジー9』のサントラ盤。「Melodies Of Life」他を収録。音楽は植松伸夫が担当。 | G131: 304 | H131: 2120 | I131: 最安値 | J131: https://www.amazon.co.jp/FINAL-FANTASY-IX-ORIGINAL-SOUNDTRACK/dp/B00025E1U8/ref=sr_1_1?__mk_ja_JP=%E3%82%AB%E3%82%BF%E3%82%AB%E3%83%8A&crid=2ULAG8B4J2PSV&keywords=FINAL+FANTASY+IX+ORIGINAL+SOUNDTRACK&qid=1642896247&s=music&sprefix=final+fantasy+ix+original+soundtrack%2Cpopular%2C165&sr=1-1 | K131: https://www.amazon.co.jp/dp/B00025E1U8/ref=olp-opf-redir?aod=1&ie=UTF8&condition=ALL | L131: 3169 | M131: 1820 | N131: 配送料 ¥350 6月14日 火曜日。 詳細を見る | O131: =MID(N131,FIND("配送料 ¥",N131)+5,FIND(" ",MID(N131,FIND("¥",N131),10))-2)*1 -> 350 | P131: 2170 | Q131: #白鳥英美子 #植松伸夫 #ファイナルファンタジー #スクエニ #スクウェア・エニックス #FF9 #FF #サントラ #ゲーム | R131: #メルカリ [CD]「ファイナルファンタジー9」オリジナル・サウンドトラック フリマアプリ「メルカリ」で販売中 https://jp.mercari.com/item/m72325296574/ #白鳥英美子 #植松伸夫 #ファイナルファンタジー #スクエニ #スクウェア・エニックス #FF9 #FF #サントラ #ゲーム | S131: 255 | T131: 2022-06-21 | U131: 2120 | V131: 2022-06-14 | W131: 2120 | X131: 212 | Y131: 175 | Z131: 1733 | AA131: 送料込み(出品者負担) | AB131: ぽつねん※プロフィール必読※ | AC131: 2022-06-18 | AF131: 個人 | AG131: 1
B132: m57622344397 | C132: 取引終了 | D132: [CD]「タクティクスオウガ 運命の輪」オリジナル・サウンドトラック | E132: 34 | F132: 2016/3/6購入 中古品のため商品は多少のキズ・使用感がございます。記載ない限り帯・特典などは付属致しません。プロダクト、ダウンロードコードは使用できません。写真以外の付属品はありません。 背表紙に擦り傷あり（写真参照） 「「タクティクスオウガ 運命の輪」オリジナル・サウンドトラック/Hitoshi Sakimoto&Masaharu Iwata」 定価: ￥ 3333 #岩田匡治 #崎元仁 #タクティクスオウガ #松野泰己 #ベイシスケイプ #Basiscape #スクエニ #スクウェア・エニックス スクウェア・エニックスによるPSPソフト『タクティクスオウガ 運命の輪』のサントラ。ゲーム音楽作曲家として世界的にも著名な崎元仁、岩田匡治がBGM作曲を担当。スーパーファミコン時代からの往年のファンも納得のトラックが詰まっている。 | G132: 374 | H132: 1800 | I132: 最安値 | J132: https://www.amazon.co.jp/%E3%82%BF%E3%82%AF%E3%83%86%E3%82%A3%E3%82%AF%E3%82%B9%E3%82%AA%E3%82%A6%E3%82%AC-%E9%81%8B%E5%91%BD%E3%81%AE%E8%BC%AA-%E3%82%AA%E3%83%AA%E3%82%B8%E3%83%8A%E3%83%AB%E3%83%BB%E3%82%B5%E3%82%A6%E3%83%B3%E3%83%89%E3%83%88%E3%83%A9%E3%83%83%E3%82%AF-%E3%82%B2%E3%83%BC%E3%83%A0%E3%83%BB%E3%83%9F%E3%83%A5%E3%83%BC%E3%82%B8%E3%83%83%E3%82%AF/dp/B00409HDPW/ref=sr_1_1?__mk_ja_JP=%E3%82%AB%E3%82%BF%E3%82%AB%E3%83%8A&keywords=%E3%82%BF%E3%82%AF%E3%83%86%E3%82%A3%E3%82%AF%E3%82%B9%E3%82%AA%E3%82%A6%E3%82%AC+%E9%81%8B%E5%91%BD%E3%81%AE%E8%BC%AA%E3%80%8D%E3%82%AA%E3%83%AA%E3%82%B8%E3%83%8A%E3%83%AB%E3%83%BB%E3%82%B5%E3%82%A6%E3%83%B3%E3%83%89%E3%83%88%E3%83%A9%E3%83%83&qid=1642970546&sr=8-1 | K132: https://www.amazon.co.jp/dp/B00409HDPW/ref=olp-opf-redir?aod=1&ie=UTF8&condition=ALL | L132: 3152 | M132: 1900 | N132: 無料配送: 1月29日 - 30日 詳細を見る | P132: 1900 | Q132: #岩田匡治 #崎元仁 #タクティクスオウガ #松野泰己 #ベイシスケイプ #Basiscape #スクエニ #スクウェア・エニックス | R132: #メルカリ [CD]「タクティクスオウガ 運命の輪」オリジナル・サウンドトラック フリマアプリ「メルカリ」で販売中 https://jp.mercari.com/item/m57622344397/ #岩田匡治 #崎元仁 #タクティクスオウガ #松野泰己 #ベイシスケイプ #Basiscape #スクエニ #スクウェア・エニックス | S132: 261 | T132: 2022-02-02 | U132: 1800 | V132: 2022-01-26 | W132: 1800 | X132: 180 | Y132: 175 | Z132: 1445 | AA132: 送料込み(出品者負担) | AC132: 2022-01-31 | AF132: 個人 | AG132: 1
B133: m82303709574 | C133: 取引終了 | D133: [CD]「ロマンシング サ・ガ」オリジナル・サウンドトラック-リマスター-/伊藤賢治 | E133: 42 | F133: 2016/10/15購入 中古品のため商品は多少のキズ・使用感がございます。記載ない限り帯・特典などは付属致しません。写真以外の付属品はありません。 「「ロマンシング サ・ガ」オリジナル・サウンドトラック-リマスター-/伊藤賢治」 定価: ￥ 2300 #伊藤賢治 #ロマサガ #ロマンシングサガ #イトケン #河津秋敏 92年に発表されたRPG『Romancing SaGa』のサウンドトラック。約20年ぶりの再発にあたり、楽曲を手がけた伊藤賢治自らが監修／リマスターを担当。“ゲーム音楽”の水準を高めた名作サントラが高音質で楽しめる。 | G133: 272 | H133: 1575 | I133: 最安値 | J133: https://www.amazon.co.jp/Romancing-SaGa-Original-Soundtrack-REMASTER-%E3%82%B2%E3%83%BC%E3%83%A0%E3%83%BB%E3%83%9F%E3%83%A5%E3%83%BC%E3%82%B8%E3%83%83%E3%82%AF/dp/B00J9PNUFO/ref=sr_1_3?__mk_ja_JP=%E3%82%AB%E3%82%BF%E3%82%AB%E3%83%8A&crid=2XBQHCP9I1V98&keywords=%E3%83%AD%E3%83%9E%E3%83%B3%E3%82%B7%E3%83%B3%E3%82%B0+%E3%82%B5%E3%83%BB%E3%82%AC%E3%80%8D%E3%82%AA%E3%83%AA%E3%82%B8%E3%83%8A%E3%83%AB%E3%83%BB%E3%82%B5%E3%82%A6%E3%83%B3%E3%83%89%E3%83%88%E3%83%A9%E3%83%83%E3%82%AF-%E3%83%AA&qid=1642970692&sprefix=%E3%83%AD%E3%83%9E%E3%83%B3%E3%82%B7%E3%83%B3%E3%82%B0+%E3%82%B5+%E3%82%AC+%E3%82%AA%E3%83%AA%E3%82%B8%E3%83%8A%E3%83%AB+%E3%82%B5%E3%82%A6%E3%83%B3%E3%83%89%E3%83%88%E3%83%A9%E3%83%83%E3%82%AF-%E3%83%AA%2Caps%2C507&sr=8-3 | K133: https://www.amazon.co.jp/dp/B00J9PNUFO/ref=olp-opf-redir?aod=1&ie=UTF8&condition=ALL | L133: 2230 | M133: 1625 | N133: 無料配送 8月15日 月曜日。 詳細を見る | O133: =MID(N133,FIND("配送料 ¥",N133)+5,FIND(" ",MID(N133,FIND("¥",N133),10))-2)*1 ->  | P133: 1625 | Q133: #伊藤賢治 #ロマサガ #ロマンシングサガ #イトケン #河津秋敏 | R133: #メルカリ [CD]「ロマンシング サ・ガ」オリジナル・サウンドトラック-リマスター-/伊藤賢治 フリマアプリ「メルカリ」で販売中 https://jp.mercari.com/item/m82303709574/ #伊藤賢治 #ロマサガ #ロマンシングサガ #イトケン #河津秋敏 | S133: 223 | T133: 2022-08-20 | U133: 1575 | V133: 2022-08-13 | W133: 1575 | X133: 157 | Y133: 210 | Z133: 1208 | AA133: 送料込み(出品者負担) | AB133: 葵村正 | AC133: 2022-08-21 | AF133: 個人 | AG133: 1
B134: m54285779875 | C134: 取引終了 | D134: [CD]「アンリミテッド:サガ」オリジナル・サウンドトラック | E134: 30 | F134: 2017/2/4購入 中古品のため商品は多少のキズ・使用感がございます。記載ない限り帯・特典などは付属致しません。写真以外の付属品はありません。 「「アンリミテッド:サガ」オリジナル・サウンドトラック」 定価: ￥ 2667 #浜渦正志 #スクエニ #アンサガ #サガ #サントラ #サガフロ #アンリミテッドサガ #MONOMUSIK スクウェア・エニックス公式HPで行われた「サントラCD復刻キャンペーン」による、復刻CD第3弾。数多くのファンからの支持を受けた「アンリミテッド：サガ」のオリジナル・サウンドトラックが2011年復刻決定！2002年にスクウェア・エニックスより発売された「アンリミテッド：サガ」は、スクウェア・エニックス初のオールストリーミングRPGとしても名高く、ゲーム本編ならず、音楽の評価が高い作品です。常にユーザーから再販の声が聞かれる本作が、ユーザーの熱い要望にこたえ、2011年6月に再販決定。作曲は「FIANL FANTASY XIII」の全楽曲を担当した気鋭のコンポーザー・浜渦正志。名作の呼び声高い「アンリミテッド：サガサウンドトラック」、ついに復活。 ■CD2枚組 | G134: 506 | H134: 1740 | I134: 最安値 | J134: https://www.amazon.co.jp/%E3%82%A2%E3%83%B3%E3%83%AA%E3%83%9F%E3%83%86%E3%83%83%E3%83%89-%E3%82%B5%E3%82%AC-%E3%82%AA%E3%83%AA%E3%82%B8%E3%83%8A%E3%83%AB%E3%83%BB%E3%82%B5%E3%82%A6%E3%83%B3%E3%83%89%E3%83%88%E3%83%A9%E3%83%83%E3%82%AF-%E3%82%B2%E3%83%BC%E3%83%A0%E3%83%BB%E3%83%9F%E3%83%A5%E3%83%BC%E3%82%B8%E3%83%83%E3%82%AF/dp/B004U7LKK8/ref=sr_1_1?__mk_ja_JP=%E3%82%AB%E3%82%BF%E3%82%AB%E3%83%8A&crid=3BM73X1T5KPUI&keywords=%E3%82%A2%E3%83%B3%E3%83%AA%E3%83%9F%E3%83%86%E3%83%83%E3%83%89%3A%E3%82%B5%E3%82%AC%E3%80%8D%E3%82%AA%E3%83%AA%E3%82%B8%E3%83%8A%E3%83%AB%E3%83%BB%E3%82%B5%E3%82%A6%E3%83%B3%E3%83%89%E3%83%88%E3%83%A9%E3%83%83%E3%82%AF&qid=1643070213&sprefix=%E3%82%A2%E3%83%B3%E3%83%AA%E3%83%9F%E3%83%86%E3%83%83%E3%83%89+%E3%82%B5%E3%82%AC+%E3%82%AA%E3%83%AA%E3%82%B8%E3%83%8A%E3%83%AB+%E3%82%B5%E3%82%A6%E3%83%B3%E3%83%89%E3%83%88%E3%83%A9%E3%83%83%E3%82%AF%2Caps%2C142&sr=8-1 | K134: https://www.amazon.co.jp/dp/B004U7LKK8/ref=olp-opf-redir?aod=1&ie=UTF8&condition=ALL | L134: 2226 | M134: 1380 | N134: 配送料 ¥410 7月 6-8日。 詳細を見る | O134: 410 | P134: 1790 | Q134: #浜渦正志 #スクエニ #アンサガ #サガ #サントラ #サガフロ #アンリミテッドサガ #MONOMUSIK | R134: #メルカリ [CD]「アンリミテッド:サガ」オリジナル・サウンドトラック フリマアプリ「メルカリ」で販売中 https://jp.mercari.com/item/m54285779875/ #浜渦正志 #スクエニ #アンサガ #サガ #サントラ #サガフロ #アンリミテッドサガ #MONOMUSIK | S134: 231 | T134: 2022-07-11 | U134: 1740 | V134: 2022-07-04 | W134: 1740 | X134: 174 | Y134: 210 | Z134: 1356 | AA134: 送料込み(出品者負担) | AB134: ちー | AC134: 2022-07-10 | AF134: 個人 | AG134: 1
B135: m38086540730 | C135: 取引終了 | D135: [Blu-ray]KIRINJI/KIRINJI TOUR 2016 -Live at Stellar Ball- | E135: 57 | F135: 2017/5/12購入 中古品のため商品は多少のキズ・使用感がございます。記載ない限り帯・特典などは付属致しません。プロダクト、ダウンロードコードは使用できません。写真以外の付属品はありません。 「KIRINJI/KIRINJI TOUR 2016-Live at Stellar Ball-」 KIRINJI / RHYMESTER 定価: ￥ 5600 #RHYMESTER #キリンジ #KIRINJI #冨田恵一 #堀込高樹 #堀込泰行 #弓木英梨乃 2013年の再結成以来、初となる新生KIRINJIのライヴ映像作品。アルバム『ネオ』を携えての全国ツアーから、千秋楽となった10月31日の品川ステラボールでの公演を映像化。再始動後3年間の集大成となる構成になっている。 | G135: 342 | H135: 4588 | I135: 安すぎ | J135: https://www.amazon.co.jp/KIRINJI-Live-Stellar-Ball-Blu-ray/dp/B01MS1K6TZ/ref=sr_1_1?__mk_ja_JP=%E3%82%AB%E3%82%BF%E3%82%AB%E3%83%8A&crid=L8JDKVHZNUQD&keywords=KIRINJI+TOUR+2016+Live&qid=1643069768&sprefix=kirinji+tour+2016+live%2Caps%2C159&sr=8-1 | K135: https://www.amazon.co.jp/dp/B01MS1K6TZ/ref=olp-opf-redir?aod=1&ie=UTF8&condition=ALL | L135: 4688 | M135: 5458 | N135: 配送料 ¥350 4月 13-15日。 詳細を見る | O135: 350 | P135: 5808 | Q135: #RHYMESTER #キリンジ #KIRINJI #冨田恵一 #堀込高樹 #堀込泰行 #弓木英梨乃 | R135: #メルカリ [Blu-ray]KIRINJI/KIRINJI TOUR 2016 -Live at Stellar Ball- フリマアプリ「メルカリ」で販売中 https://jp.mercari.com/item/m38086540730/ #RHYMESTER #キリンジ #KIRINJI #冨田恵一 #堀込高樹 #堀込泰行 #弓木英梨乃 | S135: 218 | T135: 2022-04-20 | U135: 4588 | V135: 2022-04-13 | W135: 11314 | X135: 1131 | Y135: 410 | Z135: 9773 | AA135: 送料込み(出品者負担) | AC135: 2022-04-18 | AF135: 個人 | AG135: 1
B136: m58683187293 | C136: 取引終了 | D136: [CD]「ファイナルファンタジー7」オリジナル・サウンドトラック | E136: 32 | F136: 中古品のため商品は多少のキズ・使用感がございます。記載ない限り帯・特典などは付属致しません。プロダクト、ダウンロードコードは使用できません。写真以外の付属品はありません。 外箱に破損（はがれ）あり。（写真参照） 「「ファイナルファンタジー7」オリジナル・サウンドトラック(FINAL FANTASY VII ORIGINAL SOUNDTRACK)」 定価: ￥ 3689 #植松伸夫 #ファイナルファンタジー #スクエニ #スクウェア・エニックス #FF7 #FF #サントラ #ゲーム 人気ゲーム「FINAL FANTASY VII」のオリジナルサウンドトラックは4枚組の超大作。ゲームでの味わいとはとはひと味もふた味も違う楽曲の数々はもちろん植松伸男氏の手によるもの。 | G136: 340 | H136: 1799 | J136: https://www.amazon.co.jp/FINAL-FANTASY-VII-ORIGINAL-SOUNDTRACK/dp/B000038I2O/ref=sr_1_1?__mk_ja_JP=%E3%82%AB%E3%82%BF%E3%82%AB%E3%83%8A&crid=GMMME2IQF56N&keywords=%E3%83%95%E3%82%A1%E3%82%A4%E3%83%8A%E3%83%AB%E3%83%95%E3%82%A1%E3%83%B3%E3%82%BF%E3%82%B8%E3%83%BC7%E3%80%8D%E3%82%AA%E3%83%AA%E3%82%B8%E3%83%8A%E3%83%AB%E3%83%BB%E3%82%B5%E3%82%A6%E3%83%B3%E3%83%89%E3%83%88%E3%83%A9%E3%83%83%E3%82%AF&qid=1643155105&sprefix=saga+frontier+2+piano+pieces%2Caps%2C138&sr=8-1 | K136: https://www.amazon.co.jp/dp/B000038I2O/ref=olp-opf-redir?aod=1&ie=UTF8&condition=ALL | L136: 8200 | M136: 630 | N136: 無料配送 5月 12-14日。 詳細を見る | P136: 630 | Q136: #植松伸夫 #ファイナルファンタジー #スクエニ #スクウェア・エニックス #FF7 #FF #サントラ #ゲーム | R136: #メルカリ [CD]「ファイナルファンタジー7」オリジナル・サウンドトラック フリマアプリ「メルカリ」で販売中 https://jp.mercari.com/item/m58683187293/ #植松伸夫 #ファイナルファンタジー #スクエニ #スクウェア・エニックス #FF7 #FF #サントラ #ゲーム | S136: 243 | T136: 2022-05-19 | U136: 1799 | V136: 2022-05-12 | W136: 1799 | X136: 179 | Y136: 175 | Z136: 1445 | AA136: 送料込み(出品者負担) | AB136: 610cop | AC136: 2022-05-21 | AF136: 個人 | AG136: 1
B137: m23241044966 | C137: 取引終了 | D137: [CD]Piano Pieces“SF2”Rhapsody on a Theme of SaGa FRONTIER 2 | E137: 59 | F137: 2016/3/24購入 中古品のため商品は多少のキズ・使用感がございます。記載ない限り帯・特典などは付属致しません。プロダクト、ダウンロードコードは使用できません。写真以外の付属品はありません。 「「SaGa FRONTIER 2」Piano Pieces \"SF2\"Rhapsody on a Theme of SaGa FRONTIER 2」 定価: ￥ 2381 #浜渦正志 #サガフロ2 #サガフロンティア2 #サガ・フロンティア2 #河津秋敏 #サガフロ #サガフロンティア #サガ・フロンティア ファン待望の「サガ フロンティア2」ピアノアレンジCD、再発決定! 発売から10年を過ぎた今でも根強いファンを持つRPG「サガ フロンティア2」。「FIANL FANTASY XIII」で今最も注目を浴びる作曲家・浜渦正志が楽曲を担当し、浜渦音楽を確立したともいえる作品です。そして、浜渦正志自身がその浜渦音楽たちをピアノアレンジした名盤「Piano Pieces “SF 2”」が、ファンからの熱い要望を受け、再発盤の発売が決定! ☆再発盤のみのボーナストラック収録! さらに、今回の再発盤CDだけのボーナストラックとして、イタリア・ミラノにて収録した【再発盤ボーナストラック】「“β”1:Botschaft」を収録!往年の浜渦ファンはもちろん、「発売当時、手に入れられなかった」、「FINAL FANTASY XIIIで浜渦正志を知ってファンになった」という皆様にも必携の一枚です。 | G137: 654 | H137: 1800 | J137: https://www.amazon.co.jp/Piano-Pieces%E2%80%9CSF2%E2%80%9DRhapsody-Theme-SaGa-FRONTIER/dp/B003NUOTTM/ref=sr_1_1?__mk_ja_JP=%E3%82%AB%E3%82%BF%E3%82%AB%E3%83%8A&crid=YGLV7YG1WX99&keywords=SaGa+FRONTIER+2%E3%80%8DPiano+Pieces&qid=1643154921&sprefix=saga+frontier+2+piano+pieces%2Caps%2C319&sr=8-1 | K137: https://www.amazon.co.jp/dp/B003NUOTTM/ref=olp-opf-redir?aod=1&ie=UTF8&condition=ALL | L137: 2105 | M137: 1399 | N137: 配送料 ¥350 3月 15-17日。 詳細を見る | O137: 350 | P137: 1749 | Q137: #浜渦正志 #サガフロ2 #サガフロンティア2 #サガ・フロンティア2 #河津秋敏 #サガフロ #サガフロンティア #サガ・フロンティア | R137: #メルカリ [CD]Piano Pieces“SF2”Rhapsody on a Theme of SaGa FRONTIER 2 フリマアプリ「メルカリ」で販売中 https://jp.mercari.com/item/m23241044966/ #浜渦正志 #サガフロ2 #サガフロンティア2 #サガ・フロンティア2 #河津秋敏 #サガフロ #サガフロンティア #サガ・フロンティア | S137: 269 | T137: 2022-03-20 | U137: 1800 | V137: 2022-03-13 | W137: 1800 | X137: 180 | Y137: 175 | Z137: 1445 | AA137: 送料込み(出品者負担) | AC137: 2022-03-16 | AF137: 個人 | AG137: 1
B138: m73903294334 | C138: 出品中 | D138: [DVD]24-TWENTY FOUR- シーズンⅢ ハンディBOX〈12枚組〉 | E138: 40 | F138: 中古品のため商品は多少のキズ・使用感がございます。記載ない限り帯・特典などは付属致しません。写真以外の付属品はありません。 「24-TWENTY FOUR- シーズンⅢ ハンディBOX〈12枚組〉」 キーファー・サザーランド / エリシャ・カスバート / ジョエル・サーノウ 定価: ￥ 9800 #キーファー・サザーランド #エリシャ・カスバート #ジョエル・サーノウ #ジャック・バウアー #24 一時間刻みの24時間をドラマ化した、人気のTVシリーズの3rdシーズンをまとめたBOX。今回のジャック・バウアーの敵は目に見えないウィルス。時間勝負でバイオハザードの恐怖を描く。 | G138: 293 | H138: 2600 | J138: https://www.amazon.co.jp/TWENTY-FOUR-%E3%82%B7%E3%83%BC%E3%82%BA%E3%83%B33-%E3%83%8F%E3%83%B3%E3%83%87%E3%82%A3BOX-DVD/dp/B000IU3946/ref=sr_1_1?__mk_ja_JP=%E3%82%AB%E3%82%BF%E3%82%AB%E3%83%8A&crid=1P0ZKGB8E6P1S&keywords=%5BDVD%5D24-TWENTY+FOUR-+%E3%82%B7%E3%83%BC%E3%82%BA%E3%83%B3%E2%85%A2+%E3%83%8F%E3%83%B3%E3%83%87%E3%82%A3BOX&qid=1643258923&sprefix=dvd+24-twenty+four-+%E3%82%B7%E3%83%BC%E3%82%BA%E3%83%B3iii+%E3%83%8F%E3%83%B3%E3%83%87%E3%82%A3box%2Caps%2C156&sr=8-1 | K138: https://www.amazon.co.jp/dp/B000IU3946/ref=olp-opf-redir?aod=1&ie=UTF8&condition=ALL | L138: 3247 | M138: 852 | N138: 無料配送 11月1日-2日にお届け 詳細を見る | O138: =MID(N138,FIND("配送料 ¥",N138)+5,FIND(" ",MID(N138,FIND("¥",N138),10))-2)*1 ->  | P138: 852 | Q138: #キーファー・サザーランド #エリシャ・カスバート #ジョエル・サーノウ #ジャック・バウアー #24 | R138: ="#メルカリ"&CHAR(10)&D138&CHAR(10)&" フリマアプリ「メルカリ」で販売中 https://jp.mercari.com/item/"&B138&"?utm_source=android&utm_medium=share "&Q138 -> #メルカリ [DVD]24-TWENTY FOUR- シーズンⅢ ハンディBOX〈12枚組〉 フリマアプリ「メルカリ」で販売中 https://jp.mercari.com/item/m73903294334?utm_source=android&utm_medium=share #キーファー・サザーランド #エリシャ・カスバート #ジョエル・サーノウ #ジャック・バウアー #24 | S138: 269 | U138: 2600 | AF138: 個人 | AG138: 1
B139: m57991951730 | C139: 出品中 | D139: [DVD]スティーリー・ダン/シークレット・ライヴ・イン・NY | E139: 31 | F139: 中古品のため商品は多少のキズ・使用感がございます。記載ない限り帯・特典などは付属致しません。写真以外の付属品はありません。 [DVD]スティーリー・ダン/シークレット・ライヴ・イン・NY #スティーリー・ダン #SteelyDan #ドナルド・フェイゲン #ウォルター・ベッカー #DonaldFagen #WalterBecker 20年振りにオリジナルアルバムを発表した、スティーリー・ダン。彼らがそのリリースとワールド・ツアーに先立って行った、ニューヨークでのライブの模様を収録。 | G139: 246 | H139: 1999 | J139: https://www.amazon.co.jp/%E3%82%B7%E3%83%BC%E3%82%AF%E3%83%AC%E3%83%83%E3%83%88-%E3%83%A9%E3%82%A4%E3%83%B4%E3%83%BB%E3%82%A4%E3%83%B3%E3%83%BBNY-DTS5-1ch-DVD-%E3%82%B9%E3%83%86%E3%82%A3%E3%83%BC%E3%83%AA%E3%83%BC%E3%83%BB%E3%83%80%E3%83%B3/dp/B00007E8G7/ref=tmm_dvd_title_0?_encoding=UTF8&qid=1643348534&sr=1-19 | K139: https://www.amazon.co.jp/dp/B00007E8G7/ref=olp-opf-redir?aod=1&ie=UTF8&condition=ALL | M139: 1040 | N139: 配送料 ¥450 11月3日-5日にお届け 詳細を見る | O139: 450 | P139: 1490 | Q139: #スティーリー・ダン #SteelyDan #ドナルド・フェイゲン #ウォルター・ベッカー #DonaldFagen #WalterBecker | R139: #メルカリ [DVD]スティーリー・ダン/シークレット・ライヴ・イン・NY フリマアプリ「メルカリ」で販売中 https://jp.mercari.com/item/m57991951730?utm_source=android&utm_medium=share #スティーリー・ダン #SteelyDan #ドナルド・フェイゲン #ウォルター・ベッカー #DonaldFagen #WalterBecker | S139: 280 | U139: 1999 | AF139: 個人 | AG139: 1
B140: m58749149988 | C140: 出品中 | D140: [CD]不思議のダンジョン 風来のシレン5 [Limited Sound Track] | E140: 43 | F140: 中古品のため商品は多少のキズ・使用感がございます。記載ない限り帯・特典などは付属致しません。写真以外の付属品はありません。 [CD]不思議のダンジョン 風来のシレン5 [Limited Sound Track] #すぎやまこういち #松尾早人 #風来のシレン #シレン5 #風来のシレン5 #シレン #不思議のダンジョン #チュンソフト #サントラ 不思議のダンジョン 風来のシレン5 DS 予約特典CD【特典のみ】 | G140: 212 | H140: 2888 | I140: 最安値 | J140: https://www.amazon.co.jp/%E4%B8%8D%E6%80%9D%E8%AD%B0%E3%81%AE%E3%83%80%E3%83%B3%E3%82%B8%E3%83%A7%E3%83%B3-%E9%A2%A8%E6%9D%A5%E3%81%AE%E3%82%B7%E3%83%AC%E3%83%B35-%E3%83%95%E3%82%A9%E3%83%BC%E3%83%81%E3%83%A5%E3%83%B3%E3%82%BF%E3%83%AF%E3%83%BC%E3%81%A8%E9%81%8B%E5%91%BD%E3%81%AE%E3%83%80%E3%82%A4%E3%82%B9-%E7%89%B9%E5%85%B8%E3%83%87%E3%82%A3%E3%82%B9%E3%82%AF%E3%80%8ELimited-%E3%83%AA%E3%83%9F%E3%83%86%E3%83%83%E3%83%89%E3%82%B5%E3%82%A6%E3%83%B3%E3%83%89%E3%83%88%E3%83%A9%E3%83%83%E3%82%AFCD%E3%80%8F%E3%80%90%E7%89%B9%E5%85%B8%E3%81%AE%E3%81%BF%E3%80%91/dp/B00GM0P4QM/ref=sr_1_2?__mk_ja_JP=%E3%82%AB%E3%82%BF%E3%82%AB%E3%83%8A&crid=9H37OIF1PKRJ&keywords=%E9%A2%A8%E6%9D%A5%E3%81%AE%E3%82%B7%E3%83%AC%E3%83%B35+%E3%83%AA%E3%83%9F%E3%83%86%E3%83%83%E3%83%89&qid=1643426628&sprefix=%E9%A2%A8%E6%9D%A5%E3%81%AE%E3%82%B7%E3%83%AC%E3%83%B35+%E3%82%8A%E3%81%BF%E3%81%A6dd%2Caps%2C1850&sr=8-2 | K140: https://www.amazon.co.jp/dp/B00GM0P4QM/ref=olp-opf-redir?aod=1&ie=UTF8&condition=ALL | L140: 3980 | M140: 2589 | N140: 配送料 ¥350 11月2日-4日にお届け 詳細を見る | O140: 350 | P140: 2939 | Q140: #すぎやまこういち #松尾早人 #風来のシレン #シレン5 #風来のシレン5 #シレン #不思議のダンジョン #チュンソフト #サントラ | R140: #メルカリ [CD]不思議のダンジョン 風来のシレン5 [Limited Sound Track] フリマアプリ「メルカリ」で販売中 https://jp.mercari.com/item/m58749149988?utm_source=android&utm_medium=share #すぎやまこういち #松尾早人 #風来のシレン #シレン5 #風来のシレン5 #シレン #不思議のダンジョン #チュンソフト #サントラ | S140: 300 | U140: 2888 | AF140: 個人 | AG140: 1
B141: m55237213203 | C141: 取引終了 | D141: [Blu-ray]KIRINJI/KIRINJI LIVE 2020 | E141: 34 | F141: 2022/1/22購入 中古品のため商品は多少のキズ・使用感がございます。記載ない限り帯・特典などは付属致しません。プロダクト、ダウンロードコードは使用できません。写真以外の付属品はありません。 「KIRINJI/KIRINJI LIVE 2020」 KIRINJI / YonYon 定価: ￥ 5600 #KIRINJI #YonYon #キリンジ #冨田恵一 #堀込高樹 #堀込泰行 #弓木英梨乃 【Blu-Ray】 バンドKIRINJI、ラスト・ライヴ。 鎮座DOPENESS、YonYonをゲストに迎えた、2020年12月のNHKホール公演を収録。 ●2013年に兄弟デュオの「キリンジ」からバンド編成の「KIRINJI」に劇的な変化を遂げ、以降、リーダーの堀込高樹を中心とする、個性豊かで卓越した音楽性を持つメンバーが織りなすカラフルなハイブリッド・サウンドや、フィーチャリング・アーティストとの有機的なコラボレーションで、日本のみならず海外の音楽ファンも魅了してきたKIRINJI。 ●2021年以降は堀込高樹を中心とする変動的で緩やかな繋がりの音楽集団として活動していくため、バンド体制としてはラスト・ライヴとなった2020年12月9日、10日に東京・NHKホールで行った2デイズ公演の2日目を完全収録した4年ぶりの映像作品。ゲストに鎮座DOPENESS、YonYonが参加。 ●本作品用にライヴ音源を新たにミックスダウン&マスタリング。ボーナス映像には、1日目にしか演奏されなかった3曲のライヴ映像とオフショット映像を収録。 ●ベスト盤『KIRINJI 20132020』の2枚組LP盤と同時発売。 | G141: 712 | H141: 3580 | I141: 安すぎ | J141: https://www.amazon.co.jp/KIRINJI-LIVE-2020-Blu-Ray/dp/B0916W56DJ/ref=sr_1_1?__mk_ja_JP=%E3%82%AB%E3%82%BF%E3%82%AB%E3%83%8A&keywords=KIRINJI+LIVE+2020&qid=1643426685&sr=8-1 | K141: https://www.amazon.co.jp/dp/B0916W56DJ/ref=olp-opf-redir?aod=1&ie=UTF8&condition=ALL | L141: 4738 | M141: 3680 | N141: 配送料 ¥450 3月 31日-4月 2日。 詳細を見る | O141: =MID(N141,FIND("配送料 ¥",N141)+5,FIND(" ",MID(N141,FIND("¥",N141),10))-2)*1 -> 450 | P141: 4130 | Q141: #KIRINJI #YonYon #キリンジ #冨田恵一 #堀込高樹 #堀込泰行 #弓木英梨乃 | R141: #メルカリ [Blu-ray]KIRINJI/KIRINJI LIVE 2020 フリマアプリ「メルカリ」で販売中 https://jp.mercari.com/item/m55237213203/ #KIRINJI #YonYon #キリンジ #冨田恵一 #堀込高樹 #堀込泰行 #弓木英梨乃 | S141: 192 | T141: 2022-04-02 | U141: 3580 | V141: 2022-03-26 | W141: 3580 | X141: 358 | Y141: 175 | Z141: 3047 | AA141: 送料込み(出品者負担) | AC141: 2022-03-31 | AF141: 個人 | AG141: 1
B142: m90416679347 | C142: 取引終了 | D142: [CD]キリンジ/For Beautiful Human Life | E142: 33 | F142: 中古品のため商品は多少のキズ・使用感がございます。記載ない限り帯・特典などは付属致しません。写真以外の付属品はありません。 「For Beautiful Human Life」 キリンジ 定価: ￥ 2857 #キリンジ #KIRINJI #冨田恵一 #堀込高樹 #堀込泰行 2003年にデビュー5周年を迎えたキリンジの、約2年ぶりとなるオリジナル・フル・アルバム。シングル「スウィートソウル」「カメレオンガール」を収録。ポップ路線の名曲は彼らならでは。 | G142: 230 | H142: 1800 | I142: 最安値 | J142: https://www.amazon.co.jp/Beautiful-Human-Life-%E3%82%AD%E3%83%AA%E3%83%B3%E3%82%B8/dp/B00DUFW8CU/ref=sr_1_1?__mk_ja_JP=%E3%82%AB%E3%82%BF%E3%82%AB%E3%83%8A&keywords=%E3%82%AD%E3%83%AA%E3%83%B3%E3%82%B8%2FFor+Beautiful+Human+Life&qid=1643504386&sr=8-1 | K142: https://www.amazon.co.jp/dp/B00DUFW8CU/ref=olp-opf-redir?aod=1&ie=UTF8&condition=ALL | L142: 2045 | M142: 1500 | N142: 配送料 ¥350 7月 5-7日。 詳細を見る | O142: =MID(N142,FIND("配送料 ¥",N142)+5,FIND(" ",MID(N142,FIND("¥",N142),10))-2)*1 -> 350 | P142: 1850 | Q142: #キリンジ #KIRINJI #冨田恵一 #堀込高樹 #堀込泰行 | R142: #メルカリ [CD]キリンジ/For Beautiful Human Life フリマアプリ「メルカリ」で販売中 https://jp.mercari.com/item/m90416679347/ #キリンジ #KIRINJI #冨田恵一 #堀込高樹 #堀込泰行 | S142: 175 | T142: 2022-07-14 | U142: 1800 | V142: 2022-07-07 | W142: 1800 | X142: 180 | Y142: 210 | Z142: 1410 | AA142: 送料込み(出品者負担) | AB142: ナツキ | AC142: 2022-07-13 | AF142: 個人 | AG142: 1
B143: m59208185291 | C143: 出品中 | D143: [CD]坂本真綾/少年アリス | E143: 14 | F143: 2009/8/2購入 中古品のため商品は多少のキズ・使用感がございます。記載ない限り帯・特典などは付属致しません。写真以外の付属品はありません。 「少年アリス」 坂本真綾 定価: ￥ 2900 #坂本真綾 #菅野よう子 声優、女優、歌手と多彩な活動を続ける坂本真綾のオリジナル4thアルバム。同時発売のDVD『03クロス』の主題歌「03」も収録された作品。菅野よう子がプロデュース。 | G143: 194 | H143: 1299 | J143: https://www.amazon.co.jp/%E5%B0%91%E5%B9%B4%E3%82%A2%E3%83%AA%E3%82%B9-%E5%9D%82%E6%9C%AC%E7%9C%9F%E7%B6%BE/dp/B0035NO6M2/ref=sr_1_1?__mk_ja_JP=%E3%82%AB%E3%82%BF%E3%82%AB%E3%83%8A&crid=1F7V0Q7NHAD21&keywords=%E5%9D%82%E6%9C%AC%E7%9C%9F%E7%B6%BE%2F%E5%B0%91%E5%B9%B4%E3%82%A2%E3%83%AA%E3%82%B9&qid=1643504414&sprefix=%E5%9D%82%E6%9C%AC%E7%9C%9F%E7%B6%BE%2F%E5%B0%91%E5%B9%B4%E3%82%A2%E3%83%AA%E3%82%B9%2Caps%2C165&sr=8-1 | K143: https://www.amazon.co.jp/dp/B0035NO6M2/ref=olp-opf-redir?aod=1&ie=UTF8&condition=ALL | L143: 3190 | M143: 797 | N143: 配送料 ¥299 10月31日-11月1日にお届け（4 時間 30 分以内にご注文の場合） 詳細を見る | O143: =MID(N143,FIND("配送料 ¥",N143)+5,FIND(" ",MID(N143,FIND("¥",N143),10))-2)*1 -> 299 | P143: 1096 | Q143: #坂本真綾 #菅野よう子 | R143: ="#メルカリ"&CHAR(10)&D143&CHAR(10)&" フリマアプリ「メルカリ」で販売中 https://jp.mercari.com/item/"&B143&"?utm_source=android&utm_medium=share "&Q143 -> #メルカリ [CD]坂本真綾/少年アリス フリマアプリ「メルカリ」で販売中 https://jp.mercari.com/item/m59208185291?utm_source=android&utm_medium=share #坂本真綾 #菅野よう子 | S143: 169 | U143: 1299 | AF143: 個人 | AG143: 1
B144: m33325595280 | C144: 取引終了 | D144: [CD]キリンジ/Ten(初回盤) | E144: 17 | F144: 2013/3/30購入 中古品のため商品は多少のキズ・使用感がございます。記載ない限り帯・特典などは付属致しません。写真以外の付属品はありません。 ケースに一部ヒビあり 「Ten」 キリンジ 定価: ￥ 3500 #キリンジ #KIRINJI #冨田恵一 #堀込高樹 #堀込泰行 結成17年目の集大成、最高傑作、堀込兄弟ラスト作品完成 限定盤は新曲MusicVideoに加え、ドキュメント映像「キリンジTV the FINAL」を収録したDVD付き 2012年11月の「SUPER VIEW」リリースから約4ヶ月を経て早くもリリースされる10枚目のオリジナル・アルバム。今作は、昨年10月に発表され、音楽ファンを震撼させたニュースの通り、堀込泰行(Vo/G)脱退前最後の兄弟としてのキリンジ・ラストアルバムになります。 堀込兄弟による17年を締め括る今作、淡々と真摯に音楽と向き合い、音と言葉で紡いだ糸を、ハーモニーの指先で綴れ織ったタペストリーのごとき艶やかな輝きを放つ、芳醇な作品になります。これまでの作品となんら変わることのない才能と研鑚の結晶、それは彼らの足跡とも言うべき過去の作品群が証明しています。 ◆CD収録内容 1. きもだめし 2. ナイーヴな人々 3. 夢見て眠りよ 4. ビリー 5. 仔狼のバラッド 6. 黄金の舟 7. 阿呆 8. 手影絵 9. dusty spring field 10. あたらしい友だち(Album ver.) 全10曲収録 ◆DVD収録内容 新曲MusicVideoに加え、ドキュメント映像「キリンジTV the FINAL」を収録。 ※「キリンジTV the FINAL」:最終ステージへ向かう2人を至近距離から撮影、友人、スタッフのコメントによる2人の素顔を追ったドキュメント映像。 | G144: 774 | H144: 1299 | J144: https://www.amazon.co.jp/Ten-%E5%88%9D%E5%9B%9E%E7%9B%A4-%E3%82%AD%E3%83%AA%E3%83%B3%E3%82%B8/dp/B00AZH6JZS/ref=sr_1_1?__mk_ja_JP=%E3%82%AB%E3%82%BF%E3%82%AB%E3%83%8A&crid=2HM9N0HUU80V2&keywords=%E3%82%AD%E3%83%AA%E3%83%B3%E3%82%B8%2FTen&qid=1643608973&sprefix=%E3%82%AD%E3%83%AA%E3%83%B3%E3%82%B8%2Ften%2Caps%2C143&sr=8-1 | K144: https://www.amazon.co.jp/dp/B00AZH6JZS/ref=olp-opf-redir?aod=1&ie=UTF8&condition=ALL | M144: 591 | N144: 無料配送 2月 22-24日にお届け 詳細を見る | P144: 591 | Q144: #キリンジ #KIRINJI #冨田恵一 #堀込高樹 #堀込泰行 | R144: #メルカリ [CD]キリンジ/Ten(初回盤) フリマアプリ「メルカリ」で販売中 https://jp.mercari.com/item/m33325595280?utm_source=android&utm_medium=share #キリンジ #KIRINJI #冨田恵一 #堀込高樹 #堀込泰行 | S144: 197 | T144: 2023-03-19 | U144: 1299 | V144: 2023-03-12 | W144: 1299 | X144: 129 | Y144: 210 | Z144: 960 | AA144: 送料込み(出品者負担) | AB144: 須田マカン | AC144: 2023-03-18 | AF144: 個人 | AG144: 1
B145: m45868635994 | C145: 取引終了 | D145: [CD]キリンジ/スウィートソウルep | E145: 19 | F145: 中古品のため商品は多少のキズ・使用感がございます。記載ない限り帯・特典などは付属致しません。プロダクト、ダウンロードコードは使用できません。写真以外の付属品はありません。 「キリンジ/スウィートソウルep」 KIRINJI 定価: ￥ 1905 #キリンジ #KIRINJI #冨田恵一 #堀込高樹 #堀込泰行 良質な日本語ポップを作り続ける稀有な存在、キリンジの移籍第1弾。収録6曲すべてがシングル・カット可能なほどのクオリティの高さ。全曲のインスト・ヴァージョンも収録したお買い得盤だ。 | G145: 248 | H145: 1799 | J145: https://www.amazon.co.jp/%E3%82%B9%E3%82%A6%E3%82%A3%E3%83%BC%E3%83%88%E3%82%BD%E3%82%A6%E3%83%AB-ep-%E3%82%AD%E3%83%AA%E3%83%B3%E3%82%B8/dp/B000087OQV/ref=sr_1_1?__mk_ja_JP=%E3%82%AB%E3%82%BF%E3%82%AB%E3%83%8A&crid=18AY890NN0C2&keywords=%E3%82%AD%E3%83%AA%E3%83%B3%E3%82%B8%2F%E3%82%B9%E3%82%A6%E3%82%A3%E3%83%BC%E3%83%88%E3%82%BD%E3%82%A6%E3%83%ABep&qid=1643609136&sprefix=%E3%82%AD%E3%83%AA%E3%83%B3%E3%82%B8%2F%E3%82%B9%E3%82%A6%E3%82%A3%E3%83%BC%E3%83%88%E3%82%BD%E3%82%A6%E3%83%ABep%2Caps%2C148&sr=8-1 | K145: https://www.amazon.co.jp/dp/B000087OQV/ref=olp-opf-redir?aod=1&ie=UTF8&condition=ALL | L145: 2093 | M145: 496 | N145: 配送料 ¥350 4月 14-15日。 詳細を見る | O145: 350 | P145: 846 | Q145: #キリンジ #KIRINJI #冨田恵一 #堀込高樹 #堀込泰行 | R145: #メルカリ [CD]キリンジ/スウィートソウルep フリマアプリ「メルカリ」で販売中 https://jp.mercari.com/item/m45868635994/ #キリンジ #KIRINJI #冨田恵一 #堀込高樹 #堀込泰行 | S145: 169 | U145: 1799 | AF145: 個人 | AG145: 1
B146: m12327429073 | C146: 取引終了 | D146: [CD]サザンオールスターズ/ステレオ太陽族(リマスタリング盤)（初回盤(デジパック仕様)） | E146: 46 | F146: 2008/12/6 中古品のため商品は多少のキズ・使用感がございます。記載ない限り帯・特典などは付属致しません。写真以外の付属品はありません。 「ステレオ太陽族(リマスタリング盤)（初回盤(デジパック仕様)）」 サザンオールスターズ 定価: ￥ 2381 #桑田佳祐 #CD・DVD #サザン #サザンオールスターズ #SAS #原由子 #松田弘 #関口和之 #野沢秀行 #大森隆志 #斎藤誠 #片山敦夫 1978年の1st『熱い胸さわぎ』から、2005年の14th『キラーストリート』までの全オリジナルアルバムを K2HDマスタリング(※)でリマスタリング。 当時のレコーディング現場の”原音”であるオリジナルマスターに限りなく忠実な、高音質による サウンドが蘇り、アーティストが思い描いた”理想のサウンド”を表現します!! (※)【K2HDマスタリング】とは 原音<オリジナルマスター>の魅力をより引き出すマスタリングと新技術「K2 High Definitionコーディング」により、 本来持つ楽曲の魅力が最大100kHzに及ぶ広帯域と24bitの高分解能な音楽情報をCDに収められることで、 レコーディングされた”原音”に限りなく近づいたサウンドを表現する画期的なマスタリング! これまでにないCDの《高音質化》を実現!! | G146: 569 | H146: 1600 | I146: 最安値 | J146: https://www.amazon.co.jp/%E3%82%B9%E3%83%86%E3%83%AC%E3%82%AA%E5%A4%AA%E9%99%BD%E6%97%8F-%E3%83%AA%E3%83%9E%E3%82%B9%E3%82%BF%E3%83%AA%E3%83%B3%E3%82%B0%E7%9B%A4-%E3%82%B5%E3%82%B6%E3%83%B3%E3%82%AA%E3%83%BC%E3%83%AB%E3%82%B9%E3%82%BF%E3%83%BC%E3%82%BA/dp/B001JTMMHK/ref=sr_1_1?__mk_ja_JP=%E3%82%AB%E3%82%BF%E3%82%AB%E3%83%8A&crid=2VB1AZR15JVNY&keywords=%E3%82%B5%E3%82%B6%E3%83%B3%E3%82%AA%E3%83%BC%E3%83%AB%E3%82%B9%E3%82%BF%E3%83%BC%E3%82%BA%2F%E3%82%B9%E3%83%86%E3%83%AC%E3%82%AA%E5%A4%AA%E9%99%BD%E6%97%8F&qid=1643679497&sprefix=%2Caps%2C756&sr=8-1 | K146: https://www.amazon.co.jp/dp/B001JTMMHK/ref=olp-opf-redir?aod=1&ie=UTF8&condition=ALL | L146: 2114 | M146: 1300 | N146: 配送料 ¥350 6月 24-26日。 詳細を見る | O146: =MID(N146,FIND("配送料 ¥",N146)+5,FIND(" ",MID(N146,FIND("¥",N146),10))-2)*1 -> 350 | P146: 1650 | Q146: #桑田佳祐 #CD・DVD #サザン #サザンオールスターズ #SAS #原由子 #松田弘 #関口和之 #野沢秀行 #大森隆志 #斎藤誠 #片山敦夫 | R146: #メルカリ [CD]サザンオールスターズ/ステレオ太陽族(リマスタリング盤)（初回盤(デジパック仕様)） フリマアプリ「メルカリ」で販売中 https://jp.mercari.com/item/m12327429073/ #桑田佳祐 #CD・DVD #サザン #サザンオールスターズ #SAS #原由子 #松田弘 #関口和之 #野沢秀行 #大森隆志 #斎藤誠 #片山敦夫 | S146: 290 | T146: 2022-06-30 | U146: 1600 | V146: 2022-06-23 | W146: 1600 | X146: 160 | Y146: 210 | Z146: 1230 | AA146: 送料込み(出品者負担) | AB146: mac | AC146: 2022-06-29 | AF146: 個人 | AG146: 1
B147: m80318762949 | C147: 取引終了 | D147: [CD]サザンオールスターズ/KAMAKURA(リマスタリング盤)（初回盤(デジパック仕様)） | E147: 47 | F147: 2008/12/6購入 中古品のため商品は多少のキズ・使用感がございます。記載ない限り帯・特典などは付属致しません。プロダクト、ダウンロードコードは使用できません。写真以外の付属品はありません。 「KAMAKURA(リマスタリング盤)（初回盤(デジパック仕様)）」」 サザンオールスターズ 定価: ￥ 3048 #桑田佳祐 #CD・DVD #サザン #サザンオールスターズ #SAS #原由子 #松田弘 #関口和之 #野沢秀行 #大森隆志 #斎藤誠 #片山敦夫 1978年の1st『熱い胸さわぎ』から、2005年の14th『キラーストリート』までの全オリジナルアルバムを K2HDマスタリング(※)でリマスタリング。 当時のレコーディング現場の”原音”であるオリジナルマスターに限りなく忠実な、高音質による サウンドが蘇り、アーティストが思い描いた”理想のサウンド”を表現します!! (※)【K2HDマスタリング】とは 原音<オリジナルマスター>の魅力をより引き出すマスタリングと新技術「K2 High Definitionコーディング」により、 本来持つ楽曲の魅力が最大100kHzに及ぶ広帯域と24bitの高分解能な音楽情報をCDに収められることで、 レコーディングされた”原音”に限りなく近づいたサウンドを表現する画期的なマスタリング! これまでにないCDの《高音質化》を実現!! | G147: 597 | H147: 1836 | I147: 最安値 | J147: https://www.amazon.co.jp/KAMAKURA-%E3%83%AA%E3%83%9E%E3%82%B9%E3%82%BF%E3%83%AA%E3%83%B3%E3%82%B0%E7%9B%A4-%E3%82%B5%E3%82%B6%E3%83%B3%E3%82%AA%E3%83%BC%E3%83%AB%E3%82%B9%E3%82%BF%E3%83%BC%E3%82%BA/dp/B001JTMMIO/ref=pd_sbs_6/356-0204218-1465854?pd_rd_w=RXkmk&pf_rd_p=eb649620-718d-4f3b-9aaa-29b215914196&pf_rd_r=RZGFR7XPB0FPE1R3Q77D&pd_rd_r=5be94f0c-a97f-4985-921d-4a086da25cfd&pd_rd_wg=KQ7Gx&pd_rd_i=B001JTMMIO&psc=1 | K147: https://www.amazon.co.jp/dp/B001JTMMIO/ref=olp-opf-redir?aod=1&ie=UTF8&condition=ALL | L147: 2955 | M147: 1580 | N147: 配送料 ¥356 4月 21-25日。 詳細を見る | O147: 356 | P147: 1936 | Q147: #桑田佳祐 #CD・DVD #サザン #サザンオールスターズ #SAS #原由子 #松田弘 #関口和之 #野沢秀行 #大森隆志 #斎藤誠 #片山敦夫 | R147: #メルカリ [CD]サザンオールスターズ/KAMAKURA(リマスタリング盤)（初回盤(デジパック仕様)） フリマアプリ「メルカリ」で販売中 https://jp.mercari.com/item/m80318762949/ #桑田佳祐 #CD・DVD #サザン #サザンオールスターズ #SAS #原由子 #松田弘 #関口和之 #野沢秀行 #大森隆志 #斎藤誠 #片山敦夫 | S147: 284 | T147: 2022-04-25 | U147: 1836 | V147: 2022-04-18 | W147: 1836 | X147: 183 | Y147: 175 | Z147: 1478 | AA147: 送料込み(出品者負担) | AC147: 2022-04-25 | AF147: 個人 | AG147: 1
B148: m21532232881 | C148: 取引終了 | D148: [CD]サザンオールスターズ/NUDE MAN(リマスタリング盤)（初回盤(デジパック仕様)） | E148: 47 | F148: 2008/12/6購入 中古品のため商品は多少のキズ・使用感がございます。記載ない限り帯・特典などは付属致しません。写真以外の付属品はありません。 [CD]サザンオールスターズ/NUDE MAN(リマスタリング盤)（初回盤(デジパック仕様)） 定価: ￥ 2381 #桑田佳祐 #CD・DVD #サザン #サザンオールスターズ #SAS #原由子 #松田弘 #関口和之 #野沢秀行 #大森隆志 #斎藤誠 #片山敦夫 1978年の1st『熱い胸さわぎ』から、2005年の14th『キラーストリート』までの全オリジナルアルバムを K2HDマスタリング(※)でリマスタリング。 当時のレコーディング現場の”原音”であるオリジナルマスターに限りなく忠実な、高音質による サウンドが蘇り、アーティストが思い描いた”理想のサウンド”を表現します!! (※)【K2HDマスタリング】とは 原音<オリジナルマスター>の魅力をより引き出すマスタリングと新技術「K2 High Definitionコーディング」により、 本来持つ楽曲の魅力が最大100kHzに及ぶ広帯域と24bitの高分解能な音楽情報をCDに収められることで、 レコーディングされた”原音”に限りなく近づいたサウンドを表現する画期的なマスタリング! これまでにないCDの《高音質化》を実現!! | G148: 574 | H148: 1299 | I148: 安すぎ | J148: https://www.amazon.co.jp/NUDE-MAN-%E3%83%AA%E3%83%9E%E3%82%B9%E3%82%BF%E3%83%AA%E3%83%B3%E3%82%B0%E7%9B%A4-%E3%82%B5%E3%82%B6%E3%83%B3%E3%82%AA%E3%83%BC%E3%83%AB%E3%82%B9%E3%82%BF%E3%83%BC%E3%82%BA/dp/B001JTMMHU/ref=sr_1_1?__mk_ja_JP=%E3%82%AB%E3%82%BF%E3%82%AB%E3%83%8A&keywords=%E3%82%B5%E3%82%B6%E3%83%B3%E3%82%AA%E3%83%BC%E3%83%AB%E3%82%B9%E3%82%BF%E3%83%BC%E3%82%BA%2FNUDE+MAN&qid=1643756503&sr=8-1 | K148: https://www.amazon.co.jp/dp/B001JTMMHU/ref=olp-opf-redir?aod=1&ie=UTF8&condition=ALL | L148: 2040 | M148: 1218 | N148: 配送料 ¥300 11月 30日-12月 2日にお届け 詳細を見る | O148: =MID(N148,FIND("配送料 ¥",N148)+5,FIND(" ",MID(N148,FIND("¥",N148),10))-2)*1 -> 300 | P148: 1518 | Q148: #桑田佳祐 #CD・DVD #サザン #サザンオールスターズ #SAS #原由子 #松田弘 #関口和之 #野沢秀行 #大森隆志 #斎藤誠 #片山敦夫 | R148: #メルカリ [CD]サザンオールスターズ/NUDE MAN(リマスタリング盤)（初回盤(デジパック仕様)） フリマアプリ「メルカリ」で販売中 https://jp.mercari.com/item/m21532232881/ #桑田佳祐 #CD・DVD #サザン #サザンオールスターズ #SAS #原由子 #松田弘 #関口和之 #野沢秀行 #大森隆志 #斎藤誠 #片山敦夫 | S148: 284 | T148: 2022-12-05 | U148: 1299 | V148: 2022-11-28 | W148: 1299 | X148: 129 | Y148: 210 | Z148: 960 | AA148: 送料込み(出品者負担) | AB148: アサボン | AC148: 2022-12-06 | AF148: 個人 | AG148: 1
B149: m14565634533 | C149: 取引終了 | D149: [CD]サザンオールスターズ/綺麗(リマスタリング盤)（初回盤(デジパック仕様)） | E149: 41 | F149: 2008/12/6購入 中古品のため商品は多少のキズ・使用感がございます。記載ない限り帯・特典などは付属致しません。写真以外の付属品はありません。 [CD]サザンオールスターズ/綺麗(リマスタリング盤)（初回盤(デジパック仕様)） 定価: ￥ 2381 #桑田佳祐 #CD・DVD #サザン #サザンオールスターズ #SAS #原由子 #松田弘 #関口和之 #野沢秀行 #大森隆志 #斎藤誠 #片山敦夫 1978年の1st『熱い胸さわぎ』から、2005年の14th『キラーストリート』までの全オリジナルアルバムを K2HDマスタリング(※)でリマスタリング。 当時のレコーディング現場の”原音”であるオリジナルマスターに限りなく忠実な、高音質による サウンドが蘇り、アーティストが思い描いた”理想のサウンド”を表現します!! (※)【K2HDマスタリング】とは 原音<オリジナルマスター>の魅力をより引き出すマスタリングと新技術「K2 High Definitionコーディング」により、 本来持つ楽曲の魅力が最大100kHzに及ぶ広帯域と24bitの高分解能な音楽情報をCDに収められることで、 レコーディングされた”原音”に限りなく近づいたサウンドを表現する画期的なマスタリング! これまでにないCDの《高音質化》を実現!! | G149: 568 | H149: 1299 | J149: https://www.amazon.co.jp/%E7%B6%BA%E9%BA%97-%E3%83%AA%E3%83%9E%E3%82%B9%E3%82%BF%E3%83%AA%E3%83%B3%E3%82%B0%E7%9B%A4-%E3%82%B5%E3%82%B6%E3%83%B3%E3%82%AA%E3%83%BC%E3%83%AB%E3%82%B9%E3%82%BF%E3%83%BC%E3%82%BA/dp/B001JTMMI4/ref=sr_1_1?__mk_ja_JP=%E3%82%AB%E3%82%BF%E3%82%AB%E3%83%8A&crid=8FH2J9YUX5DW&keywords=%E3%82%B5%E3%82%B6%E3%83%B3%E3%82%AA%E3%83%BC%E3%83%AB%E3%82%B9%E3%82%BF%E3%83%BC%E3%82%BA%2F%E7%B6%BA%E9%BA%97&qid=1643756522&sprefix=%E3%82%B5%E3%82%B6%E3%83%B3%E3%82%AA%E3%83%BC%E3%83%AB%E3%82%B9%E3%82%BF%E3%83%BC%E3%82%BA%2F%E7%B6%BA%E9%BA%97%2Caps%2C163&sr=8-1 | K149: https://www.amazon.co.jp/dp/B001JTMMI4/ref=olp-opf-redir?aod=1&ie=UTF8&condition=ALL | M149: 1000 | N149: 無料配送 6月20日 月曜日。 詳細を見る | P149: 1000 | Q149: #桑田佳祐 #CD・DVD #サザン #サザンオールスターズ #SAS #原由子 #松田弘 #関口和之 #野沢秀行 #大森隆志 #斎藤誠 #片山敦夫 | R149: #メルカリ [CD]サザンオールスターズ/綺麗(リマスタリング盤)（初回盤(デジパック仕様)） フリマアプリ「メルカリ」で販売中 https://jp.mercari.com/item/m14565634533/ #桑田佳祐 #CD・DVD #サザン #サザンオールスターズ #SAS #原由子 #松田弘 #関口和之 #野沢秀行 #大森隆志 #斎藤誠 #片山敦夫 | S149: 280 | T149: 2022-06-26 | U149: 1299 | V149: 2022-06-19 | W149: 1299 | X149: 129 | Y149: 210 | Z149: 960 | AA149: 送料込み(出品者負担) | AB149: まー | AC149: 2022-06-23 | AF149: 個人 | AG149: 1
B150: m14600988337 | C150: 取引終了 | D150: [CD]サザンオールスターズ/タイニイ・バブルス(リマスタリング盤)（初回盤(デジパック仕様)） | E150: 48 | F150: 2008/12/6購入 中古品のため商品は多少のキズ・使用感がございます。記載ない限り帯・特典などは付属致しません。写真以外の付属品はありません。 [CD]サザンオールスターズ/タイニイ・バブルス(リマスタリング盤)（初回盤(デジパック仕様)） 定価: ￥ 2381 #桑田佳祐 #CD・DVD #サザン #サザンオールスターズ #SAS #原由子 #松田弘 #関口和之 #野沢秀行 #大森隆志 #斎藤誠 #片山敦夫 1978年の1st『熱い胸さわぎ』から、2005年の14th『キラーストリート』までの全オリジナルアルバムを K2HDマスタリング(※)でリマスタリング。 当時のレコーディング現場の”原音”であるオリジナルマスターに限りなく忠実な、高音質による サウンドが蘇り、アーティストが思い描いた”理想のサウンド”を表現します!! (※)【K2HDマスタリング】とは 原音<オリジナルマスター>の魅力をより引き出すマスタリングと新技術「K2 High Definitionコーディング」により、 本来持つ楽曲の魅力が最大100kHzに及ぶ広帯域と24bitの高分解能な音楽情報をCDに収められることで、 レコーディングされた”原音”に限りなく近づいたサウンドを表現する画期的なマスタリング! これまでにないCDの《高音質化》を実現!! | G150: 575 | H150: 1269 | I150: 最安値 | J150: https://www.amazon.co.jp/%E3%82%BF%E3%82%A4%E3%83%8B%E3%82%A4%E3%83%BB%E3%83%90%E3%83%96%E3%83%AB%E3%82%B9-%E3%83%AA%E3%83%9E%E3%82%B9%E3%82%BF%E3%83%AA%E3%83%B3%E3%82%B0%E7%9B%A4-%E3%82%B5%E3%82%B6%E3%83%B3%E3%82%AA%E3%83%BC%E3%83%AB%E3%82%B9%E3%82%BF%E3%83%BC%E3%82%BA/dp/B001JTMMHA/ref=sr_1_1?__mk_ja_JP=%E3%82%AB%E3%82%BF%E3%82%AB%E3%83%8A&crid=1YTNJB5OKGCPE&keywords=%E3%82%B5%E3%82%B6%E3%83%B3%E3%82%AA%E3%83%BC%E3%83%AB%E3%82%B9%E3%82%BF%E3%83%BC%E3%82%BA%2F%E3%82%BF%E3%82%A4%E3%83%8B%E3%82%A4%E3%83%BB%E3%83%90%E3%83%96%E3%83%AB%E3%82%B9&qid=1644026151&s=music&sprefix=%E3%82%B5%E3%82%B6%E3%83%B3%E3%82%AA%E3%83%BC%E3%83%AB%E3%82%B9%E3%82%BF%E3%83%BC%E3%82%BA%2F%E3%82%BF%E3%82%A4%E3%83%8B%E3%82%A4+%E3%83%90%E3%83%96%E3%83%AB%E3%82%B9%2Cpopular%2C306&sr=1-1 | K150: https://www.amazon.co.jp/dp/B001JTMMHA/ref=olp-opf-redir?aod=1&ie=UTF8&condition=ALL | L150: 2318 | M150: 1079 | N150: 配送料 ¥240 7月 6-8日。 詳細を見る | O150: 240 | P150: 1319 | Q150: #桑田佳祐 #CD・DVD #サザン #サザンオールスターズ #SAS #原由子 #松田弘 #関口和之 #野沢秀行 #大森隆志 #斎藤誠 #片山敦夫 | R150: #メルカリ [CD]サザンオールスターズ/タイニイ・バブルス(リマスタリング盤)（初回盤(デジパック仕様)） フリマアプリ「メルカリ」で販売中 https://jp.mercari.com/item/m14600988337/ #桑田佳祐 #CD・DVD #サザン #サザンオールスターズ #SAS #原由子 #松田弘 #関口和之 #野沢秀行 #大森隆志 #斎藤誠 #片山敦夫 | S150: 294 | T150: 2022-07-09 | U150: 1269 | V150: 2022-07-02 | W150: 1269 | X150: 126 | Y150: 210 | Z150: 933 | AA150: 送料込み(出品者負担) | AB150: まー | AC150: 2022-07-07 | AF150: 個人 | AG150: 1
B151: m68518000037 | C151: 取引終了 | D151: [CD]サザンオールスターズ/10(TEN)ナンバーズ・からっと(ﾘﾏｽﾀﾘﾝｸﾞ盤)（初回盤(ﾃﾞｼﾞﾊﾟｯｸ仕様)） | E151: 60 | F151: 2008/12/6購入 中古品のため商品は多少のキズ・使用感がございます。記載ない限り帯・特典などは付属致しません。写真以外の付属品はありません。 [CD]サザンオールスターズ/10(TEN)ナンバーズ・からっと(リマスタリング盤)（初回盤(デジパック仕様)） 定価: ￥ 2381 #桑田佳祐 #CD・DVD #サザン #サザンオールスターズ #SAS #原由子 #松田弘 #関口和之 #野沢秀行 #大森隆志 #斎藤誠 #片山敦夫 1978年の1st『熱い胸さわぎ』から、2005年の14th『キラーストリート』までの全オリジナルアルバムを K2HDマスタリング(※)でリマスタリング。 当時のレコーディング現場の”原音”であるオリジナルマスターに限りなく忠実な、高音質による サウンドが蘇り、アーティストが思い描いた”理想のサウンド”を表現します!! (※)【K2HDマスタリング】とは 原音<オリジナルマスター>の魅力をより引き出すマスタリングと新技術「K2 High Definitionコーディング」により、 本来持つ楽曲の魅力が最大100kHzに及ぶ広帯域と24bitの高分解能な音楽情報をCDに収められることで、 レコーディングされた”原音”に限りなく近づいたサウンドを表現する画期的なマスタリング! これまでにないCDの《高音質化》を実現!! | G151: 583 | H151: 1650 | I151: 最安値 | J151: https://www.amazon.co.jp/10%E3%83%8A%E3%83%B3%E3%83%90%E3%83%BC%E3%82%BA%E3%83%BB%E3%81%8B%E3%82%89%E3%81%A3%E3%81%A8-%E3%83%AA%E3%83%9E%E3%82%B9%E3%82%BF%E3%83%AA%E3%83%B3%E3%82%B0%E7%9B%A4-%E3%82%B5%E3%82%B6%E3%83%B3%E3%82%AA%E3%83%BC%E3%83%AB%E3%82%B9%E3%82%BF%E3%83%BC%E3%82%BA/dp/B001JTMMH0/ref=sr_1_1?__mk_ja_JP=%E3%82%AB%E3%82%BF%E3%82%AB%E3%83%8A&crid=8U3V8YYAUCJG&keywords=%5BCD%5D%E3%82%B5%E3%82%B6%E3%83%B3%E3%82%AA%E3%83%BC%E3%83%AB%E3%82%B9%E3%82%BF%E3%83%BC%E3%82%BA%2F10%28TEN%29%E3%83%8A%E3%83%B3%E3%83%90%E3%83%BC%E3%82%BA%E3%83%BB%E3%81%8B%E3%82%89%E3%81%A3%E3%81%A8&qid=1644026182&s=music&sprefix=%E3%82%B5%E3%82%B6%E3%83%B3%E3%82%AA%E3%83%BC%E3%83%AB%E3%82%B9%E3%82%BF%E3%83%BC%E3%82%BA%2F%E3%82%BF%E3%82%A4%E3%83%8B%E3%82%A4+%E3%83%90%E3%83%96%E3%83%AB%E3%82%B9%2Cpopular%2C146&sr=1-1 | K151: https://www.amazon.co.jp/dp/B001JTMMH0/ref=olp-opf-redir?aod=1&ie=UTF8&condition=ALL | L151: 1980 | M151: 1350 | N151: 配送料 ¥350 4月 24-26日にお届け 詳細を見る | O151: =MID(N151,FIND("配送料 ¥",N151)+5,FIND(" ",MID(N151,FIND("¥",N151),10))-2)*1 -> 350 | P151: =IF(ISERROR(O151),M151,M151+O151) -> 1700 | Q151: =MID(F151,FIND("#",F151),FIND(CHAR(10),MID(F151,FIND("#",F151),300))) -> #桑田佳祐 #CD・DVD #サザン #サザンオールスターズ #SAS #原由子 #松田弘 #関口和之 #野沢秀行 #大森隆志 #斎藤誠 #片山敦夫 | R151: ="#メルカリ"&CHAR(10)&D151&CHAR(10)&" フリマアプリ「メルカリ」で販売中 https://jp.mercari.com/item/"&B151&"?utm_source=android&utm_medium=share "&Q151 -> #メルカリ [CD]サザンオールスターズ/10(TEN)ナンバーズ・からっと(ﾘﾏｽﾀﾘﾝｸﾞ盤)（初回盤(ﾃﾞｼﾞﾊﾟｯｸ仕様)） フリマアプリ「メルカリ」で販売中 https://jp.mercari.com/item/m68518000037?utm_source=android&utm_medium=share #桑田佳祐 #CD・DVD #サザン #サザンオールスターズ #SAS #原由子 #松田弘 #関口和之 #野沢秀行 #大森隆志 #斎藤誠 #片山敦夫 | S151: 330 | T151: 2023-05-06 | U151: 1650 | V151: 2023-04-29 | W151: 1650 | X151: 165 | Y151: 210 | Z151: 1275 | AA151: 送料込み(出品者負担) | AB151: なかん@プロフィール必読 | AC151: 2023-04-30 | AF151: 個人 | AG151: 1
B152: m35884815094 | C152: 出品中 | D152: [CD]サザンオールスターズ/さくら(リマスタリング盤)（初回盤(デジパック仕様)） | E152: 42 | F152: 2008/12/6購入 中古品のため商品は多少のキズ・使用感がございます。記載ない限り帯・特典などは付属致しません。写真以外の付属品はありません。 「さくら」(リマスタリング盤)（初回盤(デジパック仕様)） サザンオールスターズ 定価: ￥ 2381 #桑田佳祐 #CD・DVD #サザン #サザンオールスターズ #SAS #原由子 #松田弘 #関口和之 #野沢秀行 #大森隆志 #斎藤誠 #片山敦夫 1978年の1st『熱い胸さわぎ』から、2005年の14th『キラーストリート』までの全オリジナルアルバムを K2HDマスタリング(※)でリマスタリング。 当時のレコーディング現場の”原音”であるオリジナルマスターに限りなく忠実な、高音質による サウンドが蘇り、アーティストが思い描いた”理想のサウンド”を表現します!! (※)【K2HDマスタリング】とは 原音<オリジナルマスター>の魅力をより引き出すマスタリングと新技術「K2 High Definitionコーディング」により、 本来持つ楽曲の魅力が最大100kHzに及ぶ広帯域と24bitの高分解能な音楽情報をCDに収められることで、 レコーディングされた”原音”に限りなく近づいたサウンドを表現する画期的なマスタリング! これまでにないCDの《高音質化》を実現!! | G152: 567 | H152: 1534 | I152: 最安値 | J152: https://www.amazon.co.jp/%E3%81%95%E3%81%8F%E3%82%89-%E3%83%AA%E3%83%9E%E3%82%B9%E3%82%BF%E3%83%AA%E3%83%B3%E3%82%B0%E7%9B%A4-%E3%82%B5%E3%82%B6%E3%83%B3%E3%82%AA%E3%83%BC%E3%83%AB%E3%82%B9%E3%82%BF%E3%83%BC%E3%82%BA/dp/B001JTMMK2/ref=sr_1_1?__mk_ja_JP=%E3%82%AB%E3%82%BF%E3%82%AB%E3%83%8A&crid=1NDL61XL2PBZ2&keywords=%E3%82%B5%E3%82%B6%E3%83%B3%E3%82%AA%E3%83%BC%E3%83%AB%E3%82%B9%E3%82%BF%E3%83%BC%E3%82%BA%2F%E3%81%95%E3%81%8F%E3%82%89&qid=1644105879&sprefix=%E3%82%B5%E3%82%B6%E3%83%B3%E3%82%AA%E3%83%BC%E3%83%AB%E3%82%B9%E3%82%BF%E3%83%BC%E3%82%BA%2F%E3%81%95%E3%81%8F%E3%82%89%2Caps%2C172&sr=8-1 | K152: https://www.amazon.co.jp/dp/B001JTMMK2/ref=olp-opf-redir?aod=1&ie=UTF8&condition=ALL | L152: 1597 | M152: 1194 | N152: 配送料 ¥350 11月1日-3日にお届け 詳細を見る | O152: 350 | P152: 1544 | Q152: #桑田佳祐 #CD・DVD #サザン #サザンオールスターズ #SAS #原由子 #松田弘 #関口和之 #野沢秀行 #大森隆志 #斎藤誠 #片山敦夫 | R152: #メルカリ [CD]サザンオールスターズ/さくら(リマスタリング盤)（初回盤(デジパック仕様)） フリマアプリ「メルカリ」で販売中 https://jp.mercari.com/item/m35884815094?utm_source=android&utm_medium=share #桑田佳祐 #CD・DVD #サザン #サザンオールスターズ #SAS #原由子 #松田弘 #関口和之 #野沢秀行 #大森隆志 #斎藤誠 #片山敦夫 | S152: 317 | U152: 1534 | AF152: 個人 | AG152: 1
B153: m37165791149 | C153: 取引終了 | D153: [CD]サザンオールスターズ/人気者で行こう(リマスタリング盤)（初回盤(デジパック仕様)） | E153: 46 | F153: 2008/12/6購入 中古品のため商品は多少のキズ・使用感がございます。記載ない限り帯・特典などは付属致しません。写真以外の付属品はありません。 「人気者で行こう」(リマスタリング盤)（初回盤(デジパック仕様)） サザンオールスターズ 定価: ￥ 2381 #桑田佳祐 #CD・DVD #サザン #サザンオールスターズ #SAS #原由子 #松田弘 #関口和之 #野沢秀行 #大森隆志 #斎藤誠 #片山敦夫 1978年の1st『熱い胸さわぎ』から、2005年の14th『キラーストリート』までの全オリジナルアルバムを K2HDマスタリング(※)でリマスタリング。 当時のレコーディング現場の”原音”であるオリジナルマスターに限りなく忠実な、高音質による サウンドが蘇り、アーティストが思い描いた”理想のサウンド”を表現します!! (※)【K2HDマスタリング】とは 原音<オリジナルマスター>の魅力をより引き出すマスタリングと新技術「K2 High Definitionコーディング」により、 本来持つ楽曲の魅力が最大100kHzに及ぶ広帯域と24bitの高分解能な音楽情報をCDに収められることで、 レコーディングされた”原音”に限りなく近づいたサウンドを表現する画期的なマスタリング! これまでにないCDの《高音質化》を実現!! | G153: 571 | H153: 1299 | I153: 最安値 | J153: https://www.amazon.co.jp/%E4%BA%BA%E6%B0%97%E8%80%85%E3%81%A7%E3%81%84%E3%81%93%E3%81%86-%E3%83%AA%E3%83%9E%E3%82%B9%E3%82%BF%E3%83%AA%E3%83%B3%E3%82%B0%E7%9B%A4-%E3%82%B5%E3%82%B6%E3%83%B3%E3%82%AA%E3%83%BC%E3%83%AB%E3%82%B9%E3%82%BF%E3%83%BC%E3%82%BA/dp/B001JTMMIE/ref=sr_1_1?__mk_ja_JP=%E3%82%AB%E3%82%BF%E3%82%AB%E3%83%8A&crid=2EYSN4WMQ1DD&keywords=%E3%82%B5%E3%82%B6%E3%83%B3%E3%82%AA%E3%83%BC%E3%83%AB%E3%82%B9%E3%82%BF%E3%83%BC%E3%82%BA%2F%E4%BA%BA%E6%B0%97%E8%80%85%E3%81%A7%E8%A1%8C%E3%81%93%E3%81%86&qid=1644105893&sprefix=%E3%82%B5%E3%82%B6%E3%83%B3%E3%82%AA%E3%83%BC%E3%83%AB%E3%82%B9%E3%82%BF%E3%83%BC%E3%82%BA%2F%E4%BA%BA%E6%B0%97%E8%80%85%E3%81%A7%E8%A1%8C%E3%81%93%E3%81%86%2Caps%2C156&sr=8-1 | K153: https://www.amazon.co.jp/dp/B001JTMMIE/ref=olp-opf-redir?aod=1&ie=UTF8&condition=ALL | L153: 2093 | M153: 1065 | N153: 配送料 ¥240 6月 30日-7月 2日。 詳細を見る | O153: 240 | P153: 1305 | Q153: #桑田佳祐 #CD・DVD #サザン #サザンオールスターズ #SAS #原由子 #松田弘 #関口和之 #野沢秀行 #大森隆志 #斎藤誠 #片山敦夫 | R153: ="#メルカリ"&CHAR(10)&D153&CHAR(10)&" フリマアプリ「メルカリ」で販売中 https://jp.mercari.com/item/"&B153&"/ "&Q153 -> #メルカリ [CD]サザンオールスターズ/人気者で行こう(リマスタリング盤)（初回盤(デジパック仕様)） フリマアプリ「メルカリ」で販売中 https://jp.mercari.com/item/m37165791149/ #桑田佳祐 #CD・DVD #サザン #サザンオールスターズ #SAS #原由子 #松田弘 #関口和之 #野沢秀行 #大森隆志 #斎藤誠 #片山敦夫 | S153: 290 | T153: 2022-07-08 | U153: 1299 | V153: 2022-07-01 | W153: 1299 | X153: 129 | Y153: 210 | Z153: 960 | AA153: 送料込み(出品者負担) | AB153: 横田知朗 | AC153: 2022-07-06 | AF153: 個人 | AG153: 1
B154: m34363613884 | C154: 取引終了 | D154: [CD]サザンオールスターズ/熱い胸さわぎ(リマスタリング盤)（初回盤(デジパック仕様)） | E154: 45 | F154: 2008/12/6購入 中古品のため商品は多少のキズ・使用感がございます。記載ない限り帯・特典などは付属致しません。写真以外の付属品はありません。 「熱い胸さわぎ」(リマスタリング盤)（初回盤(デジパック仕様)） サザンオールスターズ 定価: ￥ 2381 #桑田佳祐 #CD・DVD #サザン #サザンオールスターズ #SAS #原由子 #松田弘 #関口和之 #野沢秀行 #大森隆志 #斎藤誠 #片山敦夫 1978年の1st『熱い胸さわぎ』から、2005年の14th『キラーストリート』までの全オリジナルアルバムを K2HDマスタリング(※)でリマスタリング。 当時のレコーディング現場の”原音”であるオリジナルマスターに限りなく忠実な、高音質による サウンドが蘇り、アーティストが思い描いた”理想のサウンド”を表現します!! (※)【K2HDマスタリング】とは 原音<オリジナルマスター>の魅力をより引き出すマスタリングと新技術「K2 High Definitionコーディング」により、 本来持つ楽曲の魅力が最大100kHzに及ぶ広帯域と24bitの高分解能な音楽情報をCDに収められることで、 レコーディングされた”原音”に限りなく近づいたサウンドを表現する画期的なマスタリング! これまでにないCDの《高音質化》を実現!! | G154: 570 | H154: 1580 | I154: 最安値 | J154: https://www.amazon.co.jp/%E7%86%B1%E3%81%84%E8%83%B8%E3%81%95%E3%82%8F%E3%81%8E-%E3%83%AA%E3%83%9E%E3%82%B9%E3%82%BF%E3%83%AA%E3%83%B3%E3%82%B0%E7%9B%A4-%E3%82%B5%E3%82%B6%E3%83%B3%E3%82%AA%E3%83%BC%E3%83%AB%E3%82%B9%E3%82%BF%E3%83%BC%E3%82%BA/dp/B001JTMMGQ/ref=sr_1_1?__mk_ja_JP=%E3%82%AB%E3%82%BF%E3%82%AB%E3%83%8A&crid=308LQVQI8VNKK&keywords=%E3%82%B5%E3%82%B6%E3%83%B3%E3%82%AA%E3%83%BC%E3%83%AB%E3%82%B9%E3%82%BF%E3%83%BC%E3%82%BA%2F%E7%86%B1%E3%81%84%E8%83%B8%E3%81%95%E3%82%8F%E3%81%8E&qid=1644105908&sprefix=%E3%82%B5%E3%82%B6%E3%83%B3%E3%82%AA%E3%83%BC%E3%83%AB%E3%82%B9%E3%82%BF%E3%83%BC%E3%82%BA%2F%E7%86%B1%E3%81%84%E8%83%B8%E3%81%95%E3%82%8F%E3%81%8E%2Caps%2C157&sr=8-1 | K154: https://www.amazon.co.jp/dp/B001JTMMGQ/ref=olp-opf-redir?aod=1&ie=UTF8&condition=ALL | L154: 2113 | M154: 1220 | N154: 配送料 ¥410 8月 17-19日。 詳細を見る | O154: 410 | P154: 1630 | Q154: #桑田佳祐 #CD・DVD #サザン #サザンオールスターズ #SAS #原由子 #松田弘 #関口和之 #野沢秀行 #大森隆志 #斎藤誠 #片山敦夫 | R154: #メルカリ [CD]サザンオールスターズ/熱い胸さわぎ(リマスタリング盤)（初回盤(デジパック仕様)） フリマアプリ「メルカリ」で販売中 https://jp.mercari.com/item/m34363613884/ #桑田佳祐 #CD・DVD #サザン #サザンオールスターズ #SAS #原由子 #松田弘 #関口和之 #野沢秀行 #大森隆志 #斎藤誠 #片山敦夫 | S154: 288 | T154: 2022-08-27 | U154: 1580 | V154: 2022-08-20 | W154: 1580 | X154: 158 | Y154: 210 | Z154: 1212 | AA154: 送料込み(出品者負担) | AB154: ふ | AC154: 2022-09-01 | AF154: 個人 | AG154: 1
B155: m84196824000 | C155: 取引終了 | D155: [CD]サザンオールスターズ/SOUTHERN ALL STARS(リマスタリング盤)（初回盤(デジパック仕様)） | E155: 57 | F155: 2008/12/6購入 中古品のため商品は多少のキズ・使用感がございます。記載ない限り帯・特典などは付属致しません。写真以外の付属品はありません。 「SOUTHERN ALL STARS」(リマスタリング盤)（初回盤(デジパック仕様)） サザンオールスターズ 定価: ￥ 2381 #桑田佳祐 #CD・DVD #サザン #サザンオールスターズ #SAS #原由子 #松田弘 #関口和之 #野沢秀行 #大森隆志 #斎藤誠 #片山敦夫 1978年の1st『熱い胸さわぎ』から、2005年の14th『キラーストリート』までの全オリジナルアルバムを K2HDマスタリング(※)でリマスタリング。 当時のレコーディング現場の”原音”であるオリジナルマスターに限りなく忠実な、高音質による サウンドが蘇り、アーティストが思い描いた”理想のサウンド”を表現します!! (※)【K2HDマスタリング】とは 原音<オリジナルマスター>の魅力をより引き出すマスタリングと新技術「K2 High Definitionコーディング」により、 本来持つ楽曲の魅力が最大100kHzに及ぶ広帯域と24bitの高分解能な音楽情報をCDに収められることで、 レコーディングされた”原音”に限りなく近づいたサウンドを表現する画期的なマスタリング! これまでにないCDの《高音質化》を実現!! | G155: 582 | H155: 1299 | J155: https://www.amazon.co.jp/SOUTHERN-ALL-STARS-%E3%83%AA%E3%83%9E%E3%82%B9%E3%82%BF%E3%83%AA%E3%83%B3%E3%82%B0%E7%9B%A4-%E3%82%B5%E3%82%B6%E3%83%B3%E3%82%AA%E3%83%BC%E3%83%AB%E3%82%B9%E3%82%BF%E3%83%BC%E3%82%BA/dp/B001JTMMIY/ref=sr_1_1?__mk_ja_JP=%E3%82%AB%E3%82%BF%E3%82%AB%E3%83%8A&crid=390FFA5P65JFY&keywords=%E3%82%B5%E3%82%B6%E3%83%B3%E3%82%AA%E3%83%BC%E3%83%AB%E3%82%B9%E3%82%BF%E3%83%BC%E3%82%BA%2FSOUTHERN+ALL+STARS&qid=1644105934&sprefix=%E3%82%B5%E3%82%B6%E3%83%B3%E3%82%AA%E3%83%BC%E3%83%AB%E3%82%B9%E3%82%BF%E3%83%BC%E3%82%BA%2Fsouthern+all+stars%2Caps%2C154&sr=8-1 | K155: https://www.amazon.co.jp/dp/B001JTMMIY/ref=olp-opf-redir?aod=1&ie=UTF8&condition=ALL | L155: 2029 | M155: 908 | N155: 配送料 ¥350 6月 11-13日。 詳細を見る | O155: 350 | P155: 1258 | Q155: #桑田佳祐 #CD・DVD #サザン #サザンオールスターズ #SAS #原由子 #松田弘 #関口和之 #野沢秀行 #大森隆志 #斎藤誠 #片山敦夫 | R155: #メルカリ [CD]サザンオールスターズ/SOUTHERN ALL STARS(リマスタリング盤)（初回盤(デジパック仕様)） フリマアプリ「メルカリ」で販売中 https://jp.mercari.com/item/m84196824000/ #桑田佳祐 #CD・DVD #サザン #サザンオールスターズ #SAS #原由子 #松田弘 #関口和之 #野沢秀行 #大森隆志 #斎藤誠 #片山敦夫 | S155: 294 | T155: 2022-06-15 | U155: 1299 | V155: 2022-06-08 | W155: 1299 | X155: 129 | Y155: 175 | Z155: 995 | AA155: 送料込み(出品者負担) | AB155: sawa | AC155: 2022-06-16 | AF155: 個人 | AG155: 1
B156: m75660763342 | C156: 取引終了 | D156: [CD]桑田佳祐/孤独の太陽(リマスタリング盤) | E156: 24 | F156: 中古品のため商品は多少のキズ・使用感がございます。記載ない限り帯・特典などは付属致しません。写真以外の付属品はありません。 「桑田佳祐/孤独の太陽」(2001年リマスタリング盤) 定価: ￥ 2190 #桑田佳祐 #CD・DVD #サザン #サザンオールスターズ #SAS #原由子 #松田弘 #関口和之 #野沢秀行 #大森隆志 #斎藤誠 #片山敦夫 #小倉博和 桑田佳祐のソロ・アルバム第2弾(94年発表)。骨太なロック・アルバムで、歌詞も重い内容が多く、ポップな1stソロときわめて好対照。桑田のもうひとつの顔が本作から垣間見られる。 | G156: 272 | H156: 1299 | J156: https://www.amazon.co.jp/%E5%AD%A4%E7%8B%AC%E3%81%AE%E5%A4%AA%E9%99%BD-%E6%A1%91%E7%94%B0%E4%BD%B3%E7%A5%90/dp/B00005L9AN/ref=sr_1_1?__mk_ja_JP=%E3%82%AB%E3%82%BF%E3%82%AB%E3%83%8A&crid=PJ64ZOHQVJFL&keywords=%E6%A1%91%E7%94%B0%E4%BD%B3%E7%A5%90%2F%E5%AD%A4%E7%8B%AC%E3%81%AE%E5%A4%AA%E9%99%BD&qid=1644540662&sprefix=%E6%A1%91%E7%94%B0%E4%BD%B3%E7%A5%90%2F%E5%AD%A4%E7%8B%AC%E3%81%AE%E5%A4%AA%E9%99%BD%2Caps%2C166&sr=8-1 | K156: https://www.amazon.co.jp/dp/B00005L9AN/ref=olp-opf-redir?aod=1&ie=UTF8&condition=ALL | L156: 2026 | M156: 720 | N156: 配送料 ¥350 8月16日-18日にお届け 詳細を見る | O156: =MID(N156,FIND("配送料 ¥",N156)+5,FIND(" ",MID(N156,FIND("¥",N156),10))-2)*1 -> 350 | P156: 1070 | Q156: #桑田佳祐 #CD・DVD #サザン #サザンオールスターズ #SAS #原由子 #松田弘 #関口和之 #野沢秀行 #大森隆志 #斎藤誠 #片山敦夫 #小倉博和 | R156: ="#メルカリ"&CHAR(10)&D156&CHAR(10)&" フリマアプリ「メルカリ」で販売中 https://jp.mercari.com/item/"&B156&"?utm_source=android&utm_medium=share "&Q156 -> #メルカリ [CD]桑田佳祐/孤独の太陽(リマスタリング盤) フリマアプリ「メルカリ」で販売中 https://jp.mercari.com/item/m75660763342?utm_source=android&utm_medium=share #桑田佳祐 #CD・DVD #サザン #サザンオールスターズ #SAS #原由子 #松田弘 #関口和之 #野沢秀行 #大森隆志 #斎藤誠 #片山敦夫 #小倉博和 | S156: 293 | T156: 2023-08-31 | U156: 1299 | V156: 2023-08-24 | W156: 1299 | X156: 129 | Y156: 210 | Z156: 960 | AA156: 送料込み(出品者負担) | AB156: YOU | AC156: 2023-08-26 | AF156: 個人 | AG156: 1
B157: m16478397181 | C157: 取引終了 | D157: [CD]サザンオールスターズ/世に万葉の花が咲くなり(リマスタリング盤)（初回盤(デジパック仕様)） | E157: 50 | F157: 2008/12/6購入 中古品のため商品は多少のキズ・使用感がございます。記載ない限り帯・特典などは付属致しません。写真以外の付属品はありません。 「世に万葉の花が咲くなり」(リマスタリング盤)（初回盤(デジパック仕様)） サザンオールスターズ 定価: ￥ 2381 #桑田佳祐 #CD・DVD #サザン #サザンオールスターズ #SAS #原由子 #松田弘 #関口和之 #野沢秀行 #大森隆志 #斎藤誠 #片山敦夫 1978年の1st『熱い胸さわぎ』から、2005年の14th『キラーストリート』までの全オリジナルアルバムを K2HDマスタリング(※)でリマスタリング。 当時のレコーディング現場の”原音”であるオリジナルマスターに限りなく忠実な、高音質による サウンドが蘇り、アーティストが思い描いた”理想のサウンド”を表現します!! (※)【K2HDマスタリング】とは 原音<オリジナルマスター>の魅力をより引き出すマスタリングと新技術「K2 High Definitionコーディング」により、 本来持つ楽曲の魅力が最大100kHzに及ぶ広帯域と24bitの高分解能な音楽情報をCDに収められることで、 レコーディングされた”原音”に限りなく近づいたサウンドを表現する画期的なマスタリング! これまでにないCDの《高音質化》を実現!! | G157: 575 | H157: 1350 | I157: 最安値 | J157: https://www.amazon.co.jp/%E4%B8%96%E3%81%AB%E4%B8%87%E8%91%89%E3%81%AE%E8%8A%B1%E3%81%8C%E5%92%B2%E3%81%8F%E3%81%AA%E3%82%8A-%E3%83%AA%E3%83%9E%E3%82%B9%E3%82%BF%E3%83%AA%E3%83%B3%E3%82%B0%E7%9B%A4-Original-recording-%E3%82%B5%E3%82%B6%E3%83%B3%E3%82%AA%E3%83%BC%E3%83%AB%E3%82%B9%E3%82%BF%E3%83%BC%E3%82%BA/dp/B001JTMMJI/ref=sr_1_1?__mk_ja_JP=%E3%82%AB%E3%82%BF%E3%82%AB%E3%83%8A&crid=2Z2HAKZ1NTT34&keywords=%E3%82%B5%E3%82%B6%E3%83%B3%E3%82%AA%E3%83%BC%E3%83%AB%E3%82%B9%E3%82%BF%E3%83%BC%E3%82%BA%2F%E4%B8%96%E3%81%AB%E4%B8%87%E8%91%89%E3%81%AE%E8%8A%B1%E3%81%8C%E5%92%B2%E3%81%8F%E3%81%AA%E3%82%8A&qid=1644540908&sprefix=%E3%82%B5%E3%82%B6%E3%83%B3%E3%82%AA%E3%83%BC%E3%83%AB%E3%82%B9%E3%82%BF%E3%83%BC%E3%82%BA%2F%E4%B8%96%E3%81%AB%E4%B8%87%E8%91%89%E3%81%AE%E8%8A%B1%E3%81%8C%E5%92%B2%E3%81%8F%E3%81%AA%E3%82%8A%2Caps%2C164&sr=8-1 | K157: https://www.amazon.co.jp/dp/B001JTMMJI/ref=olp-opf-redir?aod=1&ie=UTF8&condition=ALL | L157: 2172 | M157: 1400 | N157: 無料配送 明日, 6月13日 1 時間 35 分以内にご注文の場合。 詳細を見る | P157: 1400 | Q157: #桑田佳祐 #CD・DVD #サザン #サザンオールスターズ #SAS #原由子 #松田弘 #関口和之 #野沢秀行 #大森隆志 #斎藤誠 #片山敦夫 | R157: #メルカリ [CD]サザンオールスターズ/世に万葉の花が咲くなり(リマスタリング盤)（初回盤(デジパック仕様)） フリマアプリ「メルカリ」で販売中 https://jp.mercari.com/item/m16478397181/ #桑田佳祐 #CD・DVD #サザン #サザンオールスターズ #SAS #原由子 #松田弘 #関口和之 #野沢秀行 #大森隆志 #斎藤誠 #片山敦夫 | S157: 298 | T157: 2022-06-19 | U157: 1350 | V157: 2022-06-12 | W157: 2775 | X157: 277 | Y157: 175 | Z157: 2323 | AA157: 送料込み(出品者負担) | AB157: まー | AC157: 2022-06-16 | AF157: 個人 | AG157: 1
B158: m47211136798 | C158: 取引終了 | D158: [CD]サザンオールスターズ/キラーストリート(リマスタリング盤)（初回盤(デジパック仕様)） | E158: =LEN(D158) -> 47 | F158: 2008/12/6購入 中古品のため商品は多少のキズ・使用感がございます。記載ない限り帯・特典などは付属致しません。写真以外の付属品はありません。 「キラーストリート」 サザンオールスターズ 定価: ￥ 3048 #桑田佳祐 #CD・DVD #サザン #サザンオールスターズ #SAS #原由子 #松田弘 #関口和之 #野沢秀行 #大森隆志 #斎藤誠 #片山敦夫 1978年の1st『熱い胸さわぎ』から、2005年の14th『キラーストリート』までの全オリジナルアルバムを K2HDマスタリング(※)でリマスタリング。 当時のレコーディング現場の”原音”であるオリジナルマスターに限りなく忠実な、高音質による サウンドが蘇り、アーティストが思い描いた”理想のサウンド”を表現します!! (※)【K2HDマスタリング】とは 原音<オリジナルマスター>の魅力をより引き出すマスタリングと新技術「K2 High Definitionコーディング」により、 本来持つ楽曲の魅力が最大100kHzに及ぶ広帯域と24bitの高分解能な音楽情報をCDに収められることで、 レコーディングされた”原音”に限りなく近づいたサウンドを表現する画期的なマスタリング! これまでにないCDの《高音質化》を実現!! | G158: =LEN(F158) -> 548 | H158: 1299 | I158: =IF(AND(L158<>"",H158>L158),"新品より高い",IF(AND(P158>0,H158<=P158,H158>=P158-100),"最安値",IF(AND(P158>0,H158<P158-100),"安すぎ",""))) ->  | J158: https://www.amazon.co.jp/%E3%82%AD%E3%83%A9%E3%83%BC%E3%82%B9%E3%83%88%E3%83%AA%E3%83%BC%E3%83%88-%E3%83%AA%E3%83%9E%E3%82%B9%E3%82%BF%E3%83%AA%E3%83%B3%E3%82%B0%E7%9B%A4-%E3%82%B5%E3%82%B6%E3%83%B3%E3%82%AA%E3%83%BC%E3%83%AB%E3%82%B9%E3%82%BF%E3%83%BC%E3%82%BA/dp/B001JTMMKC/ref=sr_1_1?__mk_ja_JP=%E3%82%AB%E3%82%BF%E3%82%AB%E3%83%8A&crid=N097LVH83TLR&keywords=%E3%82%B5%E3%82%B6%E3%83%B3%E3%82%AA%E3%83%BC%E3%83%AB%E3%82%B9%E3%82%BF%E3%83%BC%E3%82%BA%2F%E3%82%AD%E3%83%A9%E3%83%BC%E3%82%B9%E3%83%88%E3%83%AA%E3%83%BC%E3%83%88&qid=1646524872&sprefix=%E3%82%B5%E3%82%B6%E3%83%B3%E3%82%AA%E3%83%BC%E3%83%AB%E3%82%B9%E3%82%BF%E3%83%BC%E3%82%BA%2F%E3%82%AD%E3%83%A9%E3%83%BC%E3%82%B9%E3%83%88%E3%83%AA%E3%83%BC%E3%83%88%2Caps%2C544&sr=8-1 | K158: ="https://www.amazon.co.jp/dp/"&MID(J158,FIND("/dp/",J158)+4,10)&"/ref=olp-opf-redir?aod=1&ie=UTF8&condition=ALL" -> https://www.amazon.co.jp/dp/B001JTMMKC/ref=olp-opf-redir?aod=1&ie=UTF8&condition=ALL | L158: 3017 | M158: 1198 | N158: 配送料 ¥292 11月 30日-12月 2日にお届け 詳細を見る | O158: =MID(N158,FIND("配送料 ¥",N158)+5,FIND(" ",MID(N158,FIND("¥",N158),10))-2)*1 ->  | P158: =IF(ISERROR(O158),M158,M158+O158) -> 1198 | Q158: =MID(F158,FIND("#",F158),FIND(CHAR(10),MID(F158,FIND("#",F158),300))) -> #桑田佳祐 #CD・DVD #サザン #サザンオールスターズ #SAS #原由子 #松田弘 #関口和之 #野沢秀行 #大森隆志 #斎藤誠 #片山敦夫 | R158: ="#メルカリ"&CHAR(10)&D158&CHAR(10)&" フリマアプリ「メルカリ」で販売中 https://jp.mercari.com/item/"&B158&"/ "&Q158 -> #メルカリ [CD]サザンオールスターズ/キラーストリート(リマスタリング盤)（初回盤(デジパック仕様)） フリマアプリ「メルカリ」で販売中 https://jp.mercari.com/item/m47211136798/ #桑田佳祐 #CD・DVD #サザン #サザンオールスターズ #SAS #原由子 #松田弘 #関口和之 #野沢秀行 #大森隆志 #斎藤誠 #片山敦夫 | S158: =LENB(R158) -> 292 | U158: 1600 | AF158: 個人 | AG158: 1
B159: m35070518850 | C159: 出品中 | D159: [CD]サザンオールスターズ/01MESSENGER～電子狂の詩～(リマスタリング盤) | E159: 43 | F159: 2005/6/11購入 中古品のため商品は多少のキズ・使用感がございます。記載ない限り帯・特典などは付属致しません。写真以外の付属品はありません。 盤面に薄い傷が１本あり 「01MESSENGER～電子狂の詩～」 サザンオールスターズ 定価: ￥ 762 #桑田佳祐 #CD・DVD #サザン #サザンオールスターズ #SAS #原由子 #松田弘 #関口和之 #野沢秀行 #大森隆志 #斎藤誠 #片山敦夫 サザンが新境地を開拓したシングルで、サイケデリックなギターが印象的なビート・ナンバー。カップリングではビートたけしに提供した隠れ名曲のセルフ・カヴァーが聴ける。 8cmCD シングルでしかリリースされておらず、入手しにくくなっていたシングルたちが、ついに12cmCD化！デビュー記念日である“6月25日”に、デビューシングル「勝手にシンドバッド」から2000年の大ヒットシングル「TSUNAMI」までの44タイトルが一挙リリースされる。最新の技術によるデジタルリマスタリング音源で、楽曲本来のサウンドを実現！ | G159: 460 | H159: 1299 | I159: 新品より高い | J159: https://www.amazon.co.jp/01MESSENGER-%E3%82%B5%E3%82%B6%E3%83%B3%E3%82%AA%E3%83%BC%E3%83%AB%E3%82%B9%E3%82%BF%E3%83%BC%E3%82%BA/dp/B0009I6PM0/ref=sr_1_8?__mk_ja_JP=%E3%82%AB%E3%82%BF%E3%82%AB%E3%83%8A&crid=2ZRKAQ9KOCOCS&keywords=01MESSENGER%EF%BD%9E%E9%9B%BB%E5%AD%90%E7%8B%82%E3%81%AE%E8%A9%A9%EF%BD%9E&qid=1644626028&sprefix=01messenger+%E9%9B%BB%E5%AD%90%E7%8B%82%E3%81%AE%E8%A9%A9+%2Caps%2C390&sr=8-8 | K159: https://www.amazon.co.jp/dp/B0009I6PM0/ref=olp-opf-redir?aod=1&ie=UTF8&condition=ALL | L159: 693 | M159: 320 | N159: 無料配送 11月1日-3日にお届け 詳細を見る | O159: =MID(N159,FIND("配送料 ¥",N159)+5,FIND(" ",MID(N159,FIND("¥",N159),10))-2)*1 ->  | P159: 320 | Q159: #桑田佳祐 #CD・DVD #サザン #サザンオールスターズ #SAS #原由子 #松田弘 #関口和之 #野沢秀行 #大森隆志 #斎藤誠 #片山敦夫 | R159: ="#メルカリ"&CHAR(10)&D159&CHAR(10)&" フリマアプリ「メルカリ」で販売中 https://jp.mercari.com/item/"&B159&"?utm_source=android&utm_medium=share "&Q159 -> #メルカリ [CD]サザンオールスターズ/01MESSENGER～電子狂の詩～(リマスタリング盤) フリマアプリ「メルカリ」で販売中 https://jp.mercari.com/item/m35070518850?utm_source=android&utm_medium=share #桑田佳祐 #CD・DVD #サザン #サザンオールスターズ #SAS #原由子 #松田弘 #関口和之 #野沢秀行 #大森隆志 #斎藤誠 #片山敦夫 | S159: 310 | U159: 1299 | AF159: 個人 | AG159: 1
B160: m30033392189 | C160: 取引終了 | D160: [CD]サザンオールスターズ/気分しだいで責めないで(リマスタリング盤) | E160: 36 | F160: 2009/5/23購入 中古品のため商品は多少のキズ・使用感がございます。記載ない限り帯・特典などは付属致しません。プロダクト、ダウンロードコードは使用できません。写真以外の付属品はありません。 「気分しだいで責めないで」 サザンオールスターズ 定価: ￥ 762 #桑田佳祐 #CD・DVD #サザン #サザンオールスターズ #SAS #原由子 #松田弘 #関口和之 #野沢秀行 #大森隆志 #斎藤誠 #片山敦夫 サザン2作目のシングル。デビュー曲「勝手にシンドバッド」のヒットを受け、同じ路線の曲と指定されて書いた曲。シングルとアルバムでは微妙にヴァージョンが違っている。 8cmCD シングルでしかリリースされておらず、入手しにくくなっていたシングルたちが、ついに12cmCD化！デビュー記念日である“6月25日”に、デビューシングル「勝手にシンドバッド」から2000年の大ヒットシングル「TSUNAMI」までの44タイトルが一挙リリースされる。最新の技術によるデジタルリマスタリング音源で、楽曲本来のサウンドを実現！ | G160: 465 | H160: 1800 | I160: =IF(AND(L160<>"",H160>L160),"新品より高い",IF(AND(P160>0,H160<=P160,H160>=P160-100),"最安値",IF(AND(P160>0,H160<P160-100),"安すぎ",""))) ->  | J160: https://www.amazon.co.jp/%E6%B0%97%E5%88%86%E3%81%97%E3%81%A0%E3%81%84%E3%81%A7%E8%B2%AC%E3%82%81%E3%81%AA%E3%81%84%E3%81%A7-%E3%82%B5%E3%82%B6%E3%83%B3%E3%82%AA%E3%83%BC%E3%83%AB%E3%82%B9%E3%82%BF%E3%83%BC%E3%82%BA/dp/B0009I6PBQ/ref=sr_1_11?__mk_ja_JP=%E3%82%AB%E3%82%BF%E3%82%AB%E3%83%8A&crid=28PVQD3PNEZS0&keywords=%E6%B0%97%E5%88%86%E3%81%97%E3%81%A0%E3%81%84%E3%81%A7%E8%B2%AC%E3%82%81%E3%81%AA%E3%81%84%E3%81%A7&qid=1644626155&sprefix=%E6%B0%97%E5%88%86%E3%81%97%E3%81%A0%E3%81%84%E3%81%A7%E8%B2%AC%E3%82%81%E3%81%AA%E3%81%84%E3%81%A7%2Caps%2C367&sr=8-11 | K160: https://www.amazon.co.jp/dp/B0009I6PBQ/ref=olp-opf-redir?aod=1&ie=UTF8&condition=ALL | M160: 1170 | N160: 配送料 ¥350 3月 24-26日。 詳細を見る | O160: 350 | P160: 1520 | Q160: #桑田佳祐 #CD・DVD #サザン #サザンオールスターズ #SAS #原由子 #松田弘 #関口和之 #野沢秀行 #大森隆志 #斎藤誠 #片山敦夫 | R160: #メルカリ [CD]サザンオールスターズ/気分しだいで責めないで(リマスタリング盤) フリマアプリ「メルカリ」で販売中 https://jp.mercari.com/item/m30033392189/ #桑田佳祐 #CD・DVD #サザン #サザンオールスターズ #SAS #原由子 #松田弘 #関口和之 #野沢秀行 #大森隆志 #斎藤誠 #片山敦夫 | S160: 272 | T160: 2022-03-29 | U160: 1800 | V160: 2022-03-22 | W160: 1800 | X160: 180 | Y160: 175 | Z160: 1445 | AA160: 送料込み(出品者負担) | AC160: 2022-03-30 | AF160: 個人 | AG160: 1
B161: m40364742143 | C161: 出品中 | D161: [CD]サザンオールスターズ/イエローマン～星の王子様～(リマスタリング盤) | E161: 38 | F161: 2009/5/1購入 中古品のため商品は多少のキズ・使用感がございます。記載ない限り帯・特典などは付属致しません。写真以外の付属品はありません。 新品未開封なるも、ケースにヒビあり（写真参照） 「イエローマン～星の王子様～」 サザンオールスターズ 定価: ￥ 762 #桑田佳祐 #CD・DVD #サザン #サザンオールスターズ #SAS #原由子 #松田弘 #関口和之 #野沢秀行 #大森隆志 #斎藤誠 #片山敦夫 ライブでもおなじみとなっている、ヘヴィなバス・ドラムが響き渡るミニマルなデジタル・ロック。このシングルでしか聴けない“泣かせ担当”こと松田弘による甘酸っぱいのアフター・サマー・チューン（2）も必聴だ！ 8cmCD シングルでしかリリースされておらず、入手しにくくなっていたシングルたちが、ついに12cmCD化！デビュー記念日である“6月25日”に、デビューシングル「勝手にシンドバッド」から2000年の大ヒットシングル「TSUNAMI」までの44タイトルが一挙リリースされる。最新の技術によるデジタルリマスタリング音源で、楽曲本来のサウンドを実現！ | G161: 486 | H161: 1299 | I161: 新品より高い | J161: https://www.amazon.co.jp/%E3%82%A4%E3%82%A8%E3%83%AD%E3%83%BC%E3%83%9E%E3%83%B3-%E3%82%B5%E3%82%B6%E3%83%B3%E3%82%AA%E3%83%BC%E3%83%AB%E3%82%B9%E3%82%BF%E3%83%BC%E3%82%BA/dp/B0009I6PN4/ref=sr_1_7?__mk_ja_JP=%E3%82%AB%E3%82%BF%E3%82%AB%E3%83%8A&crid=290MWESTXNTS0&keywords=%E3%82%A4%E3%82%A8%E3%83%AD%E3%83%BC%E3%83%9E%E3%83%B3%EF%BD%9E%E6%98%9F%E3%81%AE%E7%8E%8B%E5%AD%90%E6%A7%98&qid=1644626293&sprefix=%E3%82%A4%E3%82%A8%E3%83%AD%E3%83%BC%E3%83%9E%E3%83%B3+%E6%98%9F%E3%81%AE%E7%8E%8B%E5%AD%90%E6%A7%98%2Caps%2C161&sr=8-7 | K161: https://www.amazon.co.jp/dp/B0009I6PN4/ref=olp-opf-redir?aod=1&ie=UTF8&condition=ALL | L161: 742 | M161: 36 | N161: 配送料 ¥350 11月2日-3日にお届け 詳細を見る | O161: =MID(N161,FIND("配送料 ¥",N161)+5,FIND(" ",MID(N161,FIND("¥",N161),10))-2)*1 -> 350 | P161: 386 | Q161: #桑田佳祐 #CD・DVD #サザン #サザンオールスターズ #SAS #原由子 #松田弘 #関口和之 #野沢秀行 #大森隆志 #斎藤誠 #片山敦夫 | R161: ="#メルカリ"&CHAR(10)&D161&CHAR(10)&" フリマアプリ「メルカリ」で販売中 https://jp.mercari.com/item/"&B161&"?utm_source=android&utm_medium=share "&Q161 -> #メルカリ [CD]サザンオールスターズ/イエローマン～星の王子様～(リマスタリング盤) フリマアプリ「メルカリ」で販売中 https://jp.mercari.com/item/m40364742143?utm_source=android&utm_medium=share #桑田佳祐 #CD・DVD #サザン #サザンオールスターズ #SAS #原由子 #松田弘 #関口和之 #野沢秀行 #大森隆志 #斎藤誠 #片山敦夫 | S161: 311 | U161: 1299 | AF161: 個人 | AG161: 1
B162: m85352215247 | C162: 出品中 | D162: [CD]チーム・アミューズ!!/Let's try again | E162: 31 | F162: 2011/7/30購入 中古品のため商品は多少のキズ・使用感がございます。記載ない限り帯・特典などは付属致しません。写真以外の付属品はありません。 DVDの盤面にこまかい傷あり 「Let's try again」 チーム・アミューズ!! 定価: ￥ 1238 #桑田佳祐 #CD・DVD #サザン #サザンオールスターズ #ポルノグラフィティ #原由子 #福山雅治 #爆風スランプ #Perfume #関口和之 #松田弘 #BEGIN アミューズ所属アーティストらによる東日本大震災チャリティー・シングル。桑田佳祐、福山雅治、ポルノグラフィティ、Perfumeら37組54名が、それぞれの代表曲メドレーを組み込んだ桑田制作の詞曲とともに大団円を迎える夢のオールスターソングだ。 | G162: 341 | H162: 1299 | J162: https://www.amazon.co.jp/Lets-try-again-DVD%E4%BB%98-%E3%83%81%E3%83%BC%E3%83%A0%E3%83%BB%E3%82%A2%E3%83%9F%E3%83%A5%E3%83%BC%E3%82%BA/dp/B004XKRUI8/ref=sr_1_1?keywords=let%27s+try+again+%E3%83%81%E3%83%BC%E3%83%A0+%E3%82%A2%E3%83%9F%E3%83%A5%E3%83%BC%E3%82%BA&qid=1644626349&sprefix=Let%27s+try+again%2Caps%2C162&sr=8-1 | K162: https://www.amazon.co.jp/dp/B004XKRUI8/ref=olp-opf-redir?aod=1&ie=UTF8&condition=ALL | L162: 1799 | M162: 94 | N162: 配送料 ¥257 11月1日-2日にお届け 詳細を見る | O162: 257 | P162: 351 | Q162: #桑田佳祐 #CD・DVD #サザン #サザンオールスターズ #ポルノグラフィティ #原由子 #福山雅治 #爆風スランプ #Perfume #関口和之 #松田弘 #BEGIN | R162: #メルカリ [CD]チーム・アミューズ!!/Let's try again フリマアプリ「メルカリ」で販売中 https://jp.mercari.com/item/m85352215247?utm_source=android&utm_medium=share #桑田佳祐 #CD・DVD #サザン #サザンオールスターズ #ポルノグラフィティ #原由子 #福山雅治 #爆風スランプ #Perfume #関口和之 #松田弘 #BEGIN | S162: 299 | U162: 1299 | AF162: 個人 | AG162: 1
B163: m70641257717 | C163: 取引終了 | D163: [CD]キリンジ/～Connoisseur Series～KIRINJI「SONGBOOK」 | E163: 46 | F163: 2012/1/3購入 中古品のため商品は多少のキズ・使用感がございます。記載ない限り帯・特典などは付属致しません。プロダクト、ダウンロードコードは使用できません。写真以外の付属品はありません。 [CD]キリンジ/～Connoisseur Series～KIRINJI「SONGBOOK」 キリンジ 定価: ￥ 2500 #キリンジ #KIRINJI #冨田恵一 #堀込高樹 #堀込泰行 極上のポップ・ソングを生み出す兄弟ユニット、キリンジのセルフ・カヴァー・アルバム。提供アーティストのオリジナルも収録され、作家による感性とオリジナルの二つを味わえる内容となっている。 | G163: 287 | H163: 1799 | J163: https://www.amazon.co.jp/%EF%BD%9EConnoisseur-%EF%BD%9EKIRINJI%E3%80%8CSONGBOOK%E3%80%8D-%E3%82%AD%E3%83%AA%E3%83%B3%E3%82%B8/dp/B005GYC12U/ref=sr_1_1?__mk_ja_JP=%E3%82%AB%E3%82%BF%E3%82%AB%E3%83%8A&crid=3F87EX1TQBIKZ&keywords=%E3%82%AD%E3%83%AA%E3%83%B3%E3%82%B8%2FSONGBOOK&qid=1645129577&sprefix=%E3%82%AD%E3%83%AA%E3%83%B3%E3%82%B8%2Fsongbook%2Caps%2C172&sr=8-1 | K163: https://www.amazon.co.jp/dp/B005GYC12U/ref=olp-opf-redir?aod=1&ie=UTF8&condition=ALL | L163: 2237 | M163: 1096 | N163: 配送料 ¥350 4月 13-15日。 詳細を見る | O163: =MID(N163,FIND("配送料 ¥",N163)+5,FIND(" ",MID(N163,FIND("¥",N163),10))-2)*1 -> 350 | P163: 1446 | Q163: #キリンジ #KIRINJI #冨田恵一 #堀込高樹 #堀込泰行 | R163: #メルカリ [CD]キリンジ/～Connoisseur Series～KIRINJI「SONGBOOK」 フリマアプリ「メルカリ」で販売中 https://jp.mercari.com/item/m70641257717/ #キリンジ #KIRINJI #冨田恵一 #堀込高樹 #堀込泰行 | S163: 192 | U163: 1799 | AF163: 個人 | AG163: 1
B164: m22954536690 | C164: 出品中 | D164: [CD]キリンジ/OMNIBUS | E164: 16 | F164: 中古品のため商品は多少のキズ・使用感がございます。記載ない限り帯・特典などは付属致しません。写真以外の付属品はありません。 [CD]キリンジ/OMNIBUS キリンジ 定価: ￥ 2913 #キリンジ #KIRINJI #冨田恵一 #堀込高樹 #堀込泰行 キリンジの待望の5thアルバムが登場。今回は、初のセルフ・プロデュース、初のセルフ・カヴァー収録、初の洋楽カヴァー収録と、今までにない試みとサウンドで構成された意欲作に仕上がっている。 | G164: 223 | H164: 1299 | J164: https://www.amazon.co.jp/Omnibus-%E3%82%AD%E3%83%AA%E3%83%B3%E3%82%B8/dp/B00006S2A5/ref=sr_1_2?__mk_ja_JP=%E3%82%AB%E3%82%BF%E3%82%AB%E3%83%8A&crid=2UJZFD08XU80S&keywords=%E3%82%AD%E3%83%AA%E3%83%B3%E3%82%B8%2FOMNIBUS&qid=1645129385&sprefix=%E3%82%AD%E3%83%AA%E3%83%B3%E3%82%B8%2Fomnibus%2Caps%2C183&sr=8-2 | K164: https://www.amazon.co.jp/dp/B00006S2A5/ref=olp-opf-redir?aod=1&ie=UTF8&condition=ALL | M164: 137 | N164: 配送料 ¥240 11月2日-4日にお届け 詳細を見る | O164: =MID(N164,FIND("配送料 ¥",N164)+5,FIND(" ",MID(N164,FIND("¥",N164),10))-2)*1 -> 240 | P164: 377 | Q164: #キリンジ #KIRINJI #冨田恵一 #堀込高樹 #堀込泰行 | R164: ="#メルカリ"&CHAR(10)&D164&CHAR(10)&" フリマアプリ「メルカリ」で販売中 https://jp.mercari.com/item/"&B164&"?utm_source=android&utm_medium=share "&Q164 -> #メルカリ [CD]キリンジ/OMNIBUS フリマアプリ「メルカリ」で販売中 https://jp.mercari.com/item/m22954536690?utm_source=android&utm_medium=share #キリンジ #KIRINJI #冨田恵一 #堀込高樹 #堀込泰行 | S164: 193 | U164: 1299 | AF164: 個人 | AG164: 1
B165: m68677993983 | C165: 取引終了 | D165: [CD]サザンオールスターズ/BLUE HEAVEN(リマスタリング盤) | E165: 36 | F165: 2009/5/1購入 中古品のため商品は多少のキズ・使用感がございます。記載ない限り帯・特典などは付属致しません。プロダクト、ダウンロードコードは使用できません。写真以外の付属品はありません。 [CD]サザンオールスターズ/BLUE HEAVEN(リマスタリング盤) 定価: ￥ 762 #桑田佳祐 #CD・DVD #サザン #サザンオールスターズ #SAS #原由子 #松田弘 #関口和之 #野沢秀行 #大森隆志 #斎藤誠 #片山敦夫 男性ファンから人気の高い、時の洗礼に耐える切ないメロディを持った名曲。過ぎ去った日々を静かに憂う、孤独感に貫かれた歌詞にも涙腺をやられる。カップリング曲はアルバム未収録。 8cmCD シングルでしかリリースされておらず、入手しにくくなっていたシングルたちが、ついに12cmCD化！デビュー記念日である“6月25日”に、デビューシングル「勝手にシンドバッド」から2000年の大ヒットシングル「TSUNAMI」までの44タイトルが一挙リリースされる。最新の技術によるデジタルリマスタリング音源で、楽曲本来のサウンドを実現！ | G165: 481 | H165: 1799 | I165: 新品より高い | J165: https://www.amazon.co.jp/BLUE-HEAVEN-%E3%82%B5%E3%82%B6%E3%83%B3%E3%82%AA%E3%83%BC%E3%83%AB%E3%82%B9%E3%82%BF%E3%83%BC%E3%82%BA/dp/B0009I6PMA/ref=sr_1_1?__mk_ja_JP=%E3%82%AB%E3%82%BF%E3%82%AB%E3%83%8A&crid=4ZDY2I3R4HBX&keywords=%E3%82%B5%E3%82%B6%E3%83%B3%E3%82%AA%E3%83%BC%E3%83%AB%E3%82%B9%E3%82%BF%E3%83%BC%E3%82%BA%2FBLUE+HEAVEN&qid=1645129651&sprefix=%E3%82%B5%E3%82%B6%E3%83%B3%E3%82%AA%E3%83%BC%E3%83%AB%E3%82%B9%E3%82%BF%E3%83%BC%E3%82%BA%2Fblue+heaven%2Caps%2C163&sr=8-1 | K165: https://www.amazon.co.jp/dp/B0009I6PMA/ref=olp-opf-redir?aod=1&ie=UTF8&condition=ALL | L165: 739 | M165: 650 | N165: 配送料 ¥410 4月 21-23日。 詳細を見る | O165: =MID(N165,FIND("配送料 ¥",N165)+5,FIND(" ",MID(N165,FIND("¥",N165),10))-2)*1 -> 410 | P165: 1060 | Q165: #桑田佳祐 #CD・DVD #サザン #サザンオールスターズ #SAS #原由子 #松田弘 #関口和之 #野沢秀行 #大森隆志 #斎藤誠 #片山敦夫 | R165: #メルカリ [CD]サザンオールスターズ/BLUE HEAVEN(リマスタリング盤) フリマアプリ「メルカリ」で販売中 https://jp.mercari.com/item/m68677993983/ #桑田佳祐 #CD・DVD #サザン #サザンオールスターズ #SAS #原由子 #松田弘 #関口和之 #野沢秀行 #大森隆志 #斎藤誠 #片山敦夫 | S165: 261 | T165: 2022-04-26 | U165: 1799 | V165: 2022-04-19 | W165: 1799 | X165: 179 | Y165: 175 | Z165: 1445 | AA165: 送料込み(出品者負担) | AC165: 2022-04-26 | AF165: 個人 | AG165: 1
B166: m23389918100 | C166: 取引終了 | D166: [CD]キリンジ/7-seven-(DVD付) | E166: 23 | F166: 2008/4/5購入 中古品のため商品は多少のキズ・使用感がございます。記載ない限り帯・特典などは付属致しません。プロダクト、ダウンロードコードは使用できません。写真以外の付属品はありません。 「7-seven-」 キリンジ 定価: ￥ 3300 #キリンジ #KIRINJI #冨田恵一 #堀込高樹 #堀込泰行 シングル「朝焼けは雨のきざし」や2007年6月から12月にかけて発表した配信限定曲を含む、キリンジの7thオリジナル・アルバム。メジャー・デビュー10周年のアニヴァーサリー・イヤーを飾るにふさわしい充実作となっている。 | G166: 269 | H166: 1799 | J166: https://www.amazon.co.jp/7-seven-DVD%E4%BB%98-%E3%82%AD%E3%83%AA%E3%83%B3%E3%82%B8/dp/B0012CON9O/ref=sr_1_3?__mk_ja_JP=%E3%82%AB%E3%82%BF%E3%82%AB%E3%83%8A&keywords=%E3%82%AD%E3%83%AA%E3%83%B3%E3%82%B8%2F7-seven-&qid=1645233157&sr=8-3 | K166: https://www.amazon.co.jp/dp/B0012CON9O/ref=olp-opf-redir?aod=1&ie=UTF8&condition=ALL | M166: 330 | N166: 配送料 ¥350 4月 14-15日。 詳細を見る | O166: 350 | P166: 680 | Q166: #キリンジ #KIRINJI #冨田恵一 #堀込高樹 #堀込泰行 | R166: #メルカリ [CD]キリンジ/7-seven-(DVD付) フリマアプリ「メルカリ」で販売中 https://jp.mercari.com/item/m23389918100/ #キリンジ #KIRINJI #冨田恵一 #堀込高樹 #堀込泰行 | S166: 166 | U166: 1799 | AF166: 個人 | AG166: 1
B167: m46371836839 | C167: 取引終了 | D167: [CD]キリンジ/47′45″ | E167: 15 | F167: 中古品のため商品は多少のキズ・使用感がございます。記載ない限り帯・特典などは付属致しません。写真以外の付属品はありません。 「47′45″」 キリンジ 定価: ￥ 2913 #キリンジ #KIRINJI #冨田恵一 #堀込高樹 #堀込泰行 兄弟デュオといえば狩人かキリンジか!? 6月に発売されたばかりのマキシ「牡牛座ラプソディ」のヒットでさらに勢いづく彼らが放つ、最強最大のセカンド・アルバムがここに。 | G167: 205 | H167: 1299 | J167: https://www.amazon.co.jp/47%E2%80%9945%E2%80%9D-%E3%82%AD%E3%83%AA%E3%83%B3%E3%82%B8/dp/B00005HIVQ/ref=sr_1_1?__mk_ja_JP=%E3%82%AB%E3%82%BF%E3%82%AB%E3%83%8A&crid=3JWN9BGU006RK&keywords=%E3%82%AD%E3%83%AA%E3%83%B3%E3%82%B8%2F47%E2%80%B245%E2%80%B3&qid=1645233203&sprefix=%E3%82%AD%E3%83%AA%E3%83%B3%E3%82%B8%2F47+45+%2Caps%2C165&sr=8-1 | K167: https://www.amazon.co.jp/dp/B00005HIVQ/ref=olp-opf-redir?aod=1&ie=UTF8&condition=ALL | L167: 2694 | M167: 82 | N167: 配送料 ¥240 7月 27-29日。 詳細を見る | O167: =MID(N167,FIND("配送料 ¥",N167)+5,FIND(" ",MID(N167,FIND("¥",N167),10))-2)*1 -> 240 | P167: 322 | Q167: #キリンジ #KIRINJI #冨田恵一 #堀込高樹 #堀込泰行 | R167: #メルカリ [CD]キリンジ/47′45″ フリマアプリ「メルカリ」で販売中 https://jp.mercari.com/item/m46371836839/ #キリンジ #KIRINJI #冨田恵一 #堀込高樹 #堀込泰行 | S167: 159 | T167: 2022-08-01 | U167: 1299 | V167: 2022-07-25 | W167: 1299 | X167: 129 | Y167: 210 | Z167: 960 | AA167: 送料込み(出品者負担) | AB167: スターチス | AC167: 2022-07-31 | AF167: 個人 | AG167: 1
B168: m15233025154 | C168: 取引終了 | D168: [CD]キリンジ/DODECAGON | E168: 18 | F168: 中古品のため商品は多少のキズ・使用感がございます。記載ない限り帯・特典などは付属致しません。プロダクト、ダウンロードコードは使用できません。写真以外の付属品はありません。 「DODECAGON」 キリンジ 定価: ￥ 3000 #キリンジ #KIRINJI #冨田恵一 #堀込高樹 #堀込泰行 それぞれのソロ活動を経て発表される、約3年ぶり通算6枚目のアルバム。メロウなバラードからR＆B、エレクトロニカ、アーシーなソウルまで、ヴァラエティに富んだサウンドがちりばめられたポップな作品となっている。 | G168: 252 | H168: 1799 | J168: https://www.amazon.co.jp/DODECAGON-%E3%82%AD%E3%83%AA%E3%83%B3%E3%82%B8/dp/B000IFRWJE/ref=tmm_acd_title_0?_encoding=UTF8&qid=1645233257&sr=8-2 | K168: https://www.amazon.co.jp/dp/B000IFRWJE/ref=olp-opf-redir?aod=1&ie=UTF8&condition=ALL | M168: 328 | N168: 配送料 ¥252 4月 13-14日。 詳細を見る | O168: =MID(N168,FIND("配送料 ¥",N168)+5,FIND(" ",MID(N168,FIND("¥",N168),10))-2)*1 -> 252 | P168: 580 | Q168: #キリンジ #KIRINJI #冨田恵一 #堀込高樹 #堀込泰行 | R168: #メルカリ [CD]キリンジ/DODECAGON フリマアプリ「メルカリ」で販売中 https://jp.mercari.com/item/m15233025154/ #キリンジ #KIRINJI #冨田恵一 #堀込高樹 #堀込泰行 | S168: 160 | U168: 1799 | AF168: 個人 | AG168: 1
B169: m92843658106 | C169: 取引終了 | D169: [CD]堀込高樹/Home Ground | E169: =LEN(D169) -> 20 | F169: 2005/10/23購入 中古品のため商品は多少のキズ・使用感がございます。記載ない限り帯・特典などは付属致しません。写真以外の付属品はありません。 「Home Ground」 堀込高樹 定価: ￥ 3000 #キリンジ #KIRINJI #冨田恵一 #堀込高樹 #堀込泰行 #クラムボン #真城めぐみ キリンジ・ソロ・プロジェクト第2弾。兄の高樹によるソロ1作目となるアルバム。「ちゃんとした大人のちゃんとしたポップス」をテーマにクラムボンの原田郁子、ヒックスヴィルの真城めぐみらを迎えて制作。 | G169: =LEN(F169) -> 251 | H169: 1299 | I169: =IF(AND(L169<>"",H169>L169),"新品より高い",IF(AND(P169>0,H169<=P169,H169>=P169-100),"最安値",IF(AND(P169>0,H169<P169-100),"安すぎ",""))) ->  | J169: https://www.amazon.co.jp/Home-Ground-%E5%A0%80%E8%BE%BC%E9%AB%98%E6%A8%B9/dp/B000BKJGEU/ref=sr_1_3?__mk_ja_JP=%E3%82%AB%E3%82%BF%E3%82%AB%E3%83%8A&crid=29MCTPGVJVFG6&keywords=%E5%A0%80%E8%BE%BC%E9%AB%98%E6%A8%B9%2FHome+Ground&qid=1645321690&sprefix=%E5%A0%80%E8%BE%BC%E9%AB%98%E6%A8%B9%2Fhome+ground%2Caps%2C299&sr=8-3 | K169: ="https://www.amazon.co.jp/dp/"&MID(J169,FIND("/dp/",J169)+4,10)&"/ref=olp-opf-redir?aod=1&ie=UTF8&condition=ALL" -> https://www.amazon.co.jp/dp/B000BKJGEU/ref=olp-opf-redir?aod=1&ie=UTF8&condition=ALL | L169: 6156 | M169: 174 | N169: 配送料 ¥410 8月 24-26日。 詳細を見る | O169: =MID(N169,FIND("配送料 ¥",N169)+5,FIND(" ",MID(N169,FIND("¥",N169),10))-2)*1 -> 410 | P169: =IF(ISERROR(O169),M169,M169+O169) -> 584 | Q169: =MID(F169,FIND("#",F169),FIND(CHAR(10),MID(F169,FIND("#",F169),300))) -> #キリンジ #KIRINJI #冨田恵一 #堀込高樹 #堀込泰行 #クラムボン #真城めぐみ | R169: ="#メルカリ"&CHAR(10)&D169&CHAR(10)&" フリマアプリ「メルカリ」で販売中 https://jp.mercari.com/item/"&B169&"/ "&Q169 -> #メルカリ [CD]堀込高樹/Home Ground フリマアプリ「メルカリ」で販売中 https://jp.mercari.com/item/m92843658106/ #キリンジ #KIRINJI #冨田恵一 #堀込高樹 #堀込泰行 #クラムボン #真城めぐみ | S169: =LENB(R169) -> 186 | T169: 2022-09-04 | U169: 1299 | V169: 2022-08-28 | W169: 15954 | X169: 1595 | Y169: 850 | Z169: 13509 | AA169: 送料込み(出品者負担) | AB169: tetu tetu | AC169: 2022-09-02 | AF169: 個人 | AG169: 1 | AH169: =SUBTOTAL(9,H169:H296) -> 71211
B170: m18087393385 | C170: 取引終了 | D170: [CD]冨田ラボ/Shiplaunching | E170: 22 | F170: 2006/11/19購入 中古品のため商品は多少のキズ・使用感がございます。記載ない限り帯・特典などは付属致しません。写真以外の付属品はありません。 「シップランチング」 冨田ラボ 定価: ￥ 2913 #冨田ラボ #CD・DVD #冨田恵一 #CHEMISTRY #高橋幸宏 #大貫妙子 アレンジャー、プロデューサーとして引っ張りだこの冨田恵一のセルフ・プロジェクト、冨田ラボの2ndフル・アルバム。CHEMISTRY、高橋幸宏、大貫妙子ほか、豪華ゲストが多数参加した豪華な1枚。 | G170: 244 | H170: 1299 | J170: https://www.amazon.co.jp/Shiplaunching-%E5%86%A8%E7%94%B0%E3%83%A9%E3%83%9C/dp/B000E1NXSQ/ref=sr_1_1?__mk_ja_JP=%E3%82%AB%E3%82%BF%E3%82%AB%E3%83%8A&crid=IWVDDSNBY8XG&keywords=%E5%86%A8%E7%94%B0%E3%83%A9%E3%83%9C%2F%E3%82%B7%E3%83%83%E3%83%97%E3%83%A9%E3%83%B3%E3%83%81%E3%83%B3%E3%82%B0&qid=1646533822&sprefix=%E5%86%A8%E7%94%B0%E3%83%A9%E3%83%9C%2F%E3%82%B7%E3%83%83%E3%83%97%E3%83%A9%E3%83%B3%E3%83%81%E3%83%B3%E3%82%B0%2Caps%2C166&sr=8-1 | K170: https://www.amazon.co.jp/dp/B000E1NXSQ/ref=olp-opf-redir?aod=1&ie=UTF8&condition=ALL | L170: 2685 | M170: 20 | N170: 配送料 ¥350 8月 25-26日。 詳細を見る | O170: 350 | P170: 370 | Q170: #冨田ラボ #CD・DVD #冨田恵一 #CHEMISTRY #高橋幸宏 #大貫妙子 | R170: #メルカリ [CD]冨田ラボ/Shiplaunching フリマアプリ「メルカリ」で販売中 https://jp.mercari.com/item/m18087393385/ #冨田ラボ #CD・DVD #冨田恵一 #CHEMISTRY #高橋幸宏 #大貫妙子 | S170: 175 | U170: 1299 | AF170: 個人 | AG170: 1
B171: m53445370169 | C171: 取引終了 | D171: [CD]冨田ラボ/シップビルディング | E171: 18 | F171: 2006/11/4購入 中古品のため商品は多少のキズ・使用感がございます。記載ない限り帯・特典などは付属致しません。写真以外の付属品はありません。 「シップビルディングSHIPBUILDING」 冨田ラボ 定価: ￥ 2667 #冨田ラボ #CD・DVD #冨田恵一 #松任谷由実 #畠山美由紀 #ハナレグミ #キリンジ #KIRINJI MISIA、SMAP、平井堅など、数多くのアーティストを手掛けるサウンドプロデューサー、冨田恵一のハンドメイド音楽工房「冨田ラボ」が、ゲストヴォーカルを迎えたプロジェクトアルバムをリリース。軽やかなピアノと松任谷由実の歌声が春風のように心地いいミディアムナンバー<2>、新しい季節の始まりをジャジーなメロディで穏やかにつづった畠山美由紀の<4>をはじめ、ソングライト＆ヴォーカルに多彩なゲスト陣を迎え、トッププロデューサーとしての繊細な音楽センスを披露する。恋人たちの別れを描いたスローナンバー<11>では冨田恵一自身がヴォーカルを担当し、アーティストとしての幅広い可能性もアピール。ハナレグミ（SUPER BUTTER DOGのヴォーカル、永積タカシのソロプロジェクト）をフィーチャーした<3>（メナード化粧品 2003春スキンケアテレビCMソング）は、2003年3月29日のシングルカットが決定済みだ。 | G171: 576 | H171: 1299 | J171: https://www.amazon.co.jp/%E3%82%B7%E3%83%83%E3%83%97%E3%83%93%E3%83%AB%E3%83%87%E3%82%A3%E3%83%B3%E3%82%B0-%E5%86%A8%E7%94%B0%E3%83%A9%E3%83%9C/dp/B00007M8OA/ref=sr_1_5?__mk_ja_JP=%E3%82%AB%E3%82%BF%E3%82%AB%E3%83%8A&crid=2WRJNC7Z56A3X&keywords=%E5%86%A8%E7%94%B0%E3%83%A9%E3%83%9C%2F%E3%82%B7%E3%83%83%E3%83%97%E3%83%93%E3%83%AB%E3%83%87%E3%82%A3%E3%83%B3%E3%82%B0&qid=1648255388&sprefix=%2Caps%2C198&sr=8-5 | K171: https://www.amazon.co.jp/dp/B00007M8OA/ref=olp-opf-redir?aod=1&ie=UTF8&condition=ALL | M171: 91 | N171: 配送料 ¥292 8月 24-26日。 詳細を見る | O171: 292 | P171: 383 | Q171: #冨田ラボ #CD・DVD #冨田恵一 #松任谷由実 #畠山美由紀 #ハナレグミ #キリンジ #KIRINJI | R171: #メルカリ [CD]冨田ラボ/シップビルディング フリマアプリ「メルカリ」で販売中 https://jp.mercari.com/item/m53445370169/ #冨田ラボ #CD・DVD #冨田恵一 #松任谷由実 #畠山美由紀 #ハナレグミ #キリンジ #KIRINJI | S171: 204 | U171: 1299 | AF171: 個人 | AG171: 1
B172: m49759337343 | C172: 取引終了 | D172: [CD]キリンジ/Drifter～太陽とヴィーナス | E172: 25 | F172: 2006/12/24購入 中古品のため商品は多少のキズ・使用感がございます。記載ない限り帯・特典などは付属致しません。写真以外の付属品はありません。 「キリンジ/Drifter～太陽とヴィーナス」 KIRINJI 定価: ￥ 1200 #キリンジ #KIRINJI #冨田恵一 #堀込高樹 #堀込泰行 兄弟デュオ、キリンジの『雨は毛布のように』に続くシングル。 | G172: 183 | H172: 1299 | J172: https://www.amazon.co.jp/Drifter-%E5%A4%AA%E9%99%BD%E3%81%A8%E3%83%B4%E3%82%A3%E3%83%BC%E3%83%8A%E3%82%B9-%E3%82%AD%E3%83%AA%E3%83%B3%E3%82%B8/dp/B00005LK4D/ref=sr_1_1?__mk_ja_JP=%E3%82%AB%E3%82%BF%E3%82%AB%E3%83%8A&crid=1L2O3KF4U98GU&keywords=%E3%82%AD%E3%83%AA%E3%83%B3%E3%82%B8%2FDrifter%EF%BD%9E%E5%A4%AA%E9%99%BD%E3%81%A8%E3%83%B4%E3%82%A3%E3%83%BC%E3%83%8A%E3%82%B9&qid=1650240298&sprefix=%E3%82%AD%E3%83%AA%E3%83%B3%E3%82%B8%2Fyou+and+me%2Caps%2C173&sr=8-1 | K172: https://www.amazon.co.jp/dp/B00005LK4D/ref=olp-opf-redir?aod=1&ie=UTF8&condition=ALL | M172: 580 | N172: 配送料 ¥350 8月 24-25日。 詳細を見る | O172: 350 | P172: 930 | Q172: #キリンジ #KIRINJI #冨田恵一 #堀込高樹 #堀込泰行 | R172: #メルカリ [CD]キリンジ/Drifter～太陽とヴィーナス フリマアプリ「メルカリ」で販売中 https://jp.mercari.com/item/m49759337343/ #キリンジ #KIRINJI #冨田恵一 #堀込高樹 #堀込泰行 | S172: 176 | U172: 1299 | AF172: 個人 | AG172: 1
B173: m35780805700 | C173: 取引終了 | D173: [DVD]木村カエラ/KAELA KIMURA 1st TOUR 2005 4YOU | E173: 42 | F173: 2009/9/28購入 中古品のため商品は多少のキズ・使用感がございます。記載ない限り帯・特典などは付属致しません。写真以外の付属品はありません。 「[DVD]木村カエラ/KAELA KIMURA 1st TOUR 2005 4YOU」 木村カエラ 定価: ￥ 3800 #木村カエラ #CD・DVD #奥田民生 シングル「リルラ リルハ」が自身最高のセールスを記録するなか行なわれた木村カエラ、ファースト・ツアーのライヴDVD。その聴きどころ/見どころは、もちろん、彼女のヴォーカルだ。ASPARAGUSの渡邊忍(g)、BRAZILIANSIZEのmasasucks(g)、ERSKINの4106(b)、REACH/toeの柏倉隆史(ds)、Neil&Iraizaの堀江博久(key)という強力なサポート陣による超絶的な演奏とわたり合う、その歌声は媚びることなく、かといって、突き放すことなく、実に堂々としていて、皮膚感覚的に本物/ニセモノを聴き分ける新世代のオーディエンスに120パーセントで答えてみせる。その打ち出し方は、かつての渋谷 系を発展させたものと言えるかもしれないが、ここでは無駄なものが削ぎ落とされていて、盛り上がりはパンク・バンドさながら。逆にもう少しアイドル的な 作りであってもよかったのでは? と思いさえする本作はバンド好きなリスナーは必見だ。 | G173: 587 | H173: 1999 | J173: https://www.amazon.co.jp/KAELA-KIMURA-TOUR-2005-4YOU/dp/B0009N6M78/ref=sr_1_1?__mk_ja_JP=%E3%82%AB%E3%82%BF%E3%82%AB%E3%83%8A&crid=JHAQP643N0BF&keywords=%E6%9C%A8%E6%9D%91%E3%82%AB%E3%82%A8%E3%83%A9%2FKAELA+KIMURA+1st+TOUR&qid=1650330888&sprefix=%E6%9C%A8%E6%9D%91%E3%82%AB%E3%82%A8%E3%83%A9%2Fkaela+kimura+1st+tour%2Caps%2C168&sr=8-1 | K173: https://www.amazon.co.jp/dp/B0009N6M78/ref=olp-opf-redir?aod=1&ie=UTF8&condition=ALL | L173: 3660 | M173: 331 | N173: 無料配送 8月 26-28日。 詳細を見る | P173: 331 | Q173: #木村カエラ #CD・DVD #奥田民生 | R173: #メルカリ [DVD]木村カエラ/KAELA KIMURA 1st TOUR 2005 4YOU フリマアプリ「メルカリ」で販売中 https://jp.mercari.com/item/m35780805700/ #木村カエラ #CD・DVD #奥田民生 | S173: 167 | U173: 1999 | AF173: 個人 | AG173: 1
B174: m16707403965 | C174: 取引終了 | D174: [Blu-ray]木村カエラ/GO!5!KAELAND | E174: 27 | F174: 2009/9/28購入 中古品のため商品は多少のキズ・使用感がございます。記載ない限り帯・特典などは付属致しません。写真以外の付属品はありません。 「木村カエラ/GO!5!KAELAND」 木村カエラ 定価: ￥ 5238 #木村カエラ #CD・DVD #奥田民生 5年間の軌跡と5年分の感謝をこめて。2万2千人が集結した“GO!5! KAELAND” をBlu-ray Disc で完全収録! 5thアルバム『HOCUS POCUS』をリリースし、TVCMでも話題沸騰中の木村カエラ。 7月11日にデビュー5周年を記念した初の野外ライブイベント“GO!5!KAELAND”を横浜・赤レンガパーク野外特設ステージにて、22,000人のファンを前に開催。今作は“GO! 5!KAELAND”を余すところなく収録し、こだわりの高画質Blu-ray Discで発売。 カエラの5年間をめいっぱい詰め込んだBlu-ray Discで、あの感動をお手元に! | G174: 426 | H174: 1999 | J174: https://www.amazon.co.jp/GO-5-KAELAND-Blu-ray-%E6%9C%A8%E6%9D%91%E3%82%AB%E3%82%A8%E3%83%A9/dp/B002L48FEG/ref=sr_1_2?__mk_ja_JP=%E3%82%AB%E3%82%BF%E3%82%AB%E3%83%8A&crid=OE41O6S8PK6J&keywords=%E6%9C%A8%E6%9D%91%E3%82%AB%E3%82%A8%E3%83%A9%2FGO%215%21KAELAND&qid=1651883829&sprefix=%E6%9C%A8%E6%9D%91%E3%82%AB%E3%82%A8%E3%83%A9%2Fgo+5+kaeland%2Caps%2C177&sr=8-2 | K174: https://www.amazon.co.jp/dp/B002L48FEG/ref=olp-opf-redir?aod=1&ie=UTF8&condition=ALL | M174: 195 | N174: 配送料 ¥350 8月 24-25日。 詳細を見る | O174: 350 | P174: 545 | Q174: #木村カエラ #CD・DVD #奥田民生 | R174: #メルカリ [Blu-ray]木村カエラ/GO!5!KAELAND フリマアプリ「メルカリ」で販売中 https://jp.mercari.com/item/m16707403965/ #木村カエラ #CD・DVD #奥田民生 | S174: 152 | U174: 1999 | AF174: 個人 | AG174: 1
B175: m88077805616 | C175: 取引終了 | D175: [DVD]木村カエラ/LIVE Scratch～上がってますってばTOUR@武道館 | E175: 41 | F175: 2009/7/9購入 中古品のため商品は多少のキズ・使用感がございます。記載ない限り帯・特典などは付属致しません。写真以外の付属品はありません。 「木村カエラ/LIVE Scratch～上がってますってばTOUR@武道館」 木村カエラ 定価: ￥ 3800 #木村カエラ #CD・DVD #奥田民生 ■スペシャルな一夜を全曲完全収録■ 3rdアルバム「Scratch」が大ヒットを記録した後、4/10横浜BLITZを皮切りに、6/23まで全国25公演を数えた 「LIVE TOUR 2007『Scratch』~上がってますってばTOUR~」。即完プレミアムチケット化した会場続出、 今の彼女のパワーを存分に見せつけたツアーとなりました。本作は追加公演となり6/15に行われた武道館初ワンマン。 武道館ならではのスペシャルな空気に満ちた一夜を完全収録。 | G175: 378 | H175: 1999 | J175: https://www.amazon.co.jp/LIVE-Scratch-%E4%B8%8A%E3%81%8C%E3%81%A3%E3%81%A6%E3%81%BE%E3%81%99%E3%81%A3%E3%81%A6%E3%81%B0TOUR-%E6%AD%A6%E9%81%93%E9%A4%A8-DVD-%E6%9C%A8%E6%9D%91%E3%82%AB%E3%82%A8%E3%83%A9/dp/B000TV84CG/ref=sr_1_1?__mk_ja_JP=%E3%82%AB%E3%82%BF%E3%82%AB%E3%83%8A&crid=HDOG6LWMFPYC&keywords=%5D%E6%9C%A8%E6%9D%91%E3%82%AB%E3%82%A8%E3%83%A9%2FLIVE+Scratch%EF%BD%9E%E4%B8%8A%E3%81%8C%E3%81%A3%E3%81%A6%E3%81%BE%E3%81%99%E3%81%A3%E3%81%A6%E3%81%B0TOUR%40%E6%AD%A6%E9%81%93%E9%A4%A8&qid=1651967239&s=dvd&sprefix=%E6%9C%A8%E6%9D%91%E3%82%AB%E3%82%A8%E3%83%A9%2Flive+scratch+%E4%B8%8A%E3%81%8C%E3%81%A3%E3%81%A6%E3%81%BE%E3%81%99%E3%81%A3%E3%81%A6%E3%81%B0tour+%E6%AD%A6%E9%81%93%E9%A4%A8%2Cdvd%2C175&sr=1-1 | K175: https://www.amazon.co.jp/dp/B000TV84CG/ref=olp-opf-redir?aod=1&ie=UTF8&condition=ALL | L175: 3660 | M175: 88 | N175: 配送料 ¥257 8月 24-25日。 詳細を見る | O175: 257 | P175: 345 | Q175: #木村カエラ #CD・DVD #奥田民生 | R175: #メルカリ [DVD]木村カエラ/LIVE Scratch～上がってますってばTOUR@武道館 フリマアプリ「メルカリ」で販売中 https://jp.mercari.com/item/m88077805616/ #木村カエラ #CD・DVD #奥田民生 | S175: 179 | U175: 1999 | AF175: 個人 | AG175: 1
B176: m31265515114 | C176: 取引終了 | D176: [Blu-ray]木村カエラ/KAELA WEB TOUR 2012@武道館 | E176: 38 | F176: 2012/10/8購入 中古品のため商品は多少のキズ・使用感がございます。記載ない限り帯・特典などは付属致しません。写真以外の付属品はありません。 「木村カエラ/KAELA WEB TOUR 2012@武道館」 木村カエラ 定価: ￥ 4667 #木村カエラ #CD・DVD #奥田民生 カエラ2012年3月の武道館公演をライヴDVD/Blu-ray化 木村カエラが3月に行われた武道館3days公演Finalの模様を収めたライヴDVD/Blu-rayをリリース! ! 公演終了時より、ファンからの要望が多数寄せられ、パッケージ化が実現。 「KAELA WEB TOUR2012@武道館」と名付けられた今作はオープニングからダブルアンコールの「happiness!!!」までを全曲収録。アルバム「8EIGHT8」のコンセプトである蜘蛛をモチーフとしたステージセット、時に温かく、時にシャープに降り注ぐ照明効果、熱く盛り上がるオーディエンス、そしてカエラのパフォーマンスと存在感、一時も見逃せない、すべてが見所。 さらにさらに、特典映像にはZepp公演のオープニング用に制作されたアニメーション「nightmare & spider」を収録。 | G176: 525 | H176: 1999 | J176: https://www.amazon.co.jp/KAELA-TOUR-2012-%E6%97%A5%E6%9C%AC%E6%AD%A6%E9%81%93%E9%A4%A8-%E3%80%90Blu-ray%E3%80%91%E9%80%9A%E5%B8%B8%E7%9B%A4Blu-ray/dp/B008CQCB6K/ref=sr_1_2?__mk_ja_JP=%E3%82%AB%E3%82%BF%E3%82%AB%E3%83%8A&crid=19WQM7N3Q6X4B&keywords=Blu-ray%5D%E6%9C%A8%E6%9D%91%E3%82%AB%E3%82%A8%E3%83%A9%2FKAELA+WEB+TOUR+2012%40%E6%AD%A6%E9%81%93%E9%A4%A8&qid=1651967284&s=dvd&sprefix=blu-ray+%E6%9C%A8%E6%9D%91%E3%82%AB%E3%82%A8%E3%83%A9%2Fkaela+web+tour+2012+%E6%AD%A6%E9%81%93%E9%A4%A8%2Cdvd%2C189&sr=1-2 | K176: https://www.amazon.co.jp/dp/B008CQCB6K/ref=olp-opf-redir?aod=1&ie=UTF8&condition=ALL | L176: 5054 | M176: 1 | N176: 配送料 ¥435 8月 24-26日。 詳細を見る | O176: 435 | P176: 436 | Q176: #木村カエラ #CD・DVD #奥田民生 | R176: #メルカリ [Blu-ray]木村カエラ/KAELA WEB TOUR 2012@武道館 フリマアプリ「メルカリ」で販売中 https://jp.mercari.com/item/m31265515114/ #木村カエラ #CD・DVD #奥田民生 | S176: 166 | U176: 1999 | AF176: 個人 | AG176: 1
B177: m66689396996 | C177: 取引終了 | D177: [DVD]カーネーション/Hurricane Festival LIVE & DOCUMENT | E177: 47 | F177: 中古品のため商品は多少のキズ・使用感がございます。記載ない限り帯・特典などは付属致しません。写真以外の付属品はありません。 「カーネーション/Hurricane Festival LIVE & DOCUMENT DVD」 カーネーション 定価: ￥ 3800 #カーネーション #直枝政広 #CD・DVD #大田譲 2005年9月18日に渋谷BOXXで行ったライブの模様を収録。通常のライヴでは見ることのできない彼らの多角的な魅力が味わえる。白熱の演奏はもちろん、オフステージでの彼らの姿も収録したファン垂涎の一本! 01. 幻想列車 02.TRAVELING MOOD 03. おそろいのお気に入り 04. ぼうふら漂流族 05. 獣たち 06. ハイウェイ・バス 07. ハリケーン 08. からまわる世界 09. RUNNIN’ WILD 10. スペードのエース 11. 防波堤のJ 12. ANGEL 13. 野いちご 14. ROUTE 6 REVISITED 15. LOVERS&SISTERS | G177: 459 | H177: 2606 | I177: 最安値 | J177: https://www.amazon.co.jp/%E3%82%AB%E3%83%BC%E3%83%8D%E3%83%BC%E3%82%B7%E3%83%A7%E3%83%B3-Hurricane-Festival%E2%80%9CLIVE-DOCUMENT%E2%80%9D-DVD/dp/B000BM6IBM/ref=sr_1_1?__mk_ja_JP=%E3%82%AB%E3%82%BF%E3%82%AB%E3%83%8A&crid=1VDIBN48V4ZTV&keywords=%E3%82%AB%E3%83%BC%E3%83%8D%E3%83%BC%E3%82%B7%E3%83%A7%E3%83%B3%2FHurricane+Festival&qid=1653081366&s=dvd&sprefix=%E3%82%AB%E3%83%BC%E3%83%8D%E3%83%BC%E3%82%B7%E3%83%A7%E3%83%B3%2Fhurricane+festival%2Cdvd%2C162&sr=1-1 | K177: https://www.amazon.co.jp/dp/B000BM6IBM/ref=olp-opf-redir?aod=1&ie=UTF8&condition=ALL | M177: 2306 | N177: 配送料 ¥350 8月 24-25日。 詳細を見る | O177: 350 | P177: 2656 | Q177: #カーネーション #直枝政広 #CD・DVD #大田譲 | R177: #メルカリ [DVD]カーネーション/Hurricane Festival LIVE & DOCUMENT フリマアプリ「メルカリ」で販売中 https://jp.mercari.com/item/m66689396996/ #カーネーション #直枝政広 #CD・DVD #大田譲 | S177: 186 | U177: 2606 | AF177: 個人 | AG177: 1
B178: m76997057552 | C178: 取引終了 | D178: [CD]細野晴臣/S-F-X | E178: 14 | F178: 2003/8/7購入 中古品のため商品は多少のキズ・使用感がございます。記載ない限り帯・特典などは付属致しません。写真以外の付属品はありません。 「S-F-X」 細野晴臣 定価: ￥ 1800 #細野晴臣 #YMO #イエロー・マジック・オーケストラ #イエローマジックオーケストラ #坂本龍一 #高橋幸宏 THE VERY BEST OF NONSTANDARD。1984年に発表された、当時、斬新な構成が話題になったアルバム。「NON-STANDARD MIXTURE」「ANDROGENA」他、全10曲を収録。 | G178: 261 | H178: 1506 | I178: 最安値 | J178: https://www.amazon.co.jp/S-F-X-%E7%B4%B0%E9%87%8E%E6%99%B4%E8%87%A3/dp/B00005QWLR/ref=tmm_acd_title_0?_encoding=UTF8&qid=1654291722&sr=8-1 | K178: https://www.amazon.co.jp/dp/B00005QWLR/ref=olp-opf-redir?aod=1&ie=UTF8&condition=ALL | M178: 1205 | N178: 配送料 ¥350 8月 26-28日。 詳細を見る | O178: 350 | P178: 1555 | Q178: #細野晴臣 #YMO #イエロー・マジック・オーケストラ #イエローマジックオーケストラ #坂本龍一 #高橋幸宏 | R178: #メルカリ [CD]細野晴臣/S-F-X フリマアプリ「メルカリ」で販売中 https://jp.mercari.com/item/m76997057552/ #細野晴臣 #YMO #イエロー・マジック・オーケストラ #イエローマジックオーケストラ #坂本龍一 #高橋幸宏 | S178: 206 | U178: 1506 | AF178: 個人 | AG178: 1
B179: m85543479501 | C179: 取引終了 | D179: [CD]キリンジ/BUOYANCY(ボイエンシー) | E179: 25 | F179: 2010/10/10購入 中古品のため商品は多少のキズ・使用感がございます。記載ない限り帯・特典などは付属致しません。写真以外の付属品はありません。 「BUOYANCY(ボイエンシー)」 キリンジ 定価: ￥ 3000 #キリンジ #KIRINJI #冨田恵一 #堀込高樹 #堀込泰行 2010年9月リリースの8thアルバム。キリンジ独特の視点による多彩なモチーフを、幻想的で神秘的な歌とサウンドにより昇華した、心地よいポップ・ソングがすらり。先行シングル「夏の光」を含む全12曲を収録。 | G179: 247 | H179: 1299 | J179: https://www.amazon.co.jp/BUOYANCY-%E3%82%AD%E3%83%AA%E3%83%B3%E3%82%B8/dp/B003RECE9G/ref=sr_1_4?__mk_ja_JP=%E3%82%AB%E3%82%BF%E3%82%AB%E3%83%8A&crid=1F6UQ5696K32V&keywords=%E3%82%AD%E3%83%AA%E3%83%B3%E3%82%B8%2FBUOYANCY&qid=1645321716&sprefix=%E3%82%AD%E3%83%AA%E3%83%B3%E3%82%B8%2Fbuoyancy%2Caps%2C169&sr=8-4 | K179: https://www.amazon.co.jp/dp/B003RECE9G/ref=olp-opf-redir?aod=1&ie=UTF8&condition=ALL | M179: 456 | N179: 配送料 ¥342 6月 11-13日。 詳細を見る | O179: 342 | P179: 798 | Q179: #キリンジ #KIRINJI #冨田恵一 #堀込高樹 #堀込泰行 | R179: #メルカリ [CD]キリンジ/BUOYANCY(ボイエンシー) フリマアプリ「メルカリ」で販売中 https://jp.mercari.com/item/m85543479501/ #キリンジ #KIRINJI #冨田恵一 #堀込高樹 #堀込泰行 | S179: 173 | T179: 2022-06-17 | U179: 1299 | V179: 2022-06-10 | W179: 1299 | X179: 129 | Y179: 175 | Z179: 995 | AA179: 送料込み(出品者負担) | AB179: スターチス | AC179: 2022-06-15 | AF179: 個人 | AG179: 1
B180: m56212281306 | C180: 取引終了 | D180: [CD]キリンジ/3 | E180: 10 | F180: 2003/11/15購入 中古品のため商品は多少のキズ・使用感がございます。記載ない限り帯・特典などは付属致しません。プロダクト、ダウンロードコードは使用できません。写真以外の付属品はありません。 「3」 キリンジ 定価: ￥ 2913 #キリンジ #KIRINJI #冨田恵一 #堀込高樹 #堀込泰行 ここまでのヒットに新録5曲を加えた2000年型キリンジの集大成的な内容。さらに先行シングル「エイリアンズ」も収録され、まさにいま絶好調の彼らのパワーが凝縮された豪華さとなった。 | G180: 243 | H180: 1800 | J180: https://www.amazon.co.jp/3-%E3%82%AD%E3%83%AA%E3%83%B3%E3%82%B8/dp/B00005HNZ1/ref=sr_1_3?__mk_ja_JP=%E3%82%AB%E3%82%BF%E3%82%AB%E3%83%8A&crid=12XJETY5ZP9K3&keywords=%E3%82%AD%E3%83%AA%E3%83%B3%E3%82%B8%2F3&qid=1645321765&sprefix=%E3%82%AD%E3%83%AA%E3%83%B3%E3%82%B8%2F3%2Caps%2C152&sr=8-3 | K180: https://www.amazon.co.jp/dp/B00005HNZ1/ref=olp-opf-redir?aod=1&ie=UTF8&condition=ALL | L180: 2588 | M180: 1360 | N180: 無料配送 3月 22-23日。 詳細を見る | P180: 1360 | Q180: #キリンジ #KIRINJI #冨田恵一 #堀込高樹 #堀込泰行 | R180: #メルカリ [CD]キリンジ/3 フリマアプリ「メルカリ」で販売中 https://jp.mercari.com/item/m56212281306/ #キリンジ #KIRINJI #冨田恵一 #堀込高樹 #堀込泰行 | S180: 152 | T180: 2022-03-26 | U180: 1800 | V180: 2022-03-19 | W180: 1800 | X180: 180 | Y180: 175 | Z180: 1445 | AA180: 送料込み(出品者負担) | AC180: 2022-03-24 | AF180: 個人 | AG180: 1
B181: m92876723595 | C181: 取引終了 | D181: [CD]キリンジ/Fine | E181: 13 | F181: 2005/3/13購入 中古品のため商品は多少のキズ・使用感がございます。記載ない限り帯・特典などは付属致しません。写真以外の付属品はありません。 「Fine」 キリンジ 定価: ￥ 2913 #キリンジ #KIRINJI #冨田恵一 #堀込高樹 #堀込泰行 日に日に評価の高まるキリンジ・ポップス大炸裂の4枚目。aikoとの共作で話題を呼んだ「雨は毛布のように」、名バラード「Drifter」、先行シングル「ムラサキ☆サンセット」を収録。 | G181: 223 | H181: 1299 | J181: https://www.amazon.co.jp/Fine-%E3%82%AD%E3%83%AA%E3%83%B3%E3%82%B8/dp/B00005QYWI/ref=sr_1_2?__mk_ja_JP=%E3%82%AB%E3%82%BF%E3%82%AB%E3%83%8A&crid=3P6RVFUT6H483&keywords=%E3%82%AD%E3%83%AA%E3%83%B3%E3%82%B8%2FFine&qid=1645736550&sprefix=%E3%82%AD%E3%83%AA%E3%83%B3%E3%82%B8%2Ffine%2Caps%2C192&sr=8-2 | K181: https://www.amazon.co.jp/dp/B00005QYWI/ref=olp-opf-redir?aod=1&ie=UTF8&condition=ALL | M181: 242 | N181: 配送料 ¥400 2月 21-24日にお届け 詳細を見る | O181: =MID(N181,FIND("配送料 ¥",N181)+5,FIND(" ",MID(N181,FIND("¥",N181),10))-2)*1 -> 400 | P181: 642 | Q181: #キリンジ #KIRINJI #冨田恵一 #堀込高樹 #堀込泰行 | R181: ="#メルカリ"&CHAR(10)&D181&CHAR(10)&" フリマアプリ「メルカリ」で販売中 https://jp.mercari.com/item/"&B181&"?utm_source=android&utm_medium=share "&Q181 -> #メルカリ [CD]キリンジ/Fine フリマアプリ「メルカリ」で販売中 https://jp.mercari.com/item/m92876723595?utm_source=android&utm_medium=share #キリンジ #KIRINJI #冨田恵一 #堀込高樹 #堀込泰行 | S181: 190 | T181: 2023-03-27 | U181: 1299 | V181: 2023-03-20 | W181: 1299 | X181: 129 | Y181: 210 | Z181: 960 | AA181: 送料込み(出品者負担) | AB181: すすさささ | AC181: 2023-03-26 | AF181: 個人 | AG181: 1
B182: m90554110696 | C182: 取引終了 | D182: [CD+DVD]キリンジ/SUPER VIEW(初回盤) | E182: 28 | F182: 2013/2/9購入 中古品のため商品は多少のキズ・使用感がございます。記載ない限り帯・特典などは付属致しません。写真以外の付属品はありません。 「SUPER VIEW」 キリンジ 定価: ￥ 3300 #キリンジ #KIRINJI #冨田恵一 #堀込高樹 #堀込泰行 前作『BUOYANCY』以来、約2年2ヵ月ぶりとなる9thアルバム。原発事故をテーマとした「祈れ呪うな」、優しいミッド「涙にあきたら」を含む、高いセンスとクオリティが詰まった良質ポップ・アルバムとなっている。冨田恵一らがゲスト参加。 | G182: 254 | H182: 1299 | J182: https://www.amazon.co.jp/SUPER-VIEW-%E5%88%9D%E5%9B%9E%E7%9B%A4-%E3%82%AD%E3%83%AA%E3%83%B3%E3%82%B8/dp/B008VURH7A/ref=sr_1_3?__mk_ja_JP=%E3%82%AB%E3%82%BF%E3%82%AB%E3%83%8A&crid=187I3INVLBK7B&keywords=%E3%82%AD%E3%83%AA%E3%83%B3%E3%82%B8%2FSUPER+VIEW&qid=1645736585&sprefix=%E3%82%AD%E3%83%AA%E3%83%B3%E3%82%B8%2Fsuper+view%2Caps%2C167&sr=8-3 | K182: https://www.amazon.co.jp/dp/B008VURH7A/ref=olp-opf-redir?aod=1&ie=UTF8&condition=ALL | M182: 424 | N182: 配送料 ¥240 8月 24-26日。 詳細を見る | O182: 240 | P182: 664 | Q182: #キリンジ #KIRINJI #冨田恵一 #堀込高樹 #堀込泰行 | R182: #メルカリ [CD+DVD]キリンジ/SUPER VIEW(初回盤) フリマアプリ「メルカリ」で販売中 https://jp.mercari.com/item/m90554110696/ #キリンジ #KIRINJI #冨田恵一 #堀込高樹 #堀込泰行 | S182: 173 | T182: 2022-09-05 | U182: 1299 | V182: 2022-08-29 | W182: 1299 | X182: 129 | Y182: 210 | Z182: 960 | AA182: 送料込み(出品者負担) | AB182: カノン | AC182: 2022-09-03 | AF182: 個人 | AG182: 1
B183: m27191935491 | C183: 取引終了 | D183: [CD]キリンジ/ペーパードライヴァーズミュージック | E183: 26 | F183: 中古品のため商品は多少のキズ・使用感がございます。記載ない限り帯・特典などは付属致しません。写真以外の付属品はありません。 「ペーパードライヴァーズミュージック」 キリンジ 定価: ￥ 2913 #キリンジ #KIRINJI #冨田恵一 #堀込高樹 #堀込泰行 インディーズ時代から注目を集めてきた兄弟2人によるポップ・デュオ、キリンジ。マキシ・シングル「双子座グラフィティ」を含むこの1作目は前評判を裏切らない珠玉のポップ・アルバムである。 | G183: 224 | H183: 1299 | J183: https://www.amazon.co.jp/%E3%83%9A%E3%82%A4%E3%83%91%E3%83%BC%E3%83%BB%E3%83%89%E3%83%A9%E3%82%A4%E3%83%B4%E3%82%A1%E3%83%BC%E3%82%BA%E3%83%BB%E3%83%9F%E3%83%A5%E3%83%BC%E3%82%B8%E3%83%83%E3%82%AF-%E3%82%AD%E3%83%AA%E3%83%B3%E3%82%B8/dp/B00005HITO/ref=sr_1_2?__mk_ja_JP=%E3%82%AB%E3%82%BF%E3%82%AB%E3%83%8A&crid=1ANB6P28YS3VF&keywords=%E3%82%AD%E3%83%AA%E3%83%B3%E3%82%B8%2F%E3%83%9A%E3%83%BC%E3%83%91%E3%83%BC%E3%83%89%E3%83%A9%E3%82%A4%E3%83%B4%E3%82%A1%E3%83%BC%E3%82%BA%E3%83%9F%E3%83%A5%E3%83%BC%E3%82%B8%E3%83%83%E3%82%AF&qid=1645736652&sprefix=%E3%82%AD%E3%83%AA%E3%83%B3%E3%82%B8%2F%E3%83%9A%E3%83%BC%E3%83%91%E3%83%BC%E3%83%89%E3%83%A9%E3%82%A4%E3%83%B4%E3%82%A1%E3%83%BC%E3%82%BA%E3%83%9F%E3%83%A5%E3%83%BC%E3%82%B8%E3%83%83%E3%82%AF%2Caps%2C167&sr=8-2 | K183: https://www.amazon.co.jp/dp/B00005HITO/ref=olp-opf-redir?aod=1&ie=UTF8&condition=ALL | M183: 229 | N183: 配送料 ¥350 7月 6-7日。 詳細を見る | O183: 350 | P183: 579 | Q183: #キリンジ #KIRINJI #冨田恵一 #堀込高樹 #堀込泰行 | R183: #メルカリ [CD]キリンジ/ペーパードライヴァーズミュージック フリマアプリ「メルカリ」で販売中 https://jp.mercari.com/item/m27191935491/ #キリンジ #KIRINJI #冨田恵一 #堀込高樹 #堀込泰行 | S183: 185 | T183: 2022-07-12 | U183: 1299 | V183: 2022-07-05 | W183: 1299 | X183: 129 | Y183: 210 | Z183: 960 | AA183: 送料込み(出品者負担) | AB183: でにーろ | AC183: 2022-07-09 | AF183: 個人 | AG183: 1
B184: m49866001971 | C184: 出品中 | D184: [CD]GRAPEVINE&Cynical Clump/Hybrid Soup | E184: 39 | F184: 2017/5/12購入 中古品のため商品は多少のキズ・使用感がございます。記載ない限り帯・特典などは付属致しません。写真以外の付属品はありません。 ケースにヒビあり [CD]GRAPEVINE&Cynical Clump/Hybrid Soup #GRAPEVINE #田中和将 #西川弘剛 #亀井亨 #西原誠 #金戸覚 #高野勲 #Permanents GRAPEVINEインディーズ時代の音源 GRAPEVINE 01． 君を待つ間 02． Soul Foundation 03． 恋は泡 Cynical Clump 04． あいたくて 05． そら 06． She Is My Merychain | G184: 306 | H184: 1299 | J184: https://www.amazon.co.jp/Hybrid-Soup-Cynical-Clump/dp/B001BBJR1K/ref=tmm_acd_title_0?_encoding=UTF8&qid=&sr= | K184: https://www.amazon.co.jp/dp/B001BBJR1K/ref=olp-opf-redir?aod=1&ie=UTF8&condition=ALL | M184: 198 | N184: 配送料 ¥350 11月4日-9日にお届け 詳細を見る | O184: =MID(N184,FIND("配送料 ¥",N184)+5,FIND(" ",MID(N184,FIND("¥",N184),10))-2)*1 -> 350 | P184: 548 | Q184: #GRAPEVINE #田中和将 #西川弘剛 #亀井亨 #西原誠 #金戸覚 #高野勲 #Permanents | R184: ="#メルカリ"&CHAR(10)&D184&CHAR(10)&" フリマアプリ「メルカリ」で販売中 https://jp.mercari.com/item/"&B184&"?utm_source=android&utm_medium=share "&Q184 -> #メルカリ [CD]GRAPEVINE&Cynical Clump/Hybrid Soup フリマアプリ「メルカリ」で販売中 https://jp.mercari.com/item/m49866001971?utm_source=android&utm_medium=share #GRAPEVINE #田中和将 #西川弘剛 #亀井亨 #西原誠 #金戸覚 #高野勲 #Permanents | S184: 238 | U184: 1299 | AF184: 個人 | AG184: 1
B185: m43583285795 | C185: 取引終了 | D185: [CD]長田進 with GRAPEVINE/MALPASO | E185: 30 | F185: 中古品のため商品は多少のキズ・使用感がございます。記載ない限り帯・特典などは付属致しません。写真以外の付属品はありません。 「MALPASO」 長田進 with GRAPEVINE 定価: ￥ 2000 #長田進withGRAPEVINE #長田進 #GRAPEVINE #田中和将 #西川弘剛 #亀井亨 #西原誠 #金戸覚 #高野勲 #Permanents #奥田民生 数々のアーティストのプロデュースやレコーディング参加でも知られる長田進と、3ピース・バンドGRAPEVINEによるコラボ・アルバム。ライヴなどではすでに親交のある2組が、相乗効果によって生まれる新たなサウンドへと誘ってくれる。 | G185: 302 | H185: 1299 | J185: https://www.amazon.co.jp/MALPASO-%E9%95%B7%E7%94%B0%E9%80%B2-GRAPEVINE/dp/B003FUTWOC/ref=sr_1_1?__mk_ja_JP=%E3%82%AB%E3%82%BF%E3%82%AB%E3%83%8A&crid=10IFFRS4HUQW8&keywords=%E9%95%B7%E7%94%B0%E9%80%B2+with+GRAPEVINE%2FMALPASO&qid=1645853628&s=music&sprefix=%E9%95%B7%E7%94%B0%E9%80%B2+with+grapevine%2Fmalpaso%2Cpopular%2C139&sr=1-1 | K185: https://www.amazon.co.jp/dp/B003FUTWOC/ref=olp-opf-redir?aod=1&ie=UTF8&condition=ALL | M185: 589 | N185: 配送料 ¥292 6月 29日-7月 1日。 詳細を見る | O185: 292 | P185: 881 | Q185: #長田進withGRAPEVINE #長田進 #GRAPEVINE #田中和将 #西川弘剛 #亀井亨 #西原誠 #金戸覚 #高野勲 #Permanents #奥田民生 | R185: #メルカリ [CD]長田進 with GRAPEVINE/MALPASO フリマアプリ「メルカリ」で販売中 https://jp.mercari.com/item/m43583285795/ #長田進withGRAPEVINE #長田進 #GRAPEVINE #田中和将 #西川弘剛 #亀井亨 #西原誠 #金戸覚 #高野勲 #Permanents #奥田民生 | S185: 236 | T185: 2022-07-07 | U185: 1299 | V185: 2022-06-30 | W185: 1299 | X185: 129 | Y185: 210 | Z185: 960 | AA185: 送料込み(出品者負担) | AB185: matcha | AC185: 2022-07-05 | AF185: 個人 | AG185: 1
B186: m35999591384 | C186: 出品中 | D186: [CD]桑田佳祐/ROCK AND ROLL HERO | E186: 27 | F186: 中古品のため商品は多少のキズ・使用感がございます。記載ない限り帯・特典などは付属致しません。写真以外の付属品はありません。 「桑田佳祐/ROCK AND ROLL HERO」 桑田佳祐 定価: ￥ 2900 #桑田佳祐 #CD・DVD #サザン #サザンオールスターズ #SAS #原由子 #松田弘 #関口和之 #野沢秀行 #大森隆志 #斎藤誠 #片山敦夫 8年ぶりとなるソロ・アルバム。CMで流れている「ROCK AND ROLL HERO」や「夏の日の少年」を含む本作は、60～70年代のロック・サウンドを意識した、勢いのある作品だ。 | G186: 272 | H186: 1299 | J186: https://www.amazon.co.jp/ROCK-ROLL-HERO-%E6%A1%91%E7%94%B0%E4%BD%B3%E7%A5%90/dp/B00006FWRU/ref=sr_1_1?__mk_ja_JP=%E3%82%AB%E3%82%BF%E3%82%AB%E3%83%8A&crid=33NDKDPXDSG9F&keywords=%E6%A1%91%E7%94%B0%E4%BD%B3%E7%A5%90%2FROCK+AND+ROLL+HERO&qid=1645925645&sprefix=%E6%A1%91%E7%94%B0%E4%BD%B3%E7%A5%90%2Frock+and+roll+hero%2Caps%2C178&sr=8-1 | K186: https://www.amazon.co.jp/dp/B00006FWRU/ref=olp-opf-redir?aod=1&ie=UTF8&condition=ALL | L186: 1980 | M186: 91 | N186: 配送料 ¥240 11月2日-4日にお届け 詳細を見る | O186: =MID(N186,FIND("配送料 ¥",N186)+5,FIND(" ",MID(N186,FIND("¥",N186),10))-2)*1 -> 240 | P186: 331 | Q186: #桑田佳祐 #CD・DVD #サザン #サザンオールスターズ #SAS #原由子 #松田弘 #関口和之 #野沢秀行 #大森隆志 #斎藤誠 #片山敦夫 | R186: ="#メルカリ"&CHAR(10)&D186&CHAR(10)&" フリマアプリ「メルカリ」で販売中 https://jp.mercari.com/item/"&B186&"?utm_source=android&utm_medium=share "&Q186 -> #メルカリ [CD]桑田佳祐/ROCK AND ROLL HERO フリマアプリ「メルカリ」で販売中 https://jp.mercari.com/item/m35999591384?utm_source=android&utm_medium=share #桑田佳祐 #CD・DVD #サザン #サザンオールスターズ #SAS #原由子 #松田弘 #関口和之 #野沢秀行 #大森隆志 #斎藤誠 #片山敦夫 | S186: 273 | U186: 1299 | AF186: 個人 | AG186: 1
B187: m30733145499 | C187: 取引終了 | D187: [CD]桑田佳祐/Keisuke Kuwata(リマスタリング盤) | E187: 33 | F187: 中古品のため商品は多少のキズ・使用感がございます。記載ない限り帯・特典などは付属致しません。写真以外の付属品はありません。 「Keisuke Kuwata」(2001年リマスタリング盤) 桑田佳祐 定価: ￥ 2190 #桑田佳祐 #CD・DVD #サザン #サザンオールスターズ #SAS #原由子 #松田弘 #関口和之 #野沢秀行 #大森隆志 #斎藤誠 #片山敦夫 #小林武史 桑田佳祐の記念すべきソロ・デビュー作(88年発表)。サウンド・アレンジにまだ若かりし頃の小林武史が参加し、サザンとはひと味違ったポップス・アルバムを生み出すのに貢献している。 | G187: 281 | H187: 1686 | I187: 最安値 | J187: https://www.amazon.co.jp/KEISUKE-KUWATA-%E6%A1%91%E7%94%B0%E4%BD%B3%E7%A5%90/dp/B00005L9AL/ref=tmm_acd_title_0?_encoding=UTF8&qid=1645925603&sr=8-1 | K187: https://www.amazon.co.jp/dp/B00005L9AL/ref=olp-opf-redir?aod=1&ie=UTF8&condition=ALL | M187: 1736 | N187: 無料配送 6月 22-23日。 詳細を見る | P187: 1736 | Q187: #桑田佳祐 #CD・DVD #サザン #サザンオールスターズ #SAS #原由子 #松田弘 #関口和之 #野沢秀行 #大森隆志 #斎藤誠 #片山敦夫 #小林武史 | R187: #メルカリ [CD]桑田佳祐/Keisuke Kuwata(リマスタリング盤) フリマアプリ「メルカリ」で販売中 https://jp.mercari.com/item/m30733145499/ #桑田佳祐 #CD・DVD #サザン #サザンオールスターズ #SAS #原由子 #松田弘 #関口和之 #野沢秀行 #大森隆志 #斎藤誠 #片山敦夫 #小林武史 | S187: 262 | T187: 2022-06-25 | U187: 1686 | V187: 2022-06-18 | W187: 1686 | X187: 168 | Y187: 210 | Z187: 1308 | AA187: 送料込み(出品者負担) | AB187: hun | AC187: 2022-06-21 | AF187: 個人 | AG187: 1
B188: m81048122301 | C188: 出品中 | D188: [CD]サザンオールスターズ/BOHBO No.5/神の島遥か国 | E188: 32 | F188: 2005/7/18購入 中古品のため商品は多少のキズ・使用感がございます。記載ない限り帯・特典などは付属致しません。写真以外の付属品はありません。 「BOHBO No.5/神の島遥か国」 サザンオールスターズ 定価: ￥ 1200 #桑田佳祐 #CD・DVD #サザン #サザンオールスターズ #SAS #原由子 #松田弘 #関口和之 #野沢秀行 #大森隆志 #斎藤誠 #片山敦夫 TOYOTA「MORE THAN BEST」キャンペーン・ソング「神の島遥か国」などを収録したシングル。ボーナス・トラックとして「ブルーライトヨコハマ」「リンゴ追分」のカヴァーも聴けるのが嬉しい。 | G188: 292 | H188: 1299 | I188: 新品より高い | J188: https://www.amazon.co.jp/Bohbo-No-5-%E3%82%B5%E3%82%B6%E3%83%B3%E3%82%AA%E3%83%BC%E3%83%AB%E3%82%B9%E3%82%BF%E3%83%BC%E3%82%BA/dp/B0009U7CQQ/ref=sr_1_1?__mk_ja_JP=%E3%82%AB%E3%82%BF%E3%82%AB%E3%83%8A&crid=287OWOZPD0627&keywords=%E3%82%B5%E3%82%B6%E3%83%B3%E3%82%AA%E3%83%BC%E3%83%AB%E3%82%B9%E3%82%BF%E3%83%BC%E3%82%BA%2FBOHBO+No.5&qid=1646344778&sprefix=%E3%82%B5%E3%82%B6%E3%83%B3%E3%82%AA%E3%83%BC%E3%83%AB%E3%82%B9%E3%82%BF%E3%83%BC%E3%82%BA%2Fbohbo+no.5%2Caps%2C148&sr=8-1 | K188: https://www.amazon.co.jp/dp/B0009U7CQQ/ref=olp-opf-redir?aod=1&ie=UTF8&condition=ALL | L188: 1091 | M188: 75 | N188: 配送料 ¥257 11月2日-3日にお届け 詳細を見る | O188: =MID(N188,FIND("配送料 ¥",N188)+5,FIND(" ",MID(N188,FIND("¥",N188),10))-2)*1 -> 257 | P188: 332 | Q188: #桑田佳祐 #CD・DVD #サザン #サザンオールスターズ #SAS #原由子 #松田弘 #関口和之 #野沢秀行 #大森隆志 #斎藤誠 #片山敦夫 | R188: ="#メルカリ"&CHAR(10)&D188&CHAR(10)&" フリマアプリ「メルカリ」で販売中 https://jp.mercari.com/item/"&B188&"?utm_source=android&utm_medium=share "&Q188 -> #メルカリ [CD]サザンオールスターズ/BOHBO No.5/神の島遥か国 フリマアプリ「メルカリ」で販売中 https://jp.mercari.com/item/m81048122301?utm_source=android&utm_medium=share #桑田佳祐 #CD・DVD #サザン #サザンオールスターズ #SAS #原由子 #松田弘 #関口和之 #野沢秀行 #大森隆志 #斎藤誠 #片山敦夫 | S188: 290 | U188: 1299 | AF188: 個人 | AG188: 1
B189: m85399696152 | C189: 出品中 | D189: [CD]坂本真綾/ルーシー | E189: 13 | F189: 2009/8/2購入中古品のため商品は多少のキズ・使用感がございます。記載ない限り帯・特典などは付属致しません。写真以外の付属品はありません。 「ルーシー」 坂本真綾 定価: ￥ 2900 #坂本真綾 #菅野よう子 #CD・DVD 菅野よう子のプロデュースによる、坂本真綾3作目のオリジナル・アルバム。天才的な歌唱力に加え、二十歳になって人間としての強さも備えたのではないか、と思わせる見事な内容だ。 | G189: 203 | H189: 1670 | I189: 最安値 | J189: https://www.amazon.co.jp/Lucy-%E5%9D%82%E6%9C%AC%E7%9C%9F%E7%B6%BE/dp/B0035NO6YA/ref=tmm_acd_title_0?_encoding=UTF8&qid=1646344860&sr=8-1 | K189: https://www.amazon.co.jp/dp/B0035NO6YA/ref=olp-opf-redir?aod=1&ie=UTF8&condition=ALL | L189: 2523 | M189: 1380 | N189: 配送料 ¥300 11月1日-3日にお届け 詳細を見る | O189: 300 | P189: 1680 | Q189: #坂本真綾 #菅野よう子 #CD・DVD | R189: #メルカリ [CD]坂本真綾/ルーシー フリマアプリ「メルカリ」で販売中 https://jp.mercari.com/item/m85399696152?utm_source=android&utm_medium=share #坂本真綾 #菅野よう子 #CD・DVD | S189: 176 | U189: 1670 | AF189: 個人 | AG189: 1
B190: m63777445470 | C190: 出品中 | D190: [CD]桑田佳祐/Yin Yang(イヤン)/涙をぶっとばせ!!/おいしい秘密 | E190: 39 | F190: 2013/10/26購入 中古品のため商品は多少のキズ・使用感がございます。記載ない限り帯・特典などは付属致しません。写真以外の付属品はありません。 「Yin Yang(イヤン)/涙をぶっとばせ!!/おいしい秘密」 桑田佳祐 定価: ￥ 1200 #桑田佳祐 #CD・DVD #サザン #サザンオールスターズ #SAS #原由子 #松田弘 #関口和之 #野沢秀行 #大森隆志 #斎藤誠 #片山敦夫 2013年3月13日リリースのシングル。淫靡な雰囲気が漂うR＆Bテイストのフジテレビ系ドラマ『最高の離婚』主題歌「Yin Yang」、本人がスマートフォン役で出演した「NTTドコモ」CM曲「涙をぶっとばせ!!」ほか収録のトリプルA面だ。 | G190: 320 | H190: 1299 | I190: 新品より高い | J190: https://www.amazon.co.jp/Yin-Yang-%E6%B6%99%E3%82%92%E3%81%B6%E3%81%A3%E3%81%A8%E3%81%B0%E3%81%9B-%E3%81%8A%E3%81%84%E3%81%97%E3%81%84%E7%A7%98%E5%AF%86-%E9%80%9A%E5%B8%B8%E7%9B%A4/dp/B00AQMB704/ref=sr_1_1?__mk_ja_JP=%E3%82%AB%E3%82%BF%E3%82%AB%E3%83%8A&crid=1BE8WI7VU17AV&keywords=%E6%A1%91%E7%94%B0%E4%BD%B3%E7%A5%90%2FYin+Yang%28%E3%82%A4%E3%83%A4%E3%83%B3%29%2F%E6%B6%99%E3%82%92%E3%81%B6%E3%81%A3%E3%81%A8%E3%81%B0%E3%81%9B%21%21%2F%E3%81%8A%E3%81%84%E3%81%97%E3%81%84%E7%A7%98%E5%AF%86&qid=1646378157&sprefix=%E6%A1%91%E7%94%B0%E4%BD%B3%E7%A5%90%2Fyin+yang+%E3%82%A4%E3%83%A4%E3%83%B3+%2F%E6%B6%99%E3%82%92%E3%81%B6%E3%81%A3%E3%81%A8%E3%81%B0%E3%81%9B+%2F%E3%81%8A%E3%81%84%E3%81%97%E3%81%84%E7%A7%98%E5%AF%86%2Caps%2C161&sr=8-1 | K190: https://www.amazon.co.jp/dp/B00AQMB704/ref=olp-opf-redir?aod=1&ie=UTF8&condition=ALL | L190: 909 | M190: 94 | N190: 配送料 ¥257 11月1日-2日にお届け 詳細を見る | O190: 257 | P190: 351 | Q190: #桑田佳祐 #CD・DVD #サザン #サザンオールスターズ #SAS #原由子 #松田弘 #関口和之 #野沢秀行 #大森隆志 #斎藤誠 #片山敦夫 | R190: #メルカリ [CD]桑田佳祐/Yin Yang(イヤン)/涙をぶっとばせ!!/おいしい秘密 フリマアプリ「メルカリ」で販売中 https://jp.mercari.com/item/m63777445470?utm_source=android&utm_medium=share #桑田佳祐 #CD・DVD #サザン #サザンオールスターズ #SAS #原由子 #松田弘 #関口和之 #野沢秀行 #大森隆志 #斎藤誠 #片山敦夫 | S190: 301 | U190: 1299 | AF190: 個人 | AG190: 1
B191: m47992484800 | C191: 取引終了 | D191: [CD+DVD]GRAPEVINE/EAST OF THE SUN/UNOMI (初回限定盤 DVD付き) | E191: 53 | F191: 中古品のため商品は多少のキズ・使用感がございます。記載ない限り帯・特典などは付属致しません。写真以外の付属品はありません。 「EAST OF THE SUN/UNOMI」 GRAPEVINE 定価: ￥ 1800 #GRAPEVINE #CD・DVD #田中和将 #西川弘剛 #亀井亨 #西原誠 #金戸覚 #高野勲 #Permanents 前作「Empty song」から1年ぶりのシングル・リリース。プロデューサーに高野寛を迎えたタイトル曲は、美しく繊細で、GRAPEVINE節全開の一曲になっている。 初回限定盤DVD収録内容 LIVE IN VICTOR STUDIO presented by J-WAVE 「Hello World」 スロウ 風待ち YOROI FLY 豚の皿 なしくずしの愛 光について 「VIDEOVINE Vol.3」 | G191: 379 | H191: 2600 | J191: https://www.amazon.co.jp/EAST-SUN-UNOMI-%E5%88%9D%E5%9B%9E%E9%99%90%E5%AE%9A%E7%9B%A4-DVD%E4%BB%98%E3%81%8D/dp/B016MHR3SQ/ref=sr_1_6?__mk_ja_JP=%E3%82%AB%E3%82%BF%E3%82%AB%E3%83%8A&crid=18HBV9QM7SAO4&keywords=%5DGRAPEVINE%2FEAST+OF+THE+SUN%2FUNOMI&qid=1646378281&sprefix=grapevine%2Feast+of+the+sun%2Funomi%2Caps%2C153&sr=8-6 | K191: https://www.amazon.co.jp/dp/B016MHR3SQ/ref=olp-opf-redir?aod=1&ie=UTF8&condition=ALL | M191: 2000 | N191: 配送料 ¥350 2月 24-26日にお届け 詳細を見る | O191: 350 | P191: 2350 | Q191: #GRAPEVINE #CD・DVD #田中和将 #西川弘剛 #亀井亨 #西原誠 #金戸覚 #高野勲 #Permanents | R191: #メルカリ [CD+DVD]GRAPEVINE/EAST OF THE SUN/UNOMI (初回限定盤 DVD付き) フリマアプリ「メルカリ」で販売中 https://jp.mercari.com/item/m47992484800?utm_source=android&utm_medium=share #GRAPEVINE #CD・DVD #田中和将 #西川弘剛 #亀井亨 #西原誠 #金戸覚 #高野勲 #Permanents | S191: 268 | T191: 2023-03-24 | U191: 2600 | V191: 2023-03-17 | W191: 2600 | X191: 260 | Y191: 210 | Z191: 2130 | AA191: 送料込み(出品者負担) | AB191: てるまえ | AC191: 2023-03-28 | AF191: 個人 | AG191: 1
B192: m34009389152 | C192: 出品中 | D192: [CD]山下久美子/THE HEARTS | E192: 20 | F192: 2009/5/16購入 中古品のため商品は多少のキズ・使用感がございます。記載ない限り帯・特典などは付属致しません。写真以外の付属品はありません。 「山下久美子/THE HEARTS」 山下久美子 定価: ￥ 2913 #山下久美子 #CD・DVD #桑田佳祐 #CD・DVD #サザン #サザンオールスターズ #SAS #原由子 #松田弘 #関口和之 #野沢秀行 #大森隆志 #斎藤誠 #片山敦夫 デビュー20周年を迎える女性ロック・ヴォーカルの先駆者、山下久美子のセルフ・カヴァー・ベスト盤。従来のファンから新世代にまでアピールできるハートフルなメモリアル・ベストに注目だ。佐野元春、高橋幸宏、桑田佳祐他が参加。 | G192: 311 | H192: 1299 | J192: https://www.amazon.co.jp/HEARTS-%E5%B1%B1%E4%B8%8B%E4%B9%85%E7%BE%8E%E5%AD%90/dp/B00005GMNH/ref=sr_1_1?__mk_ja_JP=%E3%82%AB%E3%82%BF%E3%82%AB%E3%83%8A&keywords=%E5%B1%B1%E4%B8%8B%E4%B9%85%E7%BE%8E%E5%AD%90%2FTHE+HEARTS&qid=1646438109&sr=8-1 | K192: https://www.amazon.co.jp/dp/B00005GMNH/ref=olp-opf-redir?aod=1&ie=UTF8&condition=ALL | M192: 700 | N192: 配送料 ¥350 11月2日-4日にお届け 詳細を見る | O192: 350 | P192: 1050 | Q192: #山下久美子 #CD・DVD #桑田佳祐 #CD・DVD #サザン #サザンオールスターズ #SAS #原由子 #松田弘 #関口和之 #野沢秀行 #大森隆志 #斎藤誠 #片山敦夫 | R192: #メルカリ [CD]山下久美子/THE HEARTS フリマアプリ「メルカリ」で販売中 https://jp.mercari.com/item/m34009389152?utm_source=android&utm_medium=share #山下久美子 #CD・DVD #桑田佳祐 #CD・DVD #サザン #サザンオールスターズ #SAS #原由子 #松田弘 #関口和之 #野沢秀行 #大森隆志 #斎藤誠 #片山敦夫 | S192: 288 | U192: 1299 | AF192: 個人 | AG192: 1
B193: m32051695272 | C193: 出品中 | D193: [CD]村上ポンタ秀一/Welcome To My Life | E193: 30 | F193: 2009/5/23購入 中古品のため商品は多少のキズ・使用感がございます。記載ない限り帯・特典などは付属致しません。写真以外の付属品はありません。 「村上ポンタ秀一/Welcome To My Life」 村上ポンタ秀一 定価: ￥ 2900 #村上ポンタ秀一 #CD・DVD #桑田佳祐 #CD・DVD #サザン #サザンオールスターズ #SAS #原由子 #松田弘 #関口和之 #野沢秀行 #大森隆志 #斎藤誠 #片山敦夫 レコード・メーカーの枠を超え、ポンタが活動をともにしたヴォーカリストがポンタのプロデュースにより、カヴァー曲を中心に参加する、夢の超豪華アルバム。桑田佳祐、森高千里、矢野顕子、井上陽水、香西かおり、沢田研二、LUNA SEAの真矢他が参加。 | G193: 337 | H193: 1299 | J193: https://www.amazon.co.jp/Welcome-My-Life-%E6%9D%91%E4%B8%8A%E2%80%9C%E3%83%9D%E3%83%B3%E3%82%BF%E2%80%9D%E7%A7%80%E4%B8%80/dp/B00000JX5E/ref=sr_1_1?__mk_ja_JP=%E3%82%AB%E3%82%BF%E3%82%AB%E3%83%8A&crid=1J052BOVMIXQA&keywords=%E6%9D%91%E4%B8%8A%5C%22%E3%83%9D%E3%83%B3%E3%82%BF%5C%22%E7%A7%80%E4%B8%80%2FWelcome+To+My+Life&qid=1646438230&sprefix=%E6%9D%91%E4%B8%8A+%22%E3%83%9D%E3%83%B3%E3%82%BF+%22%E7%A7%80%E4%B8%80%2Fwelcome+to+my+life%2Caps%2C167&sr=8-1 | K193: https://www.amazon.co.jp/dp/B00000JX5E/ref=olp-opf-redir?aod=1&ie=UTF8&condition=ALL | L193: 3070 | M193: 460 | N193: 無料配送 11月1日-2日にお届け 詳細を見る | P193: 460 | Q193: #村上ポンタ秀一 #CD・DVD #桑田佳祐 #CD・DVD #サザン #サザンオールスターズ #SAS #原由子 #松田弘 #関口和之 #野沢秀行 #大森隆志 #斎藤誠 #片山敦夫 | R193: #メルカリ [CD]村上ポンタ秀一/Welcome To My Life フリマアプリ「メルカリ」で販売中 https://jp.mercari.com/item/m32051695272?utm_source=android&utm_medium=share #村上ポンタ秀一 #CD・DVD #桑田佳祐 #CD・DVD #サザン #サザンオールスターズ #SAS #原由子 #松田弘 #関口和之 #野沢秀行 #大森隆志 #斎藤誠 #片山敦夫 | S193: 304 | U193: 1299 | AF193: 個人 | AG193: 1
B194: m43703487771 | C194: 取引終了 | D194: [CD]クレイジーケンバンド/ガール!ガール!ガール! | E194: 27 | F194: 2010/10/10購入 中古品のため商品は多少のキズ・使用感がございます。記載ない限り帯・特典などは付属致しません。写真以外の付属品はありません。 「ガール!ガール!ガール!」 クレイジーケンバンド 定価: ￥ 2857 #クレイジーケンバンド #CD・DVD #横山剣 #小野瀬雅生 #CKB #CRAZYKENBAND 2009年8月12日リリースの、ユニバーサル移籍＆“Double Joy International”レーベル発足第1弾となる通算11枚目のアルバム。シングル「ガールフレンド」や西友キャンペーンCMソング「昼顔」を含む意欲作だ。 | G194: 280 | H194: 1299 | J194: https://www.amazon.co.jp/%E3%82%AC%E3%83%BC%E3%83%AB-%E3%82%AF%E3%83%AC%E3%82%A4%E3%82%B8%E3%83%BC%E3%82%B1%E3%83%B3%E3%83%90%E3%83%B3%E3%83%89/dp/B002CNW7UY/ref=sr_1_2?__mk_ja_JP=%E3%82%AB%E3%82%BF%E3%82%AB%E3%83%8A&crid=FUVY6LGJQB6M&keywords=%E3%82%AC%E3%83%BC%E3%83%AB%21%E3%82%AC%E3%83%BC%E3%83%AB%21%E3%82%AC%E3%83%BC%E3%83%AB%21+%E3%82%AF%E3%83%AC%E3%82%A4%E3%82%B8%E3%83%BC&qid=1646525083&sprefix=%E3%82%AC%E3%83%BC%E3%83%AB+%E3%82%AC%E3%83%BC%E3%83%AB+%E3%82%AC%E3%83%BC%E3%83%AB+%E3%81%8F%E3%82%8C%E3%81%84%E3%81%98%E3%83%BC%2Caps%2C215&sr=8-2 | K194: https://www.amazon.co.jp/dp/B002CNW7UY/ref=olp-opf-redir?aod=1&ie=UTF8&condition=ALL | L194: 2722 | M194: 530 | N194: 配送料 ¥410 8月8日-10日にお届け 詳細を見る | O194: 410 | P194: 940 | Q194: #クレイジーケンバンド #CD・DVD #横山剣 #小野瀬雅生 #CKB #CRAZYKENBAND | R194: #メルカリ [CD]クレイジーケンバンド/ガール!ガール!ガール! フリマアプリ「メルカリ」で販売中 https://jp.mercari.com/item/m43703487771?utm_source=android&utm_medium=share #クレイジーケンバンド #CD・DVD #横山剣 #小野瀬雅生 #CKB #CRAZYKENBAND | S194: 240 | T194: 2023-08-14 | U194: 1299 | V194: 2023-08-07 | W194: 1299 | X194: 129 | Y194: 210 | Z194: 960 | AA194: 送料込み(出品者負担) | AB194: MRの部屋 | AC194: 2023-08-10 | AF194: 個人 | AG194: 1
B195: m27398167977 | C195: 出品中 | D195: [CD]桑田佳祐/祭りのあと(リマスタリング盤) | E195: 24 | F195: 2009/5/16購入 中古品のため商品は多少のキズ・使用感がございます。記載ない限り帯・特典などは付属致しません。写真以外の付属品はありません。 「桑田佳祐/祭りのあと」 定価: ￥ 1000 #桑田佳祐 #CD・DVD #サザン #サザンオールスターズ #SAS #原由子 #松田弘 #関口和之 #野沢秀行 #大森隆志 #斎藤誠 #片山敦夫 #小倉博和 サザンオールスターズのヴォーカリスト・桑田佳祐のソロ・シングル。歌謡曲のテイストを感じさせるメロディーが切なく響くナンバー。 | G195: 245 | H195: 1299 | I195: 新品より高い | J195: https://www.amazon.co.jp/%E7%A5%AD%E3%82%8A%E3%81%AE%E3%81%82%E3%81%A8-%E6%A1%91%E7%94%B0%E4%BD%B3%E7%A5%90/dp/B00005L9AC/ref=sr_1_2?__mk_ja_JP=%E3%82%AB%E3%82%BF%E3%82%AB%E3%83%8A&crid=O512QVREW336&keywords=%E6%A1%91%E7%94%B0%E4%BD%B3%E7%A5%90%2F%E7%A5%AD%E3%82%8A%E3%81%AE%E3%81%82%E3%81%A8&qid=1646524967&sprefix=%E3%82%B5%E3%82%B6%E3%83%B3%E3%82%AA%E3%83%BC%E3%83%AB%E3%82%B9%E3%82%BF%E3%83%BC%E3%82%BA%2Ftarako%2Caps%2C161&sr=8-2 | K195: https://www.amazon.co.jp/dp/B00005L9AC/ref=olp-opf-redir?aod=1&ie=UTF8&condition=ALL | L195: 937 | M195: 866 | N195: 配送料 ¥350 10月31日-11月1日にお届け 詳細を見る | O195: 350 | P195: 1216 | Q195: #桑田佳祐 #CD・DVD #サザン #サザンオールスターズ #SAS #原由子 #松田弘 #関口和之 #野沢秀行 #大森隆志 #斎藤誠 #片山敦夫 #小倉博和 | R195: #メルカリ [CD]桑田佳祐/祭りのあと(リマスタリング盤) フリマアプリ「メルカリ」で販売中 https://jp.mercari.com/item/m27398167977?utm_source=android&utm_medium=share #桑田佳祐 #CD・DVD #サザン #サザンオールスターズ #SAS #原由子 #松田弘 #関口和之 #野沢秀行 #大森隆志 #斎藤誠 #片山敦夫 #小倉博和 | S195: 293 | U195: 1299 | AF195: 個人 | AG195: 1
B196: m98832658130 | C196: 取引終了 | D196: [CD]サザンオールスターズ/Tarako(リマスタリング盤) | E196: 31 | F196: 2005/6/11購入 中古品のため商品は多少のキズ・使用感がございます。記載ない限り帯・特典などは付属致しません。写真以外の付属品はありません。 「Tarako」 サザンオールスターズ 定価: ￥ 762 #桑田佳祐 #CD・DVD #サザン #サザンオールスターズ #SAS #原由子 #松田弘 #関口和之 #野沢秀行 #大森隆志 #斎藤誠 #片山敦夫 8cmCD シングルでしかリリースされておらず、入手しにくくなっていたシングルたちが、ついに12cmCD化！デビュー記念日である“6月25日”に、デビューシングル「勝手にシンドバッド」から2000年の大ヒットシングル「TSUNAMI」までの44タイトルが一挙リリースされる。最新の技術によるデジタルリマスタリング音源で、楽曲本来のサウンドを実現！ 全編英語詞による、タイトルもジャケットも不可思議なイメージを持つナンバー。カップリング曲ともにアルバム（コンピレーション含む）未収録なだけに貴重な1枚だ。 | G196: 433 | H196: 1299 | I196: 新品より高い | J196: https://www.amazon.co.jp/Tarako-%E3%82%B5%E3%82%B6%E3%83%B3%E3%82%AA%E3%83%BC%E3%83%AB%E3%82%B9%E3%82%BF%E3%83%BC%E3%82%BA/dp/B0009I6PH0/ref=sr_1_1?__mk_ja_JP=%E3%82%AB%E3%82%BF%E3%82%AB%E3%83%8A&crid=19SFOMJI7EC8G&keywords=%E3%82%B5%E3%82%B6%E3%83%B3%E3%82%AA%E3%83%BC%E3%83%AB%E3%82%B9%E3%82%BF%E3%83%BC%E3%82%BA%2FTarako&qid=1646524937&sprefix=%E3%82%B5%E3%82%B6%E3%83%B3%E3%82%AA%E3%83%BC%E3%83%AB%E3%82%B9%E3%82%BF%E3%83%BC%E3%82%BA%2Ftarako%2Caps%2C167&sr=8-1 | K196: https://www.amazon.co.jp/dp/B0009I6PH0/ref=olp-opf-redir?aod=1&ie=UTF8&condition=ALL | L196: 749 | M196: 327 | N196: 配送料 ¥350 12月 15-16日にお届け 詳細を見る | O196: 350 | P196: 677 | Q196: #桑田佳祐 #CD・DVD #サザン #サザンオールスターズ #SAS #原由子 #松田弘 #関口和之 #野沢秀行 #大森隆志 #斎藤誠 #片山敦夫 | R196: #メルカリ [CD]サザンオールスターズ/Tarako(リマスタリング盤) フリマアプリ「メルカリ」で販売中 https://jp.mercari.com/item/m98832658130/ #桑田佳祐 #CD・DVD #サザン #サザンオールスターズ #SAS #原由子 #松田弘 #関口和之 #野沢秀行 #大森隆志 #斎藤誠 #片山敦夫 | S196: 256 | T196: 2022-12-22 | U196: 1299 | V196: 2022-12-15 | W196: 1299 | X196: 129 | Y196: 210 | Z196: 960 | AA196: 送料込み(出品者負担) | AB196: ノンノン | AC196: 2022-12-19 | AF196: 個人 | AG196: 1
B197: m71064683273 | C197: 出品中 | D197: [CD]サザンオールスターズ/ピースとハイライト | E197: 24 | F197: 2013/10/26購入 中古品のため商品は多少のキズ・使用感がございます。記載ない限り帯・特典などは付属致しません。写真以外の付属品はありません。 「ピースとハイライト」 サザンオールスターズ 定価: ￥ 1333 #桑田佳祐 #CD・DVD #サザン #サザンオールスターズ #SAS #原由子 #松田弘 #関口和之 #野沢秀行 #大森隆志 #斎藤誠 #片山敦夫 2008年8月のスタジアム・ライヴ以降、無期限活動休止していたサザンオールスターズの約5年ぶり、2013年8月7日リリースのシングル。「ピースとハイライト」はフォルクスワーゲン「New Golf」CMソングとなっている。 | G197: 297 | H197: 1299 | I197: 新品より高い | J197: https://www.amazon.co.jp/%E3%83%94%E3%83%BC%E3%82%B9%E3%81%A8%E3%83%8F%E3%82%A4%E3%83%A9%E3%82%A4%E3%83%88-%E9%80%9A%E5%B8%B8%E7%9B%A4-%E3%82%B5%E3%82%B6%E3%83%B3%E3%82%AA%E3%83%BC%E3%83%AB%E3%82%B9%E3%82%BF%E3%83%BC%E3%82%BA/dp/B00DKK1D08/ref=sr_1_1?__mk_ja_JP=%E3%82%AB%E3%82%BF%E3%82%AB%E3%83%8A&crid=3OYD9AGD9NFBM&keywords=%E3%82%B5%E3%82%B6%E3%83%B3%E3%82%AA%E3%83%BC%E3%83%AB%E3%82%B9%E3%82%BF%E3%83%BC%E3%82%BA%2F%E3%83%94%E3%83%BC%E3%82%B9%E3%81%A8%E3%83%8F%E3%82%A4%E3%83%A9%E3%82%A4%E3%83%88&qid=1646524909&sprefix=%E3%82%B5%E3%82%B6%E3%83%B3%E3%82%AA%E3%83%BC%E3%83%AB%E3%82%B9%E3%82%BF%E3%83%BC%E3%82%BA%2F%E3%83%94%E3%83%BC%E3%82%B9%E3%81%A8%E3%83%8F%E3%82%A4%E3%83%A9%E3%82%A4%E3%83%88%2Caps%2C167&sr=8-1 | K197: https://www.amazon.co.jp/dp/B00DKK1D08/ref=olp-opf-redir?aod=1&ie=UTF8&condition=ALL | L197: 1191 | M197: 71 | N197: 配送料 ¥257 11月2日-3日にお届け 詳細を見る | O197: 257 | P197: 328 | Q197: #桑田佳祐 #CD・DVD #サザン #サザンオールスターズ #SAS #原由子 #松田弘 #関口和之 #野沢秀行 #大森隆志 #斎藤誠 #片山敦夫 | R197: ="#メルカリ"&CHAR(10)&D197&CHAR(10)&" フリマアプリ「メルカリ」で販売中 https://jp.mercari.com/item/"&B197&"?utm_source=android&utm_medium=share "&Q197 -> #メルカリ [CD]サザンオールスターズ/ピースとハイライト フリマアプリ「メルカリ」で販売中 https://jp.mercari.com/item/m71064683273?utm_source=android&utm_medium=share #桑田佳祐 #CD・DVD #サザン #サザンオールスターズ #SAS #原由子 #松田弘 #関口和之 #野沢秀行 #大森隆志 #斎藤誠 #片山敦夫 | S197: 285 | U197: 1299 | AF197: 個人 | AG197: 1
B198: m14743278462 | C198: 取引終了 | D198: [Xbox360]The Elder Scrolls V : Skyrim | E198: 37 | F198: 2011/12/11購入 中古品のため商品は多少のキズ・使用感がございます。記載ない限り帯・特典などは付属致しません。写真以外の付属品はありません。 [Xbox360]The Elder Scrolls V : Skyrim #ゲーム #Xbox360 #スカイリム #Skyrim #ベセスダ #TheElderScrolls #Bethesda 王道にして究極 これが世界最高峰の オープンワールドRPG 伝説のオープンワールドRPG"Oblivion"から4年、ファン待望の完全新作が遂に登場！全世界で大ヒットを記録した名作オブリビオンは、日本国内でもスマッシュヒットを収めた。その最新作となるSKYRIMは壮大なオープン・ワールド・ファンタジーに更なる革命を起こす！ ■ ストーリー 帝国タムリエルは窮地に立たされていた。 Skyrimの王は殺害され、王位継承のために同盟が形成されていった。 内紛が起こる中、長い歳月閉ざされていたElder Scrollsへ通じる道がタムリエルへと開かられ、 太古の邪悪な生物たちが蘇った。 Skyrimの未来は、唯一ドラゴンに立ち向かうことのできる救世主"Dragonborn"が現れるという 予言を待ち望みながら、生死の淵を彷徨うしかなかった……。 | G198: 553 | H198: 1299 | J198: https://www.amazon.co.jp/dp/B005OHHNG8?th=1 | K198: https://www.amazon.co.jp/dp/B005OHHNG8/ref=olp-opf-redir?aod=1&ie=UTF8&condition=ALL | P198: 0 | Q198: #ゲーム #Xbox360 #スカイリム #Skyrim #ベセスダ #TheElderScrolls #Bethesda | R198: #メルカリ [Xbox360]The Elder Scrolls V : Skyrim フリマアプリ「メルカリ」で販売中 https://jp.mercari.com/item/m14743278462?utm_source=android&utm_medium=share #ゲーム #Xbox360 #スカイリム #Skyrim #ベセスダ #TheElderScrolls #Bethesda | S198: 235 | T198: 2023-03-24 | U198: 1299 | V198: 2023-03-17 | W198: 1299 | X198: 129 | Y198: 210 | Z198: 960 | AA198: 送料込み(出品者負担) | AB198: doorzo公式アカウント06 | AC198: 2023-03-25 | AF198: 個人 | AG198: 1
B199: m17734552223 | C199: 出品中 | D199: [CD+DVD]クレイジーケンバンド/Soul Punch 魂拳 | E199: 32 | F199: 2005/12/26購入 中古品のため商品は多少のキズ・使用感がございます。記載ない限り帯・特典などは付属致しません。写真以外の付属品はありません。 「Soul Punch 魂拳」 CRAZY KEN BAND 定価: ￥ 3000 #クレイジーケンバンド #CD・DVD #横山剣 #小野瀬雅生 #CKB #CRAZYKENBAND #CRAZY_KEN_BAND ジャンルの垣根もなんのその、ますますなんでもありの7thアルバム（2005年発表）。TVドラマの主題歌『タイガー＆ドラゴン』やTOKIOへの提供曲のセルフ・カヴァーなど多彩なヒット曲を収録。 | G199: 282 | H199: 1390 | I199: 最安値 | J199: https://www.amazon.co.jp/%E3%82%BD%E3%82%A6%E3%83%AB%E3%83%91%E3%83%B3%E3%83%81-DVD%E4%BB%98-%E3%82%AF%E3%83%AC%E3%82%A4%E3%82%B8%E3%83%BC%E3%82%B1%E3%83%B3%E3%83%90%E3%83%B3%E3%83%89/dp/B000VC0AV6/ref=tmm_acd_title_0?_encoding=UTF8&qid=1646533708&sr=8-1 | K199: https://www.amazon.co.jp/dp/B000VC0AV6/ref=olp-opf-redir?aod=1&ie=UTF8&condition=ALL | L199: 2634 | M199: 990 | N199: 配送料 ¥410 11月3日-6日にお届け 詳細を見る | O199: 410 | P199: 1400 | Q199: #クレイジーケンバンド #CD・DVD #横山剣 #小野瀬雅生 #CKB #CRAZYKENBAND #CRAZY_KEN_BAND | R199: #メルカリ [CD+DVD]クレイジーケンバンド/Soul Punch 魂拳 フリマアプリ「メルカリ」で販売中 https://jp.mercari.com/item/m17734552223?utm_source=android&utm_medium=share #クレイジーケンバンド #CD・DVD #横山剣 #小野瀬雅生 #CKB #CRAZYKENBAND #CRAZY_KEN_BAND | S199: 254 | U199: 1390 | AF199: 個人 | AG199: 1
B200: m24828063553 | C200: 取引終了 | D200: [CD]ウォルター・ベッカー/11の心象[輸入盤] | E200: 25 | F200: 2016/3/6購入 中古品のため商品は多少のキズ・使用感がございます。記載ない限り帯・特典などは付属致しません。写真以外の付属品はありません。 Walter Beckerウォルター・ベッカー/11 Tracks Of Whack 11の心象 #スティーリー・ダン #SteelyDan #ドナルド・フェイゲン #ウォルター・ベッカー #DonaldFagen #WalterBecker スティーリー・ダンの多くの作品に共通していた魅力は音楽的な整合感と,その陰で息をひそめているようではあるけれど,明らかに感じられたアブナイ気配。アブナイ方面はベッカーの個性が生かされていたことがわかるソロ作だ。聴くほどに味がでる1枚。 | G200: 315 | H200: 1299 | J200: https://www.amazon.co.jp/11-Tracks-Whack-Walter-Becker/dp/B000002L2L/ref=sr_1_1?__mk_ja_JP=%E3%82%AB%E3%82%BF%E3%82%AB%E3%83%8A&crid=1O2SW63AWUK69&keywords=11+Tracks+Of+Whack&qid=1647045960&s=music&sprefix=11+tracks+of+whack%2Cpopular%2C161&sr=1-1 | K200: https://www.amazon.co.jp/dp/B000002L2L/ref=olp-opf-redir?aod=1&ie=UTF8&condition=ALL | M200: 900 | N200: 配送料 ¥356 10月 12-16日。 詳細を見る | O200: 356 | P200: 1256 | Q200: #スティーリー・ダン #SteelyDan #ドナルド・フェイゲン #ウォルター・ベッカー #DonaldFagen #WalterBecker | R200: #メルカリ [CD]ウォルター・ベッカー/11の心象[輸入盤] フリマアプリ「メルカリ」で販売中 https://jp.mercari.com/item/m24828063553/ #スティーリー・ダン #SteelyDan #ドナルド・フェイゲン #ウォルター・ベッカー #DonaldFagen #WalterBecker | S200: 232 | T200: 2022-10-17 | U200: 1299 | V200: 2022-10-10 | W200: 1299 | X200: 129 | Y200: 210 | Z200: 960 | AA200: 送料込み(出品者負担) | AB200: 隊長 | AC200: 2022-10-13 | AF200: 個人 | AG200: 1
... 782 more rows

Sheet タグ
A1: クレイジーケンバンド | B1: #クレイジーケンバンド #CD・DVD #横山剣 #小野瀬雅生 #CKB #CRAZYKENBAND #CRAZY_KEN_BAND
A2: 冨田ラボ | B2: #冨田ラボ #CD・DVD #冨田恵一 #キリンジ #KIRINJI
A3: サザン | B3: #桑田佳祐 #CD・DVD #サザン #サザンオールスターズ #SAS #原由子 #松田弘 #関口和之 #野沢秀行 #大森隆志 #斎藤誠 #片山敦夫
A4: 坂本真綾 | B4: #坂本真綾 #菅野よう子
A5: GRAPEVINE | B5: #GRAPEVINE #田中和将 #西川弘剛 #亀井亨 #西原誠 #金戸覚 #高野勲 #Permanents
A6: キリンジ | B6: #キリンジ #KIRINJI #冨田恵一 #堀込高樹 #堀込泰行
A7: カイリー・ミノーグ | B7: #カイリー・ミノーグ #KylieMinogue #Kylie_Minogue
A8: Perfume | B8: #Perfume #中田ヤスタカ #樫野有香 #かしゆか #西脇綾香 #あ〜ちゃん #大本彩乃 #のっち #capsule

Sheet 物販収益
A1: 日付 | B1: 売上 | C1: 30日 | D1: 過去30日 | F1: 12カ月 | H1: 売上累計 | I1: 経費 | J1: 経費12カ月 | L1: 経費累計 | M1: 利益12カ月 | O1: 利益計 | Q1: 振込期限
A2: 2021-01-01 | B2: =SUMIF(リスト!$AC:$AC,"="&A2,リスト!$Z:$Z)+SUMIF(amazon明細!A:A,"="&A2,amazon明細!D:D) -> 0 | H2: =SUM(B$2:B2) -> 0 | I2: =SUMIF(物販経費!A:A,"="&物販収益!A2,物販経費!B:B) -> 0 | L2: =SUM(I$2:I2) -> 0 | O2: =H2-L2 -> 0
A3: 2021-01-02 | B3: =SUMIF(リスト!$AC:$AC,"="&A3,リスト!$Z:$Z)+SUMIF(amazon明細!A:A,"="&A3,amazon明細!D:D) -> 0 | H3: =SUM(B$2:B3) -> 0 | I3: =SUMIF(物販経費!A:A,"="&物販収益!A3,物販経費!B:B) -> 0 | L3: =SUM(I$2:I3) -> 0 | O3: 0
A4: 2021-01-03 | B4: =SUMIF(リスト!$AC:$AC,"="&A4,リスト!$Z:$Z)+SUMIF(amazon明細!A:A,"="&A4,amazon明細!D:D) -> 0 | H4: =SUM(B$2:B4) -> 0 | I4: =SUMIF(物販経費!A:A,"="&物販収益!A4,物販経費!B:B) -> 0 | L4: =SUM(I$2:I4) -> 0 | O4: 0
A5: 2021-01-04 | B5: =SUMIF(リスト!$AC:$AC,"="&A5,リスト!$Z:$Z)+SUMIF(amazon明細!A:A,"="&A5,amazon明細!D:D) -> 0 | H5: =SUM(B$2:B5) -> 0 | I5: =SUMIF(物販経費!A:A,"="&物販収益!A5,物販経費!B:B) -> 0 | L5: =SUM(I$2:I5) -> 0 | O5: 0
A6: 2021-01-05 | B6: =SUMIF(リスト!$AC:$AC,"="&A6,リスト!$Z:$Z)+SUMIF(amazon明細!A:A,"="&A6,amazon明細!D:D) -> 0 | H6: =SUM(B$2:B6) -> 0 | I6: =SUMIF(物販経費!A:A,"="&物販収益!A6,物販経費!B:B) -> 0 | L6: =SUM(I$2:I6) -> 0 | O6: 0
A7: 2021-01-06 | B7: =SUMIF(リスト!$AC:$AC,"="&A7,リスト!$Z:$Z)+SUMIF(amazon明細!A:A,"="&A7,amazon明細!D:D) -> 0 | H7: =SUM(B$2:B7) -> 0 | I7: =SUMIF(物販経費!A:A,"="&物販収益!A7,物販経費!B:B) -> 0 | L7: =SUM(I$2:I7) -> 0 | O7: 0
A8: 2021-01-07 | B8: =SUMIF(リスト!$AC:$AC,"="&A8,リスト!$Z:$Z)+SUMIF(amazon明細!A:A,"="&A8,amazon明細!D:D) -> 0 | H8: =SUM(B$2:B8) -> 0 | I8: =SUMIF(物販経費!A:A,"="&物販収益!A8,物販経費!B:B) -> 0 | L8: =SUM(I$2:I8) -> 0 | O8: 0
A9: 2021-01-08 | B9: =SUMIF(リスト!$AC:$AC,"="&A9,リスト!$Z:$Z)+SUMIF(amazon明細!A:A,"="&A9,amazon明細!D:D) -> 0 | H9: =SUM(B$2:B9) -> 0 | I9: =SUMIF(物販経費!A:A,"="&物販収益!A9,物販経費!B:B) -> 0 | L9: =SUM(I$2:I9) -> 0 | O9: 0
A10: 2021-01-09 | B10: =SUMIF(リスト!$AC:$AC,"="&A10,リスト!$Z:$Z)+SUMIF(amazon明細!A:A,"="&A10,amazon明細!D:D) -> 0 | H10: =SUM(B$2:B10) -> 0 | I10: =SUMIF(物販経費!A:A,"="&物販収益!A10,物販経費!B:B) -> 0 | L10: =SUM(I$2:I10) -> 0 | O10: 0
A11: 2021-01-10 | B11: =SUMIF(リスト!$AC:$AC,"="&A11,リスト!$Z:$Z)+SUMIF(amazon明細!A:A,"="&A11,amazon明細!D:D) -> 0 | H11: =SUM(B$2:B11) -> 0 | I11: =SUMIF(物販経費!A:A,"="&物販収益!A11,物販経費!B:B) -> 0 | L11: =SUM(I$2:I11) -> 0 | O11: 0
A12: 2021-01-11 | B12: =SUMIF(リスト!$AC:$AC,"="&A12,リスト!$Z:$Z)+SUMIF(amazon明細!A:A,"="&A12,amazon明細!D:D) -> 0 | H12: =SUM(B$2:B12) -> 0 | I12: =SUMIF(物販経費!A:A,"="&物販収益!A12,物販経費!B:B) -> 0 | L12: =SUM(I$2:I12) -> 0 | O12: 0
A13: 2021-01-12 | B13: =SUMIF(リスト!$AC:$AC,"="&A13,リスト!$Z:$Z)+SUMIF(amazon明細!A:A,"="&A13,amazon明細!D:D) -> 0 | H13: =SUM(B$2:B13) -> 0 | I13: =SUMIF(物販経費!A:A,"="&物販収益!A13,物販経費!B:B) -> 0 | L13: =SUM(I$2:I13) -> 0 | O13: 0
A14: 2021-01-13 | B14: =SUMIF(リスト!$AC:$AC,"="&A14,リスト!$Z:$Z)+SUMIF(amazon明細!A:A,"="&A14,amazon明細!D:D) -> 0 | H14: =SUM(B$2:B14) -> 0 | I14: =SUMIF(物販経費!A:A,"="&物販収益!A14,物販経費!B:B) -> 0 | L14: =SUM(I$2:I14) -> 0 | O14: 0
A15: 2021-01-14 | B15: =SUMIF(リスト!$AC:$AC,"="&A15,リスト!$Z:$Z)+SUMIF(amazon明細!A:A,"="&A15,amazon明細!D:D) -> 0 | H15: =SUM(B$2:B15) -> 0 | I15: =SUMIF(物販経費!A:A,"="&物販収益!A15,物販経費!B:B) -> 0 | L15: =SUM(I$2:I15) -> 0 | O15: 0
A16: 2021-01-15 | B16: =SUMIF(リスト!$AC:$AC,"="&A16,リスト!$Z:$Z)+SUMIF(amazon明細!A:A,"="&A16,amazon明細!D:D) -> 0 | H16: =SUM(B$2:B16) -> 0 | I16: =SUMIF(物販経費!A:A,"="&物販収益!A16,物販経費!B:B) -> 0 | L16: =SUM(I$2:I16) -> 0 | O16: 0
A17: 2021-01-16 | B17: =SUMIF(リスト!$AC:$AC,"="&A17,リスト!$Z:$Z)+SUMIF(amazon明細!A:A,"="&A17,amazon明細!D:D) -> 0 | H17: =SUM(B$2:B17) -> 0 | I17: =SUMIF(物販経費!A:A,"="&物販収益!A17,物販経費!B:B) -> 0 | L17: =SUM(I$2:I17) -> 0 | O17: 0
A18: 2021-01-17 | B18: =SUMIF(リスト!$AC:$AC,"="&A18,リスト!$Z:$Z)+SUMIF(amazon明細!A:A,"="&A18,amazon明細!D:D) -> 0 | H18: =SUM(B$2:B18) -> 0 | I18: =SUMIF(物販経費!A:A,"="&物販収益!A18,物販経費!B:B) -> 0 | L18: =SUM(I$2:I18) -> 0 | O18: 0
A19: 2021-01-18 | B19: =SUMIF(リスト!$AC:$AC,"="&A19,リスト!$Z:$Z)+SUMIF(amazon明細!A:A,"="&A19,amazon明細!D:D) -> 0 | H19: =SUM(B$2:B19) -> 0 | I19: =SUMIF(物販経費!A:A,"="&物販収益!A19,物販経費!B:B) -> 0 | L19: =SUM(I$2:I19) -> 0 | O19: 0
A20: 2021-01-19 | B20: =SUMIF(リスト!$AC:$AC,"="&A20,リスト!$Z:$Z)+SUMIF(amazon明細!A:A,"="&A20,amazon明細!D:D) -> 0 | H20: =SUM(B$2:B20) -> 0 | I20: =SUMIF(物販経費!A:A,"="&物販収益!A20,物販経費!B:B) -> 0 | L20: =SUM(I$2:I20) -> 0 | O20: 0
A21: 2021-01-20 | B21: =SUMIF(リスト!$AC:$AC,"="&A21,リスト!$Z:$Z)+SUMIF(amazon明細!A:A,"="&A21,amazon明細!D:D) -> 0 | H21: =SUM(B$2:B21) -> 0 | I21: =SUMIF(物販経費!A:A,"="&物販収益!A21,物販経費!B:B) -> 0 | L21: =SUM(I$2:I21) -> 0 | O21: 0
